Workbook

Sheet Log of Prior SAR Models
A1: Effective Dates | B1: Order No. | C1: Modifications | D1: File Names | E1: Notes
A3: 2021-06-01 | B3: 35052 | C3: Annual Natural Gas Update | D3: Avoided Cost Model Order No. 35052 ver June 1, 2021 Annual Natural Gas Update
A4: 2021-02-05 | B4: 34913 | C4: IPCO's Energy Storage Published Rates | D4: Avoided Cost Model Order No. 34913 ver February 5, 2021 Energy Storage (linked)
A5: 2022-06-01 | B5: 35422 | C5: Annual Natural Gas Update | D5: Avoided Cost Model Order No. 35422 ver June 1, 2022 Annual Natural Gas Update
A6: 2022-06-01 | B6: 35475 | C6: IPCO's Capacity Deficiency Update with Annual Gas Update | D6: Avoided Cost Model Order No. 35475 ver Retro June 1, 2022 IPCO Capacity Deficiency Update
A7: 2023-06-01 | B7: 35800 | C7: Annual Natural Gas Update | D7: Avoided Cost Model Order No. 35800 ver June 1, 2023 Annual Natural Gas Update
A8: 2024-03-28 | B8: 36123 | C8: IPCO's Capital Structure and Cost | D8: Avoided Cost Model Order No. 36123 ver March 28, 2024 IPCO Cost of Capital
A9: 2024-06-12 | B9: 36226 | C9: IPCO's Capacity Deficiency Updates | D9: Avoided Cost Model Order No. 36226 ver June 12, 2024 IPCO Capacity Deficiency
A10: 2024-12-09 | B10: 36416 | C10: Annual Natural Gas Update | D10: Avoided Cost Model Order No. 36416 ver December 9, 2024 Annual Gas Update (IPCO)
A11: 2025-06-01 | B11: 36610 | C11: Annual Natural Gas Update | D11: Avoided Cost Model Order No. 36610 ver June 1, 2025 Annual Gas Update (IPCO)
A12: 2026-01-01 | B12: 36885 | C12: IPCO's Capacity Deficiency Updates and Peak Hours | D12: Avoided Cost Model Order No. 36885 ver January 1, 2026 Capacity Deficiency and Peak Hours (IPCO)

Sheet AVOID NEW
B1: AVOIDED COST CALCULATION MODEL | L1: Base Calculations | X1: Resource-Specific Calculations | AK1: Resource-Specific Calculations
B2: Idaho Public Utilities Commission
B3: XX/XX/2026 | AK3: =$E$107 -> IPCO
X4: Resource Type | AK4: =TODAY()+1 -> 2025-12-31
B5: 1. Choose Utility | G5: Natural Gas Price Forecast | U5: Surplus Energy Transmission Cost Calcs | AK5: ="Avoided Cost Rates for "&'Input - Capacity Factors'!$C$3&" Projects" -> Avoided Cost Rates for Wind Projects
L6: Year | N6: Energy Rate Calcs | R6: Capacity Rate Calcs | X6: Year | Z6: Energy Rate | AE6: Peak capacity adjustment | AH6: Total Rate | AI6: Fueled Rate | AK6: CONTRACT | AL6: CAL YEAR | AM6: NON-LEVELIZED RATE ($/MWH) | AN6: LEVELIZED RATES ($/MWH)
B7: 2. Choose Contract Type | H7: Real Price | I7: Nominal Price | N7: Gas Price | O7: Fuel Cost | P7: VO&M Cost | Q7: Total | R7: "Tilted" Capital Costs | S7: FO&M Cost | T7: Total | U7: Rate | V7: Losses | Z7: Fuel | AA7: VO&M | AB7: Trans. | AC7: Losses | AD7: Total | AE7: Capital | AF7: FO&M | AG7: Total | AK7: LENGTH | AN7: ON-LINE YEAR
I8: by Year | J8: FUEL COST | L8: No. | M8: Cal | N8: $/MMBtu | O8: $/MWh | P8: $/MWh | Q8: $/MWh | R8: $/MWh | S8: $/MWh | T8: $/MWh | U8: $/MWh | V8: $/MWh | X8: No. | Y8: Cal | Z8: $/MWh | AA8: $/MWh | AB8: $/MWh | AC8: $/MWh | AD8: $/MWh | AE8: $/MWh | AF8: $/MWh | AG8: $/MWh | AH8: $/MWh | AI8: $/MWh | AK8: (YEARS) | AN8: =$D$54 -> 2026 | AO8: =AN8+1 -> 2027 | AP8: =AO8+1 -> 2028 | AQ8: 2029 | AR8: 2030 | AS8: 2031
G9: YEAR | I9: ($ per MMBtu) | J9: $/MWh | L9: 1 | M9: =D54 -> 2026 | N9: =IF(ISERROR(VLOOKUP($M9,$G$10:$J$40,3,FALSE)),GROWTH($I$31:$I$40,$G$31:$G$40,M9),VLOOKUP($M9,$G$10:$J$40,3,FALSE)) -> 3.704920092 | O9: =N9*$D$36/1000 -> 26.30493266 | P9: =$D$40*(1+$D$47)^(M9-$D$43) -> 2.527995858 | Q9: =P9+O9 -> 28.83292851 | R9: =$R$41*(($D$37-$D$52)/$D$37)*((1+$D$37)^$D$32-1)/((1+$D$37)^$D$32-(1+$D$52)^$D$32)*(1+$D$52)^(M9-$M$41) -> 52.64737774 | S9: =$D$39*(1+$D$47)^($M9-$D$43)*(1000/(365*24))/VLOOKUP('Input - Capacity Factors'!$C$3,'Input - Capacity Factors'!$A:$B,2,FALSE) -> 7.198542904 | T9: =S9+R9 -> 59.84592064 | U9: =-VLOOKUP($E$107,'Input - Transmission'!$A:$C,2)*(1+'Input - Transmission'!$C$11)^('AVOID NEW'!$M9-'Input - Transmission'!$C$10)*12*(1000/(365*24))*(1/VLOOKUP('Input - Capacity Factors'!$C$3,'Input - Capacity Factors'!$A:$D,2,FALSE)) -> -9.585254609 | V9: =-VLOOKUP($E$107,'Input - Transmission'!$A:$C,3)*Q9 -> -1.153317141 | X9: 1 | Y9: =M9 -> 2026 | Z9: =O9 -> 26.30493266 | AA9: =P9 -> 2.527995858 | AB9: =IF(VLOOKUP($Y9,'Input - Load and Resource'!$B$13:$C$42,2,FALSE)>=0,0,0) -> 0 | AC9: =IF(VLOOKUP($Y9,'Input - Load and Resource'!$B$13:$C$42,2,FALSE)>=0,0,0) -> 0 | AD9: =SUM(Z9:AC9) -> 28.83292851 | AE9: =VLOOKUP($Y9,'Input - Load and Resource'!$B$13:$L$42,11,FALSE)*R9 -> 0 | AF9: =VLOOKUP($Y9,'Input - Load and Resource'!$B$13:$L$42,11,FALSE)*S9 -> 0 | AG9: =AF9+AE9 -> 0 | AH9: =AG9+AD9 -> 28.83292851 | AI9: =AA9+AE9+AF9 -> 2.527995858 | AK9: 1 | AL9: =D54 -> 2026 | AM9: =IF('Input - Capacity Factors'!$C$3="Fueled",'AVOID NEW'!AI9,AH9) -> 28.83292851 | AN9: =IF('Input - Capacity Factors'!$C$3="Fueled",-PMT($D$37,$AK9,NPV($D$37,$AI$9:$AI9)),-PMT($D$37,$AK9,NPV($D$37,$AH$9:$AH9))) -> 28.83292851 | AO9: =IF('Input - Capacity Factors'!$C$3="Fueled",-PMT($D$37,$AK9,NPV($D$37,$AI$10:$AI10)),-PMT($D$37,$AK9,NPV($D$37,$AH$10:$AH10))) -> 37.76389712 | AP9: =IF('Input - Capacity Factors'!$C$3="Fueled",-PMT($D$37,$AK9,NPV($D$37,$AI$11:$AI11)),-PMT($D$37,$AK9,NPV($D$37,$AH$11:$AH11))) -> 40.11422114 | AQ9: =IF('Input - Capacity Factors'!$C$3="Fueled",-PMT($D$37,$AK9,NPV($D$37,$AI$12:$AI12)),-PMT($D$37,$AK9,NPV($D$37,$AH$12:$AH12))) -> 41.95826489 | AR9: =IF('Input - Capacity Factors'!$C$3="Fueled",-PMT($D$37,$AK9,NPV($D$37,$AI$13:$AI13)),-PMT($D$37,$AK9,NPV($D$37,$AH$13:$AH13))) -> 39.58790639 | AS9: =IF('Input - Capacity Factors'!$C$3="Fueled",-PMT($D$37,$AK9,NPV($D$37,$AI$14:$AI14)),-PMT($D$37,$AK9,NPV($D$37,$AH$14:$AH14))) -> 39.68938669
B10: 4. Choose specific resource | G10: 2025 | I10: 3.177592397 | J10: =I10*D$36/1000 -> 22.56090602 | L10: 2 | M10: =M9+1 -> 2027 | N10: =IF(ISERROR(VLOOKUP($M10,$G$10:$J$40,3,FALSE)),GROWTH($I$31:$I$40,$G$31:$G$40,M10),VLOOKUP($M10,$G$10:$J$40,3,FALSE)) -> 4.528027268 | O10: =N10*$D$36/1000 -> 32.1489936 | P10: =$D$40*(1+$D$47)^(M10-$D$43) -> 2.578555775 | Q10: =P10+O10 -> 34.72754938 | R10: =$R$41*(($D$37-$D$52)/$D$37)*((1+$D$37)^$D$32-1)/((1+$D$37)^$D$32-(1+$D$52)^$D$32)*(1+$D$52)^(M10-$M$41) -> 53.38444103 | S10: =$D$39*(1+$D$47)^($M10-$D$43)*(1000/(365*24))/VLOOKUP('Input - Capacity Factors'!$C$3,'Input - Capacity Factors'!$A:$B,2,FALSE) -> 7.342513762 | T10: =S10+R10 -> 60.72695479 | U10: =-VLOOKUP($E$107,'Input - Transmission'!$A:$C,2)*(1+'Input - Transmission'!$C$11)^('AVOID NEW'!$M10-'Input - Transmission'!$C$10)*12*(1000/(365*24))*(1/VLOOKUP('Input - Capacity Factors'!$C$3,'Input - Capacity Factors'!$A:$D,2,FALSE)) -> -9.776959701 | V10: =-VLOOKUP($E$107,'Input - Transmission'!$A:$C,3)*Q10 -> -1.389101975 | X10: 2 | Y10: =M10 -> 2027 | Z10: =O10 -> 32.1489936 | AA10: =P10 -> 2.578555775 | AB10: =IF(VLOOKUP($Y10,'Input - Load and Resource'!$B$13:$C$42,2,FALSE)>=0,0,0) -> 0 | AC10: =IF(VLOOKUP($Y10,'Input - Load and Resource'!$B$13:$C$42,2,FALSE)>=0,0,0) -> 0 | AD10: =SUM(Z10:AC10) -> 34.72754938 | AE10: =VLOOKUP($Y10,'Input - Load and Resource'!$B$13:$L$42,11,FALSE)*R10 -> 2.669222051 | AF10: =VLOOKUP($Y10,'Input - Load and Resource'!$B$13:$L$42,11,FALSE)*S10 -> 0.3671256881 | AG10: =AF10+AE10 -> 3.03634774 | AH10: =AG10+AD10 -> 37.76389712 | AI10: =AA10+AE10+AF10 -> 5.614903515 | AK10: 2 | AL10: =AL9+1 -> 2027 | AM10: =IF('Input - Capacity Factors'!$C$3="Fueled",'AVOID NEW'!AI10,AH10) -> 37.76389712 | AN10: =IF('Input - Capacity Factors'!$C$3="Fueled",-PMT($D$37,$AK10,NPV($D$37,$AI$9:$AI10)),-PMT($D$37,$AK10,NPV($D$37,$AH$9:$AH10))) -> 33.1388777 | AO10: =IF('Input - Capacity Factors'!$C$3="Fueled",-PMT($D$37,$AK10,NPV($D$37,$AI$10:$AI11)),-PMT($D$37,$AK10,NPV($D$37,$AH$10:$AH11))) -> 38.89707497 | AP10: =IF('Input - Capacity Factors'!$C$3="Fueled",-PMT($D$37,$AK10,NPV($D$37,$AI$11:$AI12)),-PMT($D$37,$AK10,NPV($D$37,$AH$11:$AH12))) -> 41.00330261 | AQ10: =IF('Input - Capacity Factors'!$C$3="Fueled",-PMT($D$37,$AK10,NPV($D$37,$AI$12:$AI13)),-PMT($D$37,$AK10,NPV($D$37,$AH$12:$AH13))) -> 40.81542768 | AR10: =IF('Input - Capacity Factors'!$C$3="Fueled",-PMT($D$37,$AK10,NPV($D$37,$AI$13:$AI14)),-PMT($D$37,$AK10,NPV($D$37,$AH$13:$AH14))) -> 39.63683378 | AS10: =IF('Input - Capacity Factors'!$C$3="Fueled",-PMT($D$37,$AK10,NPV($D$37,$AI$14:$AI15)),-PMT($D$37,$AK10,NPV($D$37,$AH$14:$AH15))) -> 40.85292226
G11: 2026 | I11: 3.704920092 | J11: 26.30493266 | L11: 3 | M11: =M10+1 -> 2028 | N11: 4.845497872 | O11: 34.40303489 | P11: 2.630126891 | Q11: 37.03316178 | R11: 54.1318232 | S11: =$D$39*(1+$D$47)^($M11-$D$43)*(1000/(365*24))/VLOOKUP('Input - Capacity Factors'!$C$3,'Input - Capacity Factors'!$A:$B,2,FALSE) -> 7.489364037 | T11: 61.62118724 | U11: =-VLOOKUP($E$107,'Input - Transmission'!$A:$C,2)*(1+'Input - Transmission'!$C$11)^('AVOID NEW'!$M11-'Input - Transmission'!$C$10)*12*(1000/(365*24))*(1/VLOOKUP('Input - Capacity Factors'!$C$3,'Input - Capacity Factors'!$A:$D,2,FALSE)) -> -9.972498895 | V11: =-VLOOKUP($E$107,'Input - Transmission'!$A:$C,3)*Q11 -> -1.481326471 | X11: 3 | Y11: 2028 | Z11: 34.40303489 | AA11: 2.630126891 | AB11: =IF(VLOOKUP($Y11,'Input - Load and Resource'!$B$13:$C$42,2,FALSE)>=0,0,0) -> 0 | AC11: =IF(VLOOKUP($Y11,'Input - Load and Resource'!$B$13:$C$42,2,FALSE)>=0,0,0) -> 0 | AD11: 37.03316178 | AE11: =VLOOKUP($Y11,'Input - Load and Resource'!$B$13:$L$42,11,FALSE)*R11 -> 2.70659116 | AF11: =VLOOKUP($Y11,'Input - Load and Resource'!$B$13:$L$42,11,FALSE)*S11 -> 0.3744682019 | AG11: 3.081059362 | AH11: 40.11422114 | AI11: 5.711186253 | AK11: 3 | AL11: =AL10+1 -> 2028 | AM11: =IF('Input - Capacity Factors'!$C$3="Fueled",'AVOID NEW'!AI11,AH11) -> 40.11422114 | AN11: =IF('Input - Capacity Factors'!$C$3="Fueled",-PMT($D$37,$AK11,NPV($D$37,$AI$9:$AI11)),-PMT($D$37,$AK11,NPV($D$37,$AH$9:$AH11))) -> 35.29990511 | AO11: =IF('Input - Capacity Factors'!$C$3="Fueled",-PMT($D$37,$AK11,NPV($D$37,$AI$10:$AI12)),-PMT($D$37,$AK11,NPV($D$37,$AH$10:$AH12))) -> 39.84546058 | AP11: =IF('Input - Capacity Factors'!$C$3="Fueled",-PMT($D$37,$AK11,NPV($D$37,$AI$11:$AI13)),-PMT($D$37,$AK11,NPV($D$37,$AH$11:$AH13))) -> 40.56479947 | AQ11: =IF('Input - Capacity Factors'!$C$3="Fueled",-PMT($D$37,$AK11,NPV($D$37,$AI$12:$AI14)),-PMT($D$37,$AK11,NPV($D$37,$AH$12:$AH14))) -> 40.46656952 | AR11: =IF('Input - Capacity Factors'!$C$3="Fueled",-PMT($D$37,$AK11,NPV($D$37,$AI$13:$AI15)),-PMT($D$37,$AK11,NPV($D$37,$AH$13:$AH15))) -> 40.40077493 | AS11: =IF('Input - Capacity Factors'!$C$3="Fueled",-PMT($D$37,$AK11,NPV($D$37,$AI$14:$AI16)),-PMT($D$37,$AK11,NPV($D$37,$AH$14:$AH16))) -> 42.46544314
G12: 2027 | I12: 4.528027268 | J12: 32.1489936 | L12: 4 | M12: 2029 | N12: 5.091421755 | O12: 36.14909446 | P12: 2.682729429 | Q12: 38.83182389 | R12: 54.88966873 | S12: =$D$39*(1+$D$47)^($M12-$D$43)*(1000/(365*24))/VLOOKUP('Input - Capacity Factors'!$C$3,'Input - Capacity Factors'!$A:$B,2,FALSE) -> 7.639151318 | T12: 62.52882005 | U12: =-VLOOKUP($E$107,'Input - Transmission'!$A:$C,2)*(1+'Input - Transmission'!$C$11)^('AVOID NEW'!$M12-'Input - Transmission'!$C$10)*12*(1000/(365*24))*(1/VLOOKUP('Input - Capacity Factors'!$C$3,'Input - Capacity Factors'!$A:$D,2,FALSE)) -> -10.17194887 | V12: =-VLOOKUP($E$107,'Input - Transmission'!$A:$C,3)*Q12 -> -1.553272956 | X12: 4 | Y12: 2029 | Z12: 36.14909446 | AA12: 2.682729429 | AB12: =IF(VLOOKUP($Y12,'Input - Load and Resource'!$B$13:$C$42,2,FALSE)>=0,0,0) -> 0 | AC12: =IF(VLOOKUP($Y12,'Input - Load and Resource'!$B$13:$C$42,2,FALSE)>=0,0,0) -> 0 | AD12: 38.83182389 | AE12: =VLOOKUP($Y12,'Input - Load and Resource'!$B$13:$L$42,11,FALSE)*R12 -> 2.744483436 | AF12: =VLOOKUP($Y12,'Input - Load and Resource'!$B$13:$L$42,11,FALSE)*S12 -> 0.3819575659 | AG12: 3.126441002 | AH12: 41.95826489 | AI12: 5.809170431 | AK12: 4 | AL12: 2029 | AM12: =IF('Input - Capacity Factors'!$C$3="Fueled",'AVOID NEW'!AI12,AH12) -> 41.95826489 | AN12: =IF('Input - Capacity Factors'!$C$3="Fueled",-PMT($D$37,$AK12,NPV($D$37,$AI$9:$AI12)),-PMT($D$37,$AK12,NPV($D$37,$AH$9:$AH12))) -> 36.79048172 | AO12: =IF('Input - Capacity Factors'!$C$3="Fueled",-PMT($D$37,$AK12,NPV($D$37,$AI$10:$AI13)),-PMT($D$37,$AK12,NPV($D$37,$AH$10:$AH13))) -> 39.7878031 | AP12: =IF('Input - Capacity Factors'!$C$3="Fueled",-PMT($D$37,$AK12,NPV($D$37,$AI$11:$AI14)),-PMT($D$37,$AK12,NPV($D$37,$AH$11:$AH14))) -> 40.3688248 | AQ12: =IF('Input - Capacity Factors'!$C$3="Fueled",-PMT($D$37,$AK12,NPV($D$37,$AI$12:$AI15)),-PMT($D$37,$AK12,NPV($D$37,$AH$12:$AH15))) -> 40.83283713 | AR12: =IF('Input - Capacity Factors'!$C$3="Fueled",-PMT($D$37,$AK12,NPV($D$37,$AI$13:$AI16)),-PMT($D$37,$AK12,NPV($D$37,$AH$13:$AH16))) -> 41.66718767 | AS12: =IF('Input - Capacity Factors'!$C$3="Fueled",-PMT($D$37,$AK12,NPV($D$37,$AI$14:$AI17)),-PMT($D$37,$AK12,NPV($D$37,$AH$14:$AH17))) -> 43.46597146
B13: 5. Enter current year | D13: 2026 | G13: 2028 | I13: 4.845497872 | J13: 34.40303489 | L13: 5 | M13: 2030 | N13: 4.743523866 | O13: 33.67901945 | P13: 2.736384017 | Q13: 36.41540347 | R13: 55.65812409 | S13: =$D$39*(1+$D$47)^($M13-$D$43)*(1000/(365*24))/VLOOKUP('Input - Capacity Factors'!$C$3,'Input - Capacity Factors'!$A:$B,2,FALSE) -> 7.791934345 | T13: 63.45005844 | U13: =-VLOOKUP($E$107,'Input - Transmission'!$A:$C,2)*(1+'Input - Transmission'!$C$11)^('AVOID NEW'!$M13-'Input - Transmission'!$C$10)*12*(1000/(365*24))*(1/VLOOKUP('Input - Capacity Factors'!$C$3,'Input - Capacity Factors'!$A:$D,2,FALSE)) -> -10.37538785 | V13: =-VLOOKUP($E$107,'Input - Transmission'!$A:$C,3)*Q13 -> -1.456616139 | X13: 5 | Y13: 2030 | Z13: 33.67901945 | AA13: 2.736384017 | AB13: =IF(VLOOKUP($Y13,'Input - Load and Resource'!$B$13:$C$42,2,FALSE)>=0,0,0) -> 0 | AC13: =IF(VLOOKUP($Y13,'Input - Load and Resource'!$B$13:$C$42,2,FALSE)>=0,0,0) -> 0 | AD13: 36.41540347 | AE13: =VLOOKUP($Y13,'Input - Load and Resource'!$B$13:$L$42,11,FALSE)*R13 -> 2.782906205 | AF13: =VLOOKUP($Y13,'Input - Load and Resource'!$B$13:$L$42,11,FALSE)*S13 -> 0.3895967172 | AG13: 3.172502922 | AH13: 39.58790639 | AI13: 5.908886939 | AK13: 5 | AL13: 2030 | AM13: =IF('Input - Capacity Factors'!$C$3="Fueled",'AVOID NEW'!AI13,AH13) -> 39.58790639 | AN13: =IF('Input - Capacity Factors'!$C$3="Fueled",-PMT($D$37,$AK13,NPV($D$37,$AI$9:$AI13)),-PMT($D$37,$AK13,NPV($D$37,$AH$9:$AH13))) -> 37.27296511 | AO13: =IF('Input - Capacity Factors'!$C$3="Fueled",-PMT($D$37,$AK13,NPV($D$37,$AI$10:$AI14)),-PMT($D$37,$AK13,NPV($D$37,$AH$10:$AH14))) -> 39.77082881 | AP13: =IF('Input - Capacity Factors'!$C$3="Fueled",-PMT($D$37,$AK13,NPV($D$37,$AI$11:$AI15)),-PMT($D$37,$AK13,NPV($D$37,$AH$11:$AH15))) -> 40.66786922 | AQ13: =IF('Input - Capacity Factors'!$C$3="Fueled",-PMT($D$37,$AK13,NPV($D$37,$AI$12:$AI16)),-PMT($D$37,$AK13,NPV($D$37,$AH$12:$AH16))) -> 41.73400834 | AR13: =IF('Input - Capacity Factors'!$C$3="Fueled",-PMT($D$37,$AK13,NPV($D$37,$AI$13:$AI17)),-PMT($D$37,$AK13,NPV($D$37,$AH$13:$AH17))) -> 42.57570975 | AS13: =IF('Input - Capacity Factors'!$C$3="Fueled",-PMT($D$37,$AK13,NPV($D$37,$AI$14:$AI18)),-PMT($D$37,$AK13,NPV($D$37,$AH$14:$AH18))) -> 44.34863737
G14: 2029 | I14: 5.091421755 | J14: 36.14909446 | L14: 6 | M14: 2031 | N14: 4.743523866 | O14: 33.67901945 | P14: 2.791111698 | Q14: 36.47013115 | R14: 56.43733783 | S14: =$D$39*(1+$D$47)^($M14-$D$43)*(1000/(365*24))/VLOOKUP('Input - Capacity Factors'!$C$3,'Input - Capacity Factors'!$A:$B,2,FALSE) -> 7.947773031 | T14: 64.38511086 | U14: =-VLOOKUP($E$107,'Input - Transmission'!$A:$C,2)*(1+'Input - Transmission'!$C$11)^('AVOID NEW'!$M14-'Input - Transmission'!$C$10)*12*(1000/(365*24))*(1/VLOOKUP('Input - Capacity Factors'!$C$3,'Input - Capacity Factors'!$A:$D,2,FALSE)) -> -10.58289561 | V14: =-VLOOKUP($E$107,'Input - Transmission'!$A:$C,3)*Q14 -> -1.458805246 | X14: 6 | Y14: 2031 | Z14: 33.67901945 | AA14: 2.791111698 | AB14: =IF(VLOOKUP($Y14,'Input - Load and Resource'!$B$13:$C$42,2,FALSE)>=0,0,0) -> 0 | AC14: =IF(VLOOKUP($Y14,'Input - Load and Resource'!$B$13:$C$42,2,FALSE)>=0,0,0) -> 0 | AD14: 36.47013115 | AE14: =VLOOKUP($Y14,'Input - Load and Resource'!$B$13:$L$42,11,FALSE)*R14 -> 2.821866891 | AF14: =VLOOKUP($Y14,'Input - Load and Resource'!$B$13:$L$42,11,FALSE)*S14 -> 0.3973886516 | AG14: 3.219255543 | AH14: 39.68938669 | AI14: 6.010367241 | AK14: 6 | AL14: 2031 | AM14: =IF('Input - Capacity Factors'!$C$3="Fueled",'AVOID NEW'!AI14,AH14) -> 39.68938669 | AN14: =IF('Input - Capacity Factors'!$C$3="Fueled",-PMT($D$37,$AK14,NPV($D$37,$AI$9:$AI14)),-PMT($D$37,$AK14,NPV($D$37,$AH$9:$AH14))) -> 37.60729762 | AO14: =IF('Input - Capacity Factors'!$C$3="Fueled",-PMT($D$37,$AK14,NPV($D$37,$AI$10:$AI15)),-PMT($D$37,$AK14,NPV($D$37,$AH$10:$AH15))) -> 40.09345969 | AP14: =IF('Input - Capacity Factors'!$C$3="Fueled",-PMT($D$37,$AK14,NPV($D$37,$AI$11:$AI16)),-PMT($D$37,$AK14,NPV($D$37,$AH$11:$AH16))) -> 41.41361229 | AQ14: =IF('Input - Capacity Factors'!$C$3="Fueled",-PMT($D$37,$AK14,NPV($D$37,$AI$12:$AI17)),-PMT($D$37,$AK14,NPV($D$37,$AH$12:$AH17))) -> 42.45357834 | AR14: =IF('Input - Capacity Factors'!$C$3="Fueled",-PMT($D$37,$AK14,NPV($D$37,$AI$13:$AI18)),-PMT($D$37,$AK14,NPV($D$37,$AH$13:$AH18))) -> 43.40695846 | AS14: =IF('Input - Capacity Factors'!$C$3="Fueled",-PMT($D$37,$AK14,NPV($D$37,$AI$14:$AI19)),-PMT($D$37,$AK14,NPV($D$37,$AH$14:$AH19))) -> 45.05645212
B15: 6. Enter project nameplate capacity | D15: 0.1 | G15: 2030 | I15: 4.743523866 | J15: 33.67901945 | L15: 7 | M15: 2032 | N15: 5.068877784 | O15: 35.98903226 | P15: 2.846933932 | Q15: 38.8359662 | R15: 57.22746056 | S15: =$D$39*(1+$D$47)^($M15-$D$43)*(1000/(365*24))/VLOOKUP('Input - Capacity Factors'!$C$3,'Input - Capacity Factors'!$A:$B,2,FALSE) -> 8.106728492 | T15: 65.33418905 | U15: =-VLOOKUP($E$107,'Input - Transmission'!$A:$C,2)*(1+'Input - Transmission'!$C$11)^('AVOID NEW'!$M15-'Input - Transmission'!$C$10)*12*(1000/(365*24))*(1/VLOOKUP('Input - Capacity Factors'!$C$3,'Input - Capacity Factors'!$A:$D,2,FALSE)) -> -10.79455352 | V15: =-VLOOKUP($E$107,'Input - Transmission'!$A:$C,3)*Q15 -> -1.553438648 | X15: 7 | Y15: 2032 | Z15: 35.98903226 | AA15: 2.846933932 | AB15: =IF(VLOOKUP($Y15,'Input - Load and Resource'!$B$13:$C$42,2,FALSE)>=0,0,0) -> 0 | AC15: =IF(VLOOKUP($Y15,'Input - Load and Resource'!$B$13:$C$42,2,FALSE)>=0,0,0) -> 0 | AD15: 38.8359662 | AE15: =VLOOKUP($Y15,'Input - Load and Resource'!$B$13:$L$42,11,FALSE)*R15 -> 2.861373028 | AF15: =VLOOKUP($Y15,'Input - Load and Resource'!$B$13:$L$42,11,FALSE)*S15 -> 0.4053364246 | AG15: 3.266709452 | AH15: 42.10267565 | AI15: 6.113643384 | AK15: 7 | AL15: 2032 | AM15: =IF('Input - Capacity Factors'!$C$3="Fueled",'AVOID NEW'!AI15,AH15) -> 42.10267565 | AN15: =IF('Input - Capacity Factors'!$C$3="Fueled",-PMT($D$37,$AK15,NPV($D$37,$AI$9:$AI15)),-PMT($D$37,$AK15,NPV($D$37,$AH$9:$AH15))) -> 38.12028335 | AO15: =IF('Input - Capacity Factors'!$C$3="Fueled",-PMT($D$37,$AK15,NPV($D$37,$AI$10:$AI16)),-PMT($D$37,$AK15,NPV($D$37,$AH$10:$AH16))) -> 40.77407482 | AP15: =IF('Input - Capacity Factors'!$C$3="Fueled",-PMT($D$37,$AK15,NPV($D$37,$AI$11:$AI17)),-PMT($D$37,$AK15,NPV($D$37,$AH$11:$AH17))) -> 42.04365413 | AQ15: =IF('Input - Capacity Factors'!$C$3="Fueled",-PMT($D$37,$AK15,NPV($D$37,$AI$12:$AI18)),-PMT($D$37,$AK15,NPV($D$37,$AH$12:$AH18))) -> 43.15310473 | AR15: =IF('Input - Capacity Factors'!$C$3="Fueled",-PMT($D$37,$AK15,NPV($D$37,$AI$13:$AI19)),-PMT($D$37,$AK15,NPV($D$37,$AH$13:$AH19))) -> 44.09820203 | AS15: =IF('Input - Capacity Factors'!$C$3="Fueled",-PMT($D$37,$AK15,NPV($D$37,$AI$14:$AI20)),-PMT($D$37,$AK15,NPV($D$37,$AH$14:$AH20))) -> 45.7480691
B16: (MW) | G16: 2031 | I16: 4.743523866 | J16: 33.67901945 | L16: 8 | M16: 2033 | N16: 5.611134313 | O16: 39.83905362 | P16: 2.90387261 | Q16: 42.74292623 | R16: 58.02864501 | S16: =$D$39*(1+$D$47)^($M16-$D$43)*(1000/(365*24))/VLOOKUP('Input - Capacity Factors'!$C$3,'Input - Capacity Factors'!$A:$B,2,FALSE) -> 8.268863062 | T16: 66.29750807 | U16: =-VLOOKUP($E$107,'Input - Transmission'!$A:$C,2)*(1+'Input - Transmission'!$C$11)^('AVOID NEW'!$M16-'Input - Transmission'!$C$10)*12*(1000/(365*24))*(1/VLOOKUP('Input - Capacity Factors'!$C$3,'Input - Capacity Factors'!$A:$D,2,FALSE)) -> -11.01044459 | V16: =-VLOOKUP($E$107,'Input - Transmission'!$A:$C,3)*Q16 -> -1.709717049 | X16: 8 | Y16: 2033 | Z16: 39.83905362 | AA16: 2.90387261 | AB16: =IF(VLOOKUP($Y16,'Input - Load and Resource'!$B$13:$C$42,2,FALSE)>=0,0,0) -> 0 | AC16: =IF(VLOOKUP($Y16,'Input - Load and Resource'!$B$13:$C$42,2,FALSE)>=0,0,0) -> 0 | AD16: 42.74292623 | AE16: =VLOOKUP($Y16,'Input - Load and Resource'!$B$13:$L$42,11,FALSE)*R16 -> 2.90143225 | AF16: =VLOOKUP($Y16,'Input - Load and Resource'!$B$13:$L$42,11,FALSE)*S16 -> 0.4134431531 | AG16: 3.314875403 | AH16: 46.05780164 | AI16: 6.218748014 | AK16: 8 | AL16: 2033 | AM16: =IF('Input - Capacity Factors'!$C$3="Fueled",'AVOID NEW'!AI16,AH16) -> 46.05780164 | AN16: =IF('Input - Capacity Factors'!$C$3="Fueled",-PMT($D$37,$AK16,NPV($D$37,$AI$9:$AI16)),-PMT($D$37,$AK16,NPV($D$37,$AH$9:$AH16))) -> 38.88258906 | AO16: =IF('Input - Capacity Factors'!$C$3="Fueled",-PMT($D$37,$AK16,NPV($D$37,$AI$10:$AI17)),-PMT($D$37,$AK16,NPV($D$37,$AH$10:$AH17))) -> 41.36573769 | AP16: =IF('Input - Capacity Factors'!$C$3="Fueled",-PMT($D$37,$AK16,NPV($D$37,$AI$11:$AI18)),-PMT($D$37,$AK16,NPV($D$37,$AH$11:$AH18))) -> 42.67174349 | AQ16: =IF('Input - Capacity Factors'!$C$3="Fueled",-PMT($D$37,$AK16,NPV($D$37,$AI$12:$AI19)),-PMT($D$37,$AK16,NPV($D$37,$AH$12:$AH19))) -> 43.75923452 | AR16: =IF('Input - Capacity Factors'!$C$3="Fueled",-PMT($D$37,$AK16,NPV($D$37,$AI$13:$AI20)),-PMT($D$37,$AK16,NPV($D$37,$AH$13:$AH20))) -> 44.7722951 | AS16: =IF('Input - Capacity Factors'!$C$3="Fueled",-PMT($D$37,$AK16,NPV($D$37,$AI$14:$AI21)),-PMT($D$37,$AK16,NPV($D$37,$AH$14:$AH21))) -> 46.57053254
G17: 2032 | I17: 5.068877784 | J17: 35.98903226 | L17: 9 | M17: 2034 | N17: 5.719585619 | O17: 40.6090579 | P17: 2.961950062 | Q17: 43.57100796 | R17: 58.84104604 | S17: =$D$39*(1+$D$47)^($M17-$D$43)*(1000/(365*24))/VLOOKUP('Input - Capacity Factors'!$C$3,'Input - Capacity Factors'!$A:$B,2,FALSE) -> 8.434240323 | T17: 67.27528636 | U17: =-VLOOKUP($E$107,'Input - Transmission'!$A:$C,2)*(1+'Input - Transmission'!$C$11)^('AVOID NEW'!$M17-'Input - Transmission'!$C$10)*12*(1000/(365*24))*(1/VLOOKUP('Input - Capacity Factors'!$C$3,'Input - Capacity Factors'!$A:$D,2,FALSE)) -> -11.23065348 | V17: =-VLOOKUP($E$107,'Input - Transmission'!$A:$C,3)*Q17 -> -1.742840318 | X17: 9 | Y17: 2034 | Z17: 40.6090579 | AA17: 2.961950062 | AB17: =IF(VLOOKUP($Y17,'Input - Load and Resource'!$B$13:$C$42,2,FALSE)>=0,0,0) -> 0 | AC17: =IF(VLOOKUP($Y17,'Input - Load and Resource'!$B$13:$C$42,2,FALSE)>=0,0,0) -> 0 | AD17: 43.57100796 | AE17: =VLOOKUP($Y17,'Input - Load and Resource'!$B$13:$L$42,11,FALSE)*R17 -> 2.942052302 | AF17: =VLOOKUP($Y17,'Input - Load and Resource'!$B$13:$L$42,11,FALSE)*S17 -> 0.4217120162 | AG17: 3.363764318 | AH17: 46.93477228 | AI17: 6.32571438 | AK17: 9 | AL17: 2034 | AM17: =IF('Input - Capacity Factors'!$C$3="Fueled",'AVOID NEW'!AI17,AH17) -> 46.93477228 | AN17: =IF('Input - Capacity Factors'!$C$3="Fueled",-PMT($D$37,$AK17,NPV($D$37,$AI$9:$AI17)),-PMT($D$37,$AK17,NPV($D$37,$AH$9:$AH17))) -> 39.54346653 | AO17: =IF('Input - Capacity Factors'!$C$3="Fueled",-PMT($D$37,$AK17,NPV($D$37,$AI$10:$AI18)),-PMT($D$37,$AK17,NPV($D$37,$AH$10:$AH18))) -> 41.95814235 | AP17: =IF('Input - Capacity Factors'!$C$3="Fueled",-PMT($D$37,$AK17,NPV($D$37,$AI$11:$AI19)),-PMT($D$37,$AK17,NPV($D$37,$AH$11:$AH19))) -> 43.22924937 | AQ17: =IF('Input - Capacity Factors'!$C$3="Fueled",-PMT($D$37,$AK17,NPV($D$37,$AI$12:$AI20)),-PMT($D$37,$AK17,NPV($D$37,$AH$12:$AH20))) -> 44.36313495 | AR17: =IF('Input - Capacity Factors'!$C$3="Fueled",-PMT($D$37,$AK17,NPV($D$37,$AI$13:$AI21)),-PMT($D$37,$AK17,NPV($D$37,$AH$13:$AH21))) -> 45.5552583 | AS17: =IF('Input - Capacity Factors'!$C$3="Fueled",-PMT($D$37,$AK17,NPV($D$37,$AI$14:$AI22)),-PMT($D$37,$AK17,NPV($D$37,$AH$14:$AH22))) -> 47.37348651
B18: 20-yr Levelized rate | G18: 2033 | I18: 5.611134313 | J18: 39.83905362 | L18: 10 | M18: 2035 | N18: 5.936488231 | O18: 42.14906644 | P18: 3.021189064 | Q18: 45.1702555 | R18: 59.66482068 | S18: =$D$39*(1+$D$47)^($M18-$D$43)*(1000/(365*24))/VLOOKUP('Input - Capacity Factors'!$C$3,'Input - Capacity Factors'!$A:$B,2,FALSE) -> 8.60292513 | T18: 68.26774581 | U18: =-VLOOKUP($E$107,'Input - Transmission'!$A:$C,2)*(1+'Input - Transmission'!$C$11)^('AVOID NEW'!$M18-'Input - Transmission'!$C$10)*12*(1000/(365*24))*(1/VLOOKUP('Input - Capacity Factors'!$C$3,'Input - Capacity Factors'!$A:$D,2,FALSE)) -> -11.45526655 | V18: =-VLOOKUP($E$107,'Input - Transmission'!$A:$C,3)*Q18 -> -1.80681022 | X18: 10 | Y18: 2035 | Z18: 42.14906644 | AA18: 3.021189064 | AB18: =IF(VLOOKUP($Y18,'Input - Load and Resource'!$B$13:$C$42,2,FALSE)>=0,0,0) -> 0 | AC18: =IF(VLOOKUP($Y18,'Input - Load and Resource'!$B$13:$C$42,2,FALSE)>=0,0,0) -> 0 | AD18: 45.1702555 | AE18: =VLOOKUP($Y18,'Input - Load and Resource'!$B$13:$L$42,11,FALSE)*R18 -> 2.983241034 | AF18: =VLOOKUP($Y18,'Input - Load and Resource'!$B$13:$L$42,11,FALSE)*S18 -> 0.4301462565 | AG18: 3.41338729 | AH18: 48.58364279 | AI18: 6.434576354 | AK18: 10 | AL18: 2035 | AM18: =IF('Input - Capacity Factors'!$C$3="Fueled",'AVOID NEW'!AI18,AH18) -> 48.58364279 | AN18: =IF('Input - Capacity Factors'!$C$3="Fueled",-PMT($D$37,$AK18,NPV($D$37,$AI$9:$AI18)),-PMT($D$37,$AK18,NPV($D$37,$AH$9:$AH18))) -> 40.18520922 | AO18: =IF('Input - Capacity Factors'!$C$3="Fueled",-PMT($D$37,$AK18,NPV($D$37,$AI$10:$AI19)),-PMT($D$37,$AK18,NPV($D$37,$AH$10:$AH19))) -> 42.49099823 | AP18: =IF('Input - Capacity Factors'!$C$3="Fueled",-PMT($D$37,$AK18,NPV($D$37,$AI$11:$AI20)),-PMT($D$37,$AK18,NPV($D$37,$AH$11:$AH20))) -> 43.78919839 | AQ18: =IF('Input - Capacity Factors'!$C$3="Fueled",-PMT($D$37,$AK18,NPV($D$37,$AI$12:$AI21)),-PMT($D$37,$AK18,NPV($D$37,$AH$12:$AH21))) -> 45.06938212 | AR18: =IF('Input - Capacity Factors'!$C$3="Fueled",-PMT($D$37,$AK18,NPV($D$37,$AI$13:$AI22)),-PMT($D$37,$AK18,NPV($D$37,$AH$13:$AH22))) -> 46.32182266 | AS18: =IF('Input - Capacity Factors'!$C$3="Fueled",-PMT($D$37,$AK18,NPV($D$37,$AI$14:$AI23)),-PMT($D$37,$AK18,NPV($D$37,$AH$14:$AH23))) -> 48.16683494
B19: =TEXT($D$13,"0000")&" on-line date:" -> 2026 on-line date: | D19: =AN28 -> 46.07507991 | G19: 2034 | I19: 5.719585619 | J19: 40.6090579 | L19: 11 | M19: 2036 | N19: 6.044939537 | O19: 42.91907071 | P19: 3.081612845 | Q19: 46.00068356 | R19: 60.50012817 | S19: =$D$39*(1+$D$47)^($M19-$D$43)*(1000/(365*24))/VLOOKUP('Input - Capacity Factors'!$C$3,'Input - Capacity Factors'!$A:$B,2,FALSE) -> 8.774983632 | T19: 69.2751118 | U19: =-VLOOKUP($E$107,'Input - Transmission'!$A:$C,2)*(1+'Input - Transmission'!$C$11)^('AVOID NEW'!$M19-'Input - Transmission'!$C$10)*12*(1000/(365*24))*(1/VLOOKUP('Input - Capacity Factors'!$C$3,'Input - Capacity Factors'!$A:$D,2,FALSE)) -> -11.68437188 | V19: =-VLOOKUP($E$107,'Input - Transmission'!$A:$C,3)*Q19 -> -1.840027342 | X19: 11 | Y19: 2036 | Z19: 42.91907071 | AA19: 3.081612845 | AB19: =IF(VLOOKUP($Y19,'Input - Load and Resource'!$B$13:$C$42,2,FALSE)>=0,0,0) -> 0 | AC19: =IF(VLOOKUP($Y19,'Input - Load and Resource'!$B$13:$C$42,2,FALSE)>=0,0,0) -> 0 | AD19: 46.00068356 | AE19: =VLOOKUP($Y19,'Input - Load and Resource'!$B$13:$L$42,11,FALSE)*R19 -> 3.025006408 | AF19: =VLOOKUP($Y19,'Input - Load and Resource'!$B$13:$L$42,11,FALSE)*S19 -> 0.4387491816 | AG19: 3.46375559 | AH19: 49.46443915 | AI19: 6.545368435 | AK19: 11 | AL19: 2036 | AM19: =IF('Input - Capacity Factors'!$C$3="Fueled",'AVOID NEW'!AI19,AH19) -> 49.46443915 | AN19: =IF('Input - Capacity Factors'!$C$3="Fueled",-PMT($D$37,$AK19,NPV($D$37,$AI$9:$AI19)),-PMT($D$37,$AK19,NPV($D$37,$AH$9:$AH19))) -> 40.76046 | AO19: =IF('Input - Capacity Factors'!$C$3="Fueled",-PMT($D$37,$AK19,NPV($D$37,$AI$10:$AI20)),-PMT($D$37,$AK19,NPV($D$37,$AH$10:$AH20))) -> 43.0257659 | AP19: =IF('Input - Capacity Factors'!$C$3="Fueled",-PMT($D$37,$AK19,NPV($D$37,$AI$11:$AI21)),-PMT($D$37,$AK19,NPV($D$37,$AH$11:$AH21))) -> 44.44154117 | AQ19: =IF('Input - Capacity Factors'!$C$3="Fueled",-PMT($D$37,$AK19,NPV($D$37,$AI$12:$AI22)),-PMT($D$37,$AK19,NPV($D$37,$AH$12:$AH22))) -> 45.76894046 | AR19: =IF('Input - Capacity Factors'!$C$3="Fueled",-PMT($D$37,$AK19,NPV($D$37,$AI$13:$AI23)),-PMT($D$37,$AK19,NPV($D$37,$AH$13:$AH23))) -> 47.0798465 | AS19: =IF('Input - Capacity Factors'!$C$3="Fueled",-PMT($D$37,$AK19,NPV($D$37,$AI$14:$AI24)),-PMT($D$37,$AK19,NPV($D$37,$AH$14:$AH24))) -> 48.89509334
B20: =TEXT($D$13+1,"0000")&" on-line date:" -> 2027 on-line date: | D20: =AO28 -> 48.39103382 | G20: 2035 | I20: 5.936488231 | J20: 42.14906644 | L20: 12 | M20: 2037 | N20: 6.261842149 | O20: 44.45907926 | P20: 3.143245102 | Q20: 47.60232436 | R20: 61.34712996 | S20: =$D$39*(1+$D$47)^($M20-$D$43)*(1000/(365*24))/VLOOKUP('Input - Capacity Factors'!$C$3,'Input - Capacity Factors'!$A:$B,2,FALSE) -> 8.950483305 | T20: 70.29761327 | U20: =-VLOOKUP($E$107,'Input - Transmission'!$A:$C,2)*(1+'Input - Transmission'!$C$11)^('AVOID NEW'!$M20-'Input - Transmission'!$C$10)*12*(1000/(365*24))*(1/VLOOKUP('Input - Capacity Factors'!$C$3,'Input - Capacity Factors'!$A:$D,2,FALSE)) -> -11.91805932 | V20: =-VLOOKUP($E$107,'Input - Transmission'!$A:$C,3)*Q20 -> -1.904092974 | X20: 12 | Y20: 2037 | Z20: 44.45907926 | AA20: 3.143245102 | AB20: =IF(VLOOKUP($Y20,'Input - Load and Resource'!$B$13:$C$42,2,FALSE)>=0,0,0) -> 0 | AC20: =IF(VLOOKUP($Y20,'Input - Load and Resource'!$B$13:$C$42,2,FALSE)>=0,0,0) -> 0 | AD20: 47.60232436 | AE20: =VLOOKUP($Y20,'Input - Load and Resource'!$B$13:$L$42,11,FALSE)*R20 -> 3.067356498 | AF20: =VLOOKUP($Y20,'Input - Load and Resource'!$B$13:$L$42,11,FALSE)*S20 -> 0.4475241652 | AG20: 3.514880663 | AH20: 51.11720502 | AI20: 6.658125765 | AK20: 12 | AL20: 2037 | AM20: =IF('Input - Capacity Factors'!$C$3="Fueled",'AVOID NEW'!AI20,AH20) -> 51.11720502 | AN20: =IF('Input - Capacity Factors'!$C$3="Fueled",-PMT($D$37,$AK20,NPV($D$37,$AI$9:$AI20)),-PMT($D$37,$AK20,NPV($D$37,$AH$9:$AH20))) -> 41.3255981 | AO20: =IF('Input - Capacity Factors'!$C$3="Fueled",-PMT($D$37,$AK20,NPV($D$37,$AI$10:$AI21)),-PMT($D$37,$AK20,NPV($D$37,$AH$10:$AH21))) -> 43.64162251 | AP20: =IF('Input - Capacity Factors'!$C$3="Fueled",-PMT($D$37,$AK20,NPV($D$37,$AI$11:$AI22)),-PMT($D$37,$AK20,NPV($D$37,$AH$11:$AH22))) -> 45.09155852 | AQ20: =IF('Input - Capacity Factors'!$C$3="Fueled",-PMT($D$37,$AK20,NPV($D$37,$AI$12:$AI23)),-PMT($D$37,$AK20,NPV($D$37,$AH$12:$AH23))) -> 46.46632942 | AR20: =IF('Input - Capacity Factors'!$C$3="Fueled",-PMT($D$37,$AK20,NPV($D$37,$AI$13:$AI24)),-PMT($D$37,$AK20,NPV($D$37,$AH$13:$AH24))) -> 47.78018029 | AS20: =IF('Input - Capacity Factors'!$C$3="Fueled",-PMT($D$37,$AK20,NPV($D$37,$AI$14:$AI25)),-PMT($D$37,$AK20,NPV($D$37,$AH$14:$AH25))) -> 49.60005417
B21: =TEXT($D$13+2,"0000")&" on-line date:" -> 2028 on-line date: | D21: =AP28 -> 50.07400216 | G21: 2036 | I21: 6.044939537 | J21: 42.91907071 | L21: 13 | M21: 2038 | N21: 6.695647372 | O21: 47.53909634 | P21: 3.206110004 | Q21: 50.74520635 | R21: 62.20598978 | S21: =$D$39*(1+$D$47)^($M21-$D$43)*(1000/(365*24))/VLOOKUP('Input - Capacity Factors'!$C$3,'Input - Capacity Factors'!$A:$B,2,FALSE) -> 9.129492971 | T21: 71.33548275 | U21: =-VLOOKUP($E$107,'Input - Transmission'!$A:$C,2)*(1+'Input - Transmission'!$C$11)^('AVOID NEW'!$M21-'Input - Transmission'!$C$10)*12*(1000/(365*24))*(1/VLOOKUP('Input - Capacity Factors'!$C$3,'Input - Capacity Factors'!$A:$D,2,FALSE)) -> -12.15642051 | V21: =-VLOOKUP($E$107,'Input - Transmission'!$A:$C,3)*Q21 -> -2.029808254 | X21: 13 | Y21: 2038 | Z21: 47.53909634 | AA21: 3.206110004 | AB21: =IF(VLOOKUP($Y21,'Input - Load and Resource'!$B$13:$C$42,2,FALSE)>=0,0,0) -> 0 | AC21: =IF(VLOOKUP($Y21,'Input - Load and Resource'!$B$13:$C$42,2,FALSE)>=0,0,0) -> 0 | AD21: 50.74520635 | AE21: =VLOOKUP($Y21,'Input - Load and Resource'!$B$13:$L$42,11,FALSE)*R21 -> 3.110299489 | AF21: =VLOOKUP($Y21,'Input - Load and Resource'!$B$13:$L$42,11,FALSE)*S21 -> 0.4564746486 | AG21: 3.566774138 | AH21: 54.31198048 | AI21: 6.772884142 | AK21: 13 | AL21: 2038 | AM21: =IF('Input - Capacity Factors'!$C$3="Fueled",'AVOID NEW'!AI21,AH21) -> 54.31198048 | AN21: =IF('Input - Capacity Factors'!$C$3="Fueled",-PMT($D$37,$AK21,NPV($D$37,$AI$9:$AI21)),-PMT($D$37,$AK21,NPV($D$37,$AH$9:$AH21))) -> 41.95344486 | AO21: =IF('Input - Capacity Factors'!$C$3="Fueled",-PMT($D$37,$AK21,NPV($D$37,$AI$10:$AI22)),-PMT($D$37,$AK21,NPV($D$37,$AH$10:$AH22))) -> 44.25621179 | AP21: =IF('Input - Capacity Factors'!$C$3="Fueled",-PMT($D$37,$AK21,NPV($D$37,$AI$11:$AI23)),-PMT($D$37,$AK21,NPV($D$37,$AH$11:$AH23))) -> 45.74219485 | AQ21: =IF('Input - Capacity Factors'!$C$3="Fueled",-PMT($D$37,$AK21,NPV($D$37,$AI$12:$AI24)),-PMT($D$37,$AK21,NPV($D$37,$AH$12:$AH24))) -> 47.11648723 | AR21: =IF('Input - Capacity Factors'!$C$3="Fueled",-PMT($D$37,$AK21,NPV($D$37,$AI$13:$AI25)),-PMT($D$37,$AK21,NPV($D$37,$AH$13:$AH25))) -> 48.45867843 | AS21: =IF('Input - Capacity Factors'!$C$3="Fueled",-PMT($D$37,$AK21,NPV($D$37,$AI$14:$AI26)),-PMT($D$37,$AK21,NPV($D$37,$AH$14:$AH26))) -> 50.32663039
B22: =TEXT($D$13+3,"0000")&" on-line date:" -> 2029 on-line date: | D22: =AQ28 -> 51.72068084 | G22: 2037 | I22: 6.261842149 | J22: 44.45907926 | L22: 14 | M22: 2039 | N22: 6.966775637 | O22: 49.46410702 | P22: 3.270232204 | Q22: 52.73433923 | R22: 63.07687364 | S22: =$D$39*(1+$D$47)^($M22-$D$43)*(1000/(365*24))/VLOOKUP('Input - Capacity Factors'!$C$3,'Input - Capacity Factors'!$A:$B,2,FALSE) -> 9.31208283 | T22: 72.38895647 | U22: =-VLOOKUP($E$107,'Input - Transmission'!$A:$C,2)*(1+'Input - Transmission'!$C$11)^('AVOID NEW'!$M22-'Input - Transmission'!$C$10)*12*(1000/(365*24))*(1/VLOOKUP('Input - Capacity Factors'!$C$3,'Input - Capacity Factors'!$A:$D,2,FALSE)) -> -12.39954892 | V22: =-VLOOKUP($E$107,'Input - Transmission'!$A:$C,3)*Q22 -> -2.109373569 | X22: 14 | Y22: 2039 | Z22: 49.46410702 | AA22: 3.270232204 | AB22: =IF(VLOOKUP($Y22,'Input - Load and Resource'!$B$13:$C$42,2,FALSE)>=0,0,0) -> 0 | AC22: =IF(VLOOKUP($Y22,'Input - Load and Resource'!$B$13:$C$42,2,FALSE)>=0,0,0) -> 0 | AD22: 52.73433923 | AE22: =VLOOKUP($Y22,'Input - Load and Resource'!$B$13:$L$42,11,FALSE)*R22 -> 3.153843682 | AF22: =VLOOKUP($Y22,'Input - Load and Resource'!$B$13:$L$42,11,FALSE)*S22 -> 0.4656041415 | AG22: 3.619447824 | AH22: 56.35378705 | AI22: 6.889680028 | AK22: 14 | AL22: 2039 | AM22: =IF('Input - Capacity Factors'!$C$3="Fueled",'AVOID NEW'!AI22,AH22) -> 56.35378705 | AN22: =IF('Input - Capacity Factors'!$C$3="Fueled",-PMT($D$37,$AK22,NPV($D$37,$AI$9:$AI22)),-PMT($D$37,$AK22,NPV($D$37,$AH$9:$AH22))) -> 42.57370328 | AO22: =IF('Input - Capacity Factors'!$C$3="Fueled",-PMT($D$37,$AK22,NPV($D$37,$AI$10:$AI23)),-PMT($D$37,$AK22,NPV($D$37,$AH$10:$AH23))) -> 44.87185139 | AP22: =IF('Input - Capacity Factors'!$C$3="Fueled",-PMT($D$37,$AK22,NPV($D$37,$AI$11:$AI24)),-PMT($D$37,$AK22,NPV($D$37,$AH$11:$AH24))) -> 46.35261795 | AQ22: =IF('Input - Capacity Factors'!$C$3="Fueled",-PMT($D$37,$AK22,NPV($D$37,$AI$12:$AI25)),-PMT($D$37,$AK22,NPV($D$37,$AH$12:$AH25))) -> 47.74955568 | AR22: =IF('Input - Capacity Factors'!$C$3="Fueled",-PMT($D$37,$AK22,NPV($D$37,$AI$13:$AI26)),-PMT($D$37,$AK22,NPV($D$37,$AH$13:$AH26))) -> 49.15515515 | AS22: =IF('Input - Capacity Factors'!$C$3="Fueled",-PMT($D$37,$AK22,NPV($D$37,$AI$14:$AI27)),-PMT($D$37,$AK22,NPV($D$37,$AH$14:$AH27))) -> 51.0694226
B23: =TEXT($D$13+4,"0000")&" on-line date:" -> 2030 on-line date: | D23: =AR28 -> 53.38030318 | G23: 2038 | I23: 6.695647372 | J23: 47.53909634 | L23: 15 | M23: 2040 | N23: 7.259263342 | O23: 51.54076972 | P23: 3.335636848 | Q23: 54.87640657 | R23: 63.95994987 | S23: =$D$39*(1+$D$47)^($M23-$D$43)*(1000/(365*24))/VLOOKUP('Input - Capacity Factors'!$C$3,'Input - Capacity Factors'!$A:$B,2,FALSE) -> 9.498324487 | T23: 73.45827436 | U23: =-VLOOKUP($E$107,'Input - Transmission'!$A:$C,2)*(1+'Input - Transmission'!$C$11)^('AVOID NEW'!$M23-'Input - Transmission'!$C$10)*12*(1000/(365*24))*(1/VLOOKUP('Input - Capacity Factors'!$C$3,'Input - Capacity Factors'!$A:$D,2,FALSE)) -> -12.6475399 | V23: =-VLOOKUP($E$107,'Input - Transmission'!$A:$C,3)*Q23 -> -2.195056263 | X23: 15 | Y23: 2040 | Z23: 51.54076972 | AA23: 3.335636848 | AB23: =IF(VLOOKUP($Y23,'Input - Load and Resource'!$B$13:$C$42,2,FALSE)>=0,0,0) -> 0 | AC23: =IF(VLOOKUP($Y23,'Input - Load and Resource'!$B$13:$C$42,2,FALSE)>=0,0,0) -> 0 | AD23: 54.87640657 | AE23: =VLOOKUP($Y23,'Input - Load and Resource'!$B$13:$L$42,11,FALSE)*R23 -> 3.197997494 | AF23: =VLOOKUP($Y23,'Input - Load and Resource'!$B$13:$L$42,11,FALSE)*S23 -> 0.4749162244 | AG23: 3.672913718 | AH23: 58.54932029 | AI23: 7.008550566 | AK23: 15 | AL23: 2040 | AM23: =IF('Input - Capacity Factors'!$C$3="Fueled",'AVOID NEW'!AI23,AH23) -> 58.54932029 | AN23: =IF('Input - Capacity Factors'!$C$3="Fueled",-PMT($D$37,$AK23,NPV($D$37,$AI$9:$AI23)),-PMT($D$37,$AK23,NPV($D$37,$AH$9:$AH23))) -> 43.18964175 | AO23: =IF('Input - Capacity Factors'!$C$3="Fueled",-PMT($D$37,$AK23,NPV($D$37,$AI$10:$AI24)),-PMT($D$37,$AK23,NPV($D$37,$AH$10:$AH24))) -> 45.45180753 | AP23: =IF('Input - Capacity Factors'!$C$3="Fueled",-PMT($D$37,$AK23,NPV($D$37,$AI$11:$AI25)),-PMT($D$37,$AK23,NPV($D$37,$AH$11:$AH25))) -> 46.94873922 | AQ23: =IF('Input - Capacity Factors'!$C$3="Fueled",-PMT($D$37,$AK23,NPV($D$37,$AI$12:$AI26)),-PMT($D$37,$AK23,NPV($D$37,$AH$12:$AH26))) -> 48.40032403 | AR23: =IF('Input - Capacity Factors'!$C$3="Fueled",-PMT($D$37,$AK23,NPV($D$37,$AI$13:$AI27)),-PMT($D$37,$AK23,NPV($D$37,$AH$13:$AH27))) -> 49.86520724 | AS23: =IF('Input - Capacity Factors'!$C$3="Fueled",-PMT($D$37,$AK23,NPV($D$37,$AI$14:$AI28)),-PMT($D$37,$AK23,NPV($D$37,$AH$14:$AH28))) -> 51.8243491
B24: =TEXT($D$13+5,"0000")&" on-line date:" -> 2031 on-line date: | D24: =AS28 -> 55.46710295 | G24: 2039 | I24: 6.966775637 | J24: 49.46410702 | L24: 16 | M24: 2041 | N24: 7.434459149 | O24: 52.78465996 | P24: 3.402349585 | Q24: 56.18700954 | R24: 64.85538917 | S24: =$D$39*(1+$D$47)^($M24-$D$43)*(1000/(365*24))/VLOOKUP('Input - Capacity Factors'!$C$3,'Input - Capacity Factors'!$A:$B,2,FALSE) -> 9.688290977 | T24: 74.54368015 | U24: =-VLOOKUP($E$107,'Input - Transmission'!$A:$C,2)*(1+'Input - Transmission'!$C$11)^('AVOID NEW'!$M24-'Input - Transmission'!$C$10)*12*(1000/(365*24))*(1/VLOOKUP('Input - Capacity Factors'!$C$3,'Input - Capacity Factors'!$A:$D,2,FALSE)) -> -12.90049069 | V24: =-VLOOKUP($E$107,'Input - Transmission'!$A:$C,3)*Q24 -> -2.247480382 | X24: 16 | Y24: 2041 | Z24: 52.78465996 | AA24: 3.402349585 | AB24: =IF(VLOOKUP($Y24,'Input - Load and Resource'!$B$13:$C$42,2,FALSE)>=0,0,0) -> 0 | AC24: =IF(VLOOKUP($Y24,'Input - Load and Resource'!$B$13:$C$42,2,FALSE)>=0,0,0) -> 0 | AD24: 56.18700954 | AE24: =VLOOKUP($Y24,'Input - Load and Resource'!$B$13:$L$42,11,FALSE)*R24 -> 3.242769459 | AF24: =VLOOKUP($Y24,'Input - Load and Resource'!$B$13:$L$42,11,FALSE)*S24 -> 0.4844145488 | AG24: 3.727184007 | AH24: 59.91419355 | AI24: 7.129533592 | AK24: 16 | AL24: 2041 | AM24: =IF('Input - Capacity Factors'!$C$3="Fueled",'AVOID NEW'!AI24,AH24) -> 59.91419355 | AN24: =IF('Input - Capacity Factors'!$C$3="Fueled",-PMT($D$37,$AK24,NPV($D$37,$AI$9:$AI24)),-PMT($D$37,$AK24,NPV($D$37,$AH$9:$AH24))) -> 43.76916883 | AO24: =IF('Input - Capacity Factors'!$C$3="Fueled",-PMT($D$37,$AK24,NPV($D$37,$AI$10:$AI25)),-PMT($D$37,$AK24,NPV($D$37,$AH$10:$AH25))) -> 46.01878657 | AP24: =IF('Input - Capacity Factors'!$C$3="Fueled",-PMT($D$37,$AK24,NPV($D$37,$AI$11:$AI26)),-PMT($D$37,$AK24,NPV($D$37,$AH$11:$AH26))) -> 47.56136748 | AQ24: =IF('Input - Capacity Factors'!$C$3="Fueled",-PMT($D$37,$AK24,NPV($D$37,$AI$12:$AI27)),-PMT($D$37,$AK24,NPV($D$37,$AH$12:$AH27))) -> 49.06464018 | AR24: =IF('Input - Capacity Factors'!$C$3="Fueled",-PMT($D$37,$AK24,NPV($D$37,$AI$13:$AI28)),-PMT($D$37,$AK24,NPV($D$37,$AH$13:$AH28))) -> 50.58542607 | AS24: =IF('Input - Capacity Factors'!$C$3="Fueled",-PMT($D$37,$AK24,NPV($D$37,$AI$14:$AI29)),-PMT($D$37,$AK24,NPV($D$37,$AH$14:$AH29))) -> 52.57037985
G25: 2040 | I25: 7.259263342 | J25: 51.54076972 | L25: 17 | M25: 2042 | N25: 7.684727898 | O25: 54.56156808 | P25: 3.470396577 | Q25: 58.03196465 | R25: 65.76336462 | S25: =$D$39*(1+$D$47)^($M25-$D$43)*(1000/(365*24))/VLOOKUP('Input - Capacity Factors'!$C$3,'Input - Capacity Factors'!$A:$B,2,FALSE) -> 9.882056796 | T25: 75.64542141 | U25: =-VLOOKUP($E$107,'Input - Transmission'!$A:$C,2)*(1+'Input - Transmission'!$C$11)^('AVOID NEW'!$M25-'Input - Transmission'!$C$10)*12*(1000/(365*24))*(1/VLOOKUP('Input - Capacity Factors'!$C$3,'Input - Capacity Factors'!$A:$D,2,FALSE)) -> -13.15850051 | V25: =-VLOOKUP($E$107,'Input - Transmission'!$A:$C,3)*Q25 -> -2.321278586 | X25: 17 | Y25: 2042 | Z25: 54.56156808 | AA25: 3.470396577 | AB25: =IF(VLOOKUP($Y25,'Input - Load and Resource'!$B$13:$C$42,2,FALSE)>=0,0,0) -> 0 | AC25: =IF(VLOOKUP($Y25,'Input - Load and Resource'!$B$13:$C$42,2,FALSE)>=0,0,0) -> 0 | AD25: 58.03196465 | AE25: =VLOOKUP($Y25,'Input - Load and Resource'!$B$13:$L$42,11,FALSE)*R25 -> 3.288168231 | AF25: =VLOOKUP($Y25,'Input - Load and Resource'!$B$13:$L$42,11,FALSE)*S25 -> 0.4941028398 | AG25: 3.782271071 | AH25: 61.81423572 | AI25: 7.252667647 | AK25: 17 | AL25: 2042 | AM25: =IF('Input - Capacity Factors'!$C$3="Fueled",'AVOID NEW'!AI25,AH25) -> 61.81423572 | AN25: =IF('Input - Capacity Factors'!$C$3="Fueled",-PMT($D$37,$AK25,NPV($D$37,$AI$9:$AI25)),-PMT($D$37,$AK25,NPV($D$37,$AH$9:$AH25))) -> 44.33312282 | AO25: =IF('Input - Capacity Factors'!$C$3="Fueled",-PMT($D$37,$AK25,NPV($D$37,$AI$10:$AI26)),-PMT($D$37,$AK25,NPV($D$37,$AH$10:$AH26))) -> 46.60038895 | AP25: =IF('Input - Capacity Factors'!$C$3="Fueled",-PMT($D$37,$AK25,NPV($D$37,$AI$11:$AI27)),-PMT($D$37,$AK25,NPV($D$37,$AH$11:$AH27))) -> 48.18674413 | AQ25: =IF('Input - Capacity Factors'!$C$3="Fueled",-PMT($D$37,$AK25,NPV($D$37,$AI$12:$AI28)),-PMT($D$37,$AK25,NPV($D$37,$AH$12:$AH28))) -> 49.73923656 | AR25: =IF('Input - Capacity Factors'!$C$3="Fueled",-PMT($D$37,$AK25,NPV($D$37,$AI$13:$AI29)),-PMT($D$37,$AK25,NPV($D$37,$AH$13:$AH29))) -> 51.29700236 | AS25: =IF('Input - Capacity Factors'!$C$3="Fueled",-PMT($D$37,$AK25,NPV($D$37,$AI$14:$AI30)),-PMT($D$37,$AK25,NPV($D$37,$AH$14:$AH30))) -> 53.30765812
G26: 2041 | I26: 7.434459149 | J26: 52.78465996 | L26: 18 | M26: 2043 | N26: 8.0634598 | O26: 57.25056458 | P26: 3.539804508 | Q26: 60.79036909 | R26: 66.68405172 | S26: =$D$39*(1+$D$47)^($M26-$D$43)*(1000/(365*24))/VLOOKUP('Input - Capacity Factors'!$C$3,'Input - Capacity Factors'!$A:$B,2,FALSE) -> 10.07969793 | T26: 76.76374965 | U26: =-VLOOKUP($E$107,'Input - Transmission'!$A:$C,2)*(1+'Input - Transmission'!$C$11)^('AVOID NEW'!$M26-'Input - Transmission'!$C$10)*12*(1000/(365*24))*(1/VLOOKUP('Input - Capacity Factors'!$C$3,'Input - Capacity Factors'!$A:$D,2,FALSE)) -> -13.42167052 | V26: =-VLOOKUP($E$107,'Input - Transmission'!$A:$C,3)*Q26 -> -2.431614763 | X26: 18 | Y26: 2043 | Z26: 57.25056458 | AA26: 3.539804508 | AB26: =IF(VLOOKUP($Y26,'Input - Load and Resource'!$B$13:$C$42,2,FALSE)>=0,0,0) -> 0 | AC26: =IF(VLOOKUP($Y26,'Input - Load and Resource'!$B$13:$C$42,2,FALSE)>=0,0,0) -> 0 | AD26: 60.79036909 | AE26: =VLOOKUP($Y26,'Input - Load and Resource'!$B$13:$L$42,11,FALSE)*R26 -> 3.334202586 | AF26: =VLOOKUP($Y26,'Input - Load and Resource'!$B$13:$L$42,11,FALSE)*S26 -> 0.5039848966 | AG26: 3.838187483 | AH26: 64.62855657 | AI26: 7.377991991 | AK26: 18 | AL26: 2043 | AM26: =IF('Input - Capacity Factors'!$C$3="Fueled",'AVOID NEW'!AI26,AH26) -> 64.62855657 | AN26: =IF('Input - Capacity Factors'!$C$3="Fueled",-PMT($D$37,$AK26,NPV($D$37,$AI$9:$AI26)),-PMT($D$37,$AK26,NPV($D$37,$AH$9:$AH26))) -> 44.90695217 | AO26: =IF('Input - Capacity Factors'!$C$3="Fueled",-PMT($D$37,$AK26,NPV($D$37,$AI$10:$AI27)),-PMT($D$37,$AK26,NPV($D$37,$AH$10:$AH27))) -> 47.19333077 | AP26: =IF('Input - Capacity Factors'!$C$3="Fueled",-PMT($D$37,$AK26,NPV($D$37,$AI$11:$AI28)),-PMT($D$37,$AK26,NPV($D$37,$AH$11:$AH28))) -> 48.82186543 | AQ26: =IF('Input - Capacity Factors'!$C$3="Fueled",-PMT($D$37,$AK26,NPV($D$37,$AI$12:$AI29)),-PMT($D$37,$AK26,NPV($D$37,$AH$12:$AH29))) -> 50.40691671 | AR26: =IF('Input - Capacity Factors'!$C$3="Fueled",-PMT($D$37,$AK26,NPV($D$37,$AI$13:$AI30)),-PMT($D$37,$AK26,NPV($D$37,$AH$13:$AH30))) -> 52.00001304 | AS26: =IF('Input - Capacity Factors'!$C$3="Fueled",-PMT($D$37,$AK26,NPV($D$37,$AI$14:$AI31)),-PMT($D$37,$AK26,NPV($D$37,$AH$14:$AH31))) -> 54.03622841
B27: INPUT | C27: DATA | D27: =$E$107 -> IPCO | G27: 2042 | I27: 7.684727898 | J27: 54.56156808 | L27: 19 | M27: 2044 | N27: 8.460035747 | O27: 60.06625381 | P27: 3.610600598 | Q27: 63.6768544 | R27: 67.61762845 | S27: =$D$39*(1+$D$47)^($M27-$D$43)*(1000/(365*24))/VLOOKUP('Input - Capacity Factors'!$C$3,'Input - Capacity Factors'!$A:$B,2,FALSE) -> 10.28129189 | T27: 77.89892034 | U27: =-VLOOKUP($E$107,'Input - Transmission'!$A:$C,2)*(1+'Input - Transmission'!$C$11)^('AVOID NEW'!$M27-'Input - Transmission'!$C$10)*12*(1000/(365*24))*(1/VLOOKUP('Input - Capacity Factors'!$C$3,'Input - Capacity Factors'!$A:$D,2,FALSE)) -> -13.69010393 | V27: =-VLOOKUP($E$107,'Input - Transmission'!$A:$C,3)*Q27 -> -2.547074176 | X27: 19 | Y27: 2044 | Z27: 60.06625381 | AA27: 3.610600598 | AB27: =IF(VLOOKUP($Y27,'Input - Load and Resource'!$B$13:$C$42,2,FALSE)>=0,0,0) -> 0 | AC27: =IF(VLOOKUP($Y27,'Input - Load and Resource'!$B$13:$C$42,2,FALSE)>=0,0,0) -> 0 | AD27: 63.6768544 | AE27: =VLOOKUP($Y27,'Input - Load and Resource'!$B$13:$L$42,11,FALSE)*R27 -> 3.380881422 | AF27: =VLOOKUP($Y27,'Input - Load and Resource'!$B$13:$L$42,11,FALSE)*S27 -> 0.5140645946 | AG27: 3.894946017 | AH27: 67.57180042 | AI27: 7.505546615 | AK27: 19 | AL27: 2044 | AM27: =IF('Input - Capacity Factors'!$C$3="Fueled",'AVOID NEW'!AI27,AH27) -> 67.57180042 | AN27: =IF('Input - Capacity Factors'!$C$3="Fueled",-PMT($D$37,$AK27,NPV($D$37,$AI$9:$AI27)),-PMT($D$37,$AK27,NPV($D$37,$AH$9:$AH27))) -> 45.48826298 | AO27: =IF('Input - Capacity Factors'!$C$3="Fueled",-PMT($D$37,$AK27,NPV($D$37,$AI$10:$AI28)),-PMT($D$37,$AK27,NPV($D$37,$AH$10:$AH28))) -> 47.79494972 | AP27: =IF('Input - Capacity Factors'!$C$3="Fueled",-PMT($D$37,$AK27,NPV($D$37,$AI$11:$AI29)),-PMT($D$37,$AK27,NPV($D$37,$AH$11:$AH29))) -> 49.45106926 | AQ27: =IF('Input - Capacity Factors'!$C$3="Fueled",-PMT($D$37,$AK27,NPV($D$37,$AI$12:$AI30)),-PMT($D$37,$AK27,NPV($D$37,$AH$12:$AH30))) -> 51.06747021 | AR27: =IF('Input - Capacity Factors'!$C$3="Fueled",-PMT($D$37,$AK27,NPV($D$37,$AI$13:$AI31)),-PMT($D$37,$AK27,NPV($D$37,$AH$13:$AH31))) -> 52.69446213 | AS27: =IF('Input - Capacity Factors'!$C$3="Fueled",-PMT($D$37,$AK27,NPV($D$37,$AI$14:$AI32)),-PMT($D$37,$AK27,NPV($D$37,$AH$14:$AH32))) -> 54.75606692
B28: DATA | C28: SOURCE | D28: DATA | G28: 2043 | I28: 8.0634598 | J28: 57.25056458 | L28: 20 | M28: 2045 | N28: 8.875296467 | O28: 63.01460492 | P28: 3.68281261 | Q28: 66.69741753 | R28: 68.56427524 | S28: =$D$39*(1+$D$47)^($M28-$D$43)*(1000/(365*24))/VLOOKUP('Input - Capacity Factors'!$C$3,'Input - Capacity Factors'!$A:$B,2,FALSE) -> 10.48691773 | T28: 79.05119297 | U28: =-VLOOKUP($E$107,'Input - Transmission'!$A:$C,2)*(1+'Input - Transmission'!$C$11)^('AVOID NEW'!$M28-'Input - Transmission'!$C$10)*12*(1000/(365*24))*(1/VLOOKUP('Input - Capacity Factors'!$C$3,'Input - Capacity Factors'!$A:$D,2,FALSE)) -> -13.96390601 | V28: =-VLOOKUP($E$107,'Input - Transmission'!$A:$C,3)*Q28 -> -2.667896701 | X28: 20 | Y28: 2045 | Z28: 63.01460492 | AA28: 3.68281261 | AB28: =IF(VLOOKUP($Y28,'Input - Load and Resource'!$B$13:$C$42,2,FALSE)>=0,0,0) -> 0 | AC28: =IF(VLOOKUP($Y28,'Input - Load and Resource'!$B$13:$C$42,2,FALSE)>=0,0,0) -> 0 | AD28: 66.69741753 | AE28: =VLOOKUP($Y28,'Input - Load and Resource'!$B$13:$L$42,11,FALSE)*R28 -> 3.428213762 | AF28: =VLOOKUP($Y28,'Input - Load and Resource'!$B$13:$L$42,11,FALSE)*S28 -> 0.5243458864 | AG28: 3.952559649 | AH28: 70.64997718 | AI28: 7.635372259 | AK28: 20 | AL28: 2045 | AM28: =IF('Input - Capacity Factors'!$C$3="Fueled",'AVOID NEW'!AI28,AH28) -> 70.64997718 | AN28: =IF('Input - Capacity Factors'!$C$3="Fueled",-PMT($D$37,$AK28,NPV($D$37,$AI$9:$AI28)),-PMT($D$37,$AK28,NPV($D$37,$AH$9:$AH28))) -> 46.07507991 | AO28: =IF('Input - Capacity Factors'!$C$3="Fueled",-PMT($D$37,$AK28,NPV($D$37,$AI$10:$AI29)),-PMT($D$37,$AK28,NPV($D$37,$AH$10:$AH29))) -> 48.39103382 | AP28: =IF('Input - Capacity Factors'!$C$3="Fueled",-PMT($D$37,$AK28,NPV($D$37,$AI$11:$AI30)),-PMT($D$37,$AK28,NPV($D$37,$AH$11:$AH30))) -> 50.07400216 | AQ28: =IF('Input - Capacity Factors'!$C$3="Fueled",-PMT($D$37,$AK28,NPV($D$37,$AI$12:$AI31)),-PMT($D$37,$AK28,NPV($D$37,$AH$12:$AH31))) -> 51.72068084 | AR28: =IF('Input - Capacity Factors'!$C$3="Fueled",-PMT($D$37,$AK28,NPV($D$37,$AI$13:$AI32)),-PMT($D$37,$AK28,NPV($D$37,$AH$13:$AH32))) -> 53.38030318 | AS28: =IF('Input - Capacity Factors'!$C$3="Fueled",-PMT($D$37,$AK28,NPV($D$37,$AI$14:$AI33)),-PMT($D$37,$AK28,NPV($D$37,$AH$14:$AH33))) -> 55.46710295
C29: N/A | G29: 2044 | I29: 8.460035747 | J29: 60.06625381 | L29: 21 | M29: 2046 | N29: 9.23753718 | O29: 65.58651398 | P29: 3.756468863 | Q29: =P29+O29 -> 69.34298284 | R29: 69.5241751 | S29: =$D$39*(1+$D$47)^($M29-$D$43)*(1000/(365*24))/VLOOKUP('Input - Capacity Factors'!$C$3,'Input - Capacity Factors'!$A:$B,2,FALSE) -> 10.69665608 | T29: 80.22083118 | U29: =-VLOOKUP($E$107,'Input - Transmission'!$A:$C,2)*(1+'Input - Transmission'!$C$11)^('AVOID NEW'!$M29-'Input - Transmission'!$C$10)*12*(1000/(365*24))*(1/VLOOKUP('Input - Capacity Factors'!$C$3,'Input - Capacity Factors'!$A:$D,2,FALSE)) -> -14.24318413 | V29: =-VLOOKUP($E$107,'Input - Transmission'!$A:$C,3)*Q29 -> -2.773719314 | X29: 21 | Y29: 2046 | Z29: 65.58651398 | AA29: 3.756468863 | AB29: =IF(VLOOKUP($Y29,'Input - Load and Resource'!$B$13:$C$42,2,FALSE)>=0,0,0) -> 0 | AC29: =IF(VLOOKUP($Y29,'Input - Load and Resource'!$B$13:$C$42,2,FALSE)>=0,0,0) -> 0 | AD29: 69.34298284 | AE29: =VLOOKUP($Y29,'Input - Load and Resource'!$B$13:$L$42,11,FALSE)*R29 -> 3.476208755 | AF29: =VLOOKUP($Y29,'Input - Load and Resource'!$B$13:$L$42,11,FALSE)*S29 -> 0.5348328042 | AG29: 4.011041559 | AH29: 73.3540244 | AI29: 7.767510422 | AK29: 21 | AL29: 2046 | AM29: =IF('Input - Capacity Factors'!$C$3="Fueled",'AVOID NEW'!AI29,AH29) -> 73.3540244 | AN29: Eligibility for these rates is limited to wind and solar projects 100 kW or smaller, and to non-wind and non-solar projects smaller than 10 aMW.
C30: N/A | G30: 2045 | I30: 8.875296467 | J30: 63.01460492 | L30: 22 | M30: 2047 | N30: 9.613995963 | O30: 68.25937134 | P30: 3.83159824 | Q30: 72.09096958 | R30: 70.49751355 | S30: =$D$39*(1+$D$47)^($M30-$D$43)*(1000/(365*24))/VLOOKUP('Input - Capacity Factors'!$C$3,'Input - Capacity Factors'!$A:$B,2,FALSE) -> 10.9105892 | T30: 81.40810275 | U30: =-VLOOKUP($E$107,'Input - Transmission'!$A:$C,2)*(1+'Input - Transmission'!$C$11)^('AVOID NEW'!$M30-'Input - Transmission'!$C$10)*12*(1000/(365*24))*(1/VLOOKUP('Input - Capacity Factors'!$C$3,'Input - Capacity Factors'!$A:$D,2,FALSE)) -> -14.52804781 | V30: =-VLOOKUP($E$107,'Input - Transmission'!$A:$C,3)*Q30 -> -2.883638783 | X30: 22 | Y30: 2047 | Z30: 68.25937134 | AA30: 3.83159824 | AB30: =IF(VLOOKUP($Y30,'Input - Load and Resource'!$B$13:$C$42,2,FALSE)>=0,0,0) -> 0 | AC30: =IF(VLOOKUP($Y30,'Input - Load and Resource'!$B$13:$C$42,2,FALSE)>=0,0,0) -> 0 | AD30: 72.09096958 | AE30: =VLOOKUP($Y30,'Input - Load and Resource'!$B$13:$L$42,11,FALSE)*R30 -> 3.524875678 | AF30: =VLOOKUP($Y30,'Input - Load and Resource'!$B$13:$L$42,11,FALSE)*S30 -> 0.5455294603 | AG30: 4.070405138 | AH30: 76.16137472 | AI30: 7.902003378 | AK30: 22 | AL30: 2047 | AM30: =IF('Input - Capacity Factors'!$C$3="Fueled",'AVOID NEW'!AI30,AH30) -> 76.16137472
C31: N/A | G31: 2046 | I31: 9.23753718 | J31: 65.58651398 | L31: 23 | M31: 2048 | N31: 10.00523088 | O31: 71.03713924 | P31: 3.908230205 | Q31: 74.94536945 | R31: 71.48447874 | S31: =$D$39*(1+$D$47)^($M31-$D$43)*(1000/(365*24))/VLOOKUP('Input - Capacity Factors'!$C$3,'Input - Capacity Factors'!$A:$B,2,FALSE) -> 11.12880099 | T31: 82.61327973 | U31: =-VLOOKUP($E$107,'Input - Transmission'!$A:$C,2)*(1+'Input - Transmission'!$C$11)^('AVOID NEW'!$M31-'Input - Transmission'!$C$10)*12*(1000/(365*24))*(1/VLOOKUP('Input - Capacity Factors'!$C$3,'Input - Capacity Factors'!$A:$D,2,FALSE)) -> -14.81860877 | V31: =-VLOOKUP($E$107,'Input - Transmission'!$A:$C,3)*Q31 -> -2.997814778 | X31: 23 | Y31: 2048 | Z31: 71.03713924 | AA31: 3.908230205 | AB31: =IF(VLOOKUP($Y31,'Input - Load and Resource'!$B$13:$C$42,2,FALSE)>=0,0,0) -> 0 | AC31: =IF(VLOOKUP($Y31,'Input - Load and Resource'!$B$13:$C$42,2,FALSE)>=0,0,0) -> 0 | AD31: 74.94536945 | AE31: =VLOOKUP($Y31,'Input - Load and Resource'!$B$13:$L$42,11,FALSE)*R31 -> 3.574223937 | AF31: =VLOOKUP($Y31,'Input - Load and Resource'!$B$13:$L$42,11,FALSE)*S31 -> 0.5564400495 | AG31: 4.130663986 | AH31: 79.07603343 | AI31: 8.038894191 | AK31: 23 | AL31: 2048 | AM31: =IF('Input - Capacity Factors'!$C$3="Fueled",'AVOID NEW'!AI31,AH31) -> 79.07603343
B32: "SAR" PLANT LIFE (YEARS): | C32: N/A | D32: 30 | G32: 2047 | I32: 9.613995963 | J32: 68.25937134 | L32: 24 | M32: 2049 | N32: 10.4118219 | O32: 73.92393546 | P32: 3.986394809 | Q32: 77.91033027 | R32: 72.48526144 | S32: =$D$39*(1+$D$47)^($M32-$D$43)*(1000/(365*24))/VLOOKUP('Input - Capacity Factors'!$C$3,'Input - Capacity Factors'!$A:$B,2,FALSE) -> 11.35137701 | T32: 83.83663845 | U32: =-VLOOKUP($E$107,'Input - Transmission'!$A:$C,2)*(1+'Input - Transmission'!$C$11)^('AVOID NEW'!$M32-'Input - Transmission'!$C$10)*12*(1000/(365*24))*(1/VLOOKUP('Input - Capacity Factors'!$C$3,'Input - Capacity Factors'!$A:$D,2,FALSE)) -> -15.11498094 | V32: =-VLOOKUP($E$107,'Input - Transmission'!$A:$C,3)*Q32 -> -3.116413211 | X32: 24 | Y32: 2049 | Z32: 73.92393546 | AA32: 3.986394809 | AB32: =IF(VLOOKUP($Y32,'Input - Load and Resource'!$B$13:$C$42,2,FALSE)>=0,0,0) -> 0 | AC32: =IF(VLOOKUP($Y32,'Input - Load and Resource'!$B$13:$C$42,2,FALSE)>=0,0,0) -> 0 | AD32: 77.91033027 | AE32: =VLOOKUP($Y32,'Input - Load and Resource'!$B$13:$L$42,11,FALSE)*R32 -> 3.624263072 | AF32: =VLOOKUP($Y32,'Input - Load and Resource'!$B$13:$L$42,11,FALSE)*S32 -> 0.5675688504 | AG32: 4.191831923 | AH32: 82.1021622 | AI32: 8.178226731 | AK32: 24 | AL32: 2049 | AM32: =IF('Input - Capacity Factors'!$C$3="Fueled",'AVOID NEW'!AI32,AH32) -> 82.1021622
B33: "SAR" PLANT COST ($/kW): | C33: N/A | D33: 1313 | G33: 2048 | I33: 10.00523088 | J33: 71.03713924 | L33: 25 | M33: 2050 | N33: 10.83437175 | O33: 76.92403941 | P33: 4.066122705 | Q33: 80.99016211 | R33: 73.5000551 | S33: =$D$39*(1+$D$47)^($M33-$D$43)*(1000/(365*24))/VLOOKUP('Input - Capacity Factors'!$C$3,'Input - Capacity Factors'!$A:$B,2,FALSE) -> 11.57840455 | T33: 85.07845965 | U33: =-VLOOKUP($E$107,'Input - Transmission'!$A:$C,2)*(1+'Input - Transmission'!$C$11)^('AVOID NEW'!$M33-'Input - Transmission'!$C$10)*12*(1000/(365*24))*(1/VLOOKUP('Input - Capacity Factors'!$C$3,'Input - Capacity Factors'!$A:$D,2,FALSE)) -> -15.41728056 | V33: =-VLOOKUP($E$107,'Input - Transmission'!$A:$C,3)*Q33 -> -3.239606484 | X33: 25 | Y33: 2050 | Z33: 76.92403941 | AA33: 4.066122705 | AB33: =IF(VLOOKUP($Y33,'Input - Load and Resource'!$B$13:$C$42,2,FALSE)>=0,0,0) -> 0 | AC33: =IF(VLOOKUP($Y33,'Input - Load and Resource'!$B$13:$C$42,2,FALSE)>=0,0,0) -> 0 | AD33: 80.99016211 | AE33: =VLOOKUP($Y33,'Input - Load and Resource'!$B$13:$L$42,11,FALSE)*R33 -> 3.675002755 | AF33: =VLOOKUP($Y33,'Input - Load and Resource'!$B$13:$L$42,11,FALSE)*S33 -> 0.5789202275 | AG33: 4.253922983 | AH33: 85.24408509 | AI33: 8.320045687 | AK33: 25 | AL33: 2050 | AM33: =IF('Input - Capacity Factors'!$C$3="Fueled",'AVOID NEW'!AI33,AH33) -> 85.24408509
B34: BASE YEAR OF "SAR" COST: | C34: N/A | D34: 2008 | G34: 2049 | I34: 10.4118219 | J34: 73.92393546 | L34: 26 | M34: 2051 | N34: 0 | O34: 0 | P34: 4.147445159 | Q34: 4.147445159 | R34: 74.52905587 | S34: =$D$39*(1+$D$47)^($M34-$D$43)*(1000/(365*24))/VLOOKUP('Input - Capacity Factors'!$C$3,'Input - Capacity Factors'!$A:$B,2,FALSE) -> 11.80997264 | T34: 86.33902851 | U34: =-VLOOKUP($E$107,'Input - Transmission'!$A:$C,2)*(1+'Input - Transmission'!$C$11)^('AVOID NEW'!$M34-'Input - Transmission'!$C$10)*12*(1000/(365*24))*(1/VLOOKUP('Input - Capacity Factors'!$C$3,'Input - Capacity Factors'!$A:$D,2,FALSE)) -> -15.72562617 | V34: =-VLOOKUP($E$107,'Input - Transmission'!$A:$C,3)*Q34 -> -0.1658978064 | X34: 26 | Y34: 2051 | Z34: 0 | AA34: 4.147445159 | AB34: =IF(VLOOKUP($Y34,'Input - Load and Resource'!$B$13:$C$42,2,FALSE)>=0,0,0) -> 0 | AC34: =IF(VLOOKUP($Y34,'Input - Load and Resource'!$B$13:$C$42,2,FALSE)>=0,0,0) -> 0 | AD34: 4.147445159 | AE34: =VLOOKUP($Y34,'Input - Load and Resource'!$B$13:$L$42,11,FALSE)*R34 -> 3.726452794 | AF34: =VLOOKUP($Y34,'Input - Load and Resource'!$B$13:$L$42,11,FALSE)*S34 -> 0.590498632 | AG34: 4.316951426 | AH34: 8.464396585 | AI34: 8.464396585 | AK34: 26 | AL34: 2051 | AM34: =IF('Input - Capacity Factors'!$C$3="Fueled",'AVOID NEW'!AI34,AH34) -> 8.464396585
B35: "SAR" CAPACITY FACTOR (%): | C35: N/A | D35: 0.9 | G35: 2050 | I35: 10.83437175 | J35: 76.92403941 | L35: 27 | M35: 2052 | N35: 0 | O35: 0 | P35: 4.230394062 | Q35: 4.230394062 | R35: 75.57246266 | S35: =$D$39*(1+$D$47)^($M35-$D$43)*(1000/(365*24))/VLOOKUP('Input - Capacity Factors'!$C$3,'Input - Capacity Factors'!$A:$B,2,FALSE) -> 12.04617209 | T35: 87.61863475 | U35: =-VLOOKUP($E$107,'Input - Transmission'!$A:$C,2)*(1+'Input - Transmission'!$C$11)^('AVOID NEW'!$M35-'Input - Transmission'!$C$10)*12*(1000/(365*24))*(1/VLOOKUP('Input - Capacity Factors'!$C$3,'Input - Capacity Factors'!$A:$D,2,FALSE)) -> -16.04013869 | V35: =-VLOOKUP($E$107,'Input - Transmission'!$A:$C,3)*Q35 -> -0.1692157625 | X35: 27 | Y35: 2052 | Z35: 0 | AA35: 4.230394062 | AB35: =IF(VLOOKUP($Y35,'Input - Load and Resource'!$B$13:$C$42,2,FALSE)>=0,0,0) -> 0 | AC35: =IF(VLOOKUP($Y35,'Input - Load and Resource'!$B$13:$C$42,2,FALSE)>=0,0,0) -> 0 | AD35: 4.230394062 | AE35: =VLOOKUP($Y35,'Input - Load and Resource'!$B$13:$L$42,11,FALSE)*R35 -> 3.778623133 | AF35: =VLOOKUP($Y35,'Input - Load and Resource'!$B$13:$L$42,11,FALSE)*S35 -> 0.6023086046 | AG35: 4.380931737 | AH35: 8.6113258 | AI35: 8.6113258
B36: HEAT RATE (BTU/kWh): | D36: 7100 | G36: 2051 | J36: 0 | L36: 28 | M36: 2053 | N36: 0 | O36: 0 | P36: 4.315001943 | Q36: 4.315001943 | R36: 76.63047713 | S36: =$D$39*(1+$D$47)^($M36-$D$43)*(1000/(365*24))/VLOOKUP('Input - Capacity Factors'!$C$3,'Input - Capacity Factors'!$A:$B,2,FALSE) -> 12.28709553 | T36: 88.91757267 | U36: =-VLOOKUP($E$107,'Input - Transmission'!$A:$C,2)*(1+'Input - Transmission'!$C$11)^('AVOID NEW'!$M36-'Input - Transmission'!$C$10)*12*(1000/(365*24))*(1/VLOOKUP('Input - Capacity Factors'!$C$3,'Input - Capacity Factors'!$A:$D,2,FALSE)) -> -16.36094147 | V36: =-VLOOKUP($E$107,'Input - Transmission'!$A:$C,3)*Q36 -> -0.1726000777 | X36: 28 | Y36: 2053 | Z36: 0 | AA36: 4.315001943 | AB36: =IF(VLOOKUP($Y36,'Input - Load and Resource'!$B$13:$C$42,2,FALSE)>=0,0,0) -> 0 | AC36: =IF(VLOOKUP($Y36,'Input - Load and Resource'!$B$13:$C$42,2,FALSE)>=0,0,0) -> 0 | AD36: 4.315001943 | AE36: =VLOOKUP($Y36,'Input - Load and Resource'!$B$13:$L$42,11,FALSE)*R36 -> 3.831523857 | AF36: =VLOOKUP($Y36,'Input - Load and Resource'!$B$13:$L$42,11,FALSE)*S36 -> 0.6143547767 | AG36: 4.445878633 | AH36: 8.760880577 | AI36: 8.760880577
B37: UTILITY WEIGHTED COST OF CAPITAL (%): | C37: N/A | D37: =HLOOKUP($D$27,$B$62:$G$65,3) -> 0.074099859 | G37: 2052 | J37: 0 | L37: 29 | M37: 2054 | N37: 0 | O37: 0 | P37: 4.401301982 | Q37: 4.401301982 | R37: 77.70330381 | S37: =$D$39*(1+$D$47)^($M37-$D$43)*(1000/(365*24))/VLOOKUP('Input - Capacity Factors'!$C$3,'Input - Capacity Factors'!$A:$B,2,FALSE) -> 12.53283745 | T37: 90.23614126 | U37: =-VLOOKUP($E$107,'Input - Transmission'!$A:$C,2)*(1+'Input - Transmission'!$C$11)^('AVOID NEW'!$M37-'Input - Transmission'!$C$10)*12*(1000/(365*24))*(1/VLOOKUP('Input - Capacity Factors'!$C$3,'Input - Capacity Factors'!$A:$D,2,FALSE)) -> -16.6881603 | V37: =-VLOOKUP($E$107,'Input - Transmission'!$A:$C,3)*Q37 -> -0.1760520793 | X37: 29 | Y37: 2054 | Z37: 0 | AA37: 4.401301982 | AB37: =IF(VLOOKUP($Y37,'Input - Load and Resource'!$B$13:$C$42,2,FALSE)>=0,0,0) -> 0 | AC37: =IF(VLOOKUP($Y37,'Input - Load and Resource'!$B$13:$C$42,2,FALSE)>=0,0,0) -> 0 | AD37: 4.401301982 | AE37: =VLOOKUP($Y37,'Input - Load and Resource'!$B$13:$L$42,11,FALSE)*R37 -> 3.885165191 | AF37: =VLOOKUP($Y37,'Input - Load and Resource'!$B$13:$L$42,11,FALSE)*S37 -> 0.6266418723 | AG37: 4.511807063 | AH37: 8.913109045 | AI37: 8.913109045
B38: RATEPAYER DISCOUNT RATE (%): | C38: ASSUMED | D38: =D37 -> 0.074099859 | G38: 2053 | J38: 0 | L38: 30 | M38: 2055 | N38: 0 | O38: 0 | P38: 4.489328022 | Q38: 4.489328022 | R38: 78.79115007 | S38: =$D$39*(1+$D$47)^($M38-$D$43)*(1000/(365*24))/VLOOKUP('Input - Capacity Factors'!$C$3,'Input - Capacity Factors'!$A:$B,2,FALSE) -> 12.78349419 | T38: 91.57464426 | U38: =-VLOOKUP($E$107,'Input - Transmission'!$A:$C,2)*(1+'Input - Transmission'!$C$11)^('AVOID NEW'!$M38-'Input - Transmission'!$C$10)*12*(1000/(365*24))*(1/VLOOKUP('Input - Capacity Factors'!$C$3,'Input - Capacity Factors'!$A:$D,2,FALSE)) -> -17.0219235 | V38: =-VLOOKUP($E$107,'Input - Transmission'!$A:$C,3)*Q38 -> -0.1795731209 | X38: 30 | Y38: 2055 | Z38: 0 | AA38: 4.489328022 | AB38: =IF(VLOOKUP($Y38,'Input - Load and Resource'!$B$13:$C$42,2,FALSE)>=0,0,0) -> 0 | AC38: =IF(VLOOKUP($Y38,'Input - Load and Resource'!$B$13:$C$42,2,FALSE)>=0,0,0) -> 0 | AD38: 4.489328022 | AE38: =VLOOKUP($Y38,'Input - Load and Resource'!$B$13:$L$42,11,FALSE)*R38 -> 3.939557503 | AF38: =VLOOKUP($Y38,'Input - Load and Resource'!$B$13:$L$42,11,FALSE)*S38 -> 0.6391747097 | AG38: 4.578732213 | AH38: 9.068060235 | AI38: 9.068060235
B39: "SAR" FIXED O&M ($/kW): | C39: N/A | D39: 14.57 | G39: 2054 | J39: 0
B40: "SAR" VARIABLE O&M ($/MWh): | C40: N/A | D40: 1.77 | G40: 2055 | J40: 0 | M40: Calculation of Level Carrying Cost | R40: capital cost
B41: CURRENT YEAR GAS PRICE ($/MMBTU): | D41: =VLOOKUP(D54,$G$10:$J$40,3) -> 3.704920092 | M41: =D34-1 -> 2007 | R41: =$D$33*(1+$D$45)^($M41-D$34)*$D$50*(1000/(365*24))/VLOOKUP('Input - Capacity Factors'!$C$3,'Input - Capacity Factors'!A:B,2,FALSE) -> 46.42029774
B42: CURRENT YEAR FUEL COST ($/MWh): | D42: =D41*D36/1000 -> 26.30493266 | M42: Calculated for year prior to SAR cost base year
B43: BASE YEAR, O&M EXPENSES: | D43: 2008
B44: BASE YEAR FUEL COST: | D44: 2019 | G44: General inflation rate: | H44: 0.02 | I44: per year | N44: Gas prices were extrapolated using exponential growth.
B45: ESCALATION RATE; "SAR" (%): | C45: N/A | D45: 0.014 | G45: Note: The Annual Energy Outlook includes both a real and nominal forecast so no need to use general inflation rate.
C46: N/A
B47: ESCALATION RATE; O&M (%): | C47: N/A | D47: 0.02
C48: N/A
B49: ADJUSTABLE PORTION ($/MWh): | C49: CALC | D49: =IF(D53="FUELED",D42,0) -> 0
B50: CAPITAL CARRYING CHARGE (%): | C50: N/A | D50: =HLOOKUP($D$27,$B$62:$G$65,4) -> 0.1036332687
B51: LEVEL CARRYING COST ($/MWh): | C51: CALC | D51: =R41 -> 46.42029774
B52: "TILTING" RATE (%): | C52: N/A | D52: 0.014
B53: TYPE OF RATES: | C53: N/A | D53: =IF('Input - Capacity Factors'!C3="Fueled", "Fueled", "Non-fueled") -> Non-fueled
B54: CURRENT YEAR: | C54: N/A | D54: =D13 -> 2026
B62: UTILITY-SPECIFIC VARIABLES | D62: IPCO
B63: FIRST DEFICIT YEAR: | D63: 2002
B64: UTILITY WEIGHTED COST OF CAPITAL (%): | D64: =IPCoCapCarChg!B19 -> 0.074099859
B65: CAPITAL CARRYING CHARGE (%): | D65: =IPCoCapCarChg!B47 -> 0.1036332687
B66: HLH LLH PRICE DIFFERENTIAL: | D66: 7.28
B67: WIND INTEGRATION ADJUSTMENT: | D67: NA
B68: SOLAR INTEGRATION ADJUSTMENT: | D68: NA
B69: Summer Risk Split for Storage | D69: 0.833
B70: Winter Risk Split for Storage | D70: 0.167
B71: Rate Effective Date | E71: XXXX XX, 2026
B73: SEASONALIZATION FACTORS | C73: FACTOR | D73: SEASON | E73: FACTOR | F73: Tiber, United Materials Contracts | H73: New Contracts
B74: Idaho Power | C74: 0.735 | D74: Mar-May | E74: 0.735 | F74: Mar-May | H74: Mar-May
C75: 1.2 | D75: Jun-Sep | E75: 1.2 | F75: Jun, Jul, Nov, Dec | H75: Jul, Aug, Nov, Dec
C76: 1 | D76: Oct-Feb | E76: 1 | F76: Jan, Feb, Aug, Sep, Oct | H76: Jan, Feb, Jun, Sep, Oct
B85: Light Load Hours (LLH) are defined as: | G85: Integration Charges
B86: Monday through Saturday Hour ending 2300 through 0600 (Pacific Prevailing Time (PPT))
B87: All Sunday Hours (PPT)
B88: All NERC Holidays (PPT)
C89: NERC Holidays being: | D89: NERC Holidays being:
D90: New Years Day
D91: Memorial Day | H91: Idaho Power | I91: Integration Charge
D92: Independence Day | G92: 1 | H92: 0 - 300 MW | I92: Sch 87
D93: Labor Day | G93: 2 | H93: 301 - 500 MW | I93: Sch 87
D94: Thanksgiving Day | G94: 3 | H94: 501 and above | I94: Sch 87
D95: Christmas Day
B96: Heavy Load Hours (HLH) are defined as:
B97: Monday through Saturday Hour ending 0700 through 2200 (PST)
B98: Less all NERC Holidays
D103: Drop down box (don't change)
D105: IPCO | E105: 2
D107: =VLOOKUP(E107,D104:E106,2,FALSE) -> 2 | E107: IPCO
E108: Wind
D112: New contract | E112: New contract
D113: Replacement contract

Sheet Input - Capacity Factors
A2: Resource On-Peak Capacity Contributions
A3: Current Resource | B3: =VLOOKUP(C3,A6:E11,5,FALSE) -> 1 | C3: =H10 -> Wind | G3: Old resources - no longer broken apart but grouped into other
A4: Resource | B4: Annual Capacity Factor | C4: On-Peak Capacity Factors | G4: Biomass | H4: 0.85 | I4: 1 | J4: 1
C5: Summer | D5: Winter | G5: Geothermal | H5: 0.85 | I5: 1 | J5: 1
A6: Wind | B6: 0.33 | C6: 0.05 | D6: 0.05 | E6: 1 | G6: Other Base Load | H6: 0.92 | I6: 1 | J6: 1
A7: Solar | B7: 0.226 | C7: 0.35 | D7: 0.05 | E7: 2
A8: Non-seasonal hydro | B8: 0.46 | C8: 0.65 | D8: 0.25 | E8: 3
A9: Seasonal hydro | B9: 0.33 | C9: 0.78 | D9: 0 | E9: 4
A10: Other | B10: 0.89 | C10: 0.93 | D10: 0.93 | E10: 5 | G10: Do not change-used for printing sheets | H10: ='AVOID NEW'!E108 -> Wind
A11: Fueled | B11: 0.89 | C11: 0.93 | D11: 0.93 | E11: 6

Sheet Input - Load and Resource
B1: Utility | D1: ='AVOID NEW'!D27 -> IPCO | E1: ='AVOID NEW'!D107 -> 2 | G1: Notes: | H1: 1. Capacity contributions are set equal to zero when the utility does not need capacity; i.e., when the planning deficit, column (d), is not negative.
B2: Project type | D2: ='Input - Capacity Factors'!C3 -> Wind | H2: Capacity contributions cannot exceed the absolute value of the planning deficit (column (d)).
B3: Project Nameplate | D3: ='AVOID NEW'!D15 -> 0.1 | E3: Contract type | F3: ='AVOID NEW'!$E$112 -> New contract | H3: 2. A capacity payment will be made if the capacity contribution is strictly positive.
D4: Summer | E4: Winter | H4: 3. The capacity factor is calculated as the capacity contribution divided by the project nameplate.
B5: Peak Capacity Factors | D5: =VLOOKUP(D2,'Input - Capacity Factors'!A:D,3,FALSE) -> 0.05 | E5: =VLOOKUP(D2,'Input - Capacity Factors'!A:D,4,FALSE) -> 0.05 | H5: 4. The capacity factor cannot decrease over time.
B6: Peak Capacity (MW) | D6: =$D$3*D5 -> 0.005 | E6: =$D$3*E5 -> 0.005 | H6: 5. Replacement contracts receive capacity payments throughout the life of the contract. In the years preceding a utility's need for capacity, the capacity factor is based on the capacity factor in the first year the resource makes a strictly positive capacity contribution.
B7: Current Year | D7: ='AVOID NEW'!D54 -> 2026 | E7: Max capacity in new contract | G7: =MAX(J13:J42) -> 0.005
B8: Most deficient season | D8: =IF(O9>O10,"Summer", IF(O9<O10,"Winter","Both")) -> Summer | E8: First deficiency | F8: =MIN($N$13:$N$42) -> 2027 | G8: =IF(VLOOKUP(F8,B13:E42,3,FALSE)<VLOOKUP(F8,B13:E42,4,FALSE),D4,IF(VLOOKUP(F8,B13:E42,3,FALSE)>VLOOKUP(F8,B13:E42,4,FALSE),E4,"Either")) -> Summer
B9: Calculation of basis for capacity payments | N9: Summer | O9: =COUNTIF($O$13:$O$42,N9) -> 29
C10: =D1 -> IPCO | G10: With QF output | J10: Capacity Calculations | N10: Winter | O10: =COUNTIF($O$13:$O$42,N10) -> 0
C11: (a) | D11: (b) | E11: (c) | F11: (d) | G11: (e) | H11: (f) | I11: (g) | J11: (h) | K11: (i) | L11: (j)
C12: Energy (aMW) | D12: Summer Capacity (MW) | E12: Winter Capacity (MW) | F12: Planning Deficit (MW) | G12: Summer Capacity (MW) | H12: Winter Capacity (MW) | I12: New Planning Deficit (MW) | J12: Capacity Contribution (1) | K12: Based on capacity contribution, is capacity payment made? (2) | L12: Capacity adjustment applied to rates (3) (4) (5) | N12: Capacity contribution greater than 0? | O12: Season more deficient
A13: =B13-$D$7 -> 0 | B13: =D7 -> 2026 | C13: =OFFSET($B$49,$A13,$E$1*3-2) -> 0 | D13: =OFFSET($B$49,$A13,$E$1*3-1) -> 0 | E13: =OFFSET($B$49,$A13,$E$1*3) -> 0 | F13: =MIN(D13:E13) -> 0 | G13: =D13+$D$6 -> 0.005 | H13: =E13+$E$6 -> 0.005 | I13: =MIN(G13:H13) -> 0.005 | J13: =IF(F13>=0,0,MIN(-1*F13,I13-F13)) -> 0 | K13: =IF(J13>0,"Yes","No") -> No | L13: =IF($F$3="New contract",J13/$D$3,MAX($D$6:$E$6)/$D$3) -> 0 | N13: =IF(J13>0,B13,"") ->  | O13: =IF(F13<0,IF(D13<E13,"Summer",IF(D13>E13,"Winter","Both")),"") -> 
A14: =B14-$D$7 -> 1 | B14: =B13+1 -> 2027 | C14: =OFFSET($B$49,$A14,$E$1*3-2) -> 0 | D14: -125 | E14: 0 | F14: =MIN(D14:E14) -> -125 | G14: =D14+$D$6 -> -124.995 | H14: =E14+$E$6 -> 0.005 | I14: =MIN(G14:H14) -> -124.995 | J14: =IF(F14>=0,0,MIN(-1*F14,I14-F14)) -> 0.005 | K14: =IF(J14>0,"Yes","No") -> Yes | L14: =IF($F$3="New contract",J14/$D$3,MAX($D$6:$E$6)/$D$3) -> 0.05 | N14: =IF(J14>0,B14,"") -> 2027 | O14: =IF(F14<0,IF(D14<E14,"Summer",IF(D14>E14,"Winter","Both")),"") -> Summer
A15: 2 | B15: =B14+1 -> 2028 | C15: 0 | D15: -191 | E15: 0 | F15: -191 | G15: -190.995 | H15: 0.005 | I15: -190.995 | J15: 0.005 | K15: Yes | L15: 0.05 | N15: 2028 | O15: Summer
A16: 3 | B16: 2029 | C16: 0 | D16: -390 | E16: 0 | F16: -390 | G16: -389.995 | H16: 0.005 | I16: -389.995 | J16: 0.005 | K16: Yes | L16: 0.05 | N16: 2029 | O16: Summer
A17: 4 | B17: 2030 | C17: 0 | D17: -767 | E17: -201 | F17: -767 | G17: -766.995 | H17: -200.995 | I17: -766.995 | J17: 0.005 | K17: Yes | L17: 0.05 | N17: 2030 | O17: Summer
A18: 5 | B18: 2031 | C18: 0 | D18: -746 | E18: -359 | F18: -746 | G18: -745.995 | H18: -358.995 | I18: -745.995 | J18: 0.005 | K18: Yes | L18: 0.05 | N18: 2031 | O18: Summer
A19: 6 | B19: 2032 | C19: 0 | D19: -884 | E19: -432 | F19: -884 | G19: -883.995 | H19: -431.995 | I19: -883.995 | J19: 0.005 | K19: Yes | L19: 0.05 | N19: 2032 | O19: Summer
A20: 7 | B20: 2033 | C20: 0 | D20: -969 | E20: -502 | F20: -969 | G20: -968.995 | H20: -501.995 | I20: -968.995 | J20: 0.005 | K20: Yes | L20: 0.05 | N20: 2033 | O20: Summer
A21: 8 | B21: 2034 | C21: 0 | D21: -955 | E21: -527 | F21: -955 | G21: -954.995 | H21: -526.995 | I21: -954.995 | J21: 0.005 | K21: Yes | L21: 0.05 | N21: 2034 | O21: Summer
A22: 9 | B22: 2035 | C22: 0 | D22: -856 | E22: -546 | F22: -856 | G22: -855.995 | H22: -545.995 | I22: -855.995 | J22: 0.005 | K22: Yes | L22: 0.05 | N22: 2035 | O22: Summer
A23: 10 | B23: 2036 | C23: 0 | D23: -895 | E23: -520 | F23: -895 | G23: -894.995 | H23: -519.995 | I23: -894.995 | J23: 0.005 | K23: Yes | L23: 0.05 | N23: 2036 | O23: Summer
A24: 11 | B24: 2037 | C24: 0 | D24: -1011 | E24: -558 | F24: -1011 | G24: -1010.995 | H24: -557.995 | I24: -1010.995 | J24: 0.005 | K24: Yes | L24: 0.05 | N24: 2037 | O24: Summer
A25: 12 | B25: 2038 | C25: 0 | D25: -1050 | E25: -593 | F25: -1050 | G25: -1049.995 | H25: -592.995 | I25: -1049.995 | J25: 0.005 | K25: Yes | L25: 0.05 | N25: 2038 | O25: Summer
A26: 13 | B26: 2039 | C26: 0 | D26: -1081 | E26: -605 | F26: -1081 | G26: -1080.995 | H26: -604.995 | I26: -1080.995 | J26: 0.005 | K26: Yes | L26: 0.05 | N26: 2039 | O26: Summer
A27: 14 | B27: 2040 | C27: 0 | D27: -1117 | E27: -616 | F27: -1117 | G27: -1116.995 | H27: -615.995 | I27: -1116.995 | J27: 0.005 | K27: Yes | L27: 0.05 | N27: 2040 | O27: Summer
A28: 15 | B28: 2041 | C28: 0 | D28: -1154 | E28: -634 | F28: -1154 | G28: -1153.995 | H28: -633.995 | I28: -1153.995 | J28: 0.005 | K28: Yes | L28: 0.05 | N28: 2041 | O28: Summer
A29: 16 | B29: 2042 | C29: 0 | D29: -1186 | E29: -645 | F29: -1186 | G29: -1185.995 | H29: -644.995 | I29: -1185.995 | J29: 0.005 | K29: Yes | L29: 0.05 | N29: 2042 | O29: Summer
A30: 17 | B30: 2043 | C30: 0 | D30: -1256 | E30: -669 | F30: -1256 | G30: -1255.995 | H30: -668.995 | I30: -1255.995 | J30: 0.005 | K30: Yes | L30: 0.05 | N30: 2043 | O30: Summer
A31: 18 | B31: 2044 | C31: 0 | D31: -1285 | E31: -679 | F31: -1285 | G31: -1284.995 | H31: -678.995 | I31: -1284.995 | J31: 0.005 | K31: Yes | L31: 0.05 | N31: 2044 | O31: Summer
A32: 19 | B32: 2045 | C32: 0 | D32: -1379 | E32: -710 | F32: -1379 | G32: -1378.995 | H32: -709.995 | I32: -1378.995 | J32: 0.005 | K32: Yes | L32: 0.05 | N32: 2045 | O32: Summer
A33: 20 | B33: 2046 | C33: 0 | D33: -1379 | E33: -710 | F33: -1379 | G33: -1378.995 | H33: -709.995 | I33: -1378.995 | J33: 0.005 | K33: Yes | L33: 0.05 | N33: 2046 | O33: Summer
A34: 21 | B34: 2047 | C34: 0 | D34: -1379 | E34: -710 | F34: -1379 | G34: -1378.995 | H34: -709.995 | I34: -1378.995 | J34: 0.005 | K34: Yes | L34: 0.05 | N34: 2047 | O34: Summer
A35: 22 | B35: 2048 | C35: 0 | D35: -1379 | E35: -710 | F35: -1379 | G35: -1378.995 | H35: -709.995 | I35: -1378.995 | J35: 0.005 | K35: Yes | L35: 0.05 | N35: 2048 | O35: Summer
A36: 23 | B36: 2049 | C36: 0 | D36: -1379 | E36: -710 | F36: -1379 | G36: -1378.995 | H36: -709.995 | I36: -1378.995 | J36: 0.005 | K36: Yes | L36: 0.05 | N36: 2049 | O36: Summer
A37: 24 | B37: 2050 | C37: 0 | D37: -1379 | E37: -710 | F37: -1379 | G37: -1378.995 | H37: -709.995 | I37: -1378.995 | J37: 0.005 | K37: Yes | L37: 0.05 | N37: 2050 | O37: Summer
A38: 25 | B38: 2051 | C38: 0 | D38: -1379 | E38: -710 | F38: -1379 | G38: -1378.995 | H38: -709.995 | I38: -1378.995 | J38: 0.005 | K38: Yes | L38: 0.05 | N38: 2051 | O38: Summer
A39: 26 | B39: 2052 | C39: 0 | D39: -1379 | E39: -710 | F39: -1379 | G39: -1378.995 | H39: -709.995 | I39: -1378.995 | J39: 0.005 | K39: Yes | L39: 0.05 | N39: 2052 | O39: Summer
A40: 27 | B40: 2053 | C40: 0 | D40: -1379 | E40: -710 | F40: -1379 | G40: -1378.995 | H40: -709.995 | I40: -1378.995 | J40: 0.005 | K40: Yes | L40: 0.05 | N40: 2053 | O40: Summer
A41: 28 | B41: 2054 | C41: 0 | D41: -1379 | E41: -710 | F41: -1379 | G41: -1378.995 | H41: -709.995 | I41: -1378.995 | J41: 0.005 | K41: Yes | L41: 0.05 | N41: 2054 | O41: Summer
A42: 29 | B42: 2055 | C42: 0 | D42: -1379 | E42: -710 | F42: -1379 | G42: -1378.995 | H42: -709.995 | I42: -1378.995 | J42: 0.005 | K42: Yes | L42: 0.05 | N42: 2055 | O42: Summer
B46: Input data from IRP
F47: ="IPCO "&'Input - IPCO IRP'!P4 -> IPCO IPC-E-25-25
F48: Energy (aMW) | G48: Summer Capacity (MW) | H48: Winter Capacity (MW)
B49: =B13 -> 2026 | F49: =MIN(VLOOKUP($B49,'Input - IPCO IRP'!$A:$B,2,FALSE),0) -> 0 | G49: =MIN(VLOOKUP($B49,'Input - IPCO IRP'!$A:$Q,16,FALSE),0) -> 0 | H49: =MIN(VLOOKUP($B49,'Input - IPCO IRP'!$A:$Q,17,FALSE),0) -> 0
B50: =B49+1 -> 2027 | F50: =MIN(VLOOKUP($B50,'Input - IPCO IRP'!$A:$B,2,FALSE),0) -> 0 | G50: =MIN(VLOOKUP($B50,'Input - IPCO IRP'!$A:$Q,16,FALSE),0) -> -125 | H50: =MIN(VLOOKUP($B50,'Input - IPCO IRP'!$A:$Q,17,FALSE),0) -> 0
B51: =B50+1 -> 2028 | F51: =MIN(VLOOKUP($B51,'Input - IPCO IRP'!$A:$B,2,FALSE),0) -> 0 | G51: =MIN(VLOOKUP($B51,'Input - IPCO IRP'!$A:$Q,16,FALSE),0) -> -191 | H51: =MIN(VLOOKUP($B51,'Input - IPCO IRP'!$A:$Q,17,FALSE),0) -> 0
B52: 2029 | F52: =MIN(VLOOKUP($B52,'Input - IPCO IRP'!$A:$B,2,FALSE),0) -> 0 | G52: =MIN(VLOOKUP($B52,'Input - IPCO IRP'!$A:$Q,16,FALSE),0) -> -390 | H52: =MIN(VLOOKUP($B52,'Input - IPCO IRP'!$A:$Q,17,FALSE),0) -> 0
B53: 2030 | F53: =MIN(VLOOKUP($B53,'Input - IPCO IRP'!$A:$B,2,FALSE),0) -> 0 | G53: =MIN(VLOOKUP($B53,'Input - IPCO IRP'!$A:$Q,16,FALSE),0) -> -767 | H53: =MIN(VLOOKUP($B53,'Input - IPCO IRP'!$A:$Q,17,FALSE),0) -> -201
B54: 2031 | F54: =MIN(VLOOKUP($B54,'Input - IPCO IRP'!$A:$B,2,FALSE),0) -> 0 | G54: =MIN(VLOOKUP($B54,'Input - IPCO IRP'!$A:$Q,16,FALSE),0) -> -746 | H54: =MIN(VLOOKUP($B54,'Input - IPCO IRP'!$A:$Q,17,FALSE),0) -> -359
B55: 2032 | F55: =MIN(VLOOKUP($B55,'Input - IPCO IRP'!$A:$B,2,FALSE),0) -> 0 | G55: =MIN(VLOOKUP($B55,'Input - IPCO IRP'!$A:$Q,16,FALSE),0) -> -884 | H55: =MIN(VLOOKUP($B55,'Input - IPCO IRP'!$A:$Q,17,FALSE),0) -> -432
B56: 2033 | F56: =MIN(VLOOKUP($B56,'Input - IPCO IRP'!$A:$B,2,FALSE),0) -> 0 | G56: =MIN(VLOOKUP($B56,'Input - IPCO IRP'!$A:$Q,16,FALSE),0) -> -969 | H56: =MIN(VLOOKUP($B56,'Input - IPCO IRP'!$A:$Q,17,FALSE),0) -> -502
B57: 2034 | F57: =MIN(VLOOKUP($B57,'Input - IPCO IRP'!$A:$B,2,FALSE),0) -> 0 | G57: =MIN(VLOOKUP($B57,'Input - IPCO IRP'!$A:$Q,16,FALSE),0) -> -955 | H57: =MIN(VLOOKUP($B57,'Input - IPCO IRP'!$A:$Q,17,FALSE),0) -> -527
B58: 2035 | F58: =MIN(VLOOKUP($B58,'Input - IPCO IRP'!$A:$B,2,FALSE),0) -> 0 | G58: =MIN(VLOOKUP($B58,'Input - IPCO IRP'!$A:$Q,16,FALSE),0) -> -856 | H58: =MIN(VLOOKUP($B58,'Input - IPCO IRP'!$A:$Q,17,FALSE),0) -> -546
B59: 2036 | F59: =MIN(VLOOKUP($B59,'Input - IPCO IRP'!$A:$B,2,FALSE),0) -> 0 | G59: =MIN(VLOOKUP($B59,'Input - IPCO IRP'!$A:$Q,16,FALSE),0) -> -895 | H59: =MIN(VLOOKUP($B59,'Input - IPCO IRP'!$A:$Q,17,FALSE),0) -> -520
B60: 2037 | F60: =MIN(VLOOKUP($B60,'Input - IPCO IRP'!$A:$B,2,FALSE),0) -> 0 | G60: =MIN(VLOOKUP($B60,'Input - IPCO IRP'!$A:$Q,16,FALSE),0) -> -1011 | H60: =MIN(VLOOKUP($B60,'Input - IPCO IRP'!$A:$Q,17,FALSE),0) -> -558
B61: 2038 | F61: =MIN(VLOOKUP($B61,'Input - IPCO IRP'!$A:$B,2,FALSE),0) -> 0 | G61: =MIN(VLOOKUP($B61,'Input - IPCO IRP'!$A:$Q,16,FALSE),0) -> -1050 | H61: =MIN(VLOOKUP($B61,'Input - IPCO IRP'!$A:$Q,17,FALSE),0) -> -593
B62: 2039 | F62: =MIN(VLOOKUP($B62,'Input - IPCO IRP'!$A:$B,2,FALSE),0) -> 0 | G62: =MIN(VLOOKUP($B62,'Input - IPCO IRP'!$A:$Q,16,FALSE),0) -> -1081 | H62: =MIN(VLOOKUP($B62,'Input - IPCO IRP'!$A:$Q,17,FALSE),0) -> -605
B63: 2040 | F63: =MIN(VLOOKUP($B63,'Input - IPCO IRP'!$A:$B,2,FALSE),0) -> 0 | G63: =MIN(VLOOKUP($B63,'Input - IPCO IRP'!$A:$Q,16,FALSE),0) -> -1117 | H63: =MIN(VLOOKUP($B63,'Input - IPCO IRP'!$A:$Q,17,FALSE),0) -> -616
B64: 2041 | F64: =MIN(VLOOKUP($B64,'Input - IPCO IRP'!$A:$B,2,FALSE),0) -> 0 | G64: =MIN(VLOOKUP($B64,'Input - IPCO IRP'!$A:$Q,16,FALSE),0) -> -1154 | H64: =MIN(VLOOKUP($B64,'Input - IPCO IRP'!$A:$Q,17,FALSE),0) -> -634
B65: 2042 | F65: =MIN(VLOOKUP($B65,'Input - IPCO IRP'!$A:$B,2,FALSE),0) -> 0 | G65: =MIN(VLOOKUP($B65,'Input - IPCO IRP'!$A:$Q,16,FALSE),0) -> -1186 | H65: =MIN(VLOOKUP($B65,'Input - IPCO IRP'!$A:$Q,17,FALSE),0) -> -645
B66: 2043 | F66: =MIN(VLOOKUP($B66,'Input - IPCO IRP'!$A:$B,2,FALSE),0) -> 0 | G66: =MIN(VLOOKUP($B66,'Input - IPCO IRP'!$A:$Q,16,FALSE),0) -> -1256 | H66: =MIN(VLOOKUP($B66,'Input - IPCO IRP'!$A:$Q,17,FALSE),0) -> -669
B67: 2044 | F67: =MIN(VLOOKUP($B67,'Input - IPCO IRP'!$A:$B,2,FALSE),0) -> 0 | G67: =MIN(VLOOKUP($B67,'Input - IPCO IRP'!$A:$Q,16,FALSE),0) -> -1285 | H67: =MIN(VLOOKUP($B67,'Input - IPCO IRP'!$A:$Q,17,FALSE),0) -> -679
B68: 2045 | F68: =MIN(VLOOKUP($B68,'Input - IPCO IRP'!$A:$B,2,FALSE),0) -> 0 | G68: =MIN(VLOOKUP($B68,'Input - IPCO IRP'!$A:$Q,16,FALSE),0) -> -1379 | H68: =MIN(VLOOKUP($B68,'Input - IPCO IRP'!$A:$Q,17,FALSE),0) -> -710
B69: 2046 | F69: =MIN(VLOOKUP($B69,'Input - IPCO IRP'!$A:$B,2,FALSE),0) -> 0 | G69: =MIN(VLOOKUP($B69,'Input - IPCO IRP'!$A:$Q,16,FALSE),0) -> -1379 | H69: =MIN(VLOOKUP($B69,'Input - IPCO IRP'!$A:$Q,17,FALSE),0) -> -710
B70: 2047 | F70: =MIN(VLOOKUP($B70,'Input - IPCO IRP'!$A:$B,2,FALSE),0) -> 0 | G70: =MIN(VLOOKUP($B70,'Input - IPCO IRP'!$A:$Q,16,FALSE),0) -> -1379 | H70: =MIN(VLOOKUP($B70,'Input - IPCO IRP'!$A:$Q,17,FALSE),0) -> -710
B71: 2048 | F71: =MIN(VLOOKUP($B71,'Input - IPCO IRP'!$A:$B,2,FALSE),0) -> 0 | G71: =MIN(VLOOKUP($B71,'Input - IPCO IRP'!$A:$Q,16,FALSE),0) -> -1379 | H71: =MIN(VLOOKUP($B71,'Input - IPCO IRP'!$A:$Q,17,FALSE),0) -> -710
B72: 2049 | F72: =MIN(VLOOKUP($B72,'Input - IPCO IRP'!$A:$B,2,FALSE),0) -> 0 | G72: =MIN(VLOOKUP($B72,'Input - IPCO IRP'!$A:$Q,16,FALSE),0) -> -1379 | H72: =MIN(VLOOKUP($B72,'Input - IPCO IRP'!$A:$Q,17,FALSE),0) -> -710
B73: 2050 | F73: =MIN(VLOOKUP($B73,'Input - IPCO IRP'!$A:$B,2,FALSE),0) -> 0 | G73: =MIN(VLOOKUP($B73,'Input - IPCO IRP'!$A:$Q,16,FALSE),0) -> -1379 | H73: =MIN(VLOOKUP($B73,'Input - IPCO IRP'!$A:$Q,17,FALSE),0) -> -710
B74: 2051 | F74: =MIN(VLOOKUP($B74,'Input - IPCO IRP'!$A:$B,2,FALSE),0) -> 0 | G74: =MIN(VLOOKUP($B74,'Input - IPCO IRP'!$A:$Q,16,FALSE),0) -> -1379 | H74: =MIN(VLOOKUP($B74,'Input - IPCO IRP'!$A:$Q,17,FALSE),0) -> -710
B75: 2052 | F75: =MIN(VLOOKUP($B75,'Input - IPCO IRP'!$A:$B,2,FALSE),0) -> 0 | G75: =MIN(VLOOKUP($B75,'Input - IPCO IRP'!$A:$Q,16,FALSE),0) -> -1379 | H75: =MIN(VLOOKUP($B75,'Input - IPCO IRP'!$A:$Q,17,FALSE),0) -> -710
B76: 2053 | F76: =MIN(VLOOKUP($B76,'Input - IPCO IRP'!$A:$B,2,FALSE),0) -> 0 | G76: =MIN(VLOOKUP($B76,'Input - IPCO IRP'!$A:$Q,16,FALSE),0) -> -1379 | H76: =MIN(VLOOKUP($B76,'Input - IPCO IRP'!$A:$Q,17,FALSE),0) -> -710
B77: 2054 | F77: =MIN(VLOOKUP($B77,'Input - IPCO IRP'!$A:$B,2,FALSE),0) -> 0 | G77: =MIN(VLOOKUP($B77,'Input - IPCO IRP'!$A:$Q,16,FALSE),0) -> -1379 | H77: =MIN(VLOOKUP($B77,'Input - IPCO IRP'!$A:$Q,17,FALSE),0) -> -710
B78: 2055 | F78: =MIN(VLOOKUP($B78,'Input - IPCO IRP'!$A:$B,2,FALSE),0) -> 0 | G78: =MIN(VLOOKUP($B78,'Input - IPCO IRP'!$A:$Q,16,FALSE),0) -> -1379 | H78: =MIN(VLOOKUP($B78,'Input - IPCO IRP'!$A:$Q,17,FALSE),0) -> -710

Sheet Input - Transmission
A2: Utility Transmission Costs
A5: Utility | B5: Rate ($/kW-mo) | C5: Losses
A6: AVISTA | B6: 2 | C6: 0.03
A7: IPCO | B7: 1.75 | C7: 0.04
A8: PCP | B8: 2.5 | C8: 0.05
A10: Rates Year | C10: 2012
A11: Inflation Rate | C11: ='AVOID NEW'!D47 -> 0.02
A14: Note: The current SAR model does not take utility transmission costs into account.

Sheet IPCo NF HLH LLH Levelized
B1: =IF('AVOID NEW'!E107="IPCo","IDAHO POWER","THESE RATES ARE NOT VALID") -> IDAHO POWER
B2: AVOIDED COST RATES FOR NON-FUELED PROJECTS
B3: Eligibility for these rates is limited to wind and solar projects 100 kW or smaller, and to non-wind and non-solar projects smaller than 10 aMW
B5: Seasonalization Factors
B7: Season 1 | D7: ='AVOID NEW'!E74 -> 0.735 | E7: (Applied to March - May)
B8: Season 2 | D8: ='AVOID NEW'!E75 -> 1.2 | E8: (Applied to July, August, November, and December)
B9: Season 3 | D9: ='AVOID NEW'!E76 -> 1 | E9: (Applied to January, February, June, September, and October)
B13: =$B$1 -> IDAHO POWER
B14: LEVELIZED RATES
B15: ="PROJECT ON-LINE IN "& 'AVOID NEW'!$D$54 -> PROJECT ON-LINE IN 2026
B16: ="Rate Effective Date: "&'AVOID NEW'!$E$71 -> Rate Effective Date: XXXX XX, 2026
B17: ="Resource: "&'Input - Capacity Factors'!$C$3 -> Resource: Wind
C18: Levelized Price | G18: ="Season 1 Pricing ("&100*$D$7&"%)" -> Season 1 Pricing (73.5%) | N18: ="Season 2 Pricing ("&100*$D$8&"%)" -> Season 2 Pricing (120%) | U18: ="Season 3 Pricing ("&100*$D$9&"%)" -> Season 3 Pricing (100%)
C19: Heavy and Light Load Hour Differential | D19: ='AVOID NEW'!$D$66 -> 7.28 | G19: Flat | I19: Heavy Load Hour | K19: Light Load Hour | N19: Flat | P19: Heavy Load Hour | R19: Light Load Hour | U19: Flat | W19: Heavy Load Hour | Y19: Light Load Hour
D20: =D19*0.445 -> 3.2396 | E20: =-(D19-D20) -> -4.0404 | H20: Final avoided cost rates for wind and solar QFs include integration charges from Schedule 87 | J20: =H20 -> Final avoided cost rates for wind and solar QFs include integration charges from Schedule 87 | L20: =H20 -> Final avoided cost rates for wind and solar QFs include integration charges from Schedule 87 | O20: =H20 -> Final avoided cost rates for wind and solar QFs include integration charges from Schedule 87 | Q20: =H20 -> Final avoided cost rates for wind and solar QFs include integration charges from Schedule 87 | S20: =H20 -> Final avoided cost rates for wind and solar QFs include integration charges from Schedule 87 | V20: =H20 -> Final avoided cost rates for wind and solar QFs include integration charges from Schedule 87 | X20: =H20 -> Final avoided cost rates for wind and solar QFs include integration charges from Schedule 87 | Z20: =H20 -> Final avoided cost rates for wind and solar QFs include integration charges from Schedule 87
B21: Contract Length | C21: Flat | D21: Heavy Load Hour | E21: Light Load Hour | G21: Price | I21: Price | K21: Price | N21: Price | P21: Price | R21: Price | U21: Price | W21: Price | Y21: Price
B22: 1 | C22: ='AVOID NEW'!AN9 -> 28.83292851 | D22: =C22+D$20 -> 32.07252851 | E22: =C22+E$20 -> 24.79252851 | G22: =ROUND((+$C22*$D$7),2) -> 21.19 | H22: NA | I22: =ROUND((+$D22*$D$7),2) -> 23.57 | J22: NA | K22: =ROUND((+$E22*$D$7),2) -> 18.22 | L22: NA | N22: =ROUND((+$C22*$D$8),2) -> 34.6 | O22: NA | P22: =ROUND((+$D22*$D$8),2) -> 38.49 | Q22: NA | R22: =ROUND((+$E22*$D$8),2) -> 29.75 | S22: NA | U22: =ROUND((+$C22*$D$9),2) -> 28.83 | V22: NA | W22: =ROUND((+$D22*$D$9),2) -> 32.07 | X22: NA | Y22: =ROUND((+$E22*$D$9),2) -> 24.79 | Z22: NA
B23: 2 | C23: ='AVOID NEW'!AN10 -> 33.1388777 | D23: 36.3784777 | E23: 29.0984777 | G23: 24.36 | H23: NA | I23: 26.74 | J23: NA | K23: 21.39 | L23: NA | N23: 39.77 | O23: NA | P23: 43.65 | Q23: NA | R23: 34.92 | S23: NA | U23: =ROUND((+$C23*$D$9),2) -> 33.14 | V23: NA | W23: =ROUND((+$D23*$D$9),2) -> 36.38 | X23: NA | Y23: =ROUND((+$E23*$D$9),2) -> 29.1 | Z23: NA
B24: 3 | C24: ='AVOID NEW'!AN11 -> 35.29990511 | D24: 38.53950511 | E24: 31.25950511 | G24: 25.95 | H24: NA | I24: 28.33 | J24: NA | K24: 22.98 | L24: NA | N24: 42.36 | O24: NA | P24: 46.25 | Q24: NA | R24: 37.51 | S24: NA | U24: 35.3 | V24: NA | W24: 38.54 | X24: NA | Y24: 31.26 | Z24: NA
B25: 4 | C25: ='AVOID NEW'!AN12 -> 36.79048172 | D25: 40.03008172 | E25: 32.75008172 | G25: 27.04 | H25: NA | I25: 29.42 | J25: NA | K25: 24.07 | L25: NA | N25: 44.15 | O25: NA | P25: 48.04 | Q25: NA | R25: 39.3 | S25: NA | U25: 36.79 | V25: NA | W25: 40.03 | X25: NA | Y25: 32.75 | Z25: NA
B26: 5 | C26: ='AVOID NEW'!AN13 -> 37.27296511 | D26: 40.51256511 | E26: 33.23256511 | G26: 27.4 | H26: NA | I26: 29.78 | J26: NA | K26: 24.43 | L26: NA | N26: 44.73 | O26: NA | P26: 48.62 | Q26: NA | R26: 39.88 | S26: NA | U26: 37.27 | V26: NA | W26: 40.51 | X26: NA | Y26: 33.23 | Z26: NA
B27: 6 | C27: ='AVOID NEW'!AN14 -> 37.60729762 | D27: 40.84689762 | E27: 33.56689762 | G27: 27.64 | H27: NA | I27: 30.02 | J27: NA | K27: 24.67 | L27: NA | N27: 45.13 | O27: NA | P27: 49.02 | Q27: NA | R27: 40.28 | S27: NA | U27: 37.61 | V27: NA | W27: 40.85 | X27: NA | Y27: 33.57 | Z27: NA
B28: 7 | C28: ='AVOID NEW'!AN15 -> 38.12028335 | D28: 41.35988335 | E28: 34.07988335 | G28: 28.02 | H28: NA | I28: 30.4 | J28: NA | K28: 25.05 | L28: NA | N28: 45.74 | O28: NA | P28: 49.63 | Q28: NA | R28: 40.9 | S28: NA | U28: 38.12 | V28: NA | W28: 41.36 | X28: NA | Y28: 34.08 | Z28: NA
B29: 8 | C29: ='AVOID NEW'!AN16 -> 38.88258906 | D29: 42.12218906 | E29: 34.84218906 | G29: 28.58 | H29: NA | I29: 30.96 | J29: NA | K29: 25.61 | L29: NA | N29: 46.66 | O29: NA | P29: 50.55 | Q29: NA | R29: 41.81 | S29: NA | U29: 38.88 | V29: NA | W29: 42.12 | X29: NA | Y29: 34.84 | Z29: NA
B30: 9 | C30: ='AVOID NEW'!AN17 -> 39.54346653 | D30: 42.78306653 | E30: 35.50306653 | G30: 29.06 | H30: NA | I30: 31.45 | J30: NA | K30: 26.09 | L30: NA | N30: 47.45 | O30: NA | P30: 51.34 | Q30: NA | R30: 42.6 | S30: NA | U30: 39.54 | V30: NA | W30: 42.78 | X30: NA | Y30: 35.5 | Z30: NA
B31: 10 | C31: ='AVOID NEW'!AN18 -> 40.18520922 | D31: 43.42480922 | E31: 36.14480922 | G31: 29.54 | H31: NA | I31: 31.92 | J31: NA | K31: 26.57 | L31: NA | N31: 48.22 | O31: NA | P31: 52.11 | Q31: NA | R31: 43.37 | S31: NA | U31: 40.19 | V31: NA | W31: 43.42 | X31: NA | Y31: 36.14 | Z31: NA
B32: 11 | C32: ='AVOID NEW'!AN19 -> 40.76046 | D32: 44.00006 | E32: 36.72006 | G32: 29.96 | H32: NA | I32: 32.34 | J32: NA | K32: 26.99 | L32: NA | N32: 48.91 | O32: NA | P32: 52.8 | Q32: NA | R32: 44.06 | S32: NA | U32: 40.76 | V32: NA | W32: 44 | X32: NA | Y32: 36.72 | Z32: NA
B33: 12 | C33: ='AVOID NEW'!AN20 -> 41.3255981 | D33: 44.5651981 | E33: 37.2851981 | G33: 30.37 | H33: NA | I33: 32.76 | J33: NA | K33: 27.4 | L33: NA | N33: 49.59 | O33: NA | P33: 53.48 | Q33: NA | R33: 44.74 | S33: NA | U33: 41.33 | V33: NA | W33: 44.57 | X33: NA | Y33: 37.29 | Z33: NA
B34: 13 | C34: ='AVOID NEW'!AN21 -> 41.95344486 | D34: 45.19304486 | E34: 37.91304486 | G34: 30.84 | H34: NA | I34: 33.22 | J34: NA | K34: 27.87 | L34: NA | N34: 50.34 | O34: NA | P34: 54.23 | Q34: NA | R34: 45.5 | S34: NA | U34: 41.95 | V34: NA | W34: 45.19 | X34: NA | Y34: 37.91 | Z34: NA
B35: 14 | C35: ='AVOID NEW'!AN22 -> 42.57370328 | D35: 45.81330328 | E35: 38.53330328 | G35: 31.29 | H35: NA | I35: 33.67 | J35: NA | K35: 28.32 | L35: NA | N35: 51.09 | O35: NA | P35: 54.98 | Q35: NA | R35: 46.24 | S35: NA | U35: 42.57 | V35: NA | W35: 45.81 | X35: NA | Y35: 38.53 | Z35: NA
B36: 15 | C36: ='AVOID NEW'!AN23 -> 43.18964175 | D36: 46.42924175 | E36: 39.14924175 | G36: 31.74 | H36: NA | I36: 34.13 | J36: NA | K36: 28.77 | L36: NA | N36: 51.83 | O36: NA | P36: 55.72 | Q36: NA | R36: 46.98 | S36: NA | U36: 43.19 | V36: NA | W36: 46.43 | X36: NA | Y36: 39.15 | Z36: NA
B37: 16 | C37: ='AVOID NEW'!AN24 -> 43.76916883 | D37: 47.00876883 | E37: 39.72876883 | G37: 32.17 | H37: NA | I37: 34.55 | J37: NA | K37: 29.2 | L37: NA | N37: 52.52 | O37: NA | P37: 56.41 | Q37: NA | R37: 47.67 | S37: NA | U37: 43.77 | V37: NA | W37: 47.01 | X37: NA | Y37: 39.73 | Z37: NA
B38: 17 | C38: ='AVOID NEW'!AN25 -> 44.33312282 | D38: 47.57272282 | E38: 40.29272282 | G38: 32.58 | H38: NA | I38: 34.97 | J38: NA | K38: 29.62 | L38: NA | N38: 53.2 | O38: NA | P38: 57.09 | Q38: NA | R38: 48.35 | S38: NA | U38: 44.33 | V38: NA | W38: 47.57 | X38: NA | Y38: 40.29 | Z38: NA
B39: 18 | C39: ='AVOID NEW'!AN26 -> 44.90695217 | D39: 48.14655217 | E39: 40.86655217 | G39: 33.01 | H39: NA | I39: 35.39 | J39: NA | K39: 30.04 | L39: NA | N39: 53.89 | O39: NA | P39: 57.78 | Q39: NA | R39: 49.04 | S39: NA | U39: 44.91 | V39: NA | W39: 48.15 | X39: NA | Y39: 40.87 | Z39: NA
B40: 19 | C40: ='AVOID NEW'!AN27 -> 45.48826298 | D40: 48.72786298 | E40: 41.44786298 | G40: 33.43 | H40: NA | I40: 35.81 | J40: NA | K40: 30.46 | L40: NA | N40: 54.59 | O40: NA | P40: 58.47 | Q40: NA | R40: 49.74 | S40: NA | U40: 45.49 | V40: NA | W40: 48.73 | X40: NA | Y40: 41.45 | Z40: NA
B41: 20 | C41: ='AVOID NEW'!AN28 -> 46.07507991 | D41: 49.31467991 | E41: 42.03467991 | G41: 33.87 | H41: NA | I41: 36.25 | J41: NA | K41: 30.9 | L41: NA | N41: 55.29 | O41: NA | P41: 59.18 | Q41: NA | R41: 50.44 | S41: NA | U41: 46.08 | V41: NA | W41: 49.31 | X41: NA | Y41: 42.03 | Z41: NA
B45: =$B$1 -> IDAHO POWER
B46: LEVELIZED RATES
B47: ="PROJECT ON-LINE IN "& 'AVOID NEW'!$D$54+1 -> PROJECT ON-LINE IN 2027
B48: ="Rate Effective Date: "&'AVOID NEW'!$E$71 -> Rate Effective Date: XXXX XX, 2026
B49: ="Resource: "&'Input - Capacity Factors'!$C$3 -> Resource: Wind
C50: Levelized Price | G50: ="Season 1 Pricing ("&100*$D$7&"%)" -> Season 1 Pricing (73.5%) | N50: ="Season 2 Pricing ("&100*$D$8&"%)" -> Season 2 Pricing (120%) | U50: ="Season 3 Pricing ("&100*$D$9&"%)" -> Season 3 Pricing (100%)
C51: Heavy and Light Load Hour Differential | D51: ='AVOID NEW'!$D$66 -> 7.28 | G51: Flat | I51: Heavy Load Hour | K51: Light Load Hour | N51: Flat | P51: Heavy Load Hour | R51: Light Load Hour | U51: Flat | W51: Heavy Load Hour | Y51: Light Load Hour
D52: =D51*0.445 -> 3.2396 | E52: =-(D51-D52) -> -4.0404 | H52: =H20 -> Final avoided cost rates for wind and solar QFs include integration charges from Schedule 87 | J52: =H20 -> Final avoided cost rates for wind and solar QFs include integration charges from Schedule 87 | L52: =H20 -> Final avoided cost rates for wind and solar QFs include integration charges from Schedule 87 | O52: =H20 -> Final avoided cost rates for wind and solar QFs include integration charges from Schedule 87 | Q52: =H20 -> Final avoided cost rates for wind and solar QFs include integration charges from Schedule 87 | S52: =H20 -> Final avoided cost rates for wind and solar QFs include integration charges from Schedule 87 | V52: =H20 -> Final avoided cost rates for wind and solar QFs include integration charges from Schedule 87 | X52: =H20 -> Final avoided cost rates for wind and solar QFs include integration charges from Schedule 87 | Z52: =H20 -> Final avoided cost rates for wind and solar QFs include integration charges from Schedule 87
B53: Contract Length | C53: Flat | D53: Heavy Load Hour | E53: Light Load Hour | G53: Price | I53: Price | K53: Price | N53: Price | P53: Price | R53: Price | U53: Price | W53: Price | Y53: Price
B54: 1 | C54: ='AVOID NEW'!AO9 -> 37.76389712 | D54: =C54+D$52 -> 41.00349712 | E54: =C54+E$52 -> 33.72349712 | G54: =ROUND((+$C54*$D$7),2) -> 27.76 | H54: NA | I54: =ROUND((+$D54*$D$7),2) -> 30.14 | J54: NA | K54: =ROUND((+$E54*$D$7),2) -> 24.79 | L54: NA | N54: =ROUND((+$C54*$D$8),2) -> 45.32 | O54: NA | P54: =ROUND((+$D54*$D$8),2) -> 49.2 | Q54: NA | R54: =ROUND((+$E54*$D$8),2) -> 40.47 | S54: NA | U54: =ROUND((+$C54*$D$9),2) -> 37.76 | V54: NA | W54: =ROUND((+$D54*$D$9),2) -> 41 | X54: NA | Y54: =ROUND((+$E54*$D$9),2) -> 33.72 | Z54: NA
B55: 2 | C55: ='AVOID NEW'!AO10 -> 38.89707497 | D55: 42.13667497 | E55: 34.85667497 | G55: 28.59 | H55: NA | I55: 30.97 | J55: NA | K55: 25.62 | L55: NA | N55: 46.68 | O55: NA | P55: 50.56 | Q55: NA | R55: 41.83 | S55: NA | U55: =ROUND((+$C55*$D$9),2) -> 38.9 | V55: NA | W55: =ROUND((+$D55*$D$9),2) -> 42.14 | X55: NA | Y55: =ROUND((+$E55*$D$9),2) -> 34.86 | Z55: NA
B56: 3 | C56: ='AVOID NEW'!AO11 -> 39.84546058 | D56: 43.08506058 | E56: 35.80506058 | G56: 29.29 | H56: NA | I56: 31.67 | J56: NA | K56: 26.32 | L56: NA | N56: 47.81 | O56: NA | P56: 51.7 | Q56: NA | R56: 42.97 | S56: NA | U56: 39.85 | V56: NA | W56: 43.09 | X56: NA | Y56: 35.81 | Z56: NA
B57: 4 | C57: ='AVOID NEW'!AO12 -> 39.7878031 | D57: 43.0274031 | E57: 35.7474031 | G57: 29.24 | H57: NA | I57: 31.63 | J57: NA | K57: 26.27 | L57: NA | N57: 47.75 | O57: NA | P57: 51.63 | Q57: NA | R57: 42.9 | S57: NA | U57: 39.79 | V57: NA | W57: 43.03 | X57: NA | Y57: 35.75 | Z57: NA
B58: 5 | C58: ='AVOID NEW'!AO13 -> 39.77082881 | D58: 43.01042881 | E58: 35.73042881 | G58: 29.23 | H58: NA | I58: 31.61 | J58: NA | K58: 26.26 | L58: NA | N58: 47.72 | O58: NA | P58: 51.61 | Q58: NA | R58: 42.88 | S58: NA | U58: 39.77 | V58: NA | W58: 43.01 | X58: NA | Y58: 35.73 | Z58: NA
B59: 6 | C59: ='AVOID NEW'!AO14 -> 40.09345969 | D59: 43.33305969 | E59: 36.05305969 | G59: 29.47 | H59: NA | I59: 31.85 | J59: NA | K59: 26.5 | L59: NA | N59: 48.11 | O59: NA | P59: 52 | Q59: NA | R59: 43.26 | S59: NA | U59: 40.09 | V59: NA | W59: 43.33 | X59: NA | Y59: 36.05 | Z59: NA
B60: 7 | C60: ='AVOID NEW'!AO15 -> 40.77407482 | D60: 44.01367482 | E60: 36.73367482 | G60: 29.97 | H60: NA | I60: 32.35 | J60: NA | K60: 27 | L60: NA | N60: 48.93 | O60: NA | P60: 52.82 | Q60: NA | R60: 44.08 | S60: NA | U60: 40.77 | V60: NA | W60: 44.01 | X60: NA | Y60: 36.73 | Z60: NA
B61: 8 | C61: ='AVOID NEW'!AO16 -> 41.36573769 | D61: 44.60533769 | E61: 37.32533769 | G61: 30.4 | H61: NA | I61: 32.78 | J61: NA | K61: 27.43 | L61: NA | N61: 49.64 | O61: NA | P61: 53.53 | Q61: NA | R61: 44.79 | S61: NA | U61: 41.37 | V61: NA | W61: 44.61 | X61: NA | Y61: 37.33 | Z61: NA
B62: 9 | C62: ='AVOID NEW'!AO17 -> 41.95814235 | D62: 45.19774235 | E62: 37.91774235 | G62: 30.84 | H62: NA | I62: 33.22 | J62: NA | K62: 27.87 | L62: NA | N62: 50.35 | O62: NA | P62: 54.24 | Q62: NA | R62: 45.5 | S62: NA | U62: 41.96 | V62: NA | W62: 45.2 | X62: NA | Y62: 37.92 | Z62: NA
B63: 10 | C63: ='AVOID NEW'!AO18 -> 42.49099823 | D63: 45.73059823 | E63: 38.45059823 | G63: 31.23 | H63: NA | I63: 33.61 | J63: NA | K63: 28.26 | L63: NA | N63: 50.99 | O63: NA | P63: 54.88 | Q63: NA | R63: 46.14 | S63: NA | U63: 42.49 | V63: NA | W63: 45.73 | X63: NA | Y63: 38.45 | Z63: NA
B64: 11 | C64: ='AVOID NEW'!AO19 -> 43.0257659 | D64: 46.2653659 | E64: 38.9853659 | G64: 31.62 | H64: NA | I64: 34.01 | J64: NA | K64: 28.65 | L64: NA | N64: 51.63 | O64: NA | P64: 55.52 | Q64: NA | R64: 46.78 | S64: NA | U64: 43.03 | V64: NA | W64: 46.27 | X64: NA | Y64: 38.99 | Z64: NA
B65: 12 | C65: ='AVOID NEW'!AO20 -> 43.64162251 | D65: 46.88122251 | E65: 39.60122251 | G65: 32.08 | H65: NA | I65: 34.46 | J65: NA | K65: 29.11 | L65: NA | N65: 52.37 | O65: NA | P65: 56.26 | Q65: NA | R65: 47.52 | S65: NA | U65: 43.64 | V65: NA | W65: 46.88 | X65: NA | Y65: 39.6 | Z65: NA
B66: 13 | C66: ='AVOID NEW'!AO21 -> 44.25621179 | D66: 47.49581179 | E66: 40.21581179 | G66: 32.53 | H66: NA | I66: 34.91 | J66: NA | K66: 29.56 | L66: NA | N66: 53.11 | O66: NA | P66: 56.99 | Q66: NA | R66: 48.26 | S66: NA | U66: 44.26 | V66: NA | W66: 47.5 | X66: NA | Y66: 40.22 | Z66: NA
B67: 14 | C67: ='AVOID NEW'!AO22 -> 44.87185139 | D67: 48.11145139 | E67: 40.83145139 | G67: 32.98 | H67: NA | I67: 35.36 | J67: NA | K67: 30.01 | L67: NA | N67: 53.85 | O67: NA | P67: 57.73 | Q67: NA | R67: 49 | S67: NA | U67: 44.87 | V67: NA | W67: 48.11 | X67: NA | Y67: 40.83 | Z67: NA
B68: 15 | C68: ='AVOID NEW'!AO23 -> 45.45180753 | D68: 48.69140753 | E68: 41.41140753 | G68: 33.41 | H68: NA | I68: 35.79 | J68: NA | K68: 30.44 | L68: NA | N68: 54.54 | O68: NA | P68: 58.43 | Q68: NA | R68: 49.69 | S68: NA | U68: 45.45 | V68: NA | W68: 48.69 | X68: NA | Y68: 41.41 | Z68: NA
B69: 16 | C69: ='AVOID NEW'!AO24 -> 46.01878657 | D69: 49.25838657 | E69: 41.97838657 | G69: 33.82 | H69: NA | I69: 36.2 | J69: NA | K69: 30.85 | L69: NA | N69: 55.22 | O69: NA | P69: 59.11 | Q69: NA | R69: 50.37 | S69: NA | U69: 46.02 | V69: NA | W69: 49.26 | X69: NA | Y69: 41.98 | Z69: NA
B70: 17 | C70: ='AVOID NEW'!AO25 -> 46.60038895 | D70: 49.83998895 | E70: 42.55998895 | G70: 34.25 | H70: NA | I70: 36.63 | J70: NA | K70: 31.28 | L70: NA | N70: 55.92 | O70: NA | P70: 59.81 | Q70: NA | R70: 51.07 | S70: NA | U70: 46.6 | V70: NA | W70: 49.84 | X70: NA | Y70: 42.56 | Z70: NA
B71: 18 | C71: ='AVOID NEW'!AO26 -> 47.19333077 | D71: 50.43293077 | E71: 43.15293077 | G71: 34.69 | H71: NA | I71: 37.07 | J71: NA | K71: 31.72 | L71: NA | N71: 56.63 | O71: NA | P71: 60.52 | Q71: NA | R71: 51.78 | S71: NA | U71: 47.19 | V71: NA | W71: 50.43 | X71: NA | Y71: 43.15 | Z71: NA
B72: 19 | C72: ='AVOID NEW'!AO27 -> 47.79494972 | D72: 51.03454972 | E72: 43.75454972 | G72: 35.13 | H72: NA | I72: 37.51 | J72: NA | K72: 32.16 | L72: NA | N72: 57.35 | O72: NA | P72: 61.24 | Q72: NA | R72: 52.51 | S72: NA | U72: 47.79 | V72: NA | W72: 51.03 | X72: NA | Y72: 43.75 | Z72: NA
B73: 20 | C73: ='AVOID NEW'!AO28 -> 48.39103382 | D73: 51.63063382 | E73: 44.35063382 | G73: 35.57 | H73: NA | I73: 37.95 | J73: NA | K73: 32.6 | L73: NA | N73: 58.07 | O73: NA | P73: 61.96 | Q73: NA | R73: 53.22 | S73: NA | U73: 48.39 | V73: NA | W73: 51.63 | X73: NA | Y73: 44.35 | Z73: NA
B77: =$B$1 -> IDAHO POWER
B78: LEVELIZED RATES
B79: ="PROJECT ON-LINE IN "& 'AVOID NEW'!$D$54+2 -> PROJECT ON-LINE IN 2028
B80: ="Rate Effective Date: "&'AVOID NEW'!$E$71 -> Rate Effective Date: XXXX XX, 2026
B81: ="Resource: "&'Input - Capacity Factors'!$C$3 -> Resource: Wind
C82: Levelized Price | G82: ="Season 1 Pricing ("&100*$D$7&"%)" -> Season 1 Pricing (73.5%) | N82: ="Season 2 Pricing ("&100*$D$8&"%)" -> Season 2 Pricing (120%) | U82: ="Season 3 Pricing ("&100*$D$9&"%)" -> Season 3 Pricing (100%)
C83: Heavy and Light Load Hour Differential | D83: ='AVOID NEW'!$D$66 -> 7.28 | G83: Flat | I83: Heavy Load Hour | K83: Light Load Hour | N83: Flat | P83: Heavy Load Hour | R83: Light Load Hour | U83: Flat | W83: Heavy Load Hour | Y83: Light Load Hour
D84: =D83*0.445 -> 3.2396 | E84: =-(D83-D84) -> -4.0404 | H84: =H20 -> Final avoided cost rates for wind and solar QFs include integration charges from Schedule 87 | J84: =H20 -> Final avoided cost rates for wind and solar QFs include integration charges from Schedule 87 | L84: =H20 -> Final avoided cost rates for wind and solar QFs include integration charges from Schedule 87 | O84: =H20 -> Final avoided cost rates for wind and solar QFs include integration charges from Schedule 87 | Q84: =H20 -> Final avoided cost rates for wind and solar QFs include integration charges from Schedule 87 | S84: =H20 -> Final avoided cost rates for wind and solar QFs include integration charges from Schedule 87 | V84: =H20 -> Final avoided cost rates for wind and solar QFs include integration charges from Schedule 87 | X84: =H20 -> Final avoided cost rates for wind and solar QFs include integration charges from Schedule 87 | Z84: =H20 -> Final avoided cost rates for wind and solar QFs include integration charges from Schedule 87
B85: Contract Length | C85: Flat | D85: Heavy Load Hour | E85: Light Load Hour | G85: Price | I85: Price | K85: Price | N85: Price | P85: Price | R85: Price | U85: Price | W85: Price | Y85: Price
B86: 1 | C86: ='AVOID NEW'!AP9 -> 40.11422114 | D86: =C86+D$84 -> 43.35382114 | E86: =C86+E$84 -> 36.07382114 | G86: =ROUND((+$C86*$D$7),2) -> 29.48 | H86: NA | I86: =ROUND((+$D86*$D$7),2) -> 31.87 | J86: NA | K86: =ROUND((+$E86*$D$7),2) -> 26.51 | L86: NA | N86: =ROUND((+$C86*$D$8),2) -> 48.14 | O86: NA | P86: =ROUND((+$D86*$D$8),2) -> 52.02 | Q86: NA | R86: =ROUND((+$E86*$D$8),2) -> 43.29 | S86: NA | U86: =ROUND((+$C86*$D$9),2) -> 40.11 | V86: NA | W86: =ROUND((+$D86*$D$9),2) -> 43.35 | X86: NA | Y86: =ROUND((+$E86*$D$9),2) -> 36.07 | Z86: NA
B87: 2 | C87: ='AVOID NEW'!AP10 -> 41.00330261 | D87: 44.24290261 | E87: 36.96290261 | G87: 30.14 | H87: NA | I87: 32.52 | J87: NA | K87: 27.17 | L87: NA | N87: 49.2 | O87: NA | P87: 53.09 | Q87: NA | R87: 44.36 | S87: NA | U87: =ROUND((+$C87*$D$9),2) -> 41 | V87: NA | W87: =ROUND((+$D87*$D$9),2) -> 44.24 | X87: NA | Y87: =ROUND((+$E87*$D$9),2) -> 36.96 | Z87: NA
B88: 3 | C88: ='AVOID NEW'!AP11 -> 40.56479947 | D88: 43.80439947 | E88: 36.52439947 | G88: 29.82 | H88: NA | I88: 32.2 | J88: NA | K88: 26.85 | L88: NA | N88: 48.68 | O88: NA | P88: 52.57 | Q88: NA | R88: 43.83 | S88: NA | U88: 40.56 | V88: NA | W88: 43.8 | X88: NA | Y88: 36.52 | Z88: NA
B89: 4 | C89: ='AVOID NEW'!AP12 -> 40.3688248 | D89: 43.6084248 | E89: 36.3284248 | G89: 29.67 | H89: NA | I89: 32.05 | J89: NA | K89: 26.7 | L89: NA | N89: 48.44 | O89: NA | P89: 52.33 | Q89: NA | R89: 43.59 | S89: NA | U89: 40.37 | V89: NA | W89: 43.61 | X89: NA | Y89: 36.33 | Z89: NA
B90: 5 | C90: ='AVOID NEW'!AP13 -> 40.66786922 | D90: 43.90746922 | E90: 36.62746922 | G90: 29.89 | H90: NA | I90: 32.27 | J90: NA | K90: 26.92 | L90: NA | N90: 48.8 | O90: NA | P90: 52.69 | Q90: NA | R90: 43.95 | S90: NA | U90: 40.67 | V90: NA | W90: 43.91 | X90: NA | Y90: 36.63 | Z90: NA
B91: 6 | C91: ='AVOID NEW'!AP14 -> 41.41361229 | D91: 44.65321229 | E91: 37.37321229 | G91: 30.44 | H91: NA | I91: 32.82 | J91: NA | K91: 27.47 | L91: NA | N91: 49.7 | O91: NA | P91: 53.58 | Q91: NA | R91: 44.85 | S91: NA | U91: 41.41 | V91: NA | W91: 44.65 | X91: NA | Y91: 37.37 | Z91: NA
B92: 7 | C92: ='AVOID NEW'!AP15 -> 42.04365413 | D92: 45.28325413 | E92: 38.00325413 | G92: 30.9 | H92: NA | I92: 33.28 | J92: NA | K92: 27.93 | L92: NA | N92: 50.45 | O92: NA | P92: 54.34 | Q92: NA | R92: 45.6 | S92: NA | U92: 42.04 | V92: NA | W92: 45.28 | X92: NA | Y92: 38 | Z92: NA
B93: 8 | C93: ='AVOID NEW'!AP16 -> 42.67174349 | D93: 45.91134349 | E93: 38.63134349 | G93: 31.36 | H93: NA | I93: 33.74 | J93: NA | K93: 28.39 | L93: NA | N93: 51.21 | O93: NA | P93: 55.09 | Q93: NA | R93: 46.36 | S93: NA | U93: 42.67 | V93: NA | W93: 45.91 | X93: NA | Y93: 38.63 | Z93: NA
B94: 9 | C94: ='AVOID NEW'!AP17 -> 43.22924937 | D94: 46.46884937 | E94: 39.18884937 | G94: 31.77 | H94: NA | I94: 34.15 | J94: NA | K94: 28.8 | L94: NA | N94: 51.88 | O94: NA | P94: 55.76 | Q94: NA | R94: 47.03 | S94: NA | U94: 43.23 | V94: NA | W94: 46.47 | X94: NA | Y94: 39.19 | Z94: NA
B95: 10 | C95: ='AVOID NEW'!AP18 -> 43.78919839 | D95: 47.02879839 | E95: 39.74879839 | G95: 32.19 | H95: NA | I95: 34.57 | J95: NA | K95: 29.22 | L95: NA | N95: 52.55 | O95: NA | P95: 56.43 | Q95: NA | R95: 47.7 | S95: NA | U95: 43.79 | V95: NA | W95: 47.03 | X95: NA | Y95: 39.75 | Z95: NA
B96: 11 | C96: ='AVOID NEW'!AP19 -> 44.44154117 | D96: 47.68114117 | E96: 40.40114117 | G96: 32.66 | H96: NA | I96: 35.05 | J96: NA | K96: 29.69 | L96: NA | N96: 53.33 | O96: NA | P96: 57.22 | Q96: NA | R96: 48.48 | S96: NA | U96: 44.44 | V96: NA | W96: 47.68 | X96: NA | Y96: 40.4 | Z96: NA
B97: 12 | C97: ='AVOID NEW'!AP20 -> 45.09155852 | D97: 48.33115852 | E97: 41.05115852 | G97: 33.14 | H97: NA | I97: 35.52 | J97: NA | K97: 30.17 | L97: NA | N97: 54.11 | O97: NA | P97: 58 | Q97: NA | R97: 49.26 | S97: NA | U97: 45.09 | V97: NA | W97: 48.33 | X97: NA | Y97: 41.05 | Z97: NA
B98: 13 | C98: ='AVOID NEW'!AP21 -> 45.74219485 | D98: 48.98179485 | E98: 41.70179485 | G98: 33.62 | H98: NA | I98: 36 | J98: NA | K98: 30.65 | L98: NA | N98: 54.89 | O98: NA | P98: 58.78 | Q98: NA | R98: 50.04 | S98: NA | U98: 45.74 | V98: NA | W98: 48.98 | X98: NA | Y98: 41.7 | Z98: NA
B99: 14 | C99: ='AVOID NEW'!AP22 -> 46.35261795 | D99: 49.59221795 | E99: 42.31221795 | G99: 34.07 | H99: NA | I99: 36.45 | J99: NA | K99: 31.1 | L99: NA | N99: 55.62 | O99: NA | P99: 59.51 | Q99: NA | R99: 50.77 | S99: NA | U99: 46.35 | V99: NA | W99: 49.59 | X99: NA | Y99: 42.31 | Z99: NA
B100: 15 | C100: ='AVOID NEW'!AP23 -> 46.94873922 | D100: 50.18833922 | E100: 42.90833922 | G100: 34.51 | H100: NA | I100: 36.89 | J100: NA | K100: 31.54 | L100: NA | N100: 56.34 | O100: NA | P100: 60.23 | Q100: NA | R100: 51.49 | S100: NA | U100: 46.95 | V100: NA | W100: 50.19 | X100: NA | Y100: 42.91 | Z100: NA
B101: 16 | C101: ='AVOID NEW'!AP24 -> 47.56136748 | D101: 50.80096748 | E101: 43.52096748 | G101: 34.96 | H101: NA | I101: 37.34 | J101: NA | K101: 31.99 | L101: NA | N101: 57.07 | O101: NA | P101: 60.96 | Q101: NA | R101: 52.23 | S101: NA | U101: 47.56 | V101: NA | W101: 50.8 | X101: NA | Y101: 43.52 | Z101: NA
B102: 17 | C102: ='AVOID NEW'!AP25 -> 48.18674413 | D102: 51.42634413 | E102: 44.14634413 | G102: 35.42 | H102: NA | I102: 37.8 | J102: NA | K102: 32.45 | L102: NA | N102: 57.82 | O102: NA | P102: 61.71 | Q102: NA | R102: 52.98 | S102: NA | U102: 48.19 | V102: NA | W102: 51.43 | X102: NA | Y102: 44.15 | Z102: NA
B103: 18 | C103: ='AVOID NEW'!AP26 -> 48.82186543 | D103: 52.06146543 | E103: 44.78146543 | G103: 35.88 | H103: NA | I103: 38.27 | J103: NA | K103: 32.91 | L103: NA | N103: 58.59 | O103: NA | P103: 62.47 | Q103: NA | R103: 53.74 | S103: NA | U103: 48.82 | V103: NA | W103: 52.06 | X103: NA | Y103: 44.78 | Z103: NA
B104: 19 | C104: ='AVOID NEW'!AP27 -> 49.45106926 | D104: 52.69066926 | E104: 45.41066926 | G104: 36.35 | H104: NA | I104: 38.73 | J104: NA | K104: 33.38 | L104: NA | N104: 59.34 | O104: NA | P104: 63.23 | Q104: NA | R104: 54.49 | S104: NA | U104: 49.45 | V104: NA | W104: 52.69 | X104: NA | Y104: 45.41 | Z104: NA
B105: 20 | C105: ='AVOID NEW'!AP28 -> 50.07400216 | D105: 53.31360216 | E105: 46.03360216 | G105: 36.8 | H105: NA | I105: 39.19 | J105: NA | K105: 33.83 | L105: NA | N105: 60.09 | O105: NA | P105: 63.98 | Q105: NA | R105: 55.24 | S105: NA | U105: 50.07 | V105: NA | W105: 53.31 | X105: NA | Y105: 46.03 | Z105: NA
B109: =$B$1 -> IDAHO POWER
B110: LEVELIZED RATES
B111: ="PROJECT ON-LINE IN "& 'AVOID NEW'!$D$54+3 -> PROJECT ON-LINE IN 2029
B112: ="Rate Effective Date: "&'AVOID NEW'!$E$71 -> Rate Effective Date: XXXX XX, 2026
B113: ="Resource: "&'Input - Capacity Factors'!$C$3 -> Resource: Wind
C114: Levelized Price | G114: ="Season 1 Pricing ("&100*$D$7&"%)" -> Season 1 Pricing (73.5%) | N114: ="Season 2 Pricing ("&100*$D$8&"%)" -> Season 2 Pricing (120%) | U114: ="Season 3 Pricing ("&100*$D$9&"%)" -> Season 3 Pricing (100%)
C115: Heavy and Light Load Hour Differential | D115: ='AVOID NEW'!$D$66 -> 7.28 | G115: Flat | I115: Heavy Load Hour | K115: Light Load Hour | N115: Flat | P115: Heavy Load Hour | R115: Light Load Hour | U115: Flat | W115: Heavy Load Hour | Y115: Light Load Hour
D116: =D115*0.445 -> 3.2396 | E116: =-(D115-D116) -> -4.0404 | H116: =H20 -> Final avoided cost rates for wind and solar QFs include integration charges from Schedule 87 | J116: =H20 -> Final avoided cost rates for wind and solar QFs include integration charges from Schedule 87 | L116: =H20 -> Final avoided cost rates for wind and solar QFs include integration charges from Schedule 87 | O116: =H20 -> Final avoided cost rates for wind and solar QFs include integration charges from Schedule 87 | Q116: =H20 -> Final avoided cost rates for wind and solar QFs include integration charges from Schedule 87 | S116: =H20 -> Final avoided cost rates for wind and solar QFs include integration charges from Schedule 87 | V116: =H20 -> Final avoided cost rates for wind and solar QFs include integration charges from Schedule 87 | X116: =H20 -> Final avoided cost rates for wind and solar QFs include integration charges from Schedule 87 | Z116: =H20 -> Final avoided cost rates for wind and solar QFs include integration charges from Schedule 87
B117: Contract Length | C117: Flat | D117: Heavy Load Hour | E117: Light Load Hour | G117: Price | I117: Price | K117: Price | N117: Price | P117: Price | R117: Price | U117: Price | W117: Price | Y117: Price
B118: 1 | C118: ='AVOID NEW'!AQ9 -> 41.95826489 | D118: =C118+D$84 -> 45.19786489 | E118: =C118+E$84 -> 37.91786489 | G118: =ROUND((+$C118*$D$7),2) -> 30.84 | H118: NA | I118: =ROUND((+$D118*$D$7),2) -> 33.22 | J118: NA | K118: =ROUND((+$E118*$D$7),2) -> 27.87 | L118: NA | N118: =ROUND((+$C118*$D$8),2) -> 50.35 | O118: NA | P118: =ROUND((+$D118*$D$8),2) -> 54.24 | Q118: NA | R118: =ROUND((+$E118*$D$8),2) -> 45.5 | S118: NA | U118: =ROUND((+$C118*$D$9),2) -> 41.96 | V118: NA | W118: =ROUND((+$D118*$D$9),2) -> 45.2 | X118: NA | Y118: =ROUND((+$E118*$D$9),2) -> 37.92 | Z118: NA
B119: 2 | C119: ='AVOID NEW'!AQ10 -> 40.81542768 | D119: 44.05502768 | E119: 36.77502768 | G119: 30 | H119: NA | I119: 32.38 | J119: NA | K119: 27.03 | L119: NA | N119: 48.98 | O119: NA | P119: 52.87 | Q119: NA | R119: 44.13 | S119: NA | U119: =ROUND((+$C119*$D$9),2) -> 40.82 | V119: NA | W119: =ROUND((+$D119*$D$9),2) -> 44.06 | X119: NA | Y119: =ROUND((+$E119*$D$9),2) -> 36.78 | Z119: NA
B120: 3 | C120: ='AVOID NEW'!AQ11 -> 40.46656952 | D120: 43.70616952 | E120: 36.42616952 | G120: 29.74 | H120: NA | I120: 32.12 | J120: NA | K120: 26.77 | L120: NA | N120: 48.56 | O120: NA | P120: 52.45 | Q120: NA | R120: 43.71 | S120: NA | U120: 40.47 | V120: NA | W120: 43.71 | X120: NA | Y120: 36.43 | Z120: NA
B121: 4 | C121: ='AVOID NEW'!AQ12 -> 40.83283713 | D121: 44.07243713 | E121: 36.79243713 | G121: 30.01 | H121: NA | I121: 32.39 | J121: NA | K121: 27.04 | L121: NA | N121: 49 | O121: NA | P121: 52.89 | Q121: NA | R121: 44.15 | S121: NA | U121: 40.83 | V121: NA | W121: 44.07 | X121: NA | Y121: 36.79 | Z121: NA
B122: 5 | C122: ='AVOID NEW'!AQ13 -> 41.73400834 | D122: 44.97360834 | E122: 37.69360834 | G122: 30.67 | H122: NA | I122: 33.06 | J122: NA | K122: 27.7 | L122: NA | N122: 50.08 | O122: NA | P122: 53.97 | Q122: NA | R122: 45.23 | S122: NA | U122: 41.73 | V122: NA | W122: 44.97 | X122: NA | Y122: 37.69 | Z122: NA
B123: 6 | C123: ='AVOID NEW'!AQ14 -> 42.45357834 | D123: 45.69317834 | E123: 38.41317834 | G123: 31.2 | H123: NA | I123: 33.58 | J123: NA | K123: 28.23 | L123: NA | N123: 50.94 | O123: NA | P123: 54.83 | Q123: NA | R123: 46.1 | S123: NA | U123: 42.45 | V123: NA | W123: 45.69 | X123: NA | Y123: 38.41 | Z123: NA
B124: 7 | C124: ='AVOID NEW'!AQ15 -> 43.15310473 | D124: 46.39270473 | E124: 39.11270473 | G124: 31.72 | H124: NA | I124: 34.1 | J124: NA | K124: 28.75 | L124: NA | N124: 51.78 | O124: NA | P124: 55.67 | Q124: NA | R124: 46.94 | S124: NA | U124: 43.15 | V124: NA | W124: 46.39 | X124: NA | Y124: 39.11 | Z124: NA
B125: 8 | C125: ='AVOID NEW'!AQ16 -> 43.75923452 | D125: 46.99883452 | E125: 39.71883452 | G125: 32.16 | H125: NA | I125: 34.54 | J125: NA | K125: 29.19 | L125: NA | N125: 52.51 | O125: NA | P125: 56.4 | Q125: NA | R125: 47.66 | S125: NA | U125: 43.76 | V125: NA | W125: 47 | X125: NA | Y125: 39.72 | Z125: NA
B126: 9 | C126: ='AVOID NEW'!AQ17 -> 44.36313495 | D126: 47.60273495 | E126: 40.32273495 | G126: 32.61 | H126: NA | I126: 34.99 | J126: NA | K126: 29.64 | L126: NA | N126: 53.24 | O126: NA | P126: 57.12 | Q126: NA | R126: 48.39 | S126: NA | U126: 44.36 | V126: NA | W126: 47.6 | X126: NA | Y126: 40.32 | Z126: NA
B127: 10 | C127: ='AVOID NEW'!AQ18 -> 45.06938212 | D127: 48.30898212 | E127: 41.02898212 | G127: 33.13 | H127: NA | I127: 35.51 | J127: NA | K127: 30.16 | L127: NA | N127: 54.08 | O127: NA | P127: 57.97 | Q127: NA | R127: 49.23 | S127: NA | U127: 45.07 | V127: NA | W127: 48.31 | X127: NA | Y127: 41.03 | Z127: NA
B128: 11 | C128: ='AVOID NEW'!AQ19 -> 45.76894046 | D128: 49.00854046 | E128: 41.72854046 | G128: 33.64 | H128: NA | I128: 36.02 | J128: NA | K128: 30.67 | L128: NA | N128: 54.92 | O128: NA | P128: 58.81 | Q128: NA | R128: 50.07 | S128: NA | U128: 45.77 | V128: NA | W128: 49.01 | X128: NA | Y128: 41.73 | Z128: NA
B129: 12 | C129: ='AVOID NEW'!AQ20 -> 46.46632942 | D129: 49.70592942 | E129: 42.42592942 | G129: 34.15 | H129: NA | I129: 36.53 | J129: NA | K129: 31.18 | L129: NA | N129: 55.76 | O129: NA | P129: 59.65 | Q129: NA | R129: 50.91 | S129: NA | U129: 46.47 | V129: NA | W129: 49.71 | X129: NA | Y129: 42.43 | Z129: NA
B130: 13 | C130: ='AVOID NEW'!AQ21 -> 47.11648723 | D130: 50.35608723 | E130: 43.07608723 | G130: 34.63 | H130: NA | I130: 37.01 | J130: NA | K130: 31.66 | L130: NA | N130: 56.54 | O130: NA | P130: 60.43 | Q130: NA | R130: 51.69 | S130: NA | U130: 47.12 | V130: NA | W130: 50.36 | X130: NA | Y130: 43.08 | Z130: NA
B131: 14 | C131: ='AVOID NEW'!AQ22 -> 47.74955568 | D131: 50.98915568 | E131: 43.70915568 | G131: 35.1 | H131: NA | I131: 37.48 | J131: NA | K131: 32.13 | L131: NA | N131: 57.3 | O131: NA | P131: 61.19 | Q131: NA | R131: 52.45 | S131: NA | U131: 47.75 | V131: NA | W131: 50.99 | X131: NA | Y131: 43.71 | Z131: NA
B132: 15 | C132: ='AVOID NEW'!AQ23 -> 48.40032403 | D132: 51.63992403 | E132: 44.35992403 | G132: 35.57 | H132: NA | I132: 37.96 | J132: NA | K132: 32.6 | L132: NA | N132: 58.08 | O132: NA | P132: 61.97 | Q132: NA | R132: 53.23 | S132: NA | U132: 48.4 | V132: NA | W132: 51.64 | X132: NA | Y132: 44.36 | Z132: NA
B133: 16 | C133: ='AVOID NEW'!AQ24 -> 49.06464018 | D133: 52.30424018 | E133: 45.02424018 | G133: 36.06 | H133: NA | I133: 38.44 | J133: NA | K133: 33.09 | L133: NA | N133: 58.88 | O133: NA | P133: 62.77 | Q133: NA | R133: 54.03 | S133: NA | U133: 49.06 | V133: NA | W133: 52.3 | X133: NA | Y133: 45.02 | Z133: NA
B134: 17 | C134: ='AVOID NEW'!AQ25 -> 49.73923656 | D134: 52.97883656 | E134: 45.69883656 | G134: 36.56 | H134: NA | I134: 38.94 | J134: NA | K134: 33.59 | L134: NA | N134: 59.69 | O134: NA | P134: 63.57 | Q134: NA | R134: 54.84 | S134: NA | U134: 49.74 | V134: NA | W134: 52.98 | X134: NA | Y134: 45.7 | Z134: NA
B135: 18 | C135: ='AVOID NEW'!AQ26 -> 50.40691671 | D135: 53.64651671 | E135: 46.36651671 | G135: 37.05 | H135: NA | I135: 39.43 | J135: NA | K135: 34.08 | L135: NA | N135: 60.49 | O135: NA | P135: 64.38 | Q135: NA | R135: 55.64 | S135: NA | U135: 50.41 | V135: NA | W135: 53.65 | X135: NA | Y135: 46.37 | Z135: NA
B136: 19 | C136: ='AVOID NEW'!AQ27 -> 51.06747021 | D136: 54.30707021 | E136: 47.02707021 | G136: 37.53 | H136: NA | I136: 39.92 | J136: NA | K136: 34.56 | L136: NA | N136: 61.28 | O136: NA | P136: 65.17 | Q136: NA | R136: 56.43 | S136: NA | U136: 51.07 | V136: NA | W136: 54.31 | X136: NA | Y136: 47.03 | Z136: NA
B137: 20 | C137: ='AVOID NEW'!AQ28 -> 51.72068084 | D137: 54.96028084 | E137: 47.68028084 | G137: 38.01 | H137: NA | I137: 40.4 | J137: NA | K137: 35.05 | L137: NA | N137: 62.06 | O137: NA | P137: 65.95 | Q137: NA | R137: 57.22 | S137: NA | U137: 51.72 | V137: NA | W137: 54.96 | X137: NA | Y137: 47.68 | Z137: NA
B141: =$B$1 -> IDAHO POWER
B142: LEVELIZED RATES
B143: ="PROJECT ON-LINE IN "& 'AVOID NEW'!$D$54+4 -> PROJECT ON-LINE IN 2030
B144: ="Rate Effective Date: "&'AVOID NEW'!$E$71 -> Rate Effective Date: XXXX XX, 2026
B145: ="Resource: "&'Input - Capacity Factors'!$C$3 -> Resource: Wind
C146: Levelized Price | G146: ="Season 1 Pricing ("&100*$D$7&"%)" -> Season 1 Pricing (73.5%) | N146: ="Season 2 Pricing ("&100*$D$8&"%)" -> Season 2 Pricing (120%) | U146: ="Season 3 Pricing ("&100*$D$9&"%)" -> Season 3 Pricing (100%)
C147: Heavy and Light Load Hour Differential | D147: ='AVOID NEW'!$D$66 -> 7.28 | G147: Flat | I147: Heavy Load Hour | K147: Light Load Hour | N147: Flat | P147: Heavy Load Hour | R147: Light Load Hour | U147: Flat | W147: Heavy Load Hour | Y147: Light Load Hour
D148: =D147*0.445 -> 3.2396 | E148: =-(D147-D148) -> -4.0404 | H148: =H20 -> Final avoided cost rates for wind and solar QFs include integration charges from Schedule 87 | J148: =H20 -> Final avoided cost rates for wind and solar QFs include integration charges from Schedule 87 | L148: =H20 -> Final avoided cost rates for wind and solar QFs include integration charges from Schedule 87 | O148: =H20 -> Final avoided cost rates for wind and solar QFs include integration charges from Schedule 87 | Q148: =H20 -> Final avoided cost rates for wind and solar QFs include integration charges from Schedule 87 | S148: =H20 -> Final avoided cost rates for wind and solar QFs include integration charges from Schedule 87 | V148: =H20 -> Final avoided cost rates for wind and solar QFs include integration charges from Schedule 87 | X148: =H20 -> Final avoided cost rates for wind and solar QFs include integration charges from Schedule 87 | Z148: =H20 -> Final avoided cost rates for wind and solar QFs include integration charges from Schedule 87
B149: Contract Length | C149: Flat | D149: Heavy Load Hour | E149: Light Load Hour | G149: Price | I149: Price | K149: Price | N149: Price | P149: Price | R149: Price | U149: Price | W149: Price | Y149: Price
B150: 1 | C150: ='AVOID NEW'!AR9 -> 39.58790639 | D150: =C150+D$84 -> 42.82750639 | E150: =C150+E$84 -> 35.54750639 | G150: =ROUND((+$C150*$D$7),2) -> 29.1 | H150: NA | I150: =ROUND((+$D150*$D$7),2) -> 31.48 | J150: NA | K150: =ROUND((+$E150*$D$7),2) -> 26.13 | L150: NA | N150: =ROUND((+$C150*$D$8),2) -> 47.51 | O150: NA | P150: =ROUND((+$D150*$D$8),2) -> 51.39 | Q150: NA | R150: =ROUND((+$E150*$D$8),2) -> 42.66 | S150: NA | U150: =ROUND((+$C150*$D$9),2) -> 39.59 | V150: NA | W150: =ROUND((+$D150*$D$9),2) -> 42.83 | X150: NA | Y150: =ROUND((+$E150*$D$9),2) -> 35.55 | Z150: NA
B151: 2 | C151: ='AVOID NEW'!AR10 -> 39.63683378 | D151: 42.87643378 | E151: 35.59643378 | G151: 29.13 | H151: NA | I151: 31.51 | J151: NA | K151: 26.16 | L151: NA | N151: 47.56 | O151: NA | P151: 51.45 | Q151: NA | R151: 42.72 | S151: NA | U151: =ROUND((+$C151*$D$9),2) -> 39.64 | V151: NA | W151: =ROUND((+$D151*$D$9),2) -> 42.88 | X151: NA | Y151: =ROUND((+$E151*$D$9),2) -> 35.6 | Z151: NA
B152: 3 | C152: ='AVOID NEW'!AR11 -> 40.40077493 | D152: 43.64037493 | E152: 36.36037493 | G152: 29.69 | H152: NA | I152: 32.08 | J152: NA | K152: 26.72 | L152: NA | N152: 48.48 | O152: NA | P152: 52.37 | Q152: NA | R152: 43.63 | S152: NA | U152: 40.4 | V152: NA | W152: 43.64 | X152: NA | Y152: 36.36 | Z152: NA
B153: 4 | C153: ='AVOID NEW'!AR12 -> 41.66718767 | D153: 44.90678767 | E153: 37.62678767 | G153: 30.63 | H153: NA | I153: 33.01 | J153: NA | K153: 27.66 | L153: NA | N153: 50 | O153: NA | P153: 53.89 | Q153: NA | R153: 45.15 | S153: NA | U153: 41.67 | V153: NA | W153: 44.91 | X153: NA | Y153: 37.63 | Z153: NA
B154: 5 | C154: ='AVOID NEW'!AR13 -> 42.57570975 | D154: 45.81530975 | E154: 38.53530975 | G154: 31.29 | H154: NA | I154: 33.67 | J154: NA | K154: 28.32 | L154: NA | N154: 51.09 | O154: NA | P154: 54.98 | Q154: NA | R154: 46.24 | S154: NA | U154: 42.58 | V154: NA | W154: 45.82 | X154: NA | Y154: 38.54 | Z154: NA
B155: 6 | C155: ='AVOID NEW'!AR14 -> 43.40695846 | D155: 46.64655846 | E155: 39.36655846 | G155: 31.9 | H155: NA | I155: 34.29 | J155: NA | K155: 28.93 | L155: NA | N155: 52.09 | O155: NA | P155: 55.98 | Q155: NA | R155: 47.24 | S155: NA | U155: 43.41 | V155: NA | W155: 46.65 | X155: NA | Y155: 39.37 | Z155: NA
B156: 7 | C156: ='AVOID NEW'!AR15 -> 44.09820203 | D156: 47.33780203 | E156: 40.05780203 | G156: 32.41 | H156: NA | I156: 34.79 | J156: NA | K156: 29.44 | L156: NA | N156: 52.92 | O156: NA | P156: 56.81 | Q156: NA | R156: 48.07 | S156: NA | U156: 44.1 | V156: NA | W156: 47.34 | X156: NA | Y156: 40.06 | Z156: NA
B157: 8 | C157: ='AVOID NEW'!AR16 -> 44.7722951 | D157: 48.0118951 | E157: 40.7318951 | G157: 32.91 | H157: NA | I157: 35.29 | J157: NA | K157: 29.94 | L157: NA | N157: 53.73 | O157: NA | P157: 57.61 | Q157: NA | R157: 48.88 | S157: NA | U157: 44.77 | V157: NA | W157: 48.01 | X157: NA | Y157: 40.73 | Z157: NA
B158: 9 | C158: ='AVOID NEW'!AR17 -> 45.5552583 | D158: 48.7948583 | E158: 41.5148583 | G158: 33.48 | H158: NA | I158: 35.86 | J158: NA | K158: 30.51 | L158: NA | N158: 54.67 | O158: NA | P158: 58.55 | Q158: NA | R158: 49.82 | S158: NA | U158: 45.56 | V158: NA | W158: 48.79 | X158: NA | Y158: 41.51 | Z158: NA
B159: 10 | C159: ='AVOID NEW'!AR18 -> 46.32182266 | D159: 49.56142266 | E159: 42.28142266 | G159: 34.05 | H159: NA | I159: 36.43 | J159: NA | K159: 31.08 | L159: NA | N159: 55.59 | O159: NA | P159: 59.47 | Q159: NA | R159: 50.74 | S159: NA | U159: 46.32 | V159: NA | W159: 49.56 | X159: NA | Y159: 42.28 | Z159: NA
B160: 11 | C160: ='AVOID NEW'!AR19 -> 47.0798465 | D160: 50.3194465 | E160: 43.0394465 | G160: 34.6 | H160: NA | I160: 36.98 | J160: NA | K160: 31.63 | L160: NA | N160: 56.5 | O160: NA | P160: 60.38 | Q160: NA | R160: 51.65 | S160: NA | U160: 47.08 | V160: NA | W160: 50.32 | X160: NA | Y160: 43.04 | Z160: NA
B161: 12 | C161: ='AVOID NEW'!AR20 -> 47.78018029 | D161: 51.01978029 | E161: 43.73978029 | G161: 35.12 | H161: NA | I161: 37.5 | J161: NA | K161: 32.15 | L161: NA | N161: 57.34 | O161: NA | P161: 61.22 | Q161: NA | R161: 52.49 | S161: NA | U161: 47.78 | V161: NA | W161: 51.02 | X161: NA | Y161: 43.74 | Z161: NA
B162: 13 | C162: ='AVOID NEW'!AR21 -> 48.45867843 | D162: 51.69827843 | E162: 44.41827843 | G162: 35.62 | H162: NA | I162: 38 | J162: NA | K162: 32.65 | L162: NA | N162: 58.15 | O162: NA | P162: 62.04 | Q162: NA | R162: 53.3 | S162: NA | U162: 48.46 | V162: NA | W162: 51.7 | X162: NA | Y162: 44.42 | Z162: NA
B163: 14 | C163: ='AVOID NEW'!AR22 -> 49.15515515 | D163: 52.39475515 | E163: 45.11475515 | G163: 36.13 | H163: NA | I163: 38.51 | J163: NA | K163: 33.16 | L163: NA | N163: 58.99 | O163: NA | P163: 62.87 | Q163: NA | R163: 54.14 | S163: NA | U163: 49.16 | V163: NA | W163: 52.39 | X163: NA | Y163: 45.11 | Z163: NA
B164: 15 | C164: ='AVOID NEW'!AR23 -> 49.86520724 | D164: 53.10480724 | E164: 45.82480724 | G164: 36.65 | H164: NA | I164: 39.03 | J164: NA | K164: 33.68 | L164: NA | N164: 59.84 | O164: NA | P164: 63.73 | Q164: NA | R164: 54.99 | S164: NA | U164: 49.87 | V164: NA | W164: 53.1 | X164: NA | Y164: 45.82 | Z164: NA
B165: 16 | C165: ='AVOID NEW'!AR24 -> 50.58542607 | D165: 53.82502607 | E165: 46.54502607 | G165: 37.18 | H165: NA | I165: 39.56 | J165: NA | K165: 34.21 | L165: NA | N165: 60.7 | O165: NA | P165: 64.59 | Q165: NA | R165: 55.85 | S165: NA | U165: 50.59 | V165: NA | W165: 53.83 | X165: NA | Y165: 46.55 | Z165: NA
B166: 17 | C166: ='AVOID NEW'!AR25 -> 51.29700236 | D166: 54.53660236 | E166: 47.25660236 | G166: 37.7 | H166: NA | I166: 40.08 | J166: NA | K166: 34.73 | L166: NA | N166: 61.56 | O166: NA | P166: 65.44 | Q166: NA | R166: 56.71 | S166: NA | U166: 51.3 | V166: NA | W166: 54.54 | X166: NA | Y166: 47.26 | Z166: NA
B167: 18 | C167: ='AVOID NEW'!AR26 -> 52.00001304 | D167: 55.23961304 | E167: 47.95961304 | G167: 38.22 | H167: NA | I167: 40.6 | J167: NA | K167: 35.25 | L167: NA | N167: 62.4 | O167: NA | P167: 66.29 | Q167: NA | R167: 57.55 | S167: NA | U167: 52 | V167: NA | W167: 55.24 | X167: NA | Y167: 47.96 | Z167: NA
B168: 19 | C168: ='AVOID NEW'!AR27 -> 52.69446213 | D168: 55.93406213 | E168: 48.65406213 | G168: 38.73 | H168: NA | I168: 41.11 | J168: NA | K168: 35.76 | L168: NA | N168: 63.23 | O168: NA | P168: 67.12 | Q168: NA | R168: 58.38 | S168: NA | U168: 52.69 | V168: NA | W168: 55.93 | X168: NA | Y168: 48.65 | Z168: NA
B169: 20 | C169: ='AVOID NEW'!AR28 -> 53.38030318 | D169: 56.61990318 | E169: 49.33990318 | G169: 39.23 | H169: NA | I169: 41.62 | J169: NA | K169: 36.26 | L169: NA | N169: 64.06 | O169: NA | P169: 67.94 | Q169: NA | R169: 59.21 | S169: NA | U169: 53.38 | V169: NA | W169: 56.62 | X169: NA | Y169: 49.34 | Z169: NA
B173: =$B$1 -> IDAHO POWER
B174: LEVELIZED RATES
B175: ="PROJECT ON-LINE IN "& 'AVOID NEW'!$D$54+5 -> PROJECT ON-LINE IN 2031
B176: ="Rate Effective Date: "&'AVOID NEW'!$E$71 -> Rate Effective Date: XXXX XX, 2026
B177: ="Resource: "&'Input - Capacity Factors'!$C$3 -> Resource: Wind
C178: Levelized Price | G178: ="Season 1 Pricing ("&100*$D$7&"%)" -> Season 1 Pricing (73.5%) | N178: ="Season 2 Pricing ("&100*$D$8&"%)" -> Season 2 Pricing (120%) | U178: ="Season 3 Pricing ("&100*$D$9&"%)" -> Season 3 Pricing (100%)
C179: Heavy and Light Load Hour Differential | D179: ='AVOID NEW'!$D$66 -> 7.28 | G179: Flat | I179: Heavy Load Hour | K179: Light Load Hour | N179: Flat | P179: Heavy Load Hour | R179: Light Load Hour | U179: Flat | W179: Heavy Load Hour | Y179: Light Load Hour
D180: =D179*0.445 -> 3.2396 | E180: =-(D179-D180) -> -4.0404 | H180: =H20 -> Final avoided cost rates for wind and solar QFs include integration charges from Schedule 87 | J180: =H20 -> Final avoided cost rates for wind and solar QFs include integration charges from Schedule 87 | L180: =H20 -> Final avoided cost rates for wind and solar QFs include integration charges from Schedule 87 | O180: =H20 -> Final avoided cost rates for wind and solar QFs include integration charges from Schedule 87 | Q180: =H20 -> Final avoided cost rates for wind and solar QFs include integration charges from Schedule 87 | S180: =H20 -> Final avoided cost rates for wind and solar QFs include integration charges from Schedule 87 | V180: =H20 -> Final avoided cost rates for wind and solar QFs include integration charges from Schedule 87 | X180: =H20 -> Final avoided cost rates for wind and solar QFs include integration charges from Schedule 87 | Z180: =H20 -> Final avoided cost rates for wind and solar QFs include integration charges from Schedule 87
B181: Contract Length | C181: Flat | D181: Heavy Load Hour | E181: Light Load Hour | G181: Price | I181: Price | K181: Price | N181: Price | P181: Price | R181: Price | U181: Price | W181: Price | Y181: Price
B182: 1 | C182: ='AVOID NEW'!AS9 -> 39.68938669 | D182: =C182+D$84 -> 42.92898669 | E182: =C182+E$84 -> 35.64898669 | G182: =ROUND((+$C182*$D$7),2) -> 29.17 | H182: NA | I182: =ROUND((+$D182*$D$7),2) -> 31.55 | J182: NA | K182: =ROUND((+$E182*$D$7),2) -> 26.2 | L182: NA | N182: =ROUND((+$C182*$D$8),2) -> 47.63 | O182: NA | P182: =ROUND((+$D182*$D$8),2) -> 51.51 | Q182: NA | R182: =ROUND((+$E182*$D$8),2) -> 42.78 | S182: NA | U182: =ROUND((+$C182*$D$9),2) -> 39.69 | V182: NA | W182: =ROUND((+$D182*$D$9),2) -> 42.93 | X182: NA | Y182: =ROUND((+$E182*$D$9),2) -> 35.65 | Z182: NA
B183: 2 | C183: ='AVOID NEW'!AS10 -> 40.85292226 | D183: 44.09252226 | E183: 36.81252226 | G183: 30.03 | H183: NA | I183: 32.41 | J183: NA | K183: 27.06 | L183: NA | N183: 49.02 | O183: NA | P183: 52.91 | Q183: NA | R183: 44.18 | S183: NA | U183: =ROUND((+$C183*$D$9),2) -> 40.85 | V183: NA | W183: =ROUND((+$D183*$D$9),2) -> 44.09 | X183: NA | Y183: =ROUND((+$E183*$D$9),2) -> 36.81 | Z183: NA
B184: 3 | C184: ='AVOID NEW'!AS11 -> 42.46544314 | D184: 45.70504314 | E184: 38.42504314 | G184: 31.21 | H184: NA | I184: 33.59 | J184: NA | K184: 28.24 | L184: NA | N184: 50.96 | O184: NA | P184: 54.85 | Q184: NA | R184: 46.11 | S184: NA | U184: 42.47 | V184: NA | W184: 45.71 | X184: NA | Y184: 38.43 | Z184: NA
B185: 4 | C185: ='AVOID NEW'!AS12 -> 43.46597146 | D185: 46.70557146 | E185: 39.42557146 | G185: 31.95 | H185: NA | I185: 34.33 | J185: NA | K185: 28.98 | L185: NA | N185: 52.16 | O185: NA | P185: 56.05 | Q185: NA | R185: 47.31 | S185: NA | U185: 43.47 | V185: NA | W185: 46.71 | X185: NA | Y185: 39.43 | Z185: NA
B186: 5 | C186: ='AVOID NEW'!AS13 -> 44.34863737 | D186: 47.58823737 | E186: 40.30823737 | G186: 32.6 | H186: NA | I186: 34.98 | J186: NA | K186: 29.63 | L186: NA | N186: 53.22 | O186: NA | P186: 57.11 | Q186: NA | R186: 48.37 | S186: NA | U186: 44.35 | V186: NA | W186: 47.59 | X186: NA | Y186: 40.31 | Z186: NA
B187: 6 | C187: ='AVOID NEW'!AS14 -> 45.05645212 | D187: 48.29605212 | E187: 41.01605212 | G187: 33.12 | H187: NA | I187: 35.5 | J187: NA | K187: 30.15 | L187: NA | N187: 54.07 | O187: NA | P187: 57.96 | Q187: NA | R187: 49.22 | S187: NA | U187: 45.06 | V187: NA | W187: 48.3 | X187: NA | Y187: 41.02 | Z187: NA
B188: 7 | C188: ='AVOID NEW'!AS15 -> 45.7480691 | D188: 48.9876691 | E188: 41.7076691 | G188: 33.62 | H188: NA | I188: 36.01 | J188: NA | K188: 30.66 | L188: NA | N188: 54.9 | O188: NA | P188: 58.79 | Q188: NA | R188: 50.05 | S188: NA | U188: 45.75 | V188: NA | W188: 48.99 | X188: NA | Y188: 41.71 | Z188: NA
B189: 8 | C189: ='AVOID NEW'!AS16 -> 46.57053254 | D189: 49.81013254 | E189: 42.53013254 | G189: 34.23 | H189: NA | I189: 36.61 | J189: NA | K189: 31.26 | L189: NA | N189: 55.88 | O189: NA | P189: 59.77 | Q189: NA | R189: 51.04 | S189: NA | U189: 46.57 | V189: NA | W189: 49.81 | X189: NA | Y189: 42.53 | Z189: NA
B190: 9 | C190: ='AVOID NEW'!AS17 -> 47.37348651 | D190: 50.61308651 | E190: 43.33308651 | G190: 34.82 | H190: NA | I190: 37.2 | J190: NA | K190: 31.85 | L190: NA | N190: 56.85 | O190: NA | P190: 60.74 | Q190: NA | R190: 52 | S190: NA | U190: 47.37 | V190: NA | W190: 50.61 | X190: NA | Y190: 43.33 | Z190: NA
B191: 10 | C191: ='AVOID NEW'!AS18 -> 48.16683494 | D191: 51.40643494 | E191: 44.12643494 | G191: 35.4 | H191: NA | I191: 37.78 | J191: NA | K191: 32.43 | L191: NA | N191: 57.8 | O191: NA | P191: 61.69 | Q191: NA | R191: 52.95 | S191: NA | U191: 48.17 | V191: NA | W191: 51.41 | X191: NA | Y191: 44.13 | Z191: NA
B192: 11 | C192: ='AVOID NEW'!AS19 -> 48.89509334 | D192: 52.13469334 | E192: 44.85469334 | G192: 35.94 | H192: NA | I192: 38.32 | J192: NA | K192: 32.97 | L192: NA | N192: 58.67 | O192: NA | P192: 62.56 | Q192: NA | R192: 53.83 | S192: NA | U192: 48.9 | V192: NA | W192: 52.13 | X192: NA | Y192: 44.85 | Z192: NA
B193: 12 | C193: ='AVOID NEW'!AS20 -> 49.60005417 | D193: 52.83965417 | E193: 45.55965417 | G193: 36.46 | H193: NA | I193: 38.84 | J193: NA | K193: 33.49 | L193: NA | N193: 59.52 | O193: NA | P193: 63.41 | Q193: NA | R193: 54.67 | S193: NA | U193: 49.6 | V193: NA | W193: 52.84 | X193: NA | Y193: 45.56 | Z193: NA
B194: 13 | C194: ='AVOID NEW'!AS21 -> 50.32663039 | D194: 53.56623039 | E194: 46.28623039 | G194: 36.99 | H194: NA | I194: 39.37 | J194: NA | K194: 34.02 | L194: NA | N194: 60.39 | O194: NA | P194: 64.28 | Q194: NA | R194: 55.54 | S194: NA | U194: 50.33 | V194: NA | W194: 53.57 | X194: NA | Y194: 46.29 | Z194: NA
B195: 14 | C195: ='AVOID NEW'!AS22 -> 51.0694226 | D195: 54.3090226 | E195: 47.0290226 | G195: 37.54 | H195: NA | I195: 39.92 | J195: NA | K195: 34.57 | L195: NA | N195: 61.28 | O195: NA | P195: 65.17 | Q195: NA | R195: 56.43 | S195: NA | U195: 51.07 | V195: NA | W195: 54.31 | X195: NA | Y195: 47.03 | Z195: NA
B196: 15 | C196: ='AVOID NEW'!AS23 -> 51.8243491 | D196: 55.0639491 | E196: 47.7839491 | G196: 38.09 | H196: NA | I196: 40.47 | J196: NA | K196: 35.12 | L196: NA | N196: 62.19 | O196: NA | P196: 66.08 | Q196: NA | R196: 57.34 | S196: NA | U196: 51.82 | V196: NA | W196: 55.06 | X196: NA | Y196: 47.78 | Z196: NA
B197: 16 | C197: ='AVOID NEW'!AS24 -> 52.57037985 | D197: 55.80997985 | E197: 48.52997985 | G197: 38.64 | H197: NA | I197: 41.02 | J197: NA | K197: 35.67 | L197: NA | N197: 63.08 | O197: NA | P197: 66.97 | Q197: NA | R197: 58.24 | S197: NA | U197: 52.57 | V197: NA | W197: 55.81 | X197: NA | Y197: 48.53 | Z197: NA
B198: 17 | C198: ='AVOID NEW'!AS25 -> 53.30765812 | D198: 56.54725812 | E198: 49.26725812 | G198: 39.18 | H198: NA | I198: 41.56 | J198: NA | K198: 36.21 | L198: NA | N198: 63.97 | O198: NA | P198: 67.86 | Q198: NA | R198: 59.12 | S198: NA | U198: 53.31 | V198: NA | W198: 56.55 | X198: NA | Y198: 49.27 | Z198: NA
B199: 18 | C199: ='AVOID NEW'!AS26 -> 54.03622841 | D199: 57.27582841 | E199: 49.99582841 | G199: 39.72 | H199: NA | I199: 42.1 | J199: NA | K199: 36.75 | L199: NA | N199: 64.84 | O199: NA | P199: 68.73 | Q199: NA | R199: 59.99 | S199: NA | U199: 54.04 | V199: NA | W199: 57.28 | X199: NA | Y199: 50 | Z199: NA
B200: 19 | C200: ='AVOID NEW'!AS27 -> 54.75606692 | D200: 57.99566692 | E200: 50.71566692 | G200: 40.25 | H200: NA | I200: 42.63 | J200: NA | K200: 37.28 | L200: NA | N200: 65.71 | O200: NA | P200: 69.59 | Q200: NA | R200: 60.86 | S200: NA | U200: 54.76 | V200: NA | W200: 58 | X200: NA | Y200: 50.72 | Z200: NA
B201: 20 | C201: ='AVOID NEW'!AS28 -> 55.46710295 | D201: 58.70670295 | E201: 51.42670295 | G201: 40.77 | H201: NA | I201: 43.15 | J201: NA | K201: 37.8 | L201: NA | N201: 66.56 | O201: NA | P201: 70.45 | Q201: NA | R201: 61.71 | S201: NA | U201: 55.47 | V201: NA | W201: 58.71 | X201: NA | Y201: 51.43 | Z201: NA

Sheet IPCo NF HLH LLH Non-Levelized
B1: =IF('AVOID NEW'!E107="IPCo","IDAHO POWER","THESE RATES ARE NOT VALID") -> IDAHO POWER
B2: AVOIDED COST RATES FOR NON-FUELED PROJECTS
B3: Eligibility for these rates is limited to wind and solar projects 100 kW or smaller, and to non-wind and non-solar projects smaller than 10 aMW
B5: Seasonalization Factors
B7: Season 1 | D7: ='AVOID NEW'!E74 -> 0.735 | E7: (Applied to March - May)
B8: Season 2 | D8: ='AVOID NEW'!E75 -> 1.2 | E8: (Applied to July, August, November, and December)
B9: Season 3 | D9: ='AVOID NEW'!E76 -> 1 | E9: (Applied to January, February, June, September, and October)
B13: =$B$1 -> IDAHO POWER
B14: NON-LEVELIZED RATES
B15: ="PROJECT ON-LINE IN "& 'AVOID NEW'!$D$54 -> PROJECT ON-LINE IN 2026
B16: ="Rate Effective Date: "&'AVOID NEW'!$E$71 -> Rate Effective Date: XXXX XX, 2026
B17: ="Resource: "&'Input - Capacity Factors'!$C$3 -> Resource: Wind
C18: Non-Levelized Price | G18: ="Season 1 Pricing ("&100*$D$7&"%)" -> Season 1 Pricing (73.5%) | N18: ="Season 2 Pricing ("&100*$D$8&"%)" -> Season 2 Pricing (120%) | U18: ="Season 3 Pricing ("&100*$D$9&"%)" -> Season 3 Pricing (100%)
C19: Heavy and Light Load Hour Differential | D19: ='AVOID NEW'!$D$66 -> 7.28 | G19: Flat | I19: Heavy Load Hour | K19: Light Load Hour | N19: Flat | P19: Heavy Load Hour | R19: Light Load Hour | U19: Flat | W19: Heavy Load Hour | Y19: Light Load Hour
D20: =D19*0.445 -> 3.2396 | E20: =-(D19-D20) -> -4.0404 | H20: Final avoided cost rates for wind and solar QFs include integration charges from Schedule 87 | J20: =H20 -> Final avoided cost rates for wind and solar QFs include integration charges from Schedule 87 | L20: =H20 -> Final avoided cost rates for wind and solar QFs include integration charges from Schedule 87 | O20: =H20 -> Final avoided cost rates for wind and solar QFs include integration charges from Schedule 87 | Q20: =H20 -> Final avoided cost rates for wind and solar QFs include integration charges from Schedule 87 | S20: =H20 -> Final avoided cost rates for wind and solar QFs include integration charges from Schedule 87 | V20: =H20 -> Final avoided cost rates for wind and solar QFs include integration charges from Schedule 87 | X20: =H20 -> Final avoided cost rates for wind and solar QFs include integration charges from Schedule 87 | Z20: =H20 -> Final avoided cost rates for wind and solar QFs include integration charges from Schedule 87
B21: Year | C21: Flat | D21: Heavy Load Hour | E21: Light Load Hour | G21: Price | I21: Price | K21: Price | N21: Price | P21: Price | R21: Price | U21: Price | W21: Price | Y21: Price
B22: ='AVOID NEW'!AL9 -> 2026 | C22: ='AVOID NEW'!AM9 -> 28.83292851 | D22: =C22+D$20 -> 32.07252851 | E22: =C22+E$20 -> 24.79252851 | G22: =ROUND((+$C22*$D$7),2) -> 21.19 | H22: NA | I22: =ROUND((+$D22*$D$7),2) -> 23.57 | J22: NA | K22: =ROUND((+$E22*$D$7),2) -> 18.22 | L22: NA | N22: =ROUND((+$C22*$D$8),2) -> 34.6 | O22: NA | P22: =ROUND((+$D22*$D$8),2) -> 38.49 | Q22: NA | R22: =ROUND((+$E22*$D$8),2) -> 29.75 | S22: NA | U22: =ROUND((+$C22*$D$9),2) -> 28.83 | V22: NA | W22: =ROUND((+$D22*$D$9),2) -> 32.07 | X22: NA | Y22: =ROUND((+$E22*$D$9),2) -> 24.79 | Z22: NA
B23: ='AVOID NEW'!AL10 -> 2027 | C23: ='AVOID NEW'!AM10 -> 37.76389712 | D23: 41.00349712 | E23: 33.72349712 | G23: 27.76 | H23: NA | I23: 30.14 | J23: NA | K23: 24.79 | L23: NA | N23: 45.32 | O23: NA | P23: 49.2 | Q23: NA | R23: 40.47 | S23: NA | U23: =ROUND((+$C23*$D$9),2) -> 37.76 | V23: NA | W23: =ROUND((+$D23*$D$9),2) -> 41 | X23: NA | Y23: =ROUND((+$E23*$D$9),2) -> 33.72 | Z23: NA
B24: ='AVOID NEW'!AL11 -> 2028 | C24: ='AVOID NEW'!AM11 -> 40.11422114 | D24: 43.35382114 | E24: 36.07382114 | G24: 29.48 | H24: NA | I24: 31.87 | J24: NA | K24: 26.51 | L24: NA | N24: 48.14 | O24: NA | P24: 52.02 | Q24: NA | R24: 43.29 | S24: NA | U24: 40.11 | V24: NA | W24: 43.35 | X24: NA | Y24: 36.07 | Z24: NA
B25: ='AVOID NEW'!AL12 -> 2029 | C25: ='AVOID NEW'!AM12 -> 41.95826489 | D25: 45.19786489 | E25: 37.91786489 | G25: 30.84 | H25: NA | I25: 33.22 | J25: NA | K25: 27.87 | L25: NA | N25: 50.35 | O25: NA | P25: 54.24 | Q25: NA | R25: 45.5 | S25: NA | U25: 41.96 | V25: NA | W25: 45.2 | X25: NA | Y25: 37.92 | Z25: NA
B26: ='AVOID NEW'!AL13 -> 2030 | C26: ='AVOID NEW'!AM13 -> 39.58790639 | D26: 42.82750639 | E26: 35.54750639 | G26: 29.1 | H26: NA | I26: 31.48 | J26: NA | K26: 26.13 | L26: NA | N26: 47.51 | O26: NA | P26: 51.39 | Q26: NA | R26: 42.66 | S26: NA | U26: 39.59 | V26: NA | W26: 42.83 | X26: NA | Y26: 35.55 | Z26: NA
B27: ='AVOID NEW'!AL14 -> 2031 | C27: ='AVOID NEW'!AM14 -> 39.68938669 | D27: 42.92898669 | E27: 35.64898669 | G27: 29.17 | H27: NA | I27: 31.55 | J27: NA | K27: 26.2 | L27: NA | N27: 47.63 | O27: NA | P27: 51.51 | Q27: NA | R27: 42.78 | S27: NA | U27: 39.69 | V27: NA | W27: 42.93 | X27: NA | Y27: 35.65 | Z27: NA
B28: ='AVOID NEW'!AL15 -> 2032 | C28: ='AVOID NEW'!AM15 -> 42.10267565 | D28: 45.34227565 | E28: 38.06227565 | G28: 30.95 | H28: NA | I28: 33.33 | J28: NA | K28: 27.98 | L28: NA | N28: 50.52 | O28: NA | P28: 54.41 | Q28: NA | R28: 45.67 | S28: NA | U28: 42.1 | V28: NA | W28: 45.34 | X28: NA | Y28: 38.06 | Z28: NA
B29: ='AVOID NEW'!AL16 -> 2033 | C29: ='AVOID NEW'!AM16 -> 46.05780164 | D29: 49.29740164 | E29: 42.01740164 | G29: 33.85 | H29: NA | I29: 36.23 | J29: NA | K29: 30.88 | L29: NA | N29: 55.27 | O29: NA | P29: 59.16 | Q29: NA | R29: 50.42 | S29: NA | U29: 46.06 | V29: NA | W29: 49.3 | X29: NA | Y29: 42.02 | Z29: NA
B30: ='AVOID NEW'!AL17 -> 2034 | C30: ='AVOID NEW'!AM17 -> 46.93477228 | D30: 50.17437228 | E30: 42.89437228 | G30: 34.5 | H30: NA | I30: 36.88 | J30: NA | K30: 31.53 | L30: NA | N30: 56.32 | O30: NA | P30: 60.21 | Q30: NA | R30: 51.47 | S30: NA | U30: 46.93 | V30: NA | W30: 50.17 | X30: NA | Y30: 42.89 | Z30: NA
B31: ='AVOID NEW'!AL18 -> 2035 | C31: ='AVOID NEW'!AM18 -> 48.58364279 | D31: 51.82324279 | E31: 44.54324279 | G31: 35.71 | H31: NA | I31: 38.09 | J31: NA | K31: 32.74 | L31: NA | N31: 58.3 | O31: NA | P31: 62.19 | Q31: NA | R31: 53.45 | S31: NA | U31: 48.58 | V31: NA | W31: 51.82 | X31: NA | Y31: 44.54 | Z31: NA
B32: ='AVOID NEW'!AL19 -> 2036 | C32: ='AVOID NEW'!AM19 -> 49.46443915 | D32: 52.70403915 | E32: 45.42403915 | G32: 36.36 | H32: NA | I32: 38.74 | J32: NA | K32: 33.39 | L32: NA | N32: 59.36 | O32: NA | P32: 63.24 | Q32: NA | R32: 54.51 | S32: NA | U32: 49.46 | V32: NA | W32: 52.7 | X32: NA | Y32: 45.42 | Z32: NA
B33: ='AVOID NEW'!AL20 -> 2037 | C33: ='AVOID NEW'!AM20 -> 51.11720502 | D33: 54.35680502 | E33: 47.07680502 | G33: 37.57 | H33: NA | I33: 39.95 | J33: NA | K33: 34.6 | L33: NA | N33: 61.34 | O33: NA | P33: 65.23 | Q33: NA | R33: 56.49 | S33: NA | U33: 51.12 | V33: NA | W33: 54.36 | X33: NA | Y33: 47.08 | Z33: NA
B34: ='AVOID NEW'!AL21 -> 2038 | C34: ='AVOID NEW'!AM21 -> 54.31198048 | D34: 57.55158048 | E34: 50.27158048 | G34: 39.92 | H34: NA | I34: 42.3 | J34: NA | K34: 36.95 | L34: NA | N34: 65.17 | O34: NA | P34: 69.06 | Q34: NA | R34: 60.33 | S34: NA | U34: 54.31 | V34: NA | W34: 57.55 | X34: NA | Y34: 50.27 | Z34: NA
B35: ='AVOID NEW'!AL22 -> 2039 | C35: ='AVOID NEW'!AM22 -> 56.35378705 | D35: 59.59338705 | E35: 52.31338705 | G35: 41.42 | H35: NA | I35: 43.8 | J35: NA | K35: 38.45 | L35: NA | N35: 67.62 | O35: NA | P35: 71.51 | Q35: NA | R35: 62.78 | S35: NA | U35: 56.35 | V35: NA | W35: 59.59 | X35: NA | Y35: 52.31 | Z35: NA
B36: ='AVOID NEW'!AL23 -> 2040 | C36: ='AVOID NEW'!AM23 -> 58.54932029 | D36: 61.78892029 | E36: 54.50892029 | G36: 43.03 | H36: NA | I36: 45.41 | J36: NA | K36: 40.06 | L36: NA | N36: 70.26 | O36: NA | P36: 74.15 | Q36: NA | R36: 65.41 | S36: NA | U36: 58.55 | V36: NA | W36: 61.79 | X36: NA | Y36: 54.51 | Z36: NA
B37: ='AVOID NEW'!AL24 -> 2041 | C37: ='AVOID NEW'!AM24 -> 59.91419355 | D37: 63.15379355 | E37: 55.87379355 | G37: 44.04 | H37: NA | I37: 46.42 | J37: NA | K37: 41.07 | L37: NA | N37: 71.9 | O37: NA | P37: 75.78 | Q37: NA | R37: 67.05 | S37: NA | U37: 59.91 | V37: NA | W37: 63.15 | X37: NA | Y37: 55.87 | Z37: NA
B38: ='AVOID NEW'!AL25 -> 2042 | C38: ='AVOID NEW'!AM25 -> 61.81423572 | D38: 65.05383572 | E38: 57.77383572 | G38: 45.43 | H38: NA | I38: 47.81 | J38: NA | K38: 42.46 | L38: NA | N38: 74.18 | O38: NA | P38: 78.06 | Q38: NA | R38: 69.33 | S38: NA | U38: 61.81 | V38: NA | W38: 65.05 | X38: NA | Y38: 57.77 | Z38: NA
B39: ='AVOID NEW'!AL26 -> 2043 | C39: ='AVOID NEW'!AM26 -> 64.62855657 | D39: 67.86815657 | E39: 60.58815657 | G39: 47.5 | H39: NA | I39: 49.88 | J39: NA | K39: 44.53 | L39: NA | N39: 77.55 | O39: NA | P39: 81.44 | Q39: NA | R39: 72.71 | S39: NA | U39: 64.63 | V39: NA | W39: 67.87 | X39: NA | Y39: 60.59 | Z39: NA
B40: ='AVOID NEW'!AL27 -> 2044 | C40: ='AVOID NEW'!AM27 -> 67.57180042 | D40: 70.81140042 | E40: 63.53140042 | G40: 49.67 | H40: NA | I40: 52.05 | J40: NA | K40: 46.7 | L40: NA | N40: 81.09 | O40: NA | P40: 84.97 | Q40: NA | R40: 76.24 | S40: NA | U40: 67.57 | V40: NA | W40: 70.81 | X40: NA | Y40: 63.53 | Z40: NA
B41: ='AVOID NEW'!AL28 -> 2045 | C41: ='AVOID NEW'!AM28 -> 70.64997718 | D41: 73.88957718 | E41: 66.60957718 | G41: 51.93 | H41: NA | I41: 54.31 | J41: NA | K41: 48.96 | L41: NA | N41: 84.78 | O41: NA | P41: 88.67 | Q41: NA | R41: 79.93 | S41: NA | U41: 70.65 | V41: NA | W41: 73.89 | X41: NA | Y41: 66.61 | Z41: NA
B42: ='AVOID NEW'!AL29 -> 2046 | C42: ='AVOID NEW'!AM29 -> 73.3540244 | D42: 76.5936244 | E42: 69.3136244 | G42: 53.92 | H42: NA | I42: 56.3 | J42: NA | K42: 50.95 | L42: NA | N42: 88.02 | O42: NA | P42: 91.91 | Q42: NA | R42: 83.18 | S42: NA | U42: 73.35 | V42: NA | W42: 76.59 | X42: NA | Y42: 69.31 | Z42: NA
B43: ='AVOID NEW'!AL30 -> 2047 | C43: ='AVOID NEW'!AM30 -> 76.16137472 | D43: 79.40097472 | E43: 72.12097472 | G43: 55.98 | H43: NA | I43: 58.36 | J43: NA | K43: 53.01 | L43: NA | N43: 91.39 | O43: NA | P43: 95.28 | Q43: NA | R43: 86.55 | S43: NA | U43: 76.16 | V43: NA | W43: 79.4 | X43: NA | Y43: 72.12 | Z43: NA
B44: ='AVOID NEW'!AL31 -> 2048 | C44: ='AVOID NEW'!AM31 -> 79.07603343 | D44: 82.31563343 | E44: 75.03563343 | G44: 58.12 | H44: NA | I44: 60.5 | J44: NA | K44: 55.15 | L44: NA | N44: 94.89 | O44: NA | P44: 98.78 | Q44: NA | R44: 90.04 | S44: NA | U44: 79.08 | V44: NA | W44: 82.32 | X44: NA | Y44: 75.04 | Z44: NA
B45: ='AVOID NEW'!AL32 -> 2049 | C45: ='AVOID NEW'!AM32 -> 82.1021622 | D45: 85.3417622 | E45: 78.0617622 | G45: 60.35 | H45: NA | I45: 62.73 | J45: NA | K45: 57.38 | L45: NA | N45: 98.52 | O45: NA | P45: 102.41 | Q45: NA | R45: 93.67 | S45: NA | U45: 82.1 | V45: NA | W45: 85.34 | X45: NA | Y45: 78.06 | Z45: NA
B46: ='AVOID NEW'!AL33 -> 2050 | C46: ='AVOID NEW'!AM33 -> 85.24408509 | D46: 88.48368509 | E46: 81.20368509 | G46: 62.65 | H46: NA | I46: 65.04 | J46: NA | K46: 59.68 | L46: NA | N46: 102.29 | O46: NA | P46: 106.18 | Q46: NA | R46: 97.44 | S46: NA | U46: 85.24 | V46: NA | W46: 88.48 | X46: NA | Y46: 81.2 | Z46: NA
B47: ='AVOID NEW'!AL34 -> 2051 | C47: ='AVOID NEW'!AM34 -> 8.464396585 | D47: 11.70399658 | E47: 4.423996585 | G47: 6.22 | H47: NA | I47: 8.6 | J47: NA | K47: 3.25 | L47: NA | N47: 10.16 | O47: NA | P47: 14.04 | Q47: NA | R47: 5.31 | S47: NA | U47: 8.46 | V47: NA | W47: 11.7 | X47: NA | Y47: 4.42 | Z47: NA

Sheet IPCOStorage(Energy)Non-LevelADJ
B1: =IF('AVOID NEW'!E107="IPCo","IDAHO POWER","THESE RATES ARE NOT VALID") -> IDAHO POWER
B2: AVOIDED COST RATES OF ENERGY FOR ENERGY STORAGE PROJECTS
B3: Eligibility for these rates is limited to energy storage projects 100 kW or smaller
B5: Seasonalization Factors
B7: Season 1 | D7: ='AVOID NEW'!E74 -> 0.735 | E7: (Applied to March - May)
B8: Season 2 | D8: ='AVOID NEW'!E75 -> 1.2 | E8: (Applied to July, August, November, and December)
B9: Season 3 | D9: ='AVOID NEW'!E76 -> 1 | E9: (Applied to January, February, June, September, and October)
B13: =$B$1 -> IDAHO POWER
B14: NON-LEVELIZED RATES
C18: Non-Levelized Price | G18: ="Season 1 Pricing ("&100*$D$7&"%)" -> Season 1 Pricing (73.5%) | N18: ="Season 2 Pricing ("&100*$D$8&"%)" -> Season 2 Pricing (120%) | U18: ="Season 3 Pricing ("&100*$D$9&"%)" -> Season 3 Pricing (100%)
C19: Heavy and Light Load Hour Differential | D19: ='AVOID NEW'!$D$66 -> 7.28 | G19: Flat | I19: Heavy Load Hour | K19: Light Load Hour | N19: Flat | P19: Heavy Load Hour | R19: Light Load Hour | U19: Flat | W19: Heavy Load Hour | Y19: Light Load Hour
D20: =D19*0.445 -> 3.2396 | E20: =-(D19-D20) -> -4.0404 | H20: Final avoided cost rates for wind and solar QFs include integration charges from Schedule 87 | J20: =H20 -> Final avoided cost rates for wind and solar QFs include integration charges from Schedule 87 | L20: =H20 -> Final avoided cost rates for wind and solar QFs include integration charges from Schedule 87 | O20: =H20 -> Final avoided cost rates for wind and solar QFs include integration charges from Schedule 87 | Q20: =H20 -> Final avoided cost rates for wind and solar QFs include integration charges from Schedule 87 | S20: =H20 -> Final avoided cost rates for wind and solar QFs include integration charges from Schedule 87 | V20: =H20 -> Final avoided cost rates for wind and solar QFs include integration charges from Schedule 87 | X20: =H20 -> Final avoided cost rates for wind and solar QFs include integration charges from Schedule 87 | Z20: =H20 -> Final avoided cost rates for wind and solar QFs include integration charges from Schedule 87
B21: Year | C21: Flat | D21: Heavy Load Hour | E21: Light Load Hour | G21: Price | I21: Price | K21: Price | N21: Price | P21: Price | R21: Price | U21: Price | W21: Price | Y21: Price
B22: ='AVOID NEW'!M9 -> 2026 | C22: ='AVOID NEW'!AD9 -> 28.83292851 | D22: =C22+D$20 -> 32.07252851 | E22: =C22+E$20 -> 24.79252851 | G22: =ROUND((+$C22*$D$7),2) -> 21.19 | H22: NA | I22: =ROUND((+$D22*$D$7),2) -> 23.57 | J22: NA | K22: =ROUND((+$E22*$D$7),2) -> 18.22 | L22: NA | N22: =ROUND((+$C22*$D$8),2) -> 34.6 | O22: NA | P22: =ROUND((+$D22*$D$8),2) -> 38.49 | Q22: NA | R22: =ROUND((+$E22*$D$8),2) -> 29.75 | S22: NA | U22: =ROUND((+$C22*$D$9),2) -> 28.83 | V22: NA | W22: =ROUND((+$D22*$D$9),2) -> 32.07 | X22: NA | Y22: =ROUND((+$E22*$D$9),2) -> 24.79 | Z22: NA
B23: ='AVOID NEW'!M10 -> 2027 | C23: ='AVOID NEW'!AD10 -> 34.72754938 | D23: 37.96714938 | E23: 30.68714938 | G23: 25.52 | H23: NA | I23: 27.91 | J23: NA | K23: 22.56 | L23: NA | N23: 41.67 | O23: NA | P23: 45.56 | Q23: NA | R23: 36.82 | S23: NA | U23: =ROUND((+$C23*$D$9),2) -> 34.73 | V23: NA | W23: =ROUND((+$D23*$D$9),2) -> 37.97 | X23: NA | Y23: =ROUND((+$E23*$D$9),2) -> 30.69 | Z23: NA
B24: ='AVOID NEW'!M11 -> 2028 | C24: ='AVOID NEW'!AD11 -> 37.03316178 | D24: 40.27276178 | E24: 32.99276178 | G24: 27.22 | H24: NA | I24: 29.6 | J24: NA | K24: 24.25 | L24: NA | N24: 44.44 | O24: NA | P24: 48.33 | Q24: NA | R24: 39.59 | S24: NA | U24: 37.03 | V24: NA | W24: 40.27 | X24: NA | Y24: 32.99 | Z24: NA
B25: ='AVOID NEW'!M12 -> 2029 | C25: ='AVOID NEW'!AD12 -> 38.83182389 | D25: 42.07142389 | E25: 34.79142389 | G25: 28.54 | H25: NA | I25: 30.92 | J25: NA | K25: 25.57 | L25: NA | N25: 46.6 | O25: NA | P25: 50.49 | Q25: NA | R25: 41.75 | S25: NA | U25: 38.83 | V25: NA | W25: 42.07 | X25: NA | Y25: 34.79 | Z25: NA
B26: ='AVOID NEW'!M13 -> 2030 | C26: ='AVOID NEW'!AD13 -> 36.41540347 | D26: 39.65500347 | E26: 32.37500347 | G26: 26.77 | H26: NA | I26: 29.15 | J26: NA | K26: 23.8 | L26: NA | N26: 43.7 | O26: NA | P26: 47.59 | Q26: NA | R26: 38.85 | S26: NA | U26: 36.42 | V26: NA | W26: 39.66 | X26: NA | Y26: 32.38 | Z26: NA
B27: ='AVOID NEW'!M14 -> 2031 | C27: ='AVOID NEW'!AD14 -> 36.47013115 | D27: 39.70973115 | E27: 32.42973115 | G27: 26.81 | H27: NA | I27: 29.19 | J27: NA | K27: 23.84 | L27: NA | N27: 43.76 | O27: NA | P27: 47.65 | Q27: NA | R27: 38.92 | S27: NA | U27: 36.47 | V27: NA | W27: 39.71 | X27: NA | Y27: 32.43 | Z27: NA
B28: ='AVOID NEW'!M15 -> 2032 | C28: ='AVOID NEW'!AD15 -> 38.8359662 | D28: 42.0755662 | E28: 34.7955662 | G28: 28.54 | H28: NA | I28: 30.93 | J28: NA | K28: 25.57 | L28: NA | N28: 46.6 | O28: NA | P28: 50.49 | Q28: NA | R28: 41.75 | S28: NA | U28: 38.84 | V28: NA | W28: 42.08 | X28: NA | Y28: 34.8 | Z28: NA
B29: ='AVOID NEW'!M16 -> 2033 | C29: ='AVOID NEW'!AD16 -> 42.74292623 | D29: 45.98252623 | E29: 38.70252623 | G29: 31.42 | H29: NA | I29: 33.8 | J29: NA | K29: 28.45 | L29: NA | N29: 51.29 | O29: NA | P29: 55.18 | Q29: NA | R29: 46.44 | S29: NA | U29: 42.74 | V29: NA | W29: 45.98 | X29: NA | Y29: 38.7 | Z29: NA
B30: ='AVOID NEW'!M17 -> 2034 | C30: ='AVOID NEW'!AD17 -> 43.57100796 | D30: 46.81060796 | E30: 39.53060796 | G30: 32.02 | H30: NA | I30: 34.41 | J30: NA | K30: 29.05 | L30: NA | N30: 52.29 | O30: NA | P30: 56.17 | Q30: NA | R30: 47.44 | S30: NA | U30: 43.57 | V30: NA | W30: 46.81 | X30: NA | Y30: 39.53 | Z30: NA
B31: ='AVOID NEW'!M18 -> 2035 | C31: ='AVOID NEW'!AD18 -> 45.1702555 | D31: 48.4098555 | E31: 41.1298555 | G31: 33.2 | H31: NA | I31: 35.58 | J31: NA | K31: 30.23 | L31: NA | N31: 54.2 | O31: NA | P31: 58.09 | Q31: NA | R31: 49.36 | S31: NA | U31: 45.17 | V31: NA | W31: 48.41 | X31: NA | Y31: 41.13 | Z31: NA
B32: ='AVOID NEW'!M19 -> 2036 | C32: ='AVOID NEW'!AD19 -> 46.00068356 | D32: 49.24028356 | E32: 41.96028356 | G32: 33.81 | H32: NA | I32: 36.19 | J32: NA | K32: 30.84 | L32: NA | N32: 55.2 | O32: NA | P32: 59.09 | Q32: NA | R32: 50.35 | S32: NA | U32: 46 | V32: NA | W32: 49.24 | X32: NA | Y32: 41.96 | Z32: NA
B33: ='AVOID NEW'!M20 -> 2037 | C33: ='AVOID NEW'!AD20 -> 47.60232436 | D33: 50.84192436 | E33: 43.56192436 | G33: 34.99 | H33: NA | I33: 37.37 | J33: NA | K33: 32.02 | L33: NA | N33: 57.12 | O33: NA | P33: 61.01 | Q33: NA | R33: 52.27 | S33: NA | U33: 47.6 | V33: NA | W33: 50.84 | X33: NA | Y33: 43.56 | Z33: NA
B34: ='AVOID NEW'!M21 -> 2038 | C34: ='AVOID NEW'!AD21 -> 50.74520635 | D34: 53.98480635 | E34: 46.70480635 | G34: 37.3 | H34: NA | I34: 39.68 | J34: NA | K34: 34.33 | L34: NA | N34: 60.89 | O34: NA | P34: 64.78 | Q34: NA | R34: 56.05 | S34: NA | U34: 50.75 | V34: NA | W34: 53.98 | X34: NA | Y34: 46.7 | Z34: NA
B35: ='AVOID NEW'!M22 -> 2039 | C35: ='AVOID NEW'!AD22 -> 52.73433923 | D35: 55.97393923 | E35: 48.69393923 | G35: 38.76 | H35: NA | I35: 41.14 | J35: NA | K35: 35.79 | L35: NA | N35: 63.28 | O35: NA | P35: 67.17 | Q35: NA | R35: 58.43 | S35: NA | U35: 52.73 | V35: NA | W35: 55.97 | X35: NA | Y35: 48.69 | Z35: NA
B36: ='AVOID NEW'!M23 -> 2040 | C36: ='AVOID NEW'!AD23 -> 54.87640657 | D36: 58.11600657 | E36: 50.83600657 | G36: 40.33 | H36: NA | I36: 42.72 | J36: NA | K36: 37.36 | L36: NA | N36: 65.85 | O36: NA | P36: 69.74 | Q36: NA | R36: 61 | S36: NA | U36: 54.88 | V36: NA | W36: 58.12 | X36: NA | Y36: 50.84 | Z36: NA
B37: ='AVOID NEW'!M24 -> 2041 | C37: ='AVOID NEW'!AD24 -> 56.18700954 | D37: 59.42660954 | E37: 52.14660954 | G37: 41.3 | H37: NA | I37: 43.68 | J37: NA | K37: 38.33 | L37: NA | N37: 67.42 | O37: NA | P37: 71.31 | Q37: NA | R37: 62.58 | S37: NA | U37: 56.19 | V37: NA | W37: 59.43 | X37: NA | Y37: 52.15 | Z37: NA
B38: ='AVOID NEW'!M25 -> 2042 | C38: ='AVOID NEW'!AD25 -> 58.03196465 | D38: 61.27156465 | E38: 53.99156465 | G38: 42.65 | H38: NA | I38: 45.03 | J38: NA | K38: 39.68 | L38: NA | N38: 69.64 | O38: NA | P38: 73.53 | Q38: NA | R38: 64.79 | S38: NA | U38: 58.03 | V38: NA | W38: 61.27 | X38: NA | Y38: 53.99 | Z38: NA
B39: ='AVOID NEW'!M26 -> 2043 | C39: ='AVOID NEW'!AD26 -> 60.79036909 | D39: 64.02996909 | E39: 56.74996909 | G39: 44.68 | H39: NA | I39: 47.06 | J39: NA | K39: 41.71 | L39: NA | N39: 72.95 | O39: NA | P39: 76.84 | Q39: NA | R39: 68.1 | S39: NA | U39: 60.79 | V39: NA | W39: 64.03 | X39: NA | Y39: 56.75 | Z39: NA
B40: ='AVOID NEW'!M27 -> 2044 | C40: ='AVOID NEW'!AD27 -> 63.6768544 | D40: 66.9164544 | E40: 59.6364544 | G40: 46.8 | H40: NA | I40: 49.18 | J40: NA | K40: 43.83 | L40: NA | N40: 76.41 | O40: NA | P40: 80.3 | Q40: NA | R40: 71.56 | S40: NA | U40: 63.68 | V40: NA | W40: 66.92 | X40: NA | Y40: 59.64 | Z40: NA
B41: ='AVOID NEW'!M28 -> 2045 | C41: ='AVOID NEW'!AD28 -> 66.69741753 | D41: 69.93701753 | E41: 62.65701753 | G41: 49.02 | H41: NA | I41: 51.4 | J41: NA | K41: 46.05 | L41: NA | N41: 80.04 | O41: NA | P41: 83.92 | Q41: NA | R41: 75.19 | S41: NA | U41: 66.7 | V41: NA | W41: 69.94 | X41: NA | Y41: 62.66 | Z41: NA
B42: ='AVOID NEW'!M29 -> 2046 | C42: ='AVOID NEW'!AD29 -> 69.34298284 | D42: 72.58258284 | E42: 65.30258284 | G42: 50.97 | H42: NA | I42: 53.35 | J42: NA | K42: 48 | L42: NA | N42: 83.21 | O42: NA | P42: 87.1 | Q42: NA | R42: 78.36 | S42: NA | U42: 69.34 | V42: NA | W42: 72.58 | X42: NA | Y42: 65.3 | Z42: NA
B43: ='AVOID NEW'!M30 -> 2047 | C43: ='AVOID NEW'!AD30 -> 72.09096958 | D43: 75.33056958 | E43: 68.05056958 | G43: 52.99 | H43: NA | I43: 55.37 | J43: NA | K43: 50.02 | L43: NA | N43: 86.51 | O43: NA | P43: 90.4 | Q43: NA | R43: 81.66 | S43: NA | U43: 72.09 | V43: NA | W43: 75.33 | X43: NA | Y43: 68.05 | Z43: NA
B44: ='AVOID NEW'!M31 -> 2048 | C44: ='AVOID NEW'!AD31 -> 74.94536945 | D44: 78.18496945 | E44: 70.90496945 | G44: 55.08 | H44: NA | I44: 57.47 | J44: NA | K44: 52.12 | L44: NA | N44: 89.93 | O44: NA | P44: 93.82 | Q44: NA | R44: 85.09 | S44: NA | U44: 74.95 | V44: NA | W44: 78.18 | X44: NA | Y44: 70.9 | Z44: NA
B45: ='AVOID NEW'!M32 -> 2049 | C45: ='AVOID NEW'!AD32 -> 77.91033027 | D45: 81.14993027 | E45: 73.86993027 | G45: 57.26 | H45: NA | I45: 59.65 | J45: NA | K45: 54.29 | L45: NA | N45: 93.49 | O45: NA | P45: 97.38 | Q45: NA | R45: 88.64 | S45: NA | U45: 77.91 | V45: NA | W45: 81.15 | X45: NA | Y45: 73.87 | Z45: NA
B46: ='AVOID NEW'!M33 -> 2050 | C46: ='AVOID NEW'!AD33 -> 80.99016211 | D46: 84.22976211 | E46: 76.94976211 | G46: 59.53 | H46: NA | I46: 61.91 | J46: NA | K46: 56.56 | L46: NA | N46: 97.19 | O46: NA | P46: 101.08 | Q46: NA | R46: 92.34 | S46: NA | U46: 80.99 | V46: NA | W46: 84.23 | X46: NA | Y46: 76.95 | Z46: NA
B47: ='AVOID NEW'!M34 -> 2051 | C47: ='AVOID NEW'!AD34 -> 4.147445159 | D47: 7.387045159 | E47: 0.107045159 | G47: 3.05 | H47: NA | I47: 5.43 | J47: NA | K47: 0.08 | L47: NA | N47: 4.98 | O47: NA | P47: 8.86 | Q47: NA | R47: 0.13 | S47: NA | U47: 4.15 | V47: NA | W47: 7.39 | X47: NA | Y47: 0.11 | Z47: NA

Sheet IPCOStorage(Capacity)
A1: Years since the first deficit (Years) | B1: Calendar Year | C1: Column T in AVOID NEW (This represents annual value of CCCT in $/MW divided by (365*24*annual availability factor of chosen technology category, e.g. wind)) | D1: Non-Levelized Annual Value of CCCT in $/MW (using wind's annual capacity factor of 33%) | E1: Spreading Non-Levelized Annual Value of CCCT over Peak Hours ($/MWh) | F1: Levelized Annual Value of CCCT in $/MW with Online Year of 2027 | G1: Spreading Levelized Annual Value of CCCT over Peak Hours ($/MWh) with Online Year of 2027 | H1: Levelized Annual Value of CCCT in $/MW with Online Year of 2028 | I1: Spreading Levelized Annual Value of CCCT over Peak Hours ($/MWh) with Online Year of 2028 | J1: Levelized Annual Value of CCCT in $/MW with Online Year of 2029 | K1: Spreading Levelized Annual Value of CCCT over Peak Hours ($/MWh) with Online Year of 2029 | L1: Levelized Annual Value of CCCT in $/MW with Online Year of 2030 | M1: Spreading Levelized Annual Value of CCCT over Peak Hours ($/MWh) with Online Year of 2030 | N1: Levelized Annual Value of CCCT in $/MW with Online Year of 2031 | O1: Spreading Levelized Annual Value of CCCT over Peak Hours ($/MWh) with Online Year of 2031 | P1: Levelized Annual Value of CCCT in $/MW with Online Year of 2032 | Q1: Spreading Levelized Annual Value of CCCT over Peak Hours ($/MWh) with Online Year of 2032
A2: 1 | B2: 2027 | C2: 60.72695479 | D2: =C2*365*24*0.33 -> 175549.4809 | E2: =D2/$T$7 -> 120.2393705 | F2: =-PMT('AVOID NEW'!$D$37,$A2,NPV('AVOID NEW'!$D$37,$D$2:$D2)) -> 175549.4809 | G2: =F2/$T$7 -> 120.2393705 | V2: Total 2026 Hours
A3: 2 | B3: 2028 | C3: 61.62118724 | D3: =C3*365*24*0.33 -> 178134.5281 | E3: 122.0099507 | F3: =-PMT('AVOID NEW'!$D$37,$A3,NPV('AVOID NEW'!$D$37,$D$2:$D3)) -> 176795.8274 | G3: =F3/$T$7 -> 121.0930325 | H3: =-PMT('AVOID NEW'!$D$37,($A3-1),NPV('AVOID NEW'!$D$37,$D3:$D$3)) -> 178134.5281 | I3: =H3/$T$7 -> 122.0099507 | V3: Period | W3: Jun. 15 - Sep. 15 | X3: Nov. 15 - Feb. 15
A4: 3 | B4: 2029 | C4: 62.52882005 | D4: 180758.313 | E4: 123.8070637 | F4: =-PMT('AVOID NEW'!$D$37,$A4,NPV('AVOID NEW'!$D$37,$D$2:$D4)) -> 178023.443 | G4: 121.933865 | H4: =-PMT('AVOID NEW'!$D$37,($A4-1),NPV('AVOID NEW'!$D$37,$D$3:$D4)) -> 179399.5515 | I4: =H4/$T$7 -> 122.8764051 | J4: =-PMT('AVOID NEW'!$D$37,($A4-2),NPV('AVOID NEW'!$D$37,$D$4:$D4)) -> 180758.313 | K4: =J4/$T$7 -> 123.8070637 | V4: Non-Premium Peak | W4: 234 | X4: 380
A5: 4 | B5: 2030 | C5: 63.45005844 | D5: 183421.4289 | E5: 125.6311157 | F5: =-PMT('AVOID NEW'!$D$37,$A5,NPV('AVOID NEW'!$D$37,$D$2:$D5)) -> 179231.8654 | G5: 122.7615517 | H5: =-PMT('AVOID NEW'!$D$37,($A5-1),NPV('AVOID NEW'!$D$37,$D$3:$D5)) -> 180645.5672 | I5: 123.7298405 | J5: =-PMT('AVOID NEW'!$D$37,($A5-2),NPV('AVOID NEW'!$D$37,$D$4:$D5)) -> 182042.2994 | K5: =J5/$T$7 -> 124.6865064 | L5: =-PMT('AVOID NEW'!$D$37,($A5-3),NPV('AVOID NEW'!$D$37,$D$5:$D5)) -> 183421.4289 | M5: =L5/$T$7 -> 125.6311157 | V5: Premium Peak | W5: 390 | X5: 456
A6: 5 | B6: 2031 | C6: 64.38511086 | D6: 186124.4785 | E6: 127.4825195 | F6: =-PMT('AVOID NEW'!$D$37,$A6,NPV('AVOID NEW'!$D$37,$D$2:$D6)) -> 180420.6629 | G6: 123.5757965 | H6: =-PMT('AVOID NEW'!$D$37,($A6-1),NPV('AVOID NEW'!$D$37,$D$3:$D6)) -> 181872.106 | I6: 124.5699356 | J6: =-PMT('AVOID NEW'!$D$37,($A6-2),NPV('AVOID NEW'!$D$37,$D$4:$D6)) -> 183306.9971 | K6: 125.5527377 | L6: =-PMT('AVOID NEW'!$D$37,($A6-3),NPV('AVOID NEW'!$D$37,$D$5:$D6)) -> 184724.6688 | M6: =L6/$T$7 -> 126.5237457 | N6: =-PMT('AVOID NEW'!$D$37,($A6-4),NPV('AVOID NEW'!$D$37,$D$6:$D6)) -> 186124.4785 | O6: =N6/$T$7 -> 127.4825195 | T6: Total Peak Hours in a year | W6: =SUM(W4:W5) -> 624 | X6: =SUM(X4:X5) -> 836
A7: 6 | B7: 2032 | C7: 65.33418905 | D7: 188868.0737 | E7: 129.3616943 | F7: =-PMT('AVOID NEW'!$D$37,$A7,NPV('AVOID NEW'!$D$37,$D$2:$D7)) -> 181589.4341 | G7: 124.3763247 | H7: =-PMT('AVOID NEW'!$D$37,($A7-1),NPV('AVOID NEW'!$D$37,$D$3:$D7)) -> 183078.7295 | I7: 125.3963901 | J7: =-PMT('AVOID NEW'!$D$37,($A7-2),NPV('AVOID NEW'!$D$37,$D$4:$D7)) -> 184551.9299 | K7: 126.4054314 | L7: =-PMT('AVOID NEW'!$D$37,($A7-3),NPV('AVOID NEW'!$D$37,$D$5:$D7)) -> 186008.3348 | M7: 127.4029691 | N7: =-PMT('AVOID NEW'!$D$37,($A7-4),NPV('AVOID NEW'!$D$37,$D$6:$D7)) -> 187447.2669 | O7: =N7/$T$7 -> 128.388539 | P7: =-PMT('AVOID NEW'!$D$37,($A7-5),NPV('AVOID NEW'!$D$37,$D$7:$D7)) -> 188868.0737 | Q7: =P7/$T$7 -> 129.3616943 | T7: =W6+X6 -> 1460
A8: 7 | B8: 2033 | C8: 66.29750807 | D8: 191652.8363 | E8: 131.269066 | F8: =-PMT('AVOID NEW'!$D$37,$A8,NPV('AVOID NEW'!$D$37,$D$2:$D8)) -> 182737.8096 | G8: 125.1628833 | H8: =-PMT('AVOID NEW'!$D$37,($A8-1),NPV('AVOID NEW'!$D$37,$D$3:$D8)) -> 184265.0302 | I8: 126.2089248 | J8: =-PMT('AVOID NEW'!$D$37,($A8-2),NPV('AVOID NEW'!$D$37,$D$4:$D8)) -> 185776.6526 | K8: 127.2442826 | L8: =-PMT('AVOID NEW'!$D$37,($A8-3),NPV('AVOID NEW'!$D$37,$D$5:$D8)) -> 187271.9436 | M8: 128.2684545 | N8: =-PMT('AVOID NEW'!$D$37,($A8-4),NPV('AVOID NEW'!$D$37,$D$6:$D8)) -> 188750.1921 | O8: 129.2809535 | P8: =-PMT('AVOID NEW'!$D$37,($A8-5),NPV('AVOID NEW'!$D$37,$D$7:$D8)) -> 190210.7104 | Q8: =P8/$T$7 -> 130.2813085
A9: 8 | B9: 2034 | C9: 67.27528636 | D9: 194479.3978 | E9: 133.205067 | F9: =-PMT('AVOID NEW'!$D$37,$A9,NPV('AVOID NEW'!$D$37,$D$2:$D9)) -> 183865.4517 | G9: 125.9352409 | H9: =-PMT('AVOID NEW'!$D$37,($A9-1),NPV('AVOID NEW'!$D$37,$D$3:$D9)) -> 185430.6329 | I9: 127.0072828 | J9: =-PMT('AVOID NEW'!$D$37,($A9-2),NPV('AVOID NEW'!$D$37,$D$4:$D9)) -> 186980.7515 | K9: 128.0690079 | L9: =-PMT('AVOID NEW'!$D$37,($A9-3),NPV('AVOID NEW'!$D$37,$D$5:$D9)) -> 188515.043 | M9: 129.1198925 | N9: =-PMT('AVOID NEW'!$D$37,($A9-4),NPV('AVOID NEW'!$D$37,$D$6:$D9)) -> 190032.7632 | O9: 130.1594269 | P9: =-PMT('AVOID NEW'!$D$37,($A9-5),NPV('AVOID NEW'!$D$37,$D$7:$D9)) -> 191533.1902 | Q9: 131.1871166
A10: 9 | B10: 2035 | C10: 68.26774581 | D10: 197348.3996 | E10: 135.1701367 | F10: =-PMT('AVOID NEW'!$D$37,$A10,NPV('AVOID NEW'!$D$37,$D$2:$D10)) -> 184972.0555 | G10: 126.6931887 | H10: =-PMT('AVOID NEW'!$D$37,($A10-1),NPV('AVOID NEW'!$D$37,$D$3:$D10)) -> 186575.1949 | I10: 127.7912294 | J10: =-PMT('AVOID NEW'!$D$37,($A10-2),NPV('AVOID NEW'!$D$37,$D$4:$D10)) -> 188163.8457 | K10: 128.8793464 | L10: =-PMT('AVOID NEW'!$D$37,($A10-3),NPV('AVOID NEW'!$D$37,$D$5:$D10)) -> 189737.2131 | M10: 129.9569953 | N10: =-PMT('AVOID NEW'!$D$37,($A10-4),NPV('AVOID NEW'!$D$37,$D$6:$D10)) -> 191294.5212 | O10: 131.0236447 | P10: =-PMT('AVOID NEW'!$D$37,($A10-5),NPV('AVOID NEW'!$D$37,$D$7:$D10)) -> 192835.0146 | Q10: 132.0787771
A11: 10 | B11: 2036 | C11: 69.2751118 | D11: 200260.4932 | E11: 137.1647214 | F11: =-PMT('AVOID NEW'!$D$37,$A11,NPV('AVOID NEW'!$D$37,$D$2:$D11)) -> 186057.3488 | G11: 127.4365403 | H11: =-PMT('AVOID NEW'!$D$37,($A11-1),NPV('AVOID NEW'!$D$37,$D$3:$D11)) -> 187698.4065 | I11: 128.5605524 | J11: =-PMT('AVOID NEW'!$D$37,($A11-2),NPV('AVOID NEW'!$D$37,$D$4:$D11)) -> 189325.5871 | K11: 129.6750596 | L11: =-PMT('AVOID NEW'!$D$37,($A11-3),NPV('AVOID NEW'!$D$37,$D$5:$D11)) -> 190938.0671 | M11: 130.779498 | N11: =-PMT('AVOID NEW'!$D$37,($A11-4),NPV('AVOID NEW'!$D$37,$D$6:$D11)) -> 192535.0398 | O11: 131.873315 | P11: =-PMT('AVOID NEW'!$D$37,($A11-5),NPV('AVOID NEW'!$D$37,$D$7:$D11)) -> 194115.7175 | Q11: 132.9559709
A12: 11 | B12: 2037 | C12: 70.29761327 | D12: 203216.3404 | E12: 139.1892743 | F12: =-PMT('AVOID NEW'!$D$37,$A12,NPV('AVOID NEW'!$D$37,$D$2:$D12)) -> 187121.0926 | G12: 128.1651319 | H12: =-PMT('AVOID NEW'!$D$37,($A12-1),NPV('AVOID NEW'!$D$37,$D$3:$D12)) -> 188799.9913 | I12: 129.3150625 | J12: =-PMT('AVOID NEW'!$D$37,($A12-2),NPV('AVOID NEW'!$D$37,$D$4:$D12)) -> 190465.6612 | K12: 130.4559323 | L12: =-PMT('AVOID NEW'!$D$37,($A12-3),NPV('AVOID NEW'!$D$37,$D$5:$D12)) -> 192117.2515 | M12: 131.5871586 | N12: =-PMT('AVOID NEW'!$D$37,($A12-4),NPV('AVOID NEW'!$D$37,$D$6:$D12)) -> 193753.9262 | O12: 132.7081686 | P12: =-PMT('AVOID NEW'!$D$37,($A12-5),NPV('AVOID NEW'!$D$37,$D$7:$D12)) -> 195374.8662 | Q12: 133.8184015
A13: 12 | B13: 2038 | C13: 71.33548275 | D13: 206216.6135 | E13: 141.2442559 | F13: =-PMT('AVOID NEW'!$D$37,$A13,NPV('AVOID NEW'!$D$37,$D$2:$D13)) -> 188163.0808 | G13: 128.8788225 | H13: =-PMT('AVOID NEW'!$D$37,($A13-1),NPV('AVOID NEW'!$D$37,$D$3:$D13)) -> 189879.7064 | I13: 130.0545935 | J13: =-PMT('AVOID NEW'!$D$37,($A13-2),NPV('AVOID NEW'!$D$37,$D$4:$D13)) -> 191583.7875 | K13: 131.2217722 | L13: =-PMT('AVOID NEW'!$D$37,($A13-3),NPV('AVOID NEW'!$D$37,$D$5:$D13)) -> 193274.4471 | M13: 132.3797583 | N13: =-PMT('AVOID NEW'!$D$37,($A13-4),NPV('AVOID NEW'!$D$37,$D$6:$D13)) -> 194950.8214 | O13: 133.5279599 | P13: =-PMT('AVOID NEW'!$D$37,($A13-5),NPV('AVOID NEW'!$D$37,$D$7:$D13)) -> 196612.0618 | Q13: 134.6657957
A14: 13 | B14: 2039 | C14: 72.38895647 | D14: 209261.9954 | E14: 143.3301338 | F14: =-PMT('AVOID NEW'!$D$37,$A14,NPV('AVOID NEW'!$D$37,$D$2:$D14)) -> 189183.1405 | G14: 129.5774935 | H14: =-PMT('AVOID NEW'!$D$37,($A14-1),NPV('AVOID NEW'!$D$37,$D$3:$D14)) -> 190937.3428 | I14: 130.7790019 | J14: =-PMT('AVOID NEW'!$D$37,($A14-2),NPV('AVOID NEW'!$D$37,$D$4:$D14)) -> 192679.7192 | K14: 131.9724104 | L14: =-PMT('AVOID NEW'!$D$37,($A14-3),NPV('AVOID NEW'!$D$37,$D$5:$D14)) -> 194409.3688 | M14: 133.1571019 | N14: =-PMT('AVOID NEW'!$D$37,($A14-4),NPV('AVOID NEW'!$D$37,$D$6:$D14)) -> 196125.4013 | O14: 134.3324666 | P14: =-PMT('AVOID NEW'!$D$37,($A14-5),NPV('AVOID NEW'!$D$37,$D$7:$D14)) -> 197826.9398 | Q14: 135.497904
A15: 14 | B15: 2040 | C15: 73.45827436 | D15: 212353.1795 | E15: 145.4473832 | F15: =-PMT('AVOID NEW'!$D$37,$A15,NPV('AVOID NEW'!$D$37,$D$2:$D15)) -> 190181.1315 | G15: 130.261049 | H15: =-PMT('AVOID NEW'!$D$37,($A15-1),NPV('AVOID NEW'!$D$37,$D$3:$D15)) -> 191972.7246 | I15: 131.4881675 | J15: =-PMT('AVOID NEW'!$D$37,($A15-2),NPV('AVOID NEW'!$D$37,$D$4:$D15)) -> 193753.244 | K15: 132.7077014 | L15: =-PMT('AVOID NEW'!$D$37,($A15-3),NPV('AVOID NEW'!$D$37,$D$5:$D15)) -> 195521.7662 | M15: 133.9190179 | N15: =-PMT('AVOID NEW'!$D$37,($A15-4),NPV('AVOID NEW'!$D$37,$D$6:$D15)) -> 197277.3764 | O15: 135.1214907 | P15: =-PMT('AVOID NEW'!$D$37,($A15-5),NPV('AVOID NEW'!$D$37,$D$7:$D15)) -> 199019.1711 | Q15: 136.3145007
A16: 15 | B16: 2041 | C16: 74.54368015 | D16: 215490.8706 | E16: 147.5964867 | F16: =-PMT('AVOID NEW'!$D$37,$A16,NPV('AVOID NEW'!$D$37,$D$2:$D16)) -> 191156.9462 | G16: 130.9294152 | H16: =-PMT('AVOID NEW'!$D$37,($A16-1),NPV('AVOID NEW'!$D$37,$D$3:$D16)) -> 192985.7094 | I16: 132.1819927 | J16: =-PMT('AVOID NEW'!$D$37,($A16-2),NPV('AVOID NEW'!$D$37,$D$4:$D16)) -> 194804.1832 | K16: 133.4275227 | L16: =-PMT('AVOID NEW'!$D$37,($A16-3),NPV('AVOID NEW'!$D$37,$D$5:$D16)) -> 196611.4234 | M16: 134.6653585 | N16: =-PMT('AVOID NEW'!$D$37,($A16-4),NPV('AVOID NEW'!$D$37,$D$6:$D16)) -> 198406.4924 | O16: 135.8948578 | P16: =-PMT('AVOID NEW'!$D$37,($A16-5),NPV('AVOID NEW'!$D$37,$D$7:$D16)) -> 200188.4616 | Q16: 137.1153847
A17: 16 | B17: 2042 | C17: 75.64542141 | D17: 218675.7842 | E17: 149.7779344 | F17: =-PMT('AVOID NEW'!$D$37,$A17,NPV('AVOID NEW'!$D$37,$D$2:$D17)) -> 192110.5091 | G17: 131.5825405 | H17: =-PMT('AVOID NEW'!$D$37,($A17-1),NPV('AVOID NEW'!$D$37,$D$3:$D17)) -> 193976.1879 | I17: 132.8604027 | J17: =-PMT('AVOID NEW'!$D$37,($A17-2),NPV('AVOID NEW'!$D$37,$D$4:$D17)) -> 195832.3922 | K17: 134.1317755 | L17: =-PMT('AVOID NEW'!$D$37,($A17-3),NPV('AVOID NEW'!$D$37,$D$5:$D17)) -> 197678.159 | M17: 135.3959993 | N17: =-PMT('AVOID NEW'!$D$37,($A17-4),NPV('AVOID NEW'!$D$37,$D$6:$D17)) -> 199512.5299 | O17: 136.6524178 | P17: =-PMT('AVOID NEW'!$D$37,($A17-5),NPV('AVOID NEW'!$D$37,$D$7:$D17)) -> 201334.5531 | Q17: 137.9003789
A18: 17 | B18: 2043 | C18: 76.76374965 | D18: 221908.6475 | E18: 151.9922243 | F18: =-PMT('AVOID NEW'!$D$37,$A18,NPV('AVOID NEW'!$D$37,$D$2:$D18)) -> 193041.7763 | G18: 132.2203947 | H18: =-PMT('AVOID NEW'!$D$37,($A18-1),NPV('AVOID NEW'!$D$37,$D$3:$D18)) -> 194944.0833 | I18: 133.5233447 | J18: =-PMT('AVOID NEW'!$D$37,($A18-2),NPV('AVOID NEW'!$D$37,$D$4:$D18)) -> 196837.7599 | K18: 134.8203835 | L18: =-PMT('AVOID NEW'!$D$37,($A18-3),NPV('AVOID NEW'!$D$37,$D$5:$D18)) -> 198721.8262 | M18: 136.1108399 | N18: =-PMT('AVOID NEW'!$D$37,($A18-4),NPV('AVOID NEW'!$D$37,$D$6:$D18)) -> 200595.3049 | O18: 137.3940445 | P18: =-PMT('AVOID NEW'!$D$37,($A18-5),NPV('AVOID NEW'!$D$37,$D$7:$D18)) -> 202457.2229 | Q18: 138.6693308
A19: 18 | B19: 2044 | C19: 77.89892034 | D19: 225190.1989 | E19: 154.2398623 | F19: =-PMT('AVOID NEW'!$D$37,$A19,NPV('AVOID NEW'!$D$37,$D$2:$D19)) -> 193950.7349 | G19: 132.8429691 | H19: =-PMT('AVOID NEW'!$D$37,($A19-1),NPV('AVOID NEW'!$D$37,$D$3:$D19)) -> 195889.3509 | I19: 134.1707883 | J19: =-PMT('AVOID NEW'!$D$37,($A19-2),NPV('AVOID NEW'!$D$37,$D$4:$D19)) -> 197820.2081 | K19: 135.4932932 | L19: =-PMT('AVOID NEW'!$D$37,($A19-3),NPV('AVOID NEW'!$D$37,$D$5:$D19)) -> 199742.3119 | M19: 136.8098027 | N19: =-PMT('AVOID NEW'!$D$37,($A19-4),NPV('AVOID NEW'!$D$37,$D$6:$D19)) -> 201654.6679 | O19: 138.1196356 | P19: =-PMT('AVOID NEW'!$D$37,($A19-5),NPV('AVOID NEW'!$D$37,$D$7:$D19)) -> 203556.2838 | Q19: 139.4221122
A20: 19 | B20: 2045 | C20: 79.05119297 | D20: 228521.1886 | E20: 156.5213621 | F20: =-PMT('AVOID NEW'!$D$37,$A20,NPV('AVOID NEW'!$D$37,$D$2:$D20)) -> 194837.4021 | G20: 133.4502754 | H20: =-PMT('AVOID NEW'!$D$37,($A20-1),NPV('AVOID NEW'!$D$37,$D$3:$D20)) -> 196811.9775 | I20: 134.8027243 | J20: =-PMT('AVOID NEW'!$D$37,($A20-2),NPV('AVOID NEW'!$D$37,$D$4:$D20)) -> 198779.6914 | K20: 136.1504736 | L20: =-PMT('AVOID NEW'!$D$37,($A20-3),NPV('AVOID NEW'!$D$37,$D$5:$D20)) -> 200739.5368 | M20: 137.4928334 | N20: =-PMT('AVOID NEW'!$D$37,($A20-4),NPV('AVOID NEW'!$D$37,$D$6:$D20)) -> 202690.5042 | O20: 138.8291125 | P20: =-PMT('AVOID NEW'!$D$37,($A20-5),NPV('AVOID NEW'!$D$37,$D$7:$D20)) -> 204631.5842 | Q20: 140.1586193
A21: 20 | B21: 2046 | C21: 80.22083118 | D21: 231902.3788 | E21: 158.8372457 | F21: =-PMT('AVOID NEW'!$D$37,$A21,NPV('AVOID NEW'!$D$37,$D$2:$D21)) -> 195701.8248 | G21: 134.0423457 | H21: =-PMT('AVOID NEW'!$D$37,($A21-1),NPV('AVOID NEW'!$D$37,$D$3:$D21)) -> 197711.9804 | I21: 135.4191647 | J21: =-PMT('AVOID NEW'!$D$37,($A21-2),NPV('AVOID NEW'!$D$37,$D$4:$D21)) -> 199716.1961 | K21: 136.7919152 | L21: =-PMT('AVOID NEW'!$D$37,($A21-3),NPV('AVOID NEW'!$D$37,$D$5:$D21)) -> 201713.4544 | M21: 138.1599003 | N21: =-PMT('AVOID NEW'!$D$37,($A21-4),NPV('AVOID NEW'!$D$37,$D$6:$D21)) -> 203702.733 | O21: 139.5224198 | P21: =-PMT('AVOID NEW'!$D$37,($A21-5),NPV('AVOID NEW'!$D$37,$D$7:$D21)) -> 205683.0072 | Q21: 140.878772
A22: 21 | B22: 2047 | C22: 81.40810275 | D22: 235334.5434 | E22: 161.1880435 | H22: =-PMT('AVOID NEW'!$D$37,($A22-1),NPV('AVOID NEW'!$D$37,$D$3:$D22)) -> 198589.407 | I22: 136.0201418 | J22: =-PMT('AVOID NEW'!$D$37,($A22-2),NPV('AVOID NEW'!$D$37,$D$4:$D22)) -> 200629.7399 | K22: 137.4176301 | L22: =-PMT('AVOID NEW'!$D$37,($A22-3),NPV('AVOID NEW'!$D$37,$D$5:$D22)) -> 202664.0509 | M22: 138.8109938 | N22: =-PMT('AVOID NEW'!$D$37,($A22-4),NPV('AVOID NEW'!$D$37,$D$6:$D22)) -> 204691.3071 | O22: 140.1995254 | P22: =-PMT('AVOID NEW'!$D$37,($A22-5),NPV('AVOID NEW'!$D$37,$D$7:$D22)) -> 206710.4708 | Q22: 141.5825142
A23: 22 | B23: 2048 | C23: 82.61327973 | D23: 238818.469 | E23: 163.5742939 | J23: =-PMT('AVOID NEW'!$D$37,($A23-2),NPV('AVOID NEW'!$D$37,$D$4:$D23)) -> 201520.3705 | K23: 138.027651 | L23: =-PMT('AVOID NEW'!$D$37,($A23-3),NPV('AVOID NEW'!$D$37,$D$5:$D23)) -> 203591.3438 | M23: 139.4461259 | N23: =-PMT('AVOID NEW'!$D$37,($A23-4),NPV('AVOID NEW'!$D$37,$D$6:$D23)) -> 205656.2121 | O23: 140.8604193 | P23: =-PMT('AVOID NEW'!$D$37,($A23-5),NPV('AVOID NEW'!$D$37,$D$7:$D23)) -> 207713.9269 | Q23: 142.269813
A24: 23 | B24: 2049 | C24: 83.83663845 | D24: 242354.9544 | E24: 165.9965441 | L24: =-PMT('AVOID NEW'!$D$37,($A24-3),NPV('AVOID NEW'!$D$37,$D$5:$D24)) -> 204495.3817 | M24: 140.06533 | N24: =-PMT('AVOID NEW'!$D$37,($A24-4),NPV('AVOID NEW'!$D$37,$D$6:$D24)) -> 206597.466 | O24: 141.5051137 | P24: =-PMT('AVOID NEW'!$D$37,($A24-5),NPV('AVOID NEW'!$D$37,$D$7:$D24)) -> 208693.361 | Q24: 142.9406582
A25: 24 | B25: 2050 | C25: 85.07845965 | D25: =C25*365*24*0.33 -> 245944.8112 | E25: 168.4553501 | N25: =-PMT('AVOID NEW'!$D$37,($A25-4),NPV('AVOID NEW'!$D$37,$D$6:$D25)) -> 207515.1176 | O25: 142.1336422 | P25: =-PMT('AVOID NEW'!$D$37,($A25-5),NPV('AVOID NEW'!$D$37,$D$7:$D25)) -> 209648.7907 | Q25: 143.5950621
A26: 25 | B26: 2051 | C26: 86.33902851 | D26: =C26*365*24*0.33 -> 249588.8636 | E26: 170.9512765 | P26: =-PMT('AVOID NEW'!$D$37,($A26-5),NPV('AVOID NEW'!$D$37,$D$7:$D26)) -> 210580.2659 | Q26: 144.2330588
C27: 87.61863475
C28: 88.91757267
C29: 90.23614126
C30: 91.57464426
C31: 92.93339024
A32: AVOIDED COST OF CAPACITY FOR ENERGY STORAGE (IPCO) (Avoided cost of capacity for energy storage is only available for generation during peak hours in accordance with Order No. 34913.)
A33: =B1 -> Calendar Year | B33: Non-levelized Avoided Cost of Capacity during Peak Hours ($/MWh) | C33: Contract Length | D33: Levelized Avoided Cost of Capacity during Peak Hours ($/MWh)
D34: Online Year 2027 | E34: Online Year 2028 | F34: Online Year 2029 | G34: Online Year 2030 | H34: Online Year 2031 | I34: Online Year 2032
A35: =B2 -> 2027 | B35: =E2 -> 120.2393705 | C35: 1 | D35: =G2 -> 120.2393705 | E35: =I3 -> 122.0099507 | F35: =K4 -> 123.8070637 | G35: =M5 -> 125.6311157 | H35: =O6 -> 127.4825195 | I35: =Q7 -> 129.3616943
A36: 2028 | B36: =E3 -> 122.0099507 | C36: 2 | D36: =G3 -> 121.0930325 | E36: =I4 -> 122.8764051 | F36: =K5 -> 124.6865064 | G36: =M6 -> 126.5237457 | H36: =O7 -> 128.388539 | I36: =Q8 -> 130.2813085
A37: 2029 | B37: 123.8070637 | C37: 3 | D37: 121.933865 | E37: 123.7298405 | F37: 125.5527377 | G37: 127.4029691 | H37: 129.2809535 | I37: 131.1871166
A38: 2030 | B38: 125.6311157 | C38: 4 | D38: 122.7615517 | E38: 124.5699356 | F38: 126.4054314 | G38: 128.2684545 | H38: 130.1594269 | I38: 132.0787771
A39: 2031 | B39: 127.4825195 | C39: 5 | D39: 123.5757965 | E39: 125.3963901 | F39: 127.2442826 | G39: 129.1198925 | H39: 131.0236447 | I39: 132.9559709
A40: 2032 | B40: 129.3616943 | C40: 6 | D40: 124.3763247 | E40: 126.2089248 | F40: 128.0690079 | G40: 129.9569953 | H40: 131.873315 | I40: 133.8184015
A41: 2033 | B41: 131.269066 | C41: 7 | D41: 125.1628833 | E41: 127.0072828 | F41: 128.8793464 | G41: 130.779498 | H41: 132.7081686 | I41: 134.6657957
A42: 2034 | B42: 133.205067 | C42: 8 | D42: 125.9352409 | E42: 127.7912294 | F42: 129.6750596 | G42: 131.5871586 | H42: 133.5279599 | I42: 135.497904
A43: 2035 | B43: =$E10 -> 135.1701367 | C43: 9 | D43: 126.6931887 | E43: 128.5605524 | F43: 130.4559323 | G43: 132.3797583 | H43: 134.3324666 | I43: 136.3145007
A44: 2036 | B44: 137.1647214 | C44: 10 | D44: 127.4365403 | E44: 129.3150625 | F44: 131.2217722 | G44: 133.1571019 | H44: 135.1214907 | I44: 137.1153847
A45: 2037 | B45: 139.1892743 | C45: 11 | D45: 128.1651319 | E45: 130.0545935 | F45: 131.9724104 | G45: 133.9190179 | H45: 135.8948578 | I45: 137.9003789
A46: 2038 | B46: 141.2442559 | C46: 12 | D46: 128.8788225 | E46: 130.7790019 | F46: 132.7077014 | G46: 134.6653585 | H46: 136.6524178 | I46: 138.6693308
A47: 2039 | B47: 143.3301338 | C47: 13 | D47: 129.5774935 | E47: 131.4881675 | F47: 133.4275227 | G47: 135.3959993 | H47: 137.3940445 | I47: 139.4221122
A48: 2040 | B48: 145.4473832 | C48: 14 | D48: 130.261049 | E48: 132.1819927 | F48: 134.1317755 | G48: 136.1108399 | H48: 138.1196356 | I48: 140.1586193
A49: 2041 | B49: 147.5964867 | C49: 15 | D49: 130.9294152 | E49: 132.8604027 | F49: 134.8203835 | G49: 136.8098027 | H49: 138.8291125 | I49: 140.878772
A50: 2042 | B50: 149.7779344 | C50: 16 | D50: 131.5825405 | E50: 133.5233447 | F50: 135.4932932 | G50: 137.4928334 | H50: 139.5224198 | I50: 141.5825142
A51: 2043 | B51: 151.9922243 | C51: 17 | D51: 132.2203947 | E51: 134.1707883 | F51: 136.1504736 | G51: 138.1599003 | H51: 140.1995254 | I51: 142.269813
A52: 2044 | B52: 154.2398623 | C52: 18 | D52: 132.8429691 | E52: 134.8027243 | F52: 136.7919152 | G52: 138.8109938 | H52: 140.8604193 | I52: 142.9406582
A53: 2045 | B53: 156.5213621 | C53: 19 | D53: 133.4502754 | E53: 135.4191647 | F53: 137.4176301 | G53: 139.4461259 | H53: 141.5051137 | I53: 143.5950621
A54: 2046 | B54: 158.8372457 | C54: 20 | D54: 134.0423457 | E54: 136.0201418 | F54: 138.027651 | G54: 140.06533 | H54: 142.1336422 | I54: 144.2330588
A55: 2047 | B55: 161.1880435
A56: 2048 | B56: 163.5742939
A57: 2049 | B57: 165.9965441
A58: 2050 | B58: 168.4553501
A59: 2051 | B59: 170.9512765

Sheet IPCOStorage(WinterCapacity)
A1: Years since the first deficit (Years) | B1: Calendar Year | C1: Column T in AVOID NEW (This represents annual value of CCCT in $/MW divided by (365*24*annual availability factor of chosen technology category, e.g. wind)) | D1: Non-Levelized Winter Value of CCCT in $/MW (using wind's annual capacity factor of 33%, winter distribution of 16.7%) | E1: Spreading Non-Levelized Winter Value of CCCT over Winter Peak Hours ($/MWh) | F1: Levelized Winter Value of CCCT in $/MW with Online Year of 2027 | G1: Spreading Levelized Winter Value of CCCT over Winter Peak Hours ($/MWh) with Online Year of 2027 | H1: Levelized Winter Value of CCCT in $/MW with Online Year of 2028 | I1: Spreading Levelized Winter Value of CCCT over Winter Peak Hours ($/MWh) with Online Year of 2028 | J1: Levelized Winter Value of CCCT in $/MW with Online Year of 2029 | K1: Spreading Levelized Winter Value of CCCT over Winter Peak Hours ($/MWh) with Online Year of 2029 | L1: Levelized Winter Value of CCCT in $/MW with Online Year of 2030 | M1: Spreading Levelized Winter Value of CCCT over Winter Peak Hours ($/MWh) with Online Year of 2030 | N1: Levelized Winter Value of CCCT in $/MW with Online Year of 2031 | O1: Spreading Levelized Winter Value of CCCT over Winter Peak Hours ($/MWh) with Online Year of 2031 | P1: Levelized Winter Value of CCCT in $/MW with Online Year of 2032 | Q1: Spreading Levelized Winter Value of CCCT over Winter Peak Hours ($/MWh) with Online Year of 2032
A2: 1 | B2: 2027 | C2: 60.72695479 | D2: =C2*365*24*0.33*'AVOID NEW'!$D$70 -> 29316.76331 | E2: =D2/$X$6 -> 35.0678987 | F2: =-PMT('AVOID NEW'!$D$37,$A2,NPV('AVOID NEW'!$D$37,$D$2:$D2)) -> 29316.76331 | G2: =F2/$X$6 -> 35.0678987 | V2: Total 2026 Hours
A3: 2 | B3: 2028 | C3: 61.62118724 | D3: =C3*365*24*0.33*'AVOID NEW'!$D$70 -> 29748.46619 | E3: =D3/$X$6 -> 35.5842897 | F3: =-PMT('AVOID NEW'!$D$37,$A3,NPV('AVOID NEW'!$D$37,$D$2:$D3)) -> 29524.90318 | G3: =F3/$X$6 -> 35.31686984 | H3: =-PMT('AVOID NEW'!$D$37,($A3-1),NPV('AVOID NEW'!$D$37,$D3:$D$3)) -> 29748.46619 | I3: =H3/$X$6 -> 35.5842897 | V3: Period | W3: Jun. 15 - Sep. 15 | X3: Nov. 15 - Feb. 15
A4: 3 | B4: 2029 | C4: 62.52882005 | D4: =C4*365*24*0.33*'AVOID NEW'!$D$70 -> 30186.63827 | E4: 36.10841898 | F4: =-PMT('AVOID NEW'!$D$37,$A4,NPV('AVOID NEW'!$D$37,$D$2:$D4)) -> 29729.91497 | G4: 35.56209925 | H4: =-PMT('AVOID NEW'!$D$37,($A4-1),NPV('AVOID NEW'!$D$37,$D$3:$D4)) -> 29959.7251 | I4: =H4/$X$6 -> 35.83699175 | J4: =-PMT('AVOID NEW'!$D$37,($A4-2),NPV('AVOID NEW'!$D$37,$D$4:$D4)) -> 30186.63827 | K4: =J4/$X$6 -> 36.10841898 | V4: Non-Premium Peak | W4: 234 | X4: 380
A5: 4 | B5: 2030 | C5: 63.45005844 | D5: =C5*365*24*0.33*'AVOID NEW'!$D$70 -> 30631.37863 | E5: 36.64040506 | F5: =-PMT('AVOID NEW'!$D$37,$A5,NPV('AVOID NEW'!$D$37,$D$2:$D5)) -> 29931.72153 | G5: 35.80349465 | H5: =-PMT('AVOID NEW'!$D$37,($A5-1),NPV('AVOID NEW'!$D$37,$D$3:$D5)) -> 30167.80972 | I5: 36.08589679 | J5: =-PMT('AVOID NEW'!$D$37,($A5-2),NPV('AVOID NEW'!$D$37,$D$4:$D5)) -> 30401.06399 | K5: =J5/$X$6 -> 36.36490908 | L5: =-PMT('AVOID NEW'!$D$37,($A5-3),NPV('AVOID NEW'!$D$37,$D$5:$D5)) -> 30631.37863 | M5: =L5/$X$6 -> 36.64040506 | V5: Premium Peak | W5: 390 | X5: 456
A6: 5 | B6: 2031 | C6: 64.38511086 | D6: =C6*365*24*0.33*'AVOID NEW'!$D$70 -> 31082.7879 | E6: 37.18036831 | F6: =-PMT('AVOID NEW'!$D$37,$A6,NPV('AVOID NEW'!$D$37,$D$2:$D6)) -> 30130.2507 | G6: 36.04096974 | H6: =-PMT('AVOID NEW'!$D$37,($A6-1),NPV('AVOID NEW'!$D$37,$D$3:$D6)) -> 30372.64171 | I6: 36.33091114 | J6: =-PMT('AVOID NEW'!$D$37,($A6-2),NPV('AVOID NEW'!$D$37,$D$4:$D6)) -> 30612.26851 | K6: 36.61754607 | L6: =-PMT('AVOID NEW'!$D$37,($A6-3),NPV('AVOID NEW'!$D$37,$D$5:$D6)) -> 30849.01968 | M6: =L6/$X$6 -> 36.90074125 | N6: =-PMT('AVOID NEW'!$D$37,($A6-4),NPV('AVOID NEW'!$D$37,$D$6:$D6)) -> 31082.7879 | O6: =N6/$X$6 -> 37.18036831 | T6: Total Peak Hours in a year | W6: =SUM(W4:W5) -> 624 | X6: =SUM(X4:X5) -> 836
A7: 6 | B7: 2032 | C7: 65.33418905 | D7: =C7*365*24*0.33*'AVOID NEW'!$D$70 -> 31540.96831 | E7: 37.72843099 | F7: =-PMT('AVOID NEW'!$D$37,$A7,NPV('AVOID NEW'!$D$37,$D$2:$D7)) -> 30325.4355 | G7: 36.27444438 | H7: =-PMT('AVOID NEW'!$D$37,($A7-1),NPV('AVOID NEW'!$D$37,$D$3:$D7)) -> 30574.14782 | I7: 36.57194716 | J7: =-PMT('AVOID NEW'!$D$37,($A7-2),NPV('AVOID NEW'!$D$37,$D$4:$D7)) -> 30820.1723 | K7: 36.8662348 | L7: =-PMT('AVOID NEW'!$D$37,($A7-3),NPV('AVOID NEW'!$D$37,$D$5:$D7)) -> 31063.39191 | M7: 37.15716736 | N7: =-PMT('AVOID NEW'!$D$37,($A7-4),NPV('AVOID NEW'!$D$37,$D$6:$D7)) -> 31303.69357 | O7: =N7/$X$6 -> 37.44460953 | P7: =-PMT('AVOID NEW'!$D$37,($A7-5),NPV('AVOID NEW'!$D$37,$D$7:$D7)) -> 31540.96831 | Q7: =P7/$X$6 -> 37.72843099 | T7: =W6+X6 -> 1460
A8: 7 | B8: 2033 | C8: 66.29750807 | D8: =C8*365*24*0.33*'AVOID NEW'!$D$70 -> 32006.02367 | E8: 38.2847173 | F8: =-PMT('AVOID NEW'!$D$37,$A8,NPV('AVOID NEW'!$D$37,$D$2:$D8)) -> 30517.2142 | G8: 36.50384473 | H8: =-PMT('AVOID NEW'!$D$37,($A8-1),NPV('AVOID NEW'!$D$37,$D$3:$D8)) -> 30772.26004 | I8: 36.8089235 | J8: =-PMT('AVOID NEW'!$D$37,($A8-2),NPV('AVOID NEW'!$D$37,$D$4:$D8)) -> 31024.70098 | K8: 37.11088634 | L8: =-PMT('AVOID NEW'!$D$37,($A8-3),NPV('AVOID NEW'!$D$37,$D$5:$D8)) -> 31274.41458 | M8: 37.40958682 | N8: =-PMT('AVOID NEW'!$D$37,($A8-4),NPV('AVOID NEW'!$D$37,$D$6:$D8)) -> 31521.28208 | O8: 37.70488287 | P8: =-PMT('AVOID NEW'!$D$37,($A8-5),NPV('AVOID NEW'!$D$37,$D$7:$D8)) -> 31765.18864 | Q8: =P8/$X$6 -> 37.99663713
A9: 8 | B9: 2034 | C9: 67.27528636 | D9: =C9*365*24*0.33*'AVOID NEW'!$D$70 -> 32478.05943 | E9: 38.84935339 | F9: =-PMT('AVOID NEW'!$D$37,$A9,NPV('AVOID NEW'!$D$37,$D$2:$D9)) -> 30705.53043 | G9: 36.72910338 | H9: =-PMT('AVOID NEW'!$D$37,($A9-1),NPV('AVOID NEW'!$D$37,$D$3:$D9)) -> 30966.9157 | I9: 37.04176519 | J9: =-PMT('AVOID NEW'!$D$37,($A9-2),NPV('AVOID NEW'!$D$37,$D$4:$D9)) -> 31225.7855 | K9: 37.35141806 | L9: =-PMT('AVOID NEW'!$D$37,($A9-3),NPV('AVOID NEW'!$D$37,$D$5:$D9)) -> 31482.01218 | M9: 37.65790931 | N9: =-PMT('AVOID NEW'!$D$37,($A9-4),NPV('AVOID NEW'!$D$37,$D$6:$D9)) -> 31735.47146 | O9: 37.96109026 | P9: =-PMT('AVOID NEW'!$D$37,($A9-5),NPV('AVOID NEW'!$D$37,$D$7:$D9)) -> 31986.04276 | Q9: 38.2608167
A10: 9 | B10: 2035 | C10: 68.26774581 | D10: =C10*365*24*0.33*'AVOID NEW'!$D$70 -> 32957.18273 | E10: 39.42246738 | F10: =-PMT('AVOID NEW'!$D$37,$A10,NPV('AVOID NEW'!$D$37,$D$2:$D10)) -> 30890.33326 | G10: 36.9501594 | H10: =-PMT('AVOID NEW'!$D$37,($A10-1),NPV('AVOID NEW'!$D$37,$D$3:$D10)) -> 31158.05755 | I10: 37.27040377 | J10: =-PMT('AVOID NEW'!$D$37,($A10-2),NPV('AVOID NEW'!$D$37,$D$4:$D10)) -> 31423.36223 | K10: 37.58775386 | L10: =-PMT('AVOID NEW'!$D$37,($A10-3),NPV('AVOID NEW'!$D$37,$D$5:$D10)) -> 31686.11459 | M10: 37.90205095 | N10: =-PMT('AVOID NEW'!$D$37,($A10-4),NPV('AVOID NEW'!$D$37,$D$6:$D10)) -> 31946.18505 | O10: 38.21314001 | P10: =-PMT('AVOID NEW'!$D$37,($A10-5),NPV('AVOID NEW'!$D$37,$D$7:$D10)) -> 32203.44743 | Q10: 38.52087013
A11: 10 | B11: 2036 | C11: 69.2751118 | D11: =C11*365*24*0.33*'AVOID NEW'!$D$70 -> 33443.50236 | E11: 40.00418943 | F11: =-PMT('AVOID NEW'!$D$37,$A11,NPV('AVOID NEW'!$D$37,$D$2:$D11)) -> 31071.57725 | G11: 37.16695843 | H11: =-PMT('AVOID NEW'!$D$37,($A11-1),NPV('AVOID NEW'!$D$37,$D$3:$D11)) -> 31345.63388 | I11: 37.49477737 | J11: =-PMT('AVOID NEW'!$D$37,($A11-2),NPV('AVOID NEW'!$D$37,$D$4:$D11)) -> 31617.37304 | K11: 37.81982421 | L11: =-PMT('AVOID NEW'!$D$37,($A11-3),NPV('AVOID NEW'!$D$37,$D$5:$D11)) -> 31886.6572 | M11: 38.14193445 | N11: =-PMT('AVOID NEW'!$D$37,($A11-4),NPV('AVOID NEW'!$D$37,$D$6:$D11)) -> 32153.35165 | O11: 38.46094695 | P11: =-PMT('AVOID NEW'!$D$37,($A11-5),NPV('AVOID NEW'!$D$37,$D$7:$D11)) -> 32417.32483 | Q11: 38.77670434
A12: 11 | B12: 2037 | C12: 70.29761327 | D12: =C12*365*24*0.33*'AVOID NEW'!$D$70 -> 33937.12885 | E12: 40.59465174 | F12: =-PMT('AVOID NEW'!$D$37,$A12,NPV('AVOID NEW'!$D$37,$D$2:$D12)) -> 31249.22247 | G12: 37.37945271 | H12: =-PMT('AVOID NEW'!$D$37,($A12-1),NPV('AVOID NEW'!$D$37,$D$3:$D12)) -> 31529.59854 | I12: 37.71483079 | J12: =-PMT('AVOID NEW'!$D$37,($A12-2),NPV('AVOID NEW'!$D$37,$D$4:$D12)) -> 31807.76542 | K12: 38.0475663 | L12: =-PMT('AVOID NEW'!$D$37,($A12-3),NPV('AVOID NEW'!$D$37,$D$5:$D12)) -> 32083.581 | M12: 38.37748924 | N12: =-PMT('AVOID NEW'!$D$37,($A12-4),NPV('AVOID NEW'!$D$37,$D$6:$D12)) -> 32356.90567 | O12: 38.70443262 | P12: =-PMT('AVOID NEW'!$D$37,($A12-5),NPV('AVOID NEW'!$D$37,$D$7:$D12)) -> 32627.60266 | Q12: 39.02823285
A13: 12 | B13: 2038 | C13: 71.33548275 | D13: =C13*365*24*0.33*'AVOID NEW'!$D$70 -> 34438.17446 | E13: 41.19398859 | F13: =-PMT('AVOID NEW'!$D$37,$A13,NPV('AVOID NEW'!$D$37,$D$2:$D13)) -> 31423.2345 | G13: 37.58760108 | H13: =-PMT('AVOID NEW'!$D$37,($A13-1),NPV('AVOID NEW'!$D$37,$D$3:$D13)) -> 31709.91098 | I13: 37.93051552 | J13: =-PMT('AVOID NEW'!$D$37,($A13-2),NPV('AVOID NEW'!$D$37,$D$4:$D13)) -> 31994.49251 | K13: 38.27092405 | L13: =-PMT('AVOID NEW'!$D$37,($A13-3),NPV('AVOID NEW'!$D$37,$D$5:$D13)) -> 32276.83266 | M13: 38.60865151 | N13: =-PMT('AVOID NEW'!$D$37,($A13-4),NPV('AVOID NEW'!$D$37,$D$6:$D13)) -> 32556.78717 | O13: 38.94352533 | P13: =-PMT('AVOID NEW'!$D$37,($A13-5),NPV('AVOID NEW'!$D$37,$D$7:$D13)) -> 32834.21432 | Q13: 39.27537598
A14: 13 | B14: 2039 | C14: 72.38895647 | D14: =C14*365*24*0.33*'AVOID NEW'!$D$70 -> 34946.75323 | E14: 41.80233639 | F14: =-PMT('AVOID NEW'!$D$37,$A14,NPV('AVOID NEW'!$D$37,$D$2:$D14)) -> 31593.58447 | G14: 37.79136898 | H14: =-PMT('AVOID NEW'!$D$37,($A14-1),NPV('AVOID NEW'!$D$37,$D$3:$D14)) -> 31886.53625 | I14: 38.14178977 | J14: =-PMT('AVOID NEW'!$D$37,($A14-2),NPV('AVOID NEW'!$D$37,$D$4:$D14)) -> 32177.51311 | K14: 38.48984822 | L14: =-PMT('AVOID NEW'!$D$37,($A14-3),NPV('AVOID NEW'!$D$37,$D$5:$D14)) -> 32466.36459 | M14: 38.83536434 | N14: =-PMT('AVOID NEW'!$D$37,($A14-4),NPV('AVOID NEW'!$D$37,$D$6:$D14)) -> 32752.94201 | O14: 39.1781603 | P14: =-PMT('AVOID NEW'!$D$37,($A14-5),NPV('AVOID NEW'!$D$37,$D$7:$D14)) -> 33037.09895 | Q14: 39.51806094
A15: 14 | B15: 2040 | C15: 73.45827436 | D15: =C15*365*24*0.33*'AVOID NEW'!$D$70 -> 35462.98098 | E15: 42.41983371 | F15: =-PMT('AVOID NEW'!$D$37,$A15,NPV('AVOID NEW'!$D$37,$D$2:$D15)) -> 31760.24896 | G15: 37.99072843 | H15: =-PMT('AVOID NEW'!$D$37,($A15-1),NPV('AVOID NEW'!$D$37,$D$3:$D15)) -> 32059.445 | I15: 38.34861843 | J15: =-PMT('AVOID NEW'!$D$37,($A15-2),NPV('AVOID NEW'!$D$37,$D$4:$D15)) -> 32356.79175 | K15: 38.70429635 | L15: =-PMT('AVOID NEW'!$D$37,($A15-3),NPV('AVOID NEW'!$D$37,$D$5:$D15)) -> 32652.13495 | M15: 39.05757769 | N15: =-PMT('AVOID NEW'!$D$37,($A15-4),NPV('AVOID NEW'!$D$37,$D$6:$D15)) -> 32945.32186 | O15: 39.40827973 | P15: =-PMT('AVOID NEW'!$D$37,($A15-5),NPV('AVOID NEW'!$D$37,$D$7:$D15)) -> 33236.20157 | Q15: 39.75622197
A16: 15 | B16: 2041 | C16: 74.54368015 | D16: =C16*365*24*0.33*'AVOID NEW'!$D$70 -> 35986.97538 | E16: 43.04662127 | F16: =-PMT('AVOID NEW'!$D$37,$A16,NPV('AVOID NEW'!$D$37,$D$2:$D16)) -> 31923.21002 | G16: 38.18565792 | H16: =-PMT('AVOID NEW'!$D$37,($A16-1),NPV('AVOID NEW'!$D$37,$D$3:$D16)) -> 32228.61347 | I16: 38.55097305 | J16: =-PMT('AVOID NEW'!$D$37,($A16-2),NPV('AVOID NEW'!$D$37,$D$4:$D16)) -> 32532.29859 | K16: 38.91423277 | L16: =-PMT('AVOID NEW'!$D$37,($A16-3),NPV('AVOID NEW'!$D$37,$D$5:$D16)) -> 32834.1077 | M16: 39.27524845 | N16: =-PMT('AVOID NEW'!$D$37,($A16-4),NPV('AVOID NEW'!$D$37,$D$6:$D16)) -> 33133.88422 | O16: 39.6338328 | P16: =-PMT('AVOID NEW'!$D$37,($A16-5),NPV('AVOID NEW'!$D$37,$D$7:$D16)) -> 33431.47309 | Q16: 39.98980035
A17: 16 | B17: 2042 | C17: 75.64542141 | D17: =C17*365*24*0.33*'AVOID NEW'!$D$70 -> 36518.85597 | E17: 43.68284206 | F17: =-PMT('AVOID NEW'!$D$37,$A17,NPV('AVOID NEW'!$D$37,$D$2:$D17)) -> 32082.45502 | G17: 38.37614237 | H17: =-PMT('AVOID NEW'!$D$37,($A17-1),NPV('AVOID NEW'!$D$37,$D$3:$D17)) -> 32394.02338 | I17: 38.74883179 | J17: =-PMT('AVOID NEW'!$D$37,($A17-2),NPV('AVOID NEW'!$D$37,$D$4:$D17)) -> 32704.0095 | K17: 39.11962859 | L17: =-PMT('AVOID NEW'!$D$37,($A17-3),NPV('AVOID NEW'!$D$37,$D$5:$D17)) -> 33012.25256 | M17: 39.48834038 | N17: =-PMT('AVOID NEW'!$D$37,($A17-4),NPV('AVOID NEW'!$D$37,$D$6:$D17)) -> 33318.5925 | O17: 39.85477572 | P17: =-PMT('AVOID NEW'!$D$37,($A17-5),NPV('AVOID NEW'!$D$37,$D$7:$D17)) -> 33622.87037 | Q17: 40.21874447
A18: 17 | B18: 2043 | C18: 76.76374965 | D18: =C18*365*24*0.33*'AVOID NEW'!$D$70 -> 37058.74413 | E18: 44.32864131 | F18: =-PMT('AVOID NEW'!$D$37,$A18,NPV('AVOID NEW'!$D$37,$D$2:$D18)) -> 32237.97664 | G18: 38.56217302 | H18: =-PMT('AVOID NEW'!$D$37,($A18-1),NPV('AVOID NEW'!$D$37,$D$3:$D18)) -> 32555.66191 | I18: 38.94217932 | J18: =-PMT('AVOID NEW'!$D$37,($A18-2),NPV('AVOID NEW'!$D$37,$D$4:$D18)) -> 32871.9059 | K18: 39.3204616 | L18: =-PMT('AVOID NEW'!$D$37,($A18-3),NPV('AVOID NEW'!$D$37,$D$5:$D18)) -> 33186.54498 | M18: 39.69682414 | N18: =-PMT('AVOID NEW'!$D$37,($A18-4),NPV('AVOID NEW'!$D$37,$D$6:$D18)) -> 33499.41592 | O18: 40.07107167 | P18: =-PMT('AVOID NEW'!$D$37,($A18-5),NPV('AVOID NEW'!$D$37,$D$7:$D18)) -> 33810.35623 | Q18: 40.44300984
A19: 18 | B19: 2044 | C19: 77.89892034 | D19: =C19*365*24*0.33*'AVOID NEW'!$D$70 -> 37606.76322 | E19: 44.98416653 | F19: =-PMT('AVOID NEW'!$D$37,$A19,NPV('AVOID NEW'!$D$37,$D$2:$D19)) -> 32389.77272 | G19: 38.74374728 | H19: =-PMT('AVOID NEW'!$D$37,($A19-1),NPV('AVOID NEW'!$D$37,$D$3:$D19)) -> 32713.52161 | I19: 39.1310067 | J19: =-PMT('AVOID NEW'!$D$37,($A19-2),NPV('AVOID NEW'!$D$37,$D$4:$D19)) -> 33035.97475 | K19: 39.51671621 | L19: =-PMT('AVOID NEW'!$D$37,($A19-3),NPV('AVOID NEW'!$D$37,$D$5:$D19)) -> 33356.96609 | M19: 39.90067714 | N19: =-PMT('AVOID NEW'!$D$37,($A19-4),NPV('AVOID NEW'!$D$37,$D$6:$D19)) -> 33676.32955 | O19: 40.28269084 | P19: =-PMT('AVOID NEW'!$D$37,($A19-5),NPV('AVOID NEW'!$D$37,$D$7:$D19)) -> 33993.8994 | Q19: 40.66255909
A20: 19 | B20: 2045 | C20: 79.05119297 | D20: =C20*365*24*0.33*'AVOID NEW'!$D$70 -> 38163.0385 | E20: 45.64956759 | F20: =-PMT('AVOID NEW'!$D$37,$A20,NPV('AVOID NEW'!$D$37,$D$2:$D20)) -> 32537.84615 | G20: 38.92086861 | H20: =-PMT('AVOID NEW'!$D$37,($A20-1),NPV('AVOID NEW'!$D$37,$D$3:$D20)) -> 32867.60024 | I20: 39.31531129 | J20: =-PMT('AVOID NEW'!$D$37,($A20-2),NPV('AVOID NEW'!$D$37,$D$4:$D20)) -> 33196.20846 | K20: 39.70838333 | L20: =-PMT('AVOID NEW'!$D$37,($A20-3),NPV('AVOID NEW'!$D$37,$D$5:$D20)) -> 33523.50264 | M20: 40.09988354 | N20: =-PMT('AVOID NEW'!$D$37,($A20-4),NPV('AVOID NEW'!$D$37,$D$6:$D20)) -> 33849.3142 | O20: 40.48961029 | P20: =-PMT('AVOID NEW'!$D$37,($A20-5),NPV('AVOID NEW'!$D$37,$D$7:$D20)) -> 34173.47455 | Q20: 40.87736191
A21: 20 | B21: 2046 | C21: 80.22083118 | D21: =C21*365*24*0.33*'AVOID NEW'!$D$70 -> 38727.69726 | E21: 46.32499672 | F21: =-PMT('AVOID NEW'!$D$37,$A21,NPV('AVOID NEW'!$D$37,$D$2:$D21)) -> 32682.20474 | G21: 39.09354634 | H21: =-PMT('AVOID NEW'!$D$37,($A21-1),NPV('AVOID NEW'!$D$37,$D$3:$D21)) -> 33017.90073 | I21: 39.49509657 | J21: =-PMT('AVOID NEW'!$D$37,($A21-2),NPV('AVOID NEW'!$D$37,$D$4:$D21)) -> 33352.60476 | K21: 39.89546023 | L21: =-PMT('AVOID NEW'!$D$37,($A21-3),NPV('AVOID NEW'!$D$37,$D$5:$D21)) -> 33686.14689 | M21: 40.29443408 | N21: =-PMT('AVOID NEW'!$D$37,($A21-4),NPV('AVOID NEW'!$D$37,$D$6:$D21)) -> 34018.35641 | O21: 40.69181388 | P21: =-PMT('AVOID NEW'!$D$37,($A21-5),NPV('AVOID NEW'!$D$37,$D$7:$D21)) -> 34349.0622 | Q21: 41.08739497
A22: 21 | B22: 2047 | C22: 81.40810275 | D22: =C22*365*24*0.33*'AVOID NEW'!$D$70 -> 39300.86875 | E22: 47.01060856 | H22: =-PMT('AVOID NEW'!$D$37,($A22-1),NPV('AVOID NEW'!$D$37,$D$3:$D22)) -> 33164.43097 | I22: 39.67037197 | J22: =-PMT('AVOID NEW'!$D$37,($A22-2),NPV('AVOID NEW'!$D$37,$D$4:$D22)) -> 33505.16656 | K22: 40.07795043 | L22: =-PMT('AVOID NEW'!$D$37,($A22-3),NPV('AVOID NEW'!$D$37,$D$5:$D22)) -> 33844.8965 | M22: 40.48432595 | N22: =-PMT('AVOID NEW'!$D$37,($A22-4),NPV('AVOID NEW'!$D$37,$D$6:$D22)) -> 34183.44828 | O22: 40.8892922 | P22: =-PMT('AVOID NEW'!$D$37,($A22-5),NPV('AVOID NEW'!$D$37,$D$7:$D22)) -> 34520.64862 | Q22: 41.29264189
A23: 22 | B23: 2048 | C23: 82.61327973 | D23: =C23*365*24*0.33*'AVOID NEW'!$D$70 -> 39882.68433 | E23: 47.7065602 | J23: =-PMT('AVOID NEW'!$D$37,($A23-2),NPV('AVOID NEW'!$D$37,$D$4:$D23)) -> 33653.90187 | K23: 40.25586349 | L23: =-PMT('AVOID NEW'!$D$37,($A23-3),NPV('AVOID NEW'!$D$37,$D$5:$D23)) -> 33999.75442 | M23: 40.66956271 | N23: =-PMT('AVOID NEW'!$D$37,($A23-4),NPV('AVOID NEW'!$D$37,$D$6:$D23)) -> 34344.58743 | O23: 41.08204238 | P23: =-PMT('AVOID NEW'!$D$37,($A23-5),NPV('AVOID NEW'!$D$37,$D$7:$D23)) -> 34688.2258 | Q23: 41.49309306
A24: 23 | B24: 2049 | C24: 83.83663845 | D24: =C24*365*24*0.33*'AVOID NEW'!$D$70 -> 40473.27739 | E24: 48.41301123 | L24: =-PMT('AVOID NEW'!$D$37,($A24-3),NPV('AVOID NEW'!$D$37,$D$5:$D24)) -> 34150.72875 | M24: 40.85015401 | N24: =-PMT('AVOID NEW'!$D$37,($A24-4),NPV('AVOID NEW'!$D$37,$D$6:$D24)) -> 34501.77682 | O24: 41.27006797 | P24: =-PMT('AVOID NEW'!$D$37,($A24-5),NPV('AVOID NEW'!$D$37,$D$7:$D24)) -> 34851.79128 | Q24: 41.68874555
A25: 24 | B25: 2050 | C25: 85.07845965 | D25: =C25*365*24*0.33*'AVOID NEW'!$D$70 -> 41072.78346 | E25: 49.13012376 | N25: =-PMT('AVOID NEW'!$D$37,($A25-4),NPV('AVOID NEW'!$D$37,$D$6:$D25)) -> 34655.02465 | O25: 41.45337876 | P25: =-PMT('AVOID NEW'!$D$37,($A25-5),NPV('AVOID NEW'!$D$37,$D$7:$D25)) -> 35011.34805 | Q25: 41.87960293
A26: 25 | B26: 2051 | C26: 86.33902851 | D26: =C26*365*24*0.33*'AVOID NEW'!$D$70 -> 41681.34023 | E26: 49.85806247 | P26: =-PMT('AVOID NEW'!$D$37,($A26-5),NPV('AVOID NEW'!$D$37,$D$7:$D26)) -> 35166.9044 | Q26: 42.06567512
C27: 87.61863475
C28: 88.91757267
C29: 90.23614126
C30: 91.57464426
C31: 92.93339024
A32: WINTER AVOIDED COST OF CAPACITY FOR ENERGY STORAGE (IPCO) (Avoided cost of capacity for energy storage is only available for generation during peak hours in accordance with Order No. 34913.)
A33: =B1 -> Calendar Year | B33: Non-levelized Avoided Cost of Capacity during Peak Hours ($/MWh) | C33: Contract Length | D33: Levelized Avoided Cost of Capacity during Peak Hours ($/MWh)
D34: Online Year 2027 | E34: Online Year 2028 | F34: Online Year 2029 | G34: Online Year 2030 | H34: Online Year 2031 | I34: Online Year 2032
A35: =B2 -> 2027 | B35: =E2 -> 35.0678987 | C35: 1 | D35: =G2 -> 35.0678987 | E35: =I3 -> 35.5842897 | F35: =K4 -> 36.10841898 | G35: =M5 -> 36.64040506 | H35: =O6 -> 37.18036831 | I35: =Q7 -> 37.72843099
A36: 2028 | B36: =E3 -> 35.5842897 | C36: 2 | D36: =G3 -> 35.31686984 | E36: =I4 -> 35.83699175 | F36: =K5 -> 36.36490908 | G36: =M6 -> 36.90074125 | H36: =O7 -> 37.44460953 | I36: =Q8 -> 37.99663713
A37: 2029 | B37: 36.10841898 | C37: 3 | D37: 35.56209925 | E37: 36.08589679 | F37: 36.61754607 | G37: 37.15716736 | H37: 37.70488287 | I37: 38.2608167
A38: 2030 | B38: 36.64040506 | C38: 4 | D38: 35.80349465 | E38: 36.33091114 | F38: 36.8662348 | G38: 37.40958682 | H38: 37.96109026 | I38: 38.52087013
A39: 2031 | B39: 37.18036831 | C39: 5 | D39: 36.04096974 | E39: 36.57194716 | F39: 37.11088634 | G39: 37.65790931 | H39: 38.21314001 | I39: 38.77670434
A40: 2032 | B40: 37.72843099 | C40: 6 | D40: 36.27444438 | E40: 36.8089235 | F40: 37.35141806 | G40: 37.90205095 | H40: 38.46094695 | I40: 39.02823285
A41: 2033 | B41: 38.2847173 | C41: 7 | D41: 36.50384473 | E41: 37.04176519 | F41: 37.58775386 | G41: 38.14193445 | H41: 38.70443262 | I41: 39.27537598
A42: 2034 | B42: 38.84935339 | C42: 8 | D42: 36.72910338 | E42: 37.27040377 | F42: 37.81982421 | G42: 38.37748924 | H42: 38.94352533 | I42: 39.51806094
A43: 2035 | B43: =$E10 -> 39.42246738 | C43: 9 | D43: 36.9501594 | E43: 37.49477737 | F43: 38.0475663 | G43: 38.60865151 | H43: 39.1781603 | I43: 39.75622197
A44: 2036 | B44: 40.00418943 | C44: 10 | D44: 37.16695843 | E44: 37.71483079 | F44: 38.27092405 | G44: 38.83536434 | H44: 39.40827973 | I44: 39.98980035
A45: 2037 | B45: 40.59465174 | C45: 11 | D45: 37.37945271 | E45: 37.93051552 | F45: 38.48984822 | G45: 39.05757769 | H45: 39.6338328 | I45: 40.21874447
A46: 2038 | B46: 41.19398859 | C46: 12 | D46: 37.58760108 | E46: 38.14178977 | F46: 38.70429635 | G46: 39.27524845 | H46: 39.85477572 | I46: 40.44300984
A47: 2039 | B47: 41.80233639 | C47: 13 | D47: 37.79136898 | E47: 38.34861843 | F47: 38.91423277 | G47: 39.48834038 | H47: 40.07107167 | I47: 40.66255909
A48: 2040 | B48: 42.41983371 | C48: 14 | D48: 37.99072843 | E48: 38.55097305 | F48: 39.11962859 | G48: 39.69682414 | H48: 40.28269084 | I48: 40.87736191
A49: 2041 | B49: 43.04662127 | C49: 15 | D49: 38.18565792 | E49: 38.74883179 | F49: 39.3204616 | G49: 39.90067714 | H49: 40.48961029 | I49: 41.08739497
A50: 2042 | B50: 43.68284206 | C50: 16 | D50: 38.37614237 | E50: 38.94217932 | F50: 39.51671621 | G50: 40.09988354 | H50: 40.69181388 | I50: 41.29264189
A51: 2043 | B51: 44.32864131 | C51: 17 | D51: 38.56217302 | E51: 39.1310067 | F51: 39.70838333 | G51: 40.29443408 | H51: 40.8892922 | I51: 41.49309306
A52: 2044 | B52: 44.98416653 | C52: 18 | D52: 38.74374728 | E52: 39.31531129 | F52: 39.89546023 | G52: 40.48432595 | H52: 41.08204238 | I52: 41.68874555
A53: 2045 | B53: 45.64956759 | C53: 19 | D53: 38.92086861 | E53: 39.49509657 | F53: 40.07795043 | G53: 40.66956271 | H53: 41.27006797 | I53: 41.87960293
A54: 2046 | B54: 46.32499672 | C54: 20 | D54: 39.09354634 | E54: 39.67037197 | F54: 40.25586349 | G54: 40.85015401 | H54: 41.45337876 | I54: 42.06567512
A55: 2047 | B55: 47.01060856
A56: 2048 | B56: 47.7065602
A57: 2049 | B57: 48.41301123
A58: 2050 | B58: 49.13012376
A59: 2051 | B59: 49.85806247

Sheet IPCOStorage(SummerCapacity)
A1: Years since the first deficit (Years) | B1: Calendar Year | C1: Column T in AVOID NEW (This represents annual value of CCCT in $/MW divided by (365*24*annual availability factor of chosen technology category, e.g. wind)) | D1: Non-Levelized Summer Value of CCCT in $/MW (using wind's annual capacity factor of 33%, summer distribution of 83.3%) | E1: Spreading Non-Levelized Summer Value of CCCT over Summer Peak Hours ($/MWh) | F1: Levelized Summer Value of CCCT in $/MW with Online Year of 2027 | G1: Spreading Levelized Summer Value of CCCT over Summer Peak Hours ($/MWh) with Online Year of 2027 | H1: Levelized Summer Value of CCCT in $/MW with Online Year of 2028 | I1: Spreading Levelized Summer Value of CCCT over Summer Peak Hours ($/MWh) with Online Year of 2028 | J1: Levelized Summer Value of CCCT in $/MW with Online Year of 2029 | K1: Spreading Levelized Summer Value of CCCT over Summer Peak Hours ($/MWh) with Online Year of 2029 | L1: Levelized Summer Value of CCCT in $/MW with Online Year of 2030 | M1: Spreading Levelized Summer Value of CCCT over Summer Peak Hours ($/MWh) with Online Year of 2030 | N1: Levelized Summer Value of CCCT in $/MW with Online Year of 2031 | O1: Spreading Levelized Summer Value of CCCT over Summer Peak Hours ($/MWh) with Online Year of 2031 | P1: Levelized Summer Value of CCCT in $/MW with Online Year of 2032 | Q1: Spreading Levelized Summer Value of CCCT over Summer Peak Hours ($/MWh) with Online Year of 2032
A2: 1 | B2: 2027 | C2: 60.72695479 | D2: =C2*365*24*0.33*'AVOID NEW'!$D$69 -> 146232.7176 | E2: =D2/$W$6 -> 234.3473038 | F2: =-PMT('AVOID NEW'!$D$37,$A2,NPV('AVOID NEW'!$D$37,$D$2:$D2)) -> 146232.7176 | G2: =F2/$W$6 -> 234.3473038 | V2: Total 2026 Hours
A3: 2 | B3: 2028 | C3: 61.62118724 | D3: =C3*365*24*0.33*'AVOID NEW'!$D$69 -> 148386.0619 | E3: =D3/$W$6 -> 237.7981761 | F3: =-PMT('AVOID NEW'!$D$37,$A3,NPV('AVOID NEW'!$D$37,$D$2:$D3)) -> 147270.9243 | G3: =F3/$W$6 -> 236.0110966 | H3: =-PMT('AVOID NEW'!$D$37,($A3-1),NPV('AVOID NEW'!$D$37,$D3:$D$3)) -> 148386.0619 | I3: =H3/$W$6 -> 237.7981761 | V3: Period | W3: Jun. 15 - Sep. 15 | X3: Nov. 15 - Feb. 15
A4: 3 | B4: 2029 | C4: 62.52882005 | D4: =C4*365*24*0.33*'AVOID NEW'!$D$69 -> 150571.6747 | E4: 241.3007608 | F4: =-PMT('AVOID NEW'!$D$37,$A4,NPV('AVOID NEW'!$D$37,$D$2:$D4)) -> 148293.528 | G4: 237.6498846 | H4: =-PMT('AVOID NEW'!$D$37,($A4-1),NPV('AVOID NEW'!$D$37,$D$3:$D4)) -> 149439.8264 | I4: =H4/$W$6 -> 239.4869013 | J4: =-PMT('AVOID NEW'!$D$37,($A4-2),NPV('AVOID NEW'!$D$37,$D$4:$D4)) -> 150571.6747 | K4: =J4/$W$6 -> 241.3007608 | V4: Non-Premium Peak | W4: 234 | X4: 380
A5: 4 | B5: 2030 | C5: 63.45005844 | D5: =C5*365*24*0.33*'AVOID NEW'!$D$69 -> 152790.0503 | E5: 244.8558498 | F5: =-PMT('AVOID NEW'!$D$37,$A5,NPV('AVOID NEW'!$D$37,$D$2:$D5)) -> 149300.1439 | G5: 239.2630511 | H5: =-PMT('AVOID NEW'!$D$37,($A5-1),NPV('AVOID NEW'!$D$37,$D$3:$D5)) -> 150477.7575 | I5: 241.1502524 | J5: =-PMT('AVOID NEW'!$D$37,($A5-2),NPV('AVOID NEW'!$D$37,$D$4:$D5)) -> 151641.2354 | K5: =J5/$W$6 -> 243.0148003 | L5: =-PMT('AVOID NEW'!$D$37,($A5-3),NPV('AVOID NEW'!$D$37,$D$5:$D5)) -> 152790.0503 | M5: =L5/$W$6 -> 244.8558498 | V5: Premium Peak | W5: 390 | X5: 456
A6: 5 | B6: 2031 | C6: 64.38511086 | D6: =C6*365*24*0.33*'AVOID NEW'!$D$69 -> 155041.6906 | E6: 248.4642477 | F6: =-PMT('AVOID NEW'!$D$37,$A6,NPV('AVOID NEW'!$D$37,$D$2:$D6)) -> 150290.4122 | G6: 240.8500195 | H6: =-PMT('AVOID NEW'!$D$37,($A6-1),NPV('AVOID NEW'!$D$37,$D$3:$D6)) -> 151499.4643 | I6: 242.7876031 | J6: =-PMT('AVOID NEW'!$D$37,($A6-2),NPV('AVOID NEW'!$D$37,$D$4:$D6)) -> 152694.7286 | K6: 244.7030906 | L6: =-PMT('AVOID NEW'!$D$37,($A6-3),NPV('AVOID NEW'!$D$37,$D$5:$D6)) -> 153875.6491 | M6: =L6/$W$6 -> 246.5955915 | N6: =-PMT('AVOID NEW'!$D$37,($A6-4),NPV('AVOID NEW'!$D$37,$D$6:$D6)) -> 155041.6906 | O6: =N6/$W$6 -> 248.4642477 | T6: Total Peak Hours in a year | W6: =SUM(W4:W5) -> 624 | X6: =SUM(X4:X5) -> 836
A7: 6 | B7: 2032 | C7: 65.33418905 | D7: =C7*365*24*0.33*'AVOID NEW'!$D$69 -> 157327.1054 | E7: 252.1267715 | F7: =-PMT('AVOID NEW'!$D$37,$A7,NPV('AVOID NEW'!$D$37,$D$2:$D7)) -> 151263.9986 | G7: 242.4102542 | H7: =-PMT('AVOID NEW'!$D$37,($A7-1),NPV('AVOID NEW'!$D$37,$D$3:$D7)) -> 152504.5817 | I7: 244.398368 | J7: =-PMT('AVOID NEW'!$D$37,($A7-2),NPV('AVOID NEW'!$D$37,$D$4:$D7)) -> 153731.7576 | K7: 246.3649962 | L7: =-PMT('AVOID NEW'!$D$37,($A7-3),NPV('AVOID NEW'!$D$37,$D$5:$D7)) -> 154944.9429 | M7: 248.3092034 | N7: =-PMT('AVOID NEW'!$D$37,($A7-4),NPV('AVOID NEW'!$D$37,$D$6:$D7)) -> 156143.5733 | O7: =N7/$W$6 -> 250.2300854 | P7: =-PMT('AVOID NEW'!$D$37,($A7-5),NPV('AVOID NEW'!$D$37,$D$7:$D7)) -> 157327.1054 | Q7: =P7/$W$6 -> 252.1267715 | T7: =W6+X6 -> 1460
A8: 7 | B8: 2033 | C8: 66.29750807 | D8: =C8*365*24*0.33*'AVOID NEW'!$D$69 -> 159646.8127 | E8: 255.844251 | F8: =-PMT('AVOID NEW'!$D$37,$A8,NPV('AVOID NEW'!$D$37,$D$2:$D8)) -> 152220.5954 | G8: 243.9432618 | H8: =-PMT('AVOID NEW'!$D$37,($A8-1),NPV('AVOID NEW'!$D$37,$D$3:$D8)) -> 153492.7702 | I8: 245.9820035 | J8: =-PMT('AVOID NEW'!$D$37,($A8-2),NPV('AVOID NEW'!$D$37,$D$4:$D8)) -> 154751.9516 | K8: 247.9999224 | L8: =-PMT('AVOID NEW'!$D$37,($A8-3),NPV('AVOID NEW'!$D$37,$D$5:$D8)) -> 155997.529 | M8: 249.9960401 | N8: =-PMT('AVOID NEW'!$D$37,($A8-4),NPV('AVOID NEW'!$D$37,$D$6:$D8)) -> 157228.91 | O8: 251.9694071 | P8: =-PMT('AVOID NEW'!$D$37,($A8-5),NPV('AVOID NEW'!$D$37,$D$7:$D8)) -> 158445.5218 | Q8: =P8/$W$6 -> 253.9191054
A9: 8 | B9: 2034 | C9: 67.27528636 | D9: =C9*365*24*0.33*'AVOID NEW'!$D$69 -> 162001.3384 | E9: 259.6175294 | F9: =-PMT('AVOID NEW'!$D$37,$A9,NPV('AVOID NEW'!$D$37,$D$2:$D9)) -> 153159.9212 | G9: 245.4485917 | H9: =-PMT('AVOID NEW'!$D$37,($A9-1),NPV('AVOID NEW'!$D$37,$D$3:$D9)) -> 154463.7172 | I9: 247.5380084 | J9: =-PMT('AVOID NEW'!$D$37,($A9-2),NPV('AVOID NEW'!$D$37,$D$4:$D9)) -> 155754.966 | K9: 249.6073173 | L9: =-PMT('AVOID NEW'!$D$37,($A9-3),NPV('AVOID NEW'!$D$37,$D$5:$D9)) -> 157033.0308 | M9: 251.6554981 | N9: =-PMT('AVOID NEW'!$D$37,($A9-4),NPV('AVOID NEW'!$D$37,$D$6:$D9)) -> 158297.2918 | O9: 253.6815573 | P9: =-PMT('AVOID NEW'!$D$37,($A9-5),NPV('AVOID NEW'!$D$37,$D$7:$D9)) -> 159547.1474 | Q9: 255.6845311
A10: 9 | B10: 2035 | C10: 68.26774581 | D10: =C10*365*24*0.33*'AVOID NEW'!$D$69 -> 164391.2169 | E10: 263.4474629 | F10: =-PMT('AVOID NEW'!$D$37,$A10,NPV('AVOID NEW'!$D$37,$D$2:$D10)) -> 154081.7222 | G10: 246.9258369 | H10: =-PMT('AVOID NEW'!$D$37,($A10-1),NPV('AVOID NEW'!$D$37,$D$3:$D10)) -> 155417.1373 | I10: 249.0659252 | J10: =-PMT('AVOID NEW'!$D$37,($A10-2),NPV('AVOID NEW'!$D$37,$D$4:$D10)) -> 156740.4834 | K10: 251.1866722 | L10: =-PMT('AVOID NEW'!$D$37,($A10-3),NPV('AVOID NEW'!$D$37,$D$5:$D10)) -> 158051.0985 | M10: 253.2870169 | N10: =-PMT('AVOID NEW'!$D$37,($A10-4),NPV('AVOID NEW'!$D$37,$D$6:$D10)) -> 159348.3362 | O10: 255.3659234 | P10: =-PMT('AVOID NEW'!$D$37,($A10-5),NPV('AVOID NEW'!$D$37,$D$7:$D10)) -> 160631.5671 | Q10: 257.4223832
A11: 10 | B11: 2036 | C11: 69.2751118 | D11: =C11*365*24*0.33*'AVOID NEW'!$D$69 -> 166816.9908 | E11: 267.3349212 | F11: =-PMT('AVOID NEW'!$D$37,$A11,NPV('AVOID NEW'!$D$37,$D$2:$D11)) -> 154985.7716 | G11: 248.3746339 | H11: =-PMT('AVOID NEW'!$D$37,($A11-1),NPV('AVOID NEW'!$D$37,$D$3:$D11)) -> 156352.7726 | I11: 250.5653407 | J11: =-PMT('AVOID NEW'!$D$37,($A11-2),NPV('AVOID NEW'!$D$37,$D$4:$D11)) -> 157708.214 | K11: 252.7375225 | L11: =-PMT('AVOID NEW'!$D$37,($A11-3),NPV('AVOID NEW'!$D$37,$D$5:$D11)) -> 159051.4099 | M11: 254.8900799 | N11: =-PMT('AVOID NEW'!$D$37,($A11-4),NPV('AVOID NEW'!$D$37,$D$6:$D11)) -> 160381.6882 | O11: 257.0219362 | P11: =-PMT('AVOID NEW'!$D$37,($A11-5),NPV('AVOID NEW'!$D$37,$D$7:$D11)) -> 161698.3927 | Q11: 259.1320396
A12: 11 | B12: 2037 | C12: 70.29761327 | D12: =C12*365*24*0.33*'AVOID NEW'!$D$69 -> 169279.2116 | E12: 271.2807878 | F12: =-PMT('AVOID NEW'!$D$37,$A12,NPV('AVOID NEW'!$D$37,$D$2:$D12)) -> 155871.8701 | G12: 249.7946637 | H12: =-PMT('AVOID NEW'!$D$37,($A12-1),NPV('AVOID NEW'!$D$37,$D$3:$D12)) -> 157270.3927 | I12: 252.0358858 | J12: =-PMT('AVOID NEW'!$D$37,($A12-2),NPV('AVOID NEW'!$D$37,$D$4:$D12)) -> 158657.8958 | K12: 254.2594484 | L12: =-PMT('AVOID NEW'!$D$37,($A12-3),NPV('AVOID NEW'!$D$37,$D$5:$D12)) -> 160033.6705 | M12: 256.4642156 | N12: =-PMT('AVOID NEW'!$D$37,($A12-4),NPV('AVOID NEW'!$D$37,$D$6:$D12)) -> 161397.0205 | O12: 258.6490713 | P12: =-PMT('AVOID NEW'!$D$37,($A12-5),NPV('AVOID NEW'!$D$37,$D$7:$D12)) -> 162747.2636 | Q12: 260.8129224
A13: 12 | B13: 2038 | C13: 71.33548275 | D13: =C13*365*24*0.33*'AVOID NEW'!$D$69 -> 171778.4391 | E13: 275.2859601 | F13: =-PMT('AVOID NEW'!$D$37,$A13,NPV('AVOID NEW'!$D$37,$D$2:$D13)) -> 156739.8463 | G13: 251.1856512 | H13: =-PMT('AVOID NEW'!$D$37,($A13-1),NPV('AVOID NEW'!$D$37,$D$3:$D13)) -> 158169.7955 | I13: 253.4772363 | J13: =-PMT('AVOID NEW'!$D$37,($A13-2),NPV('AVOID NEW'!$D$37,$D$4:$D13)) -> 159589.295 | K13: 255.7520753 | L13: =-PMT('AVOID NEW'!$D$37,($A13-3),NPV('AVOID NEW'!$D$37,$D$5:$D13)) -> 160997.6144 | M13: 258.0089975 | N13: =-PMT('AVOID NEW'!$D$37,($A13-4),NPV('AVOID NEW'!$D$37,$D$6:$D13)) -> 162394.0342 | O13: 260.2468497 | P13: =-PMT('AVOID NEW'!$D$37,($A13-5),NPV('AVOID NEW'!$D$37,$D$7:$D13)) -> 163777.8475 | Q13: 262.4644991
A14: 13 | B14: 2039 | C14: 72.38895647 | D14: =C14*365*24*0.33*'AVOID NEW'!$D$69 -> 174315.2421 | E14: 279.3513496 | F14: =-PMT('AVOID NEW'!$D$37,$A14,NPV('AVOID NEW'!$D$37,$D$2:$D14)) -> 157589.5561 | G14: 252.5473655 | H14: =-PMT('AVOID NEW'!$D$37,($A14-1),NPV('AVOID NEW'!$D$37,$D$3:$D14)) -> 159050.8065 | I14: 254.8891131 | J14: =-PMT('AVOID NEW'!$D$37,($A14-2),NPV('AVOID NEW'!$D$37,$D$4:$D14)) -> 160502.2061 | K14: 257.2150739 | L14: =-PMT('AVOID NEW'!$D$37,($A14-3),NPV('AVOID NEW'!$D$37,$D$5:$D14)) -> 161943.0042 | M14: 259.5240452 | N14: =-PMT('AVOID NEW'!$D$37,($A14-4),NPV('AVOID NEW'!$D$37,$D$6:$D14)) -> 163372.4593 | O14: 261.8148386 | P14: =-PMT('AVOID NEW'!$D$37,($A14-5),NPV('AVOID NEW'!$D$37,$D$7:$D14)) -> 164789.8409 | Q14: 264.0862834
A15: 14 | B15: 2040 | C15: 73.45827436 | D15: =C15*365*24*0.33*'AVOID NEW'!$D$69 -> 176890.1985 | E15: 283.4778823 | F15: =-PMT('AVOID NEW'!$D$37,$A15,NPV('AVOID NEW'!$D$37,$D$2:$D15)) -> 158420.8826 | G15: 253.8796195 | H15: =-PMT('AVOID NEW'!$D$37,($A15-1),NPV('AVOID NEW'!$D$37,$D$3:$D15)) -> 159913.2796 | I15: 256.2712814 | J15: =-PMT('AVOID NEW'!$D$37,($A15-2),NPV('AVOID NEW'!$D$37,$D$4:$D15)) -> 161396.4522 | K15: 258.6481606 | L15: =-PMT('AVOID NEW'!$D$37,($A15-3),NPV('AVOID NEW'!$D$37,$D$5:$D15)) -> 162869.6312 | M15: 261.0090244 | N15: =-PMT('AVOID NEW'!$D$37,($A15-4),NPV('AVOID NEW'!$D$37,$D$6:$D15)) -> 164332.0545 | O15: 263.3526515 | P15: =-PMT('AVOID NEW'!$D$37,($A15-5),NPV('AVOID NEW'!$D$37,$D$7:$D15)) -> 165782.9695 | Q15: 265.6778357
A16: 15 | B16: 2041 | C16: 74.54368015 | D16: =C16*365*24*0.33*'AVOID NEW'!$D$69 -> 179503.8952 | E16: 287.6664987 | F16: =-PMT('AVOID NEW'!$D$37,$A16,NPV('AVOID NEW'!$D$37,$D$2:$D16)) -> 159233.7362 | G16: 255.1822695 | H16: =-PMT('AVOID NEW'!$D$37,($A16-1),NPV('AVOID NEW'!$D$37,$D$3:$D16)) -> 160757.0959 | I16: 257.6235512 | J16: =-PMT('AVOID NEW'!$D$37,($A16-2),NPV('AVOID NEW'!$D$37,$D$4:$D16)) -> 162271.8846 | K16: 260.0510971 | L16: =-PMT('AVOID NEW'!$D$37,($A16-3),NPV('AVOID NEW'!$D$37,$D$5:$D16)) -> 163777.3157 | M16: 262.4636469 | N16: =-PMT('AVOID NEW'!$D$37,($A16-4),NPV('AVOID NEW'!$D$37,$D$6:$D16)) -> 165272.6081 | O16: 264.8599489 | P16: =-PMT('AVOID NEW'!$D$37,($A16-5),NPV('AVOID NEW'!$D$37,$D$7:$D16)) -> 166756.9885 | Q16: 267.2387637
A17: 16 | B17: 2042 | C17: 75.64542141 | D17: =C17*365*24*0.33*'AVOID NEW'!$D$69 -> 182156.9283 | E17: 291.9181543 | F17: =-PMT('AVOID NEW'!$D$37,$A17,NPV('AVOID NEW'!$D$37,$D$2:$D17)) -> 160028.0541 | G17: 256.4552149 | H17: =-PMT('AVOID NEW'!$D$37,($A17-1),NPV('AVOID NEW'!$D$37,$D$3:$D17)) -> 161582.1645 | I17: 258.9457765 | J17: =-PMT('AVOID NEW'!$D$37,($A17-2),NPV('AVOID NEW'!$D$37,$D$4:$D17)) -> 163128.3827 | K17: 261.4236902 | L17: =-PMT('AVOID NEW'!$D$37,($A17-3),NPV('AVOID NEW'!$D$37,$D$5:$D17)) -> 164665.9065 | M17: 263.8876706 | N17: =-PMT('AVOID NEW'!$D$37,($A17-4),NPV('AVOID NEW'!$D$37,$D$6:$D17)) -> 166193.9374 | O17: 266.3364382 | P17: =-PMT('AVOID NEW'!$D$37,($A17-5),NPV('AVOID NEW'!$D$37,$D$7:$D17)) -> 167711.6828 | Q17: 268.7687224
A18: 17 | B18: 2043 | C18: 76.76374965 | D18: =C18*365*24*0.33*'AVOID NEW'!$D$69 -> 184849.9034 | E18: 296.2338195 | F18: =-PMT('AVOID NEW'!$D$37,$A18,NPV('AVOID NEW'!$D$37,$D$2:$D18)) -> 160803.7997 | G18: 257.6983969 | H18: =-PMT('AVOID NEW'!$D$37,($A18-1),NPV('AVOID NEW'!$D$37,$D$3:$D18)) -> 162388.4214 | I18: 260.2378548 | J18: =-PMT('AVOID NEW'!$D$37,($A18-2),NPV('AVOID NEW'!$D$37,$D$4:$D18)) -> 163965.854 | K18: 262.7657916 | L18: =-PMT('AVOID NEW'!$D$37,($A18-3),NPV('AVOID NEW'!$D$37,$D$5:$D18)) -> 165535.2812 | M18: 265.2808994 | N18: =-PMT('AVOID NEW'!$D$37,($A18-4),NPV('AVOID NEW'!$D$37,$D$6:$D18)) -> 167095.889 | O18: 267.7818734 | P18: =-PMT('AVOID NEW'!$D$37,($A18-5),NPV('AVOID NEW'!$D$37,$D$7:$D18)) -> 168646.8667 | Q18: 270.2674146
A19: 18 | B19: 2044 | C19: 77.89892034 | D19: =C19*365*24*0.33*'AVOID NEW'!$D$69 -> 187583.4357 | E19: 300.6144803 | F19: =-PMT('AVOID NEW'!$D$37,$A19,NPV('AVOID NEW'!$D$37,$D$2:$D19)) -> 161560.9622 | G19: 258.9117983 | H19: =-PMT('AVOID NEW'!$D$37,($A19-1),NPV('AVOID NEW'!$D$37,$D$3:$D19)) -> 163175.8293 | I19: 261.4997265 | J19: =-PMT('AVOID NEW'!$D$37,($A19-2),NPV('AVOID NEW'!$D$37,$D$4:$D19)) -> 164784.2333 | K19: 264.077297 | L19: =-PMT('AVOID NEW'!$D$37,($A19-3),NPV('AVOID NEW'!$D$37,$D$5:$D19)) -> 166385.3458 | M19: 266.6431824 | N19: =-PMT('AVOID NEW'!$D$37,($A19-4),NPV('AVOID NEW'!$D$37,$D$6:$D19)) -> 167978.3384 | O19: 269.1960551 | P19: =-PMT('AVOID NEW'!$D$37,($A19-5),NPV('AVOID NEW'!$D$37,$D$7:$D19)) -> 169562.3844 | Q19: 271.7345904
A20: 19 | B20: 2045 | C20: 79.05119297 | D20: =C20*365*24*0.33*'AVOID NEW'!$D$69 -> 190358.1501 | E20: 305.061138 | F20: =-PMT('AVOID NEW'!$D$37,$A20,NPV('AVOID NEW'!$D$37,$D$2:$D20)) -> 162299.556 | G20: 260.0954423 | H20: =-PMT('AVOID NEW'!$D$37,($A20-1),NPV('AVOID NEW'!$D$37,$D$3:$D20)) -> 163944.3772 | I20: 262.7313738 | J20: =-PMT('AVOID NEW'!$D$37,($A20-2),NPV('AVOID NEW'!$D$37,$D$4:$D20)) -> 165583.4829 | K20: 265.3581457 | L20: =-PMT('AVOID NEW'!$D$37,($A20-3),NPV('AVOID NEW'!$D$37,$D$5:$D20)) -> 167216.0341 | M20: 267.9744137 | N20: =-PMT('AVOID NEW'!$D$37,($A20-4),NPV('AVOID NEW'!$D$37,$D$6:$D20)) -> 168841.19 | O20: 270.5788301 | P20: =-PMT('AVOID NEW'!$D$37,($A20-5),NPV('AVOID NEW'!$D$37,$D$7:$D20)) -> 170458.1096 | Q20: 273.1700474
A21: 20 | B21: 2046 | C21: 80.22083118 | D21: =C21*365*24*0.33*'AVOID NEW'!$D$69 -> 193174.6815 | E21: 309.5748101 | F21: =-PMT('AVOID NEW'!$D$37,$A21,NPV('AVOID NEW'!$D$37,$D$2:$D21)) -> 163019.62 | G21: 261.2493911 | H21: =-PMT('AVOID NEW'!$D$37,($A21-1),NPV('AVOID NEW'!$D$37,$D$3:$D21)) -> 164694.0797 | I21: 263.93282 | J21: =-PMT('AVOID NEW'!$D$37,($A21-2),NPV('AVOID NEW'!$D$37,$D$4:$D21)) -> 166363.5914 | K21: 266.6083195 | L21: =-PMT('AVOID NEW'!$D$37,($A21-3),NPV('AVOID NEW'!$D$37,$D$5:$D21)) -> 168027.3075 | M21: 269.2745313 | N21: =-PMT('AVOID NEW'!$D$37,($A21-4),NPV('AVOID NEW'!$D$37,$D$6:$D21)) -> 169684.3766 | O21: 271.9300907 | P21: =-PMT('AVOID NEW'!$D$37,($A21-5),NPV('AVOID NEW'!$D$37,$D$7:$D21)) -> 171333.945 | Q21: 274.5736298
A22: 21 | B22: 2047 | C22: 81.40810275 | D22: =C22*365*24*0.33*'AVOID NEW'!$D$69 -> 196033.6747 | E22: 314.1565299 | H22: =-PMT('AVOID NEW'!$D$37,($A22-1),NPV('AVOID NEW'!$D$37,$D$3:$D22)) -> 165424.976 | I22: 265.1041283 | J22: =-PMT('AVOID NEW'!$D$37,($A22-2),NPV('AVOID NEW'!$D$37,$D$4:$D22)) -> 167124.5733 | K22: 267.8278419 | L22: =-PMT('AVOID NEW'!$D$37,($A22-3),NPV('AVOID NEW'!$D$37,$D$5:$D22)) -> 168819.1544 | M22: 270.5435166 | N22: =-PMT('AVOID NEW'!$D$37,($A22-4),NPV('AVOID NEW'!$D$37,$D$6:$D22)) -> 170507.8588 | O22: 273.2497737 | P22: =-PMT('AVOID NEW'!$D$37,($A22-5),NPV('AVOID NEW'!$D$37,$D$7:$D22)) -> 172189.8222 | Q22: 275.9452278
A23: 22 | B23: 2048 | C23: 82.61327973 | D23: =C23*365*24*0.33*'AVOID NEW'!$D$69 -> 198935.7847 | E23: 318.8073473 | J23: =-PMT('AVOID NEW'!$D$37,($A23-2),NPV('AVOID NEW'!$D$37,$D$4:$D23)) -> 167866.4686 | K23: 269.0167767 | L23: =-PMT('AVOID NEW'!$D$37,($A23-3),NPV('AVOID NEW'!$D$37,$D$5:$D23)) -> 169591.5894 | M23: 271.7813933 | N23: =-PMT('AVOID NEW'!$D$37,($A23-4),NPV('AVOID NEW'!$D$37,$D$6:$D23)) -> 171311.6247 | O23: 274.5378601 | P23: =-PMT('AVOID NEW'!$D$37,($A23-5),NPV('AVOID NEW'!$D$37,$D$7:$D23)) -> 173025.7011 | Q23: 277.2847775
A24: 23 | B24: 2049 | C24: 83.83663845 | D24: =C24*365*24*0.33*'AVOID NEW'!$D$69 -> 201881.677 | E24: 323.5283286 | L24: =-PMT('AVOID NEW'!$D$37,($A24-3),NPV('AVOID NEW'!$D$37,$D$5:$D24)) -> 170344.653 | M24: 272.9882259 | N24: =-PMT('AVOID NEW'!$D$37,($A24-4),NPV('AVOID NEW'!$D$37,$D$6:$D24)) -> 172095.6892 | O24: 275.7943737 | P24: =-PMT('AVOID NEW'!$D$37,($A24-5),NPV('AVOID NEW'!$D$37,$D$7:$D24)) -> 173841.5697 | Q24: 278.5922591
A25: 24 | B25: 2050 | C25: 85.07845965 | D25: =C25*365*24*0.33*'AVOID NEW'!$D$69 -> 204872.0277 | E25: 328.3205572 | N25: =-PMT('AVOID NEW'!$D$37,($A25-4),NPV('AVOID NEW'!$D$37,$D$6:$D25)) -> 172860.093 | O25: 277.0193798 | P25: =-PMT('AVOID NEW'!$D$37,($A25-5),NPV('AVOID NEW'!$D$37,$D$7:$D25)) -> 174637.4427 | Q25: 279.8676966
A26: 25 | B26: 2051 | C26: 86.33902851 | D26: =C26*365*24*0.33*'AVOID NEW'!$D$69 -> 207907.5234 | E26: 333.1851337 | P26: =-PMT('AVOID NEW'!$D$37,($A26-5),NPV('AVOID NEW'!$D$37,$D$7:$D26)) -> 175413.3615 | Q26: 281.1111562
C27: 87.61863475
C28: 88.91757267
C29: 90.23614126
C30: 91.57464426
C31: 92.93339024
A32: SUMMER AVOIDED COST OF CAPACITY FOR ENERGY STORAGE (IPCO) (Avoided cost of capacity for energy storage is only available for generation during peak hours in accordance with Order No. 34913.)
A33: =B1 -> Calendar Year | B33: Non-levelized Avoided Cost of Capacity during Peak Hours ($/MWh) | C33: Contract Length | D33: Levelized Avoided Cost of Capacity during Peak Hours ($/MWh)
D34: Online Year 2027 | E34: Online Year 2028 | F34: Online Year 2029 | G34: Online Year 2030 | H34: Online Year 2031 | I34: Online Year 2032
A35: =B2 -> 2027 | B35: =E2 -> 234.3473038 | C35: 1 | D35: =G2 -> 234.3473038 | E35: =I3 -> 237.7981761 | F35: =K4 -> 241.3007608 | G35: =M5 -> 244.8558498 | H35: =O6 -> 248.4642477 | I35: =Q7 -> 252.1267715
A36: 2028 | B36: =E3 -> 237.7981761 | C36: 2 | D36: =G3 -> 236.0110966 | E36: =I4 -> 239.4869013 | F36: =K5 -> 243.0148003 | G36: =M6 -> 246.5955915 | H36: =O7 -> 250.2300854 | I36: =Q8 -> 253.9191054
A37: 2029 | B37: 241.3007608 | C37: 3 | D37: 237.6498846 | E37: 241.1502524 | F37: 244.7030906 | G37: 248.3092034 | H37: 251.9694071 | I37: 255.6845311
A38: 2030 | B38: 244.8558498 | C38: 4 | D38: 239.2630511 | E38: 242.7876031 | F38: 246.3649962 | G38: 249.9960401 | H38: 253.6815573 | I38: 257.4223832
A39: 2031 | B39: 248.4642477 | C39: 5 | D39: 240.8500195 | E39: 244.398368 | F39: 247.9999224 | G39: 251.6554981 | H39: 255.3659234 | I39: 259.1320396
A40: 2032 | B40: 252.1267715 | C40: 6 | D40: 242.4102542 | E40: 245.9820035 | F40: 249.6073173 | G40: 253.2870169 | H40: 257.0219362 | I40: 260.8129224
A41: 2033 | B41: 255.844251 | C41: 7 | D41: 243.9432618 | E41: 247.5380084 | F41: 251.1866722 | G41: 254.8900799 | H41: 258.6490713 | I41: 262.4644991
A42: 2034 | B42: 259.6175294 | C42: 8 | D42: 245.4485917 | E42: 249.0659252 | F42: 252.7375225 | G42: 256.4642156 | H42: 260.2468497 | I42: 264.0862834
A43: 2035 | B43: =$E10 -> 263.4474629 | C43: 9 | D43: 246.9258369 | E43: 250.5653407 | F43: 254.2594484 | G43: 258.0089975 | H43: 261.8148386 | I43: 265.6778357
A44: 2036 | B44: 267.3349212 | C44: 10 | D44: 248.3746339 | E44: 252.0358858 | F44: 255.7520753 | G44: 259.5240452 | H44: 263.3526515 | I44: 267.2387637
A45: 2037 | B45: 271.2807878 | C45: 11 | D45: 249.7946637 | E45: 253.4772363 | F45: 257.2150739 | G45: 261.0090244 | H45: 264.8599489 | I45: 268.7687224
A46: 2038 | B46: 275.2859601 | C46: 12 | D46: 251.1856512 | E46: 254.8891131 | F46: 258.6481606 | G46: 262.4636469 | H46: 266.3364382 | I46: 270.2674146
A47: 2039 | B47: 279.3513496 | C47: 13 | D47: 252.5473655 | E47: 256.2712814 | F47: 260.0510971 | G47: 263.8876706 | H47: 267.7818734 | I47: 271.7345904
A48: 2040 | B48: 283.4778823 | C48: 14 | D48: 253.8796195 | E48: 257.6235512 | F48: 261.4236902 | G48: 265.2808994 | H48: 269.1960551 | I48: 273.1700474
A49: 2041 | B49: 287.6664987 | C49: 15 | D49: 255.1822695 | E49: 258.9457765 | F49: 262.7657916 | G49: 266.6431824 | H49: 270.5788301 | I49: 274.5736298
A50: 2042 | B50: 291.9181543 | C50: 16 | D50: 256.4552149 | E50: 260.2378548 | F50: 264.077297 | G50: 267.9744137 | H50: 271.9300907 | I50: 275.9452278
A51: 2043 | B51: 296.2338195 | C51: 17 | D51: 257.6983969 | E51: 261.4997265 | F51: 265.3581457 | G51: 269.2745313 | H51: 273.2497737 | I51: 277.2847775
A52: 2044 | B52: 300.6144803 | C52: 18 | D52: 258.9117983 | E52: 262.7313738 | F52: 266.6083195 | G52: 270.5435166 | H52: 274.5378601 | I52: 278.5922591
A53: 2045 | B53: 305.061138 | C53: 19 | D53: 260.0954423 | E53: 263.93282 | F53: 267.8278419 | G53: 271.7813933 | H53: 275.7943737 | I53: 279.8676966
A54: 2046 | B54: 309.5748101 | C54: 20 | D54: 261.2493911 | E54: 265.1041283 | F54: 269.0167767 | G54: 272.9882259 | H54: 277.0193798 | I54: 281.1111562
A55: 2047 | B55: 314.1565299
A56: 2048 | B56: 318.8073473
A57: 2049 | B57: 323.5283286
A58: 2050 | B58: 328.3205572
A59: 2051 | B59: 333.1851337

Sheet IPCOStorage(Energy)LevelizedADJ
B1: =IF('AVOID NEW'!E107="IPCo","IDAHO POWER","THESE RATES ARE NOT VALID") -> IDAHO POWER
B2: AVOIDED COST RATES OF ENERGY FOR ENERGY STORAGE PROJECTS
B3: Eligibility for these rates is limited to energy storage projects 100 kW or smaller.
B5: Seasonalization Factors
B7: Season 1 | D7: ='AVOID NEW'!E74 -> 0.735 | E7: (Applied to March - May)
B8: Season 2 | D8: ='AVOID NEW'!E75 -> 1.2 | E8: (Applied to July, August, November, and December)
B9: Season 3 | D9: ='AVOID NEW'!E76 -> 1 | E9: (Applied to January, February, June, September, and October)
B13: =$B$1 -> IDAHO POWER
B14: LEVELIZED RATES
B15: ="PROJECT ON-LINE IN "& 'AVOID NEW'!$D$54 -> PROJECT ON-LINE IN 2026
C18: Levelized Price | G18: ="Season 1 Pricing ("&100*$D$7&"%)" -> Season 1 Pricing (73.5%) | N18: ="Season 2 Pricing ("&100*$D$8&"%)" -> Season 2 Pricing (120%) | U18: ="Season 3 Pricing ("&100*$D$9&"%)" -> Season 3 Pricing (100%)
C19: Heavy and Light Load Hour Differential | D19: ='AVOID NEW'!$D$66 -> 7.28 | G19: Flat | I19: Heavy Load Hour | K19: Light Load Hour | N19: Flat | P19: Heavy Load Hour | R19: Light Load Hour | U19: Flat | W19: Heavy Load Hour | Y19: Light Load Hour
D20: =D19*0.445 -> 3.2396 | E20: =-(D19-D20) -> -4.0404 | H20: Final avoided cost rates for wind and solar QFs include integration charges from Schedule 87 | J20: =H20 -> Final avoided cost rates for wind and solar QFs include integration charges from Schedule 87 | L20: =H20 -> Final avoided cost rates for wind and solar QFs include integration charges from Schedule 87 | O20: =H20 -> Final avoided cost rates for wind and solar QFs include integration charges from Schedule 87 | Q20: =H20 -> Final avoided cost rates for wind and solar QFs include integration charges from Schedule 87 | S20: =H20 -> Final avoided cost rates for wind and solar QFs include integration charges from Schedule 87 | V20: =H20 -> Final avoided cost rates for wind and solar QFs include integration charges from Schedule 87 | X20: =H20 -> Final avoided cost rates for wind and solar QFs include integration charges from Schedule 87 | Z20: =H20 -> Final avoided cost rates for wind and solar QFs include integration charges from Schedule 87
B21: Contract Length | C21: Flat | D21: Heavy Load Hour | E21: Light Load Hour | G21: Price | I21: Price | K21: Price | N21: Price | P21: Price | R21: Price | U21: Price | W21: Price | Y21: Price
B22: 1 | C22: ='IPCOStorage(Energy)Levelized'!D2 -> 28.83292851 | D22: =C22+D$20 -> 32.07252851 | E22: =C22+E$20 -> 24.79252851 | G22: =ROUND((+$C22*$D$7),2) -> 21.19 | H22: NA | I22: =ROUND((+$D22*$D$7),2) -> 23.57 | J22: NA | K22: =ROUND((+$E22*$D$7),2) -> 18.22 | L22: NA | N22: =ROUND((+$C22*$D$8),2) -> 34.6 | O22: NA | P22: =ROUND((+$D22*$D$8),2) -> 38.49 | Q22: NA | R22: =ROUND((+$E22*$D$8),2) -> 29.75 | S22: NA | U22: =ROUND((+$C22*$D$9),2) -> 28.83 | V22: NA | W22: =ROUND((+$D22*$D$9),2) -> 32.07 | X22: NA | Y22: =ROUND((+$E22*$D$9),2) -> 24.79 | Z22: NA
B23: 2 | C23: ='IPCOStorage(Energy)Levelized'!D3 -> 31.67494253 | D23: 34.91454253 | E23: 27.63454253 | G23: 23.28 | H23: NA | I23: 25.66 | J23: NA | K23: 20.31 | L23: NA | N23: 38.01 | O23: NA | P23: 41.9 | Q23: NA | R23: 33.16 | S23: NA | U23: =ROUND((+$C23*$D$9),2) -> 31.67 | V23: NA | W23: =ROUND((+$D23*$D$9),2) -> 34.91 | X23: NA | Y23: =ROUND((+$E23*$D$9),2) -> 27.63 | Z23: NA
B24: 3 | C24: ='IPCOStorage(Energy)Levelized'!D4 -> 33.33496956 | D24: 36.57456956 | E24: 29.29456956 | G24: 24.5 | H24: NA | I24: 26.88 | J24: NA | K24: 21.53 | L24: NA | N24: 40 | O24: NA | P24: 43.89 | Q24: NA | R24: 35.15 | S24: NA | U24: 33.33 | V24: NA | W24: 36.57 | X24: NA | Y24: 29.29 | Z24: NA
B25: 4 | C25: ='IPCOStorage(Energy)Levelized'!D5 -> 34.56552525 | D25: 37.80512525 | E25: 30.52512525 | G25: 25.41 | H25: NA | I25: 27.79 | J25: NA | K25: 22.44 | L25: NA | N25: 41.48 | O25: NA | P25: 45.37 | Q25: NA | R25: 36.63 | S25: NA | U25: 34.57 | V25: NA | W25: 37.81 | X25: NA | Y25: 30.53 | Z25: NA
B26: 5 | C26: ='IPCOStorage(Energy)Levelized'!D6 -> 34.88458138 | D26: 38.12418138 | E26: 30.84418138 | G26: 25.64 | H26: NA | I26: 28.02 | J26: NA | K26: 22.67 | L26: NA | N26: 41.86 | O26: NA | P26: 45.75 | Q26: NA | R26: 37.01 | S26: NA | U26: 34.88 | V26: NA | W26: 38.12 | X26: NA | Y26: 30.84 | Z26: NA
B27: 6 | C27: ='IPCOStorage(Energy)Levelized'!D7 -> 35.1039557 | D27: 38.3435557 | E27: 31.0635557 | G27: 25.8 | H27: NA | I27: 28.18 | J27: NA | K27: 22.83 | L27: NA | N27: 42.12 | O27: NA | P27: 46.01 | Q27: NA | R27: 37.28 | S27: NA | U27: 35.1 | V27: NA | W27: 38.34 | X27: NA | Y27: 31.06 | Z27: NA
B28: 7 | C28: ='IPCOStorage(Energy)Levelized'!D8 -> 35.52983048 | D28: 38.76943048 | E28: 31.48943048 | G28: 26.11 | H28: NA | I28: 28.5 | J28: NA | K28: 23.14 | L28: NA | N28: 42.64 | O28: NA | P28: 46.52 | Q28: NA | R28: 37.79 | S28: NA | U28: 35.53 | V28: NA | W28: 38.77 | X28: NA | Y28: 31.49 | Z28: NA
B29: 8 | C29: ='IPCOStorage(Energy)Levelized'!D9 -> 36.22256389 | D29: 39.46216389 | E29: 32.18216389 | G29: 26.62 | H29: NA | I29: 29 | J29: NA | K29: 23.65 | L29: NA | N29: 43.47 | O29: NA | P29: 47.35 | Q29: NA | R29: 38.62 | S29: NA | U29: 36.22 | V29: NA | W29: 39.46 | X29: NA | Y29: 32.18 | Z29: NA
B30: 9 | C30: ='IPCOStorage(Energy)Levelized'!D10 -> 36.82568245 | D30: 40.06528245 | E30: 32.78528245 | G30: 27.07 | H30: NA | I30: 29.45 | J30: NA | K30: 24.1 | L30: NA | N30: 44.19 | O30: NA | P30: 48.08 | Q30: NA | R30: 39.34 | S30: NA | U30: 36.83 | V30: NA | W30: 40.07 | X30: NA | Y30: 32.79 | Z30: NA
B31: 10 | C31: ='IPCOStorage(Energy)Levelized'!D11 -> 37.41804576 | D31: 40.65764576 | E31: 33.37764576 | G31: 27.5 | H31: NA | I31: 29.88 | J31: NA | K31: 24.53 | L31: NA | N31: 44.9 | O31: NA | P31: 48.79 | Q31: NA | R31: 40.05 | S31: NA | U31: 37.42 | V31: NA | W31: 40.66 | X31: NA | Y31: 33.38 | Z31: NA
B32: 11 | C32: ='IPCOStorage(Energy)Levelized'!D12 -> 37.95011244 | D32: 41.18971244 | E32: 33.90971244 | G32: 27.89 | H32: NA | I32: 30.27 | J32: NA | K32: 24.92 | L32: NA | N32: 45.54 | O32: NA | P32: 49.43 | Q32: NA | R32: 40.69 | S32: NA | U32: 37.95 | V32: NA | W32: 41.19 | X32: NA | Y32: 33.91 | Z32: NA
B33: 12 | C33: ='IPCOStorage(Energy)Levelized'!D13 -> 38.47680618 | D33: 41.71640618 | E33: 34.43640618 | G33: 28.28 | H33: NA | I33: 30.66 | J33: NA | K33: 25.31 | L33: NA | N33: 46.17 | O33: NA | P33: 50.06 | Q33: NA | R33: 41.32 | S33: NA | U33: 38.48 | V33: NA | W33: 41.72 | X33: NA | Y33: 34.44 | Z33: NA
B34: 13 | C34: ='IPCOStorage(Energy)Levelized'!D14 -> 39.06994098 | D34: 42.30954098 | E34: 35.02954098 | G34: 28.72 | H34: NA | I34: 31.1 | J34: NA | K34: 25.75 | L34: NA | N34: 46.88 | O34: NA | P34: 50.77 | Q34: NA | R34: 42.04 | S34: NA | U34: 39.07 | V34: NA | W34: 42.31 | X34: NA | Y34: 35.03 | Z34: NA
B35: 14 | C35: ='IPCOStorage(Energy)Levelized'!D15 -> 39.65850047 | D35: 42.89810047 | E35: 35.61810047 | G35: 29.15 | H35: NA | I35: 31.53 | J35: NA | K35: 26.18 | L35: NA | N35: 47.59 | O35: NA | P35: 51.48 | Q35: NA | R35: 42.74 | S35: NA | U35: 39.66 | V35: NA | W35: 42.9 | X35: NA | Y35: 35.62 | Z35: NA
B36: 15 | C36: ='IPCOStorage(Energy)Levelized'!D16 -> 40.24522546 | D36: 43.48482546 | E36: 36.20482546 | G36: 29.58 | H36: NA | I36: 31.96 | J36: NA | K36: 26.61 | L36: NA | N36: 48.29 | O36: NA | P36: 52.18 | Q36: NA | R36: 43.45 | S36: NA | U36: 40.25 | V36: NA | W36: 43.48 | X36: NA | Y36: 36.2 | Z36: NA
B37: 16 | C37: ='IPCOStorage(Energy)Levelized'!D17 -> 40.79762864 | D37: 44.03722864 | E37: 36.75722864 | G37: 29.99 | H37: NA | I37: 32.37 | J37: NA | K37: 27.02 | L37: NA | N37: 48.96 | O37: NA | P37: 52.84 | Q37: NA | R37: 44.11 | S37: NA | U37: 40.8 | V37: NA | W37: 44.04 | X37: NA | Y37: 36.76 | Z37: NA
B38: 17 | C38: ='IPCOStorage(Energy)Levelized'!D18 -> 41.33624524 | D38: 44.57584524 | E38: 37.29584524 | G38: 30.38 | H38: NA | I38: 32.76 | J38: NA | K38: 27.41 | L38: NA | N38: 49.6 | O38: NA | P38: 53.49 | Q38: NA | R38: 44.76 | S38: NA | U38: 41.34 | V38: NA | W38: 44.58 | X38: NA | Y38: 37.3 | Z38: NA
B39: 18 | C39: ='IPCOStorage(Energy)Levelized'!D19 -> 41.88628754 | D39: 45.12588754 | E39: 37.84588754 | G39: 30.79 | H39: NA | I39: 33.17 | J39: NA | K39: 27.82 | L39: NA | N39: 50.26 | O39: NA | P39: 54.15 | Q39: NA | R39: 45.42 | S39: NA | U39: 41.89 | V39: NA | W39: 45.13 | X39: NA | Y39: 37.85 | Z39: NA
B40: 19 | C40: ='IPCOStorage(Energy)Levelized'!D20 -> 42.44517468 | D40: 45.68477468 | E40: 38.40477468 | G40: 31.2 | H40: NA | I40: 33.58 | J40: NA | K40: 28.23 | L40: NA | N40: 50.93 | O40: NA | P40: 54.82 | Q40: NA | R40: 46.09 | S40: NA | U40: 42.45 | V40: NA | W40: 45.68 | X40: NA | Y40: 38.4 | Z40: NA
B41: 20 | C41: ='IPCOStorage(Energy)Levelized'!D21 -> 43.01078109 | D41: 46.25038109 | E41: 38.97038109 | G41: 31.61 | H41: NA | I41: 33.99 | J41: NA | K41: 28.64 | L41: NA | N41: 51.61 | O41: NA | P41: 55.5 | Q41: NA | R41: 46.76 | S41: NA | U41: 43.01 | V41: NA | W41: 46.25 | X41: NA | Y41: 38.97 | Z41: NA
B45: =$B$1 -> IDAHO POWER
B46: LEVELIZED RATES
B47: ="PROJECT ON-LINE IN "& 'AVOID NEW'!$D$54+1 -> PROJECT ON-LINE IN 2027
C50: Levelized Price | G50: ="Season 1 Pricing ("&100*$D$7&"%)" -> Season 1 Pricing (73.5%) | N50: ="Season 2 Pricing ("&100*$D$8&"%)" -> Season 2 Pricing (120%) | U50: ="Season 3 Pricing ("&100*$D$9&"%)" -> Season 3 Pricing (100%)
C51: Heavy and Light Load Hour Differential | D51: ='AVOID NEW'!$D$66 -> 7.28 | G51: Flat | I51: Heavy Load Hour | K51: Light Load Hour | N51: Flat | P51: Heavy Load Hour | R51: Light Load Hour | U51: Flat | W51: Heavy Load Hour | Y51: Light Load Hour
D52: =D51*0.445 -> 3.2396 | E52: =-(D51-D52) -> -4.0404 | H52: =H20 -> Final avoided cost rates for wind and solar QFs include integration charges from Schedule 87 | J52: =H20 -> Final avoided cost rates for wind and solar QFs include integration charges from Schedule 87 | L52: =H20 -> Final avoided cost rates for wind and solar QFs include integration charges from Schedule 87 | O52: =H20 -> Final avoided cost rates for wind and solar QFs include integration charges from Schedule 87 | Q52: =H20 -> Final avoided cost rates for wind and solar QFs include integration charges from Schedule 87 | S52: =H20 -> Final avoided cost rates for wind and solar QFs include integration charges from Schedule 87 | V52: =H20 -> Final avoided cost rates for wind and solar QFs include integration charges from Schedule 87 | X52: =H20 -> Final avoided cost rates for wind and solar QFs include integration charges from Schedule 87 | Z52: =H20 -> Final avoided cost rates for wind and solar QFs include integration charges from Schedule 87
B53: Contract Length | C53: Flat | D53: Heavy Load Hour | E53: Light Load Hour | G53: Price | I53: Price | K53: Price | N53: Price | P53: Price | R53: Price | U53: Price | W53: Price | Y53: Price
B54: 1 | C54: ='IPCOStorage(Energy)Levelized'!E2 -> 34.72754938 | D54: =C54+D$52 -> 37.96714938 | E54: =C54+E$52 -> 30.68714938 | G54: =ROUND((+$C54*$D$7),2) -> 25.52 | H54: NA | I54: =ROUND((+$D54*$D$7),2) -> 27.91 | J54: NA | K54: =ROUND((+$E54*$D$7),2) -> 22.56 | L54: NA | N54: =ROUND((+$C54*$D$8),2) -> 41.67 | O54: NA | P54: =ROUND((+$D54*$D$8),2) -> 45.56 | Q54: NA | R54: =ROUND((+$E54*$D$8),2) -> 36.82 | S54: NA | U54: =ROUND((+$C54*$D$9),2) -> 34.73 | V54: NA | W54: =ROUND((+$D54*$D$9),2) -> 37.97 | X54: NA | Y54: =ROUND((+$E54*$D$9),2) -> 30.69 | Z54: NA
B55: 2 | C55: ='IPCOStorage(Energy)Levelized'!E3 -> 35.83917011 | D55: 39.07877011 | E55: 31.79877011 | G55: 26.34 | H55: NA | I55: 28.72 | J55: NA | K55: 23.37 | L55: NA | N55: 43.01 | O55: NA | P55: 46.89 | Q55: NA | R55: 38.16 | S55: NA | U55: =ROUND((+$C55*$D$9),2) -> 35.84 | V55: NA | W55: =ROUND((+$D55*$D$9),2) -> 39.08 | X55: NA | Y55: =ROUND((+$E55*$D$9),2) -> 31.8 | Z55: NA
B56: 3 | C56: ='IPCOStorage(Energy)Levelized'!E4 -> 36.76632257 | D56: 40.00592257 | E56: 32.72592257 | G56: 27.02 | H56: NA | I56: 29.4 | J56: NA | K56: 24.05 | L56: NA | N56: 44.12 | O56: NA | P56: 48.01 | Q56: NA | R56: 39.27 | S56: NA | U56: 36.77 | V56: NA | W56: 40.01 | X56: NA | Y56: 32.73 | Z56: NA
B57: 4 | C57: ='IPCOStorage(Energy)Levelized'!E5 -> 36.68776391 | D57: 39.92736391 | E57: 32.64736391 | G57: 26.97 | H57: NA | I57: 29.35 | J57: NA | K57: 24 | L57: NA | N57: 44.03 | O57: NA | P57: 47.91 | Q57: NA | R57: 39.18 | S57: NA | U57: 36.69 | V57: NA | W57: 39.93 | X57: NA | Y57: 32.65 | Z57: NA
B58: 5 | C58: ='IPCOStorage(Energy)Levelized'!E6 -> 36.65022789 | D58: 39.88982789 | E58: 32.60982789 | G58: 26.94 | H58: NA | I58: 29.32 | J58: NA | K58: 23.97 | L58: NA | N58: 43.98 | O58: NA | P58: 47.87 | Q58: NA | R58: 39.13 | S58: NA | U58: 36.65 | V58: NA | W58: 39.89 | X58: NA | Y58: 32.61 | Z58: NA
B59: 6 | C59: ='IPCOStorage(Energy)Levelized'!E7 -> 36.9526434 | D59: 40.1922434 | E59: 32.9122434 | G59: 27.16 | H59: NA | I59: 29.54 | J59: NA | K59: 24.19 | L59: NA | N59: 44.34 | O59: NA | P59: 48.23 | Q59: NA | R59: 39.49 | S59: NA | U59: 36.95 | V59: NA | W59: 40.19 | X59: NA | Y59: 32.91 | Z59: NA
B60: 7 | C60: ='IPCOStorage(Energy)Levelized'!E8 -> 37.61339595 | D60: 40.85299595 | E60: 33.57299595 | G60: 27.65 | H60: NA | I60: 30.03 | J60: NA | K60: 24.68 | L60: NA | N60: 45.14 | O60: NA | P60: 49.02 | Q60: NA | R60: 40.29 | S60: NA | U60: 37.61 | V60: NA | W60: 40.85 | X60: NA | Y60: 33.57 | Z60: NA
B61: 8 | C61: ='IPCOStorage(Energy)Levelized'!E9 -> 38.18555484 | D61: 41.42515484 | E61: 34.14515484 | G61: 28.07 | H61: NA | I61: 30.45 | J61: NA | K61: 25.1 | L61: NA | N61: 45.82 | O61: NA | P61: 49.71 | Q61: NA | R61: 40.97 | S61: NA | U61: 38.19 | V61: NA | W61: 41.43 | X61: NA | Y61: 34.15 | Z61: NA
B62: 9 | C62: ='IPCOStorage(Energy)Levelized'!E10 -> 38.7588194 | D62: 41.9984194 | E62: 34.7184194 | G62: 28.49 | H62: NA | I62: 30.87 | J62: NA | K62: 25.52 | L62: NA | N62: 46.51 | O62: NA | P62: 50.4 | Q62: NA | R62: 41.66 | S62: NA | U62: 38.76 | V62: NA | W62: 42 | X62: NA | Y62: 34.72 | Z62: NA
B63: 10 | C63: ='IPCOStorage(Energy)Levelized'!E11 -> 39.27290378 | D63: 42.51250378 | E63: 35.23250378 | G63: 28.87 | H63: NA | I63: 31.25 | J63: NA | K63: 25.9 | L63: NA | N63: 47.13 | O63: NA | P63: 51.02 | Q63: NA | R63: 42.28 | S63: NA | U63: 39.27 | V63: NA | W63: 42.51 | X63: NA | Y63: 35.23 | Z63: NA
B64: 11 | C64: ='IPCOStorage(Energy)Levelized'!E12 -> 39.78927267 | D64: 43.02887267 | E64: 35.74887267 | G64: 29.25 | H64: NA | I64: 31.63 | J64: NA | K64: 26.28 | L64: NA | N64: 47.75 | O64: NA | P64: 51.63 | Q64: NA | R64: 42.9 | S64: NA | U64: 39.79 | V64: NA | W64: 43.03 | X64: NA | Y64: 35.75 | Z64: NA
B65: 12 | C65: ='IPCOStorage(Energy)Levelized'!E13 -> 40.38710679 | D65: 43.62670679 | E65: 36.34670679 | G65: 29.68 | H65: NA | I65: 32.07 | J65: NA | K65: 26.71 | L65: NA | N65: 48.46 | O65: NA | P65: 52.35 | Q65: NA | R65: 43.62 | S65: NA | U65: 40.39 | V65: NA | W65: 43.63 | X65: NA | Y65: 36.35 | Z65: NA
B66: 13 | C66: ='IPCOStorage(Energy)Levelized'!E14 -> 40.98405286 | D66: 44.22365286 | E66: 36.94365286 | G66: 30.12 | H66: NA | I66: 32.5 | J66: NA | K66: 27.15 | L66: NA | N66: 49.18 | O66: NA | P66: 53.07 | Q66: NA | R66: 44.33 | S66: NA | U66: 40.98 | V66: NA | W66: 44.22 | X66: NA | Y66: 36.94 | Z66: NA
B67: 14 | C67: ='IPCOStorage(Energy)Levelized'!E15 -> 41.58243096 | D67: 44.82203096 | E67: 37.54203096 | G67: 30.56 | H67: NA | I67: 32.94 | J67: NA | K67: 27.59 | L67: NA | N67: 49.9 | O67: NA | P67: 53.79 | Q67: NA | R67: 45.05 | S67: NA | U67: 41.58 | V67: NA | W67: 44.82 | X67: NA | Y67: 37.54 | Z67: NA
B68: 15 | C68: ='IPCOStorage(Energy)Levelized'!E16 -> 42.14550916 | D68: 45.38510916 | E68: 38.10510916 | G68: 30.98 | H68: NA | I68: 33.36 | J68: NA | K68: 28.01 | L68: NA | N68: 50.57 | O68: NA | P68: 54.46 | Q68: NA | R68: 45.73 | S68: NA | U68: 42.15 | V68: NA | W68: 45.39 | X68: NA | Y68: 38.11 | Z68: NA
B69: 16 | C69: ='IPCOStorage(Energy)Levelized'!E17 -> 42.69599514 | D69: 45.93559514 | E69: 38.65559514 | G69: 31.38 | H69: NA | I69: 33.76 | J69: NA | K69: 28.41 | L69: NA | N69: 51.24 | O69: NA | P69: 55.12 | Q69: NA | R69: 46.39 | S69: NA | U69: 42.7 | V69: NA | W69: 45.94 | X69: NA | Y69: 38.66 | Z69: NA
B70: 17 | C70: ='IPCOStorage(Energy)Levelized'!E18 -> 43.2614901 | D70: 46.5010901 | E70: 39.2210901 | G70: 31.8 | H70: NA | I70: 34.18 | J70: NA | K70: 28.83 | L70: NA | N70: 51.91 | O70: NA | P70: 55.8 | Q70: NA | R70: 47.07 | S70: NA | U70: 43.26 | V70: NA | W70: 46.5 | X70: NA | Y70: 39.22 | Z70: NA
B71: 18 | C71: ='IPCOStorage(Energy)Levelized'!E19 -> 43.83871034 | D71: 47.07831034 | E71: 39.79831034 | G71: 32.22 | H71: NA | I71: 34.6 | J71: NA | K71: 29.25 | L71: NA | N71: 52.61 | O71: NA | P71: 56.49 | Q71: NA | R71: 47.76 | S71: NA | U71: 43.84 | V71: NA | W71: 47.08 | X71: NA | Y71: 39.8 | Z71: NA
B72: 19 | C72: ='IPCOStorage(Energy)Levelized'!E20 -> 44.42499327 | D72: 47.66459327 | E72: 40.38459327 | G72: 32.65 | H72: NA | I72: 35.03 | J72: NA | K72: 29.68 | L72: NA | N72: 53.31 | O72: NA | P72: 57.2 | Q72: NA | R72: 48.46 | S72: NA | U72: 44.42 | V72: NA | W72: 47.66 | X72: NA | Y72: 40.38 | Z72: NA
B73: 20 | C73: ='IPCOStorage(Energy)Levelized'!E21 -> 45.0061261 | D73: 48.2457261 | E73: 40.9657261 | G73: 33.08 | H73: NA | I73: 35.46 | J73: NA | K73: 30.11 | L73: NA | N73: 54.01 | O73: NA | P73: 57.89 | Q73: NA | R73: 49.16 | S73: NA | U73: 45.01 | V73: NA | W73: 48.25 | X73: NA | Y73: 40.97 | Z73: NA
B77: =$B$1 -> IDAHO POWER
B78: LEVELIZED RATES
B79: ="PROJECT ON-LINE IN "& 'AVOID NEW'!$D$54+2 -> PROJECT ON-LINE IN 2028
C82: Levelized Price | G82: ="Season 1 Pricing ("&100*$D$7&"%)" -> Season 1 Pricing (73.5%) | N82: ="Season 2 Pricing ("&100*$D$8&"%)" -> Season 2 Pricing (120%) | U82: ="Season 3 Pricing ("&100*$D$9&"%)" -> Season 3 Pricing (100%)
C83: Heavy and Light Load Hour Differential | D83: ='AVOID NEW'!$D$66 -> 7.28 | G83: Flat | I83: Heavy Load Hour | K83: Light Load Hour | N83: Flat | P83: Heavy Load Hour | R83: Light Load Hour | U83: Flat | W83: Heavy Load Hour | Y83: Light Load Hour
D84: =D83*0.445 -> 3.2396 | E84: =-(D83-D84) -> -4.0404 | H84: =H20 -> Final avoided cost rates for wind and solar QFs include integration charges from Schedule 87 | J84: =H20 -> Final avoided cost rates for wind and solar QFs include integration charges from Schedule 87 | L84: =H20 -> Final avoided cost rates for wind and solar QFs include integration charges from Schedule 87 | O84: =H20 -> Final avoided cost rates for wind and solar QFs include integration charges from Schedule 87 | Q84: =H20 -> Final avoided cost rates for wind and solar QFs include integration charges from Schedule 87 | S84: =H20 -> Final avoided cost rates for wind and solar QFs include integration charges from Schedule 87 | V84: =H20 -> Final avoided cost rates for wind and solar QFs include integration charges from Schedule 87 | X84: =H20 -> Final avoided cost rates for wind and solar QFs include integration charges from Schedule 87 | Z84: =H20 -> Final avoided cost rates for wind and solar QFs include integration charges from Schedule 87
B85: Contract Length | C85: Flat | D85: Heavy Load Hour | E85: Light Load Hour | G85: Price | I85: Price | K85: Price | N85: Price | P85: Price | R85: Price | U85: Price | W85: Price | Y85: Price
B86: 1 | C86: ='IPCOStorage(Energy)Levelized'!F2 -> 37.03316178 | D86: =C86+D$84 -> 40.27276178 | E86: =C86+E$84 -> 32.99276178 | G86: =ROUND((+$C86*$D$7),2) -> 27.22 | H86: NA | I86: =ROUND((+$D86*$D$7),2) -> 29.6 | J86: NA | K86: =ROUND((+$E86*$D$7),2) -> 24.25 | L86: NA | N86: =ROUND((+$C86*$D$8),2) -> 44.44 | O86: NA | P86: =ROUND((+$D86*$D$8),2) -> 48.33 | Q86: NA | R86: =ROUND((+$E86*$D$8),2) -> 39.59 | S86: NA | U86: =ROUND((+$C86*$D$9),2) -> 37.03 | V86: NA | W86: =ROUND((+$D86*$D$9),2) -> 40.27 | X86: NA | Y86: =ROUND((+$E86*$D$9),2) -> 32.99 | Z86: NA
B87: 2 | C87: ='IPCOStorage(Energy)Levelized'!F3 -> 37.90036309 | D87: 41.13996309 | E87: 33.85996309 | G87: 27.86 | H87: NA | I87: 30.24 | J87: NA | K87: 24.89 | L87: NA | N87: 45.48 | O87: NA | P87: 49.37 | Q87: NA | R87: 40.63 | S87: NA | U87: =ROUND((+$C87*$D$9),2) -> 37.9 | V87: NA | W87: =ROUND((+$D87*$D$9),2) -> 41.14 | X87: NA | Y87: =ROUND((+$E87*$D$9),2) -> 33.86 | Z87: NA
B88: 3 | C88: ='IPCOStorage(Energy)Levelized'!F4 -> 37.44030854 | D88: 40.67990854 | E88: 33.39990854 | G88: 27.52 | H88: NA | I88: 29.9 | J88: NA | K88: 24.55 | L88: NA | N88: 44.93 | O88: NA | P88: 48.82 | Q88: NA | R88: 40.08 | S88: NA | U88: 37.44 | V88: NA | W88: 40.68 | X88: NA | Y88: 33.4 | Z88: NA
B89: 4 | C89: ='IPCOStorage(Energy)Levelized'!F5 -> 37.22311936 | D89: 40.46271936 | E89: 33.18271936 | G89: 27.36 | H89: NA | I89: 29.74 | J89: NA | K89: 24.39 | L89: NA | N89: 44.67 | O89: NA | P89: 48.56 | Q89: NA | R89: 39.82 | S89: NA | U89: 37.22 | V89: NA | W89: 40.46 | X89: NA | Y89: 33.18 | Z89: NA
B90: 5 | C90: ='IPCOStorage(Energy)Levelized'!F6 -> 37.50129371 | D90: 40.74089371 | E90: 33.46089371 | G90: 27.56 | H90: NA | I90: 29.94 | J90: NA | K90: 24.59 | L90: NA | N90: 45 | O90: NA | P90: 48.89 | Q90: NA | R90: 40.15 | S90: NA | U90: 37.5 | V90: NA | W90: 40.74 | X90: NA | Y90: 33.46 | Z90: NA
B91: 6 | C91: ='IPCOStorage(Energy)Levelized'!F7 -> 38.22651822 | D91: 41.46611822 | E91: 34.18611822 | G91: 28.1 | H91: NA | I91: 30.48 | J91: NA | K91: 25.13 | L91: NA | N91: 45.87 | O91: NA | P91: 49.76 | Q91: NA | R91: 41.02 | S91: NA | U91: 38.23 | V91: NA | W91: 41.47 | X91: NA | Y91: 34.19 | Z91: NA
B92: 7 | C92: ='IPCOStorage(Energy)Levelized'!F8 -> 38.83639952 | D92: 42.07599952 | E92: 34.79599952 | G92: 28.54 | H92: NA | I92: 30.93 | J92: NA | K92: 25.58 | L92: NA | N92: 46.6 | O92: NA | P92: 50.49 | Q92: NA | R92: 41.76 | S92: NA | U92: 38.84 | V92: NA | W92: 42.08 | X92: NA | Y92: 34.8 | Z92: NA
B93: 8 | C93: ='IPCOStorage(Energy)Levelized'!F9 -> 39.44469224 | D93: 42.68429224 | E93: 35.40429224 | G93: 28.99 | H93: NA | I93: 31.37 | J93: NA | K93: 26.02 | L93: NA | N93: 47.33 | O93: NA | P93: 51.22 | Q93: NA | R93: 42.49 | S93: NA | U93: 39.44 | V93: NA | W93: 42.68 | X93: NA | Y93: 35.4 | Z93: NA
B94: 9 | C94: ='IPCOStorage(Energy)Levelized'!F10 -> 39.98277078 | D94: 43.22237078 | E94: 35.94237078 | G94: 29.39 | H94: NA | I94: 31.77 | J94: NA | K94: 26.42 | L94: NA | N94: 47.98 | O94: NA | P94: 51.87 | Q94: NA | R94: 43.13 | S94: NA | U94: 39.98 | V94: NA | W94: 43.22 | X94: NA | Y94: 35.94 | Z94: NA
B95: 10 | C95: ='IPCOStorage(Energy)Levelized'!F11 -> 40.52366651 | D95: 43.76326651 | E95: 36.48326651 | G95: 29.78 | H95: NA | I95: 32.17 | J95: NA | K95: 26.82 | L95: NA | N95: 48.63 | O95: NA | P95: 52.52 | Q95: NA | R95: 43.78 | S95: NA | U95: 40.52 | V95: NA | W95: 43.76 | X95: NA | Y95: 36.48 | Z95: NA
B96: 11 | C96: ='IPCOStorage(Energy)Levelized'!F12 -> 41.15733426 | D96: 44.39693426 | E96: 37.11693426 | G96: 30.25 | H96: NA | I96: 32.63 | J96: NA | K96: 27.28 | L96: NA | N96: 49.39 | O96: NA | P96: 53.28 | Q96: NA | R96: 44.54 | S96: NA | U96: 41.16 | V96: NA | W96: 44.4 | X96: NA | Y96: 37.12 | Z96: NA
B97: 12 | C97: ='IPCOStorage(Energy)Levelized'!F13 -> 41.78905848 | D97: 45.02865848 | E97: 37.74865848 | G97: 30.71 | H97: NA | I97: 33.1 | J97: NA | K97: 27.75 | L97: NA | N97: 50.15 | O97: NA | P97: 54.03 | Q97: NA | R97: 45.3 | S97: NA | U97: 41.79 | V97: NA | W97: 45.03 | X97: NA | Y97: 37.75 | Z97: NA
B98: 13 | C98: ='IPCOStorage(Energy)Levelized'!F14 -> 42.42178658 | D98: 45.66138658 | E98: 38.38138658 | G98: 31.18 | H98: NA | I98: 33.56 | J98: NA | K98: 28.21 | L98: NA | N98: 50.91 | O98: NA | P98: 54.79 | Q98: NA | R98: 46.06 | S98: NA | U98: 42.42 | V98: NA | W98: 45.66 | X98: NA | Y98: 38.38 | Z98: NA
B99: 14 | C99: ='IPCOStorage(Energy)Levelized'!F15 -> 43.01468885 | D99: 46.25428885 | E99: 38.97428885 | G99: 31.62 | H99: NA | I99: 34 | J99: NA | K99: 28.65 | L99: NA | N99: 51.62 | O99: NA | P99: 55.51 | Q99: NA | R99: 46.77 | S99: NA | U99: 43.01 | V99: NA | W99: 46.25 | X99: NA | Y99: 38.97 | Z99: NA
B100: 15 | C100: ='IPCOStorage(Energy)Levelized'!F16 -> 43.59367855 | D100: 46.83327855 | E100: 39.55327855 | G100: 32.04 | H100: NA | I100: 34.42 | J100: NA | K100: 29.07 | L100: NA | N100: 52.31 | O100: NA | P100: 56.2 | Q100: NA | R100: 47.46 | S100: NA | U100: 43.59 | V100: NA | W100: 46.83 | X100: NA | Y100: 39.55 | Z100: NA
B101: 16 | C101: ='IPCOStorage(Energy)Levelized'!F17 -> 44.18956585 | D101: 47.42916585 | E101: 40.14916585 | G101: 32.48 | H101: NA | I101: 34.86 | J101: NA | K101: 29.51 | L101: NA | N101: 53.03 | O101: NA | P101: 56.91 | Q101: NA | R101: 48.18 | S101: NA | U101: 44.19 | V101: NA | W101: 47.43 | X101: NA | Y101: 40.15 | Z101: NA
B102: 17 | C102: ='IPCOStorage(Energy)Levelized'!F18 -> 44.79859291 | D102: 48.03819291 | E102: 40.75819291 | G102: 32.93 | H102: NA | I102: 35.31 | J102: NA | K102: 29.96 | L102: NA | N102: 53.76 | O102: NA | P102: 57.65 | Q102: NA | R102: 48.91 | S102: NA | U102: 44.8 | V102: NA | W102: 48.04 | X102: NA | Y102: 40.76 | Z102: NA
B103: 18 | C103: ='IPCOStorage(Energy)Levelized'!F19 -> 45.41775623 | D103: 48.65735623 | E103: 41.37735623 | G103: 33.38 | H103: NA | I103: 35.76 | J103: NA | K103: 30.41 | L103: NA | N103: 54.5 | O103: NA | P103: 58.39 | Q103: NA | R103: 49.65 | S103: NA | U103: 45.42 | V103: NA | W103: 48.66 | X103: NA | Y103: 41.38 | Z103: NA
B104: 19 | C104: ='IPCOStorage(Energy)Levelized'!F20 -> 46.03139339 | D104: 49.27099339 | E104: 41.99099339 | G104: 33.83 | H104: NA | I104: 36.21 | J104: NA | K104: 30.86 | L104: NA | N104: 55.24 | O104: NA | P104: 59.13 | Q104: NA | R104: 50.39 | S104: NA | U104: 46.03 | V104: NA | W104: 49.27 | X104: NA | Y104: 41.99 | Z104: NA
B105: 20 | C105: ='IPCOStorage(Energy)Levelized'!F21 -> 46.63915009 | D105: 49.87875009 | E105: 42.59875009 | G105: 34.28 | H105: NA | I105: 36.66 | J105: NA | K105: 31.31 | L105: NA | N105: 55.97 | O105: NA | P105: 59.85 | Q105: NA | R105: 51.12 | S105: NA | U105: 46.64 | V105: NA | W105: 49.88 | X105: NA | Y105: 42.6 | Z105: NA
B109: =$B$1 -> IDAHO POWER
B110: LEVELIZED RATES
B111: ="PROJECT ON-LINE IN "& 'AVOID NEW'!$D$54+3 -> PROJECT ON-LINE IN 2029
C114: Levelized Price | G114: ="Season 1 Pricing ("&100*$D$7&"%)" -> Season 1 Pricing (73.5%) | N114: ="Season 2 Pricing ("&100*$D$8&"%)" -> Season 2 Pricing (120%) | U114: ="Season 3 Pricing ("&100*$D$9&"%)" -> Season 3 Pricing (100%)
C115: Heavy and Light Load Hour Differential | D115: ='AVOID NEW'!$D$66 -> 7.28 | G115: Flat | I115: Heavy Load Hour | K115: Light Load Hour | N115: Flat | P115: Heavy Load Hour | R115: Light Load Hour | U115: Flat | W115: Heavy Load Hour | Y115: Light Load Hour
D116: =D115*0.445 -> 3.2396 | E116: =-(D115-D116) -> -4.0404 | H116: =H20 -> Final avoided cost rates for wind and solar QFs include integration charges from Schedule 87 | J116: =H20 -> Final avoided cost rates for wind and solar QFs include integration charges from Schedule 87 | L116: =H20 -> Final avoided cost rates for wind and solar QFs include integration charges from Schedule 87 | O116: =H20 -> Final avoided cost rates for wind and solar QFs include integration charges from Schedule 87 | Q116: =H20 -> Final avoided cost rates for wind and solar QFs include integration charges from Schedule 87 | S116: =H20 -> Final avoided cost rates for wind and solar QFs include integration charges from Schedule 87 | V116: =H20 -> Final avoided cost rates for wind and solar QFs include integration charges from Schedule 87 | X116: =H20 -> Final avoided cost rates for wind and solar QFs include integration charges from Schedule 87 | Z116: =H20 -> Final avoided cost rates for wind and solar QFs include integration charges from Schedule 87
B117: Contract Length | C117: Flat | D117: Heavy Load Hour | E117: Light Load Hour | G117: Price | I117: Price | K117: Price | N117: Price | P117: Price | R117: Price | U117: Price | W117: Price | Y117: Price
B118: 1 | C118: ='IPCOStorage(Energy)Levelized'!G2 -> 38.83182389 | D118: =C118+D$84 -> 42.07142389 | E118: =C118+E$84 -> 34.79142389 | G118: =ROUND((+$C118*$D$7),2) -> 28.54 | H118: NA | I118: =ROUND((+$D118*$D$7),2) -> 30.92 | J118: NA | K118: =ROUND((+$E118*$D$7),2) -> 25.57 | L118: NA | N118: =ROUND((+$C118*$D$8),2) -> 46.6 | O118: NA | P118: =ROUND((+$D118*$D$8),2) -> 50.49 | Q118: NA | R118: =ROUND((+$E118*$D$8),2) -> 41.75 | S118: NA | U118: =ROUND((+$C118*$D$9),2) -> 38.83 | V118: NA | W118: =ROUND((+$D118*$D$9),2) -> 42.07 | X118: NA | Y118: =ROUND((+$E118*$D$9),2) -> 34.79 | Z118: NA
B119: 2 | C119: ='IPCOStorage(Energy)Levelized'!G3 -> 37.66677853 | D119: 40.90637853 | E119: 33.62637853 | G119: 27.69 | H119: NA | I119: 30.07 | J119: NA | K119: 24.72 | L119: NA | N119: 45.2 | O119: NA | P119: 49.09 | Q119: NA | R119: 40.35 | S119: NA | U119: =ROUND((+$C119*$D$9),2) -> 37.67 | V119: NA | W119: =ROUND((+$D119*$D$9),2) -> 40.91 | X119: NA | Y119: =ROUND((+$E119*$D$9),2) -> 33.63 | Z119: NA
B120: 3 | C120: ='IPCOStorage(Energy)Levelized'!G4 -> 37.29604584 | D120: 40.53564584 | E120: 33.25564584 | G120: 27.41 | H120: NA | I120: 29.79 | J120: NA | K120: 24.44 | L120: NA | N120: 44.76 | O120: NA | P120: 48.64 | Q120: NA | R120: 39.91 | S120: NA | U120: 37.3 | V120: NA | W120: 40.54 | X120: NA | Y120: 33.26 | Z120: NA
B121: 4 | C121: ='IPCOStorage(Energy)Levelized'!G5 -> 37.64078078 | D121: 40.88038078 | E121: 33.60038078 | G121: 27.67 | H121: NA | I121: 30.05 | J121: NA | K121: 24.7 | L121: NA | N121: 45.17 | O121: NA | P121: 49.06 | Q121: NA | R121: 40.32 | S121: NA | U121: 37.64 | V121: NA | W121: 40.88 | X121: NA | Y121: 33.6 | Z121: NA
B122: 5 | C122: ='IPCOStorage(Energy)Levelized'!G6 -> 38.52076888 | D122: 41.76036888 | E122: 34.48036888 | G122: 28.31 | H122: NA | I122: 30.69 | J122: NA | K122: 25.34 | L122: NA | N122: 46.22 | O122: NA | P122: 50.11 | Q122: NA | R122: 41.38 | S122: NA | U122: 38.52 | V122: NA | W122: 41.76 | X122: NA | Y122: 34.48 | Z122: NA
B123: 6 | C123: ='IPCOStorage(Energy)Levelized'!G7 -> 39.21951248 | D123: 42.45911248 | E123: 35.17911248 | G123: 28.83 | H123: NA | I123: 31.21 | J123: NA | K123: 25.86 | L123: NA | N123: 47.06 | O123: NA | P123: 50.95 | Q123: NA | R123: 42.21 | S123: NA | U123: 39.22 | V123: NA | W123: 42.46 | X123: NA | Y123: 35.18 | Z123: NA
B124: 7 | C124: ='IPCOStorage(Energy)Levelized'!G8 -> 39.89857578 | D124: 43.13817578 | E124: 35.85817578 | G124: 29.33 | H124: NA | I124: 31.71 | J124: NA | K124: 26.36 | L124: NA | N124: 47.88 | O124: NA | P124: 51.77 | Q124: NA | R124: 43.03 | S124: NA | U124: 39.9 | V124: NA | W124: 43.14 | X124: NA | Y124: 35.86 | Z124: NA
B125: 8 | C125: ='IPCOStorage(Energy)Levelized'!G9 -> 40.4846118 | D125: 43.7242118 | E125: 36.4442118 | G125: 29.76 | H125: NA | I125: 32.14 | J125: NA | K125: 26.79 | L125: NA | N125: 48.58 | O125: NA | P125: 52.47 | Q125: NA | R125: 43.73 | S125: NA | U125: 40.48 | V125: NA | W125: 43.72 | X125: NA | Y125: 36.44 | Z125: NA
B126: 9 | C126: ='IPCOStorage(Energy)Levelized'!G10 -> 41.06879323 | D126: 44.30839323 | E126: 37.02839323 | G126: 30.19 | H126: NA | I126: 32.57 | J126: NA | K126: 27.22 | L126: NA | N126: 49.28 | O126: NA | P126: 53.17 | Q126: NA | R126: 44.43 | S126: NA | U126: 41.07 | V126: NA | W126: 44.31 | X126: NA | Y126: 37.03 | Z126: NA
B127: 10 | C127: ='IPCOStorage(Energy)Levelized'!G11 -> 41.755701 | D127: 44.995301 | E127: 37.715301 | G127: 30.69 | H127: NA | I127: 33.07 | J127: NA | K127: 27.72 | L127: NA | N127: 50.11 | O127: NA | P127: 53.99 | Q127: NA | R127: 45.26 | S127: NA | U127: 41.76 | V127: NA | W127: 45 | X127: NA | Y127: 37.72 | Z127: NA
B128: 11 | C128: ='IPCOStorage(Energy)Levelized'!G12 -> 42.43630384 | D128: 45.67590384 | E128: 38.39590384 | G128: 31.19 | H128: NA | I128: 33.57 | J128: NA | K128: 28.22 | L128: NA | N128: 50.92 | O128: NA | P128: 54.81 | Q128: NA | R128: 46.08 | S128: NA | U128: 42.44 | V128: NA | W128: 45.68 | X128: NA | Y128: 38.4 | Z128: NA
B129: 12 | C129: ='IPCOStorage(Energy)Levelized'!G13 -> 43.11512484 | D129: 46.35472484 | E129: 39.07472484 | G129: 31.69 | H129: NA | I129: 34.07 | J129: NA | K129: 28.72 | L129: NA | N129: 51.74 | O129: NA | P129: 55.63 | Q129: NA | R129: 46.89 | S129: NA | U129: 43.12 | V129: NA | W129: 46.35 | X129: NA | Y129: 39.07 | Z129: NA
B130: 13 | C130: ='IPCOStorage(Energy)Levelized'!G14 -> 43.74710534 | D130: 46.98670534 | E130: 39.70670534 | G130: 32.15 | H130: NA | I130: 34.54 | J130: NA | K130: 29.18 | L130: NA | N130: 52.5 | O130: NA | P130: 56.38 | Q130: NA | R130: 47.65 | S130: NA | U130: 43.75 | V130: NA | W130: 46.99 | X130: NA | Y130: 39.71 | Z130: NA
B131: 14 | C131: ='IPCOStorage(Energy)Levelized'!G15 -> 44.36238963 | D131: 47.60198963 | E131: 40.32198963 | G131: 32.61 | H131: NA | I131: 34.99 | J131: NA | K131: 29.64 | L131: NA | N131: 53.23 | O131: NA | P131: 57.12 | Q131: NA | R131: 48.39 | S131: NA | U131: 44.36 | V131: NA | W131: 47.6 | X131: NA | Y131: 40.32 | Z131: NA
B132: 15 | C132: ='IPCOStorage(Energy)Levelized'!G16 -> 44.99576889 | D132: 48.23536889 | E132: 40.95536889 | G132: 33.07 | H132: NA | I132: 35.45 | J132: NA | K132: 30.1 | L132: NA | N132: 53.99 | O132: NA | P132: 57.88 | Q132: NA | R132: 49.15 | S132: NA | U132: 45 | V132: NA | W132: 48.24 | X132: NA | Y132: 40.96 | Z132: NA
B133: 16 | C133: ='IPCOStorage(Energy)Levelized'!G17 -> 45.64309237 | D133: 48.88269237 | E133: 41.60269237 | G133: 33.55 | H133: NA | I133: 35.93 | J133: NA | K133: 30.58 | L133: NA | N133: 54.77 | O133: NA | P133: 58.66 | Q133: NA | R133: 49.92 | S133: NA | U133: 45.64 | V133: NA | W133: 48.88 | X133: NA | Y133: 41.6 | Z133: NA
B134: 17 | C134: ='IPCOStorage(Energy)Levelized'!G18 -> 46.30109329 | D134: 49.54069329 | E134: 42.26069329 | G134: 34.03 | H134: NA | I134: 36.41 | J134: NA | K134: 31.06 | L134: NA | N134: 55.56 | O134: NA | P134: 59.45 | Q134: NA | R134: 50.71 | S134: NA | U134: 46.3 | V134: NA | W134: 49.54 | X134: NA | Y134: 42.26 | Z134: NA
B135: 18 | C135: ='IPCOStorage(Energy)Levelized'!G19 -> 46.95257542 | D135: 50.19217542 | E135: 42.91217542 | G135: 34.51 | H135: NA | I135: 36.89 | J135: NA | K135: 31.54 | L135: NA | N135: 56.34 | O135: NA | P135: 60.23 | Q135: NA | R135: 51.49 | S135: NA | U135: 46.95 | V135: NA | W135: 50.19 | X135: NA | Y135: 42.91 | Z135: NA
B136: 19 | C136: ='IPCOStorage(Energy)Levelized'!G20 -> 47.59732804 | D136: 50.83692804 | E136: 43.55692804 | G136: 34.98 | H136: NA | I136: 37.37 | J136: NA | K136: 32.01 | L136: NA | N136: 57.12 | O136: NA | P136: 61 | Q136: NA | R136: 52.27 | S136: NA | U136: 47.6 | V136: NA | W136: 50.84 | X136: NA | Y136: 43.56 | Z136: NA
B137: 20 | C137: ='IPCOStorage(Energy)Levelized'!G21 -> 48.2351341 | D137: 51.4747341 | E137: 44.1947341 | G137: 35.45 | H137: NA | I137: 37.83 | J137: NA | K137: 32.48 | L137: NA | N137: 57.88 | O137: NA | P137: 61.77 | Q137: NA | R137: 53.03 | S137: NA | U137: 48.24 | V137: NA | W137: 51.47 | X137: NA | Y137: 44.19 | Z137: NA
B141: =$B$1 -> IDAHO POWER
B142: LEVELIZED RATES
B143: ="PROJECT ON-LINE IN "& 'AVOID NEW'!$D$54+4 -> PROJECT ON-LINE IN 2030
C146: Levelized Price | G146: ="Season 1 Pricing ("&100*$D$7&"%)" -> Season 1 Pricing (73.5%) | N146: ="Season 2 Pricing ("&100*$D$8&"%)" -> Season 2 Pricing (120%) | U146: ="Season 3 Pricing ("&100*$D$9&"%)" -> Season 3 Pricing (100%)
C147: Heavy and Light Load Hour Differential | D147: ='AVOID NEW'!$D$66 -> 7.28 | G147: Flat | I147: Heavy Load Hour | K147: Light Load Hour | N147: Flat | P147: Heavy Load Hour | R147: Light Load Hour | U147: Flat | W147: Heavy Load Hour | Y147: Light Load Hour
D148: =D147*0.445 -> 3.2396 | E148: =-(D147-D148) -> -4.0404 | H148: =H20 -> Final avoided cost rates for wind and solar QFs include integration charges from Schedule 87 | J148: =H20 -> Final avoided cost rates for wind and solar QFs include integration charges from Schedule 87 | L148: =H20 -> Final avoided cost rates for wind and solar QFs include integration charges from Schedule 87 | O148: =H20 -> Final avoided cost rates for wind and solar QFs include integration charges from Schedule 87 | Q148: =H20 -> Final avoided cost rates for wind and solar QFs include integration charges from Schedule 87 | S148: =H20 -> Final avoided cost rates for wind and solar QFs include integration charges from Schedule 87 | V148: =H20 -> Final avoided cost rates for wind and solar QFs include integration charges from Schedule 87 | X148: =H20 -> Final avoided cost rates for wind and solar QFs include integration charges from Schedule 87 | Z148: =H20 -> Final avoided cost rates for wind and solar QFs include integration charges from Schedule 87
B149: Contract Length | C149: Flat | D149: Heavy Load Hour | E149: Light Load Hour | G149: Price | I149: Price | K149: Price | N149: Price | P149: Price | R149: Price | U149: Price | W149: Price | Y149: Price
B150: 1 | C150: ='IPCOStorage(Energy)Levelized'!H2 -> 36.41540347 | D150: =C150+D$84 -> 39.65500347 | E150: =C150+E$84 -> 32.37500347 | G150: =ROUND((+$C150*$D$7),2) -> 26.77 | H150: NA | I150: =ROUND((+$D150*$D$7),2) -> 29.15 | J150: NA | K150: =ROUND((+$E150*$D$7),2) -> 23.8 | L150: NA | N150: =ROUND((+$C150*$D$8),2) -> 43.7 | O150: NA | P150: =ROUND((+$D150*$D$8),2) -> 47.59 | Q150: NA | R150: =ROUND((+$E150*$D$8),2) -> 38.85 | S150: NA | U150: =ROUND((+$C150*$D$9),2) -> 36.42 | V150: NA | W150: =ROUND((+$D150*$D$9),2) -> 39.66 | X150: NA | Y150: =ROUND((+$E150*$D$9),2) -> 32.38 | Z150: NA
B151: 2 | C151: ='IPCOStorage(Energy)Levelized'!H3 -> 36.4417897 | D151: 39.6813897 | E151: 32.4013897 | G151: 26.78 | H151: NA | I151: 29.17 | J151: NA | K151: 23.82 | L151: NA | N151: 43.73 | O151: NA | P151: 47.62 | Q151: NA | R151: 38.88 | S151: NA | U151: =ROUND((+$C151*$D$9),2) -> 36.44 | V151: NA | W151: =ROUND((+$D151*$D$9),2) -> 39.68 | X151: NA | Y151: =ROUND((+$E151*$D$9),2) -> 32.4 | Z151: NA
B152: 3 | C152: ='IPCOStorage(Energy)Levelized'!H4 -> 37.18352823 | D152: 40.42312823 | E152: 33.14312823 | G152: 27.33 | H152: NA | I152: 29.71 | J152: NA | K152: 24.36 | L152: NA | N152: 44.62 | O152: NA | P152: 48.51 | Q152: NA | R152: 39.77 | S152: NA | U152: 37.18 | V152: NA | W152: 40.42 | X152: NA | Y152: 33.14 | Z152: NA
B153: 4 | C153: ='IPCOStorage(Energy)Levelized'!H5 -> 38.42808529 | D153: 41.66768529 | E153: 34.38768529 | G153: 28.24 | H153: NA | I153: 30.63 | J153: NA | K153: 25.27 | L153: NA | N153: 46.11 | O153: NA | P153: 50 | Q153: NA | R153: 41.27 | S153: NA | U153: 38.43 | V153: NA | W153: 41.67 | X153: NA | Y153: 34.39 | Z153: NA
B154: 5 | C154: ='IPCOStorage(Energy)Levelized'!H6 -> 39.3151064 | D154: 42.5547064 | E154: 35.2747064 | G154: 28.9 | H154: NA | I154: 31.28 | J154: NA | K154: 25.93 | L154: NA | N154: 47.18 | O154: NA | P154: 51.07 | Q154: NA | R154: 42.33 | S154: NA | U154: 39.32 | V154: NA | W154: 42.55 | X154: NA | Y154: 35.27 | Z154: NA
B155: 6 | C155: ='IPCOStorage(Energy)Levelized'!H7 -> 40.12521616 | D155: 43.36481616 | E155: 36.08481616 | G155: 29.49 | H155: NA | I155: 31.87 | J155: NA | K155: 26.52 | L155: NA | N155: 48.15 | O155: NA | P155: 52.04 | Q155: NA | R155: 43.3 | S155: NA | U155: 40.13 | V155: NA | W155: 43.36 | X155: NA | Y155: 36.08 | Z155: NA
B156: 7 | C156: ='IPCOStorage(Energy)Levelized'!H8 -> 40.79568945 | D156: 44.03528945 | E156: 36.75528945 | G156: 29.98 | H156: NA | I156: 32.37 | J156: NA | K156: 27.02 | L156: NA | N156: 48.95 | O156: NA | P156: 52.84 | Q156: NA | R156: 44.11 | S156: NA | U156: 40.8 | V156: NA | W156: 44.04 | X156: NA | Y156: 36.76 | Z156: NA
B157: 8 | C157: ='IPCOStorage(Energy)Levelized'!H9 -> 41.44938706 | D157: 44.68898706 | E157: 37.40898706 | G157: 30.47 | H157: NA | I157: 32.85 | J157: NA | K157: 27.5 | L157: NA | N157: 49.74 | O157: NA | P157: 53.63 | Q157: NA | R157: 44.89 | S157: NA | U157: 41.45 | V157: NA | W157: 44.69 | X157: NA | Y157: 37.41 | Z157: NA
B158: 9 | C158: ='IPCOStorage(Energy)Levelized'!H10 -> 42.21233511 | D158: 45.45193511 | E158: 38.17193511 | G158: 31.03 | H158: NA | I158: 33.41 | J158: NA | K158: 28.06 | L158: NA | N158: 50.65 | O158: NA | P158: 54.54 | Q158: NA | R158: 45.81 | S158: NA | U158: 42.21 | V158: NA | W158: 45.45 | X158: NA | Y158: 38.17 | Z158: NA
B159: 10 | C159: ='IPCOStorage(Energy)Levelized'!H11 -> 42.95926958 | D159: 46.19886958 | E159: 38.91886958 | G159: 31.58 | H159: NA | I159: 33.96 | J159: NA | K159: 28.61 | L159: NA | N159: 51.55 | O159: NA | P159: 55.44 | Q159: NA | R159: 46.7 | S159: NA | U159: 42.96 | V159: NA | W159: 46.2 | X159: NA | Y159: 38.92 | Z159: NA
B160: 11 | C160: ='IPCOStorage(Energy)Levelized'!H12 -> 43.69805312 | D160: 46.93765312 | E160: 39.65765312 | G160: 32.12 | H160: NA | I160: 34.5 | J160: NA | K160: 29.15 | L160: NA | N160: 52.44 | O160: NA | P160: 56.33 | Q160: NA | R160: 47.59 | S160: NA | U160: 43.7 | V160: NA | W160: 46.94 | X160: NA | Y160: 39.66 | Z160: NA
B161: 12 | C161: ='IPCOStorage(Energy)Levelized'!H13 -> 44.37953993 | D161: 47.61913993 | E161: 40.33913993 | G161: 32.62 | H161: NA | I161: 35 | J161: NA | K161: 29.65 | L161: NA | N161: 53.26 | O161: NA | P161: 57.14 | Q161: NA | R161: 48.41 | S161: NA | U161: 44.38 | V161: NA | W161: 47.62 | X161: NA | Y161: 40.34 | Z161: NA
B162: 13 | C162: ='IPCOStorage(Energy)Levelized'!H14 -> 45.03958754 | D162: 48.27918754 | E162: 40.99918754 | G162: 33.1 | H162: NA | I162: 35.49 | J162: NA | K162: 30.13 | L162: NA | N162: 54.05 | O162: NA | P162: 57.94 | Q162: NA | R162: 49.2 | S162: NA | U162: 45.04 | V162: NA | W162: 48.28 | X162: NA | Y162: 41 | Z162: NA
B163: 14 | C163: ='IPCOStorage(Energy)Levelized'!H15 -> 45.71801273 | D163: 48.95761273 | E163: 41.67761273 | G163: 33.6 | H163: NA | I163: 35.98 | J163: NA | K163: 30.63 | L163: NA | N163: 54.86 | O163: NA | P163: 58.75 | Q163: NA | R163: 50.01 | S163: NA | U163: 45.72 | V163: NA | W163: 48.96 | X163: NA | Y163: 41.68 | Z163: NA
B164: 15 | C164: ='IPCOStorage(Energy)Levelized'!H16 -> 46.41041424 | D164: 49.65001424 | E164: 42.37001424 | G164: 34.11 | H164: NA | I164: 36.49 | J164: NA | K164: 31.14 | L164: NA | N164: 55.69 | O164: NA | P164: 59.58 | Q164: NA | R164: 50.84 | S164: NA | U164: 46.41 | V164: NA | W164: 49.65 | X164: NA | Y164: 42.37 | Z164: NA
B165: 16 | C165: ='IPCOStorage(Energy)Levelized'!H17 -> 47.11338482 | D165: 50.35298482 | E165: 43.07298482 | G165: 34.63 | H165: NA | I165: 37.01 | J165: NA | K165: 31.66 | L165: NA | N165: 56.54 | O165: NA | P165: 60.42 | Q165: NA | R165: 51.69 | S165: NA | U165: 47.11 | V165: NA | W165: 50.35 | X165: NA | Y165: 43.07 | Z165: NA
B166: 17 | C166: ='IPCOStorage(Energy)Levelized'!H18 -> 47.80811599 | D166: 51.04771599 | E166: 43.76771599 | G166: 35.14 | H166: NA | I166: 37.52 | J166: NA | K166: 32.17 | L166: NA | N166: 57.37 | O166: NA | P166: 61.26 | Q166: NA | R166: 52.52 | S166: NA | U166: 47.81 | V166: NA | W166: 51.05 | X166: NA | Y166: 43.77 | Z166: NA
B167: 18 | C167: ='IPCOStorage(Energy)Levelized'!H19 -> 48.49468491 | D167: 51.73428491 | E167: 44.45428491 | G167: 35.64 | H167: NA | I167: 38.02 | J167: NA | K167: 32.67 | L167: NA | N167: 58.19 | O167: NA | P167: 62.08 | Q167: NA | R167: 53.35 | S167: NA | U167: 48.49 | V167: NA | W167: 51.73 | X167: NA | Y167: 44.45 | Z167: NA
B168: 19 | C168: ='IPCOStorage(Energy)Levelized'!H20 -> 49.17309532 | D168: 52.41269532 | E168: 45.13269532 | G168: 36.14 | H168: NA | I168: 38.52 | J168: NA | K168: 33.17 | L168: NA | N168: 59.01 | O168: NA | P168: 62.9 | Q168: NA | R168: 54.16 | S168: NA | U168: 49.17 | V168: NA | W168: 52.41 | X168: NA | Y168: 45.13 | Z168: NA
B169: 20 | C169: ='IPCOStorage(Energy)Levelized'!H21 -> 49.8432999 | D169: 53.0828999 | E169: 45.8028999 | G169: 36.63 | H169: NA | I169: 39.02 | J169: NA | K169: 33.67 | L169: NA | N169: 59.81 | O169: NA | P169: 63.7 | Q169: NA | R169: 54.96 | S169: NA | U169: 49.84 | V169: NA | W169: 53.08 | X169: NA | Y169: 45.8 | Z169: NA
B173: =$B$1 -> IDAHO POWER
B174: LEVELIZED RATES
B175: ="PROJECT ON-LINE IN "& 'AVOID NEW'!$D$54+5 -> PROJECT ON-LINE IN 2031
C178: Levelized Price | G178: ="Season 1 Pricing ("&100*$D$7&"%)" -> Season 1 Pricing (73.5%) | N178: ="Season 2 Pricing ("&100*$D$8&"%)" -> Season 2 Pricing (120%) | U178: ="Season 3 Pricing ("&100*$D$9&"%)" -> Season 3 Pricing (100%)
C179: Heavy and Light Load Hour Differential | D179: ='AVOID NEW'!$D$66 -> 7.28 | G179: Flat | I179: Heavy Load Hour | K179: Light Load Hour | N179: Flat | P179: Heavy Load Hour | R179: Light Load Hour | U179: Flat | W179: Heavy Load Hour | Y179: Light Load Hour
D180: =D179*0.445 -> 3.2396 | E180: =-(D179-D180) -> -4.0404 | H180: =H20 -> Final avoided cost rates for wind and solar QFs include integration charges from Schedule 87 | J180: =H20 -> Final avoided cost rates for wind and solar QFs include integration charges from Schedule 87 | L180: =H20 -> Final avoided cost rates for wind and solar QFs include integration charges from Schedule 87 | O180: =H20 -> Final avoided cost rates for wind and solar QFs include integration charges from Schedule 87 | Q180: =H20 -> Final avoided cost rates for wind and solar QFs include integration charges from Schedule 87 | S180: =H20 -> Final avoided cost rates for wind and solar QFs include integration charges from Schedule 87 | V180: =H20 -> Final avoided cost rates for wind and solar QFs include integration charges from Schedule 87 | X180: =H20 -> Final avoided cost rates for wind and solar QFs include integration charges from Schedule 87 | Z180: =H20 -> Final avoided cost rates for wind and solar QFs include integration charges from Schedule 87
B181: Contract Length | C181: Flat | D181: Heavy Load Hour | E181: Light Load Hour | G181: Price | I181: Price | K181: Price | N181: Price | P181: Price | R181: Price | U181: Price | W181: Price | Y181: Price
B182: 1 | C182: ='IPCOStorage(Energy)Levelized'!I2 -> 36.47013115 | D182: =C182+D$84 -> 39.70973115 | E182: =C182+E$84 -> 32.42973115 | G182: =ROUND((+$C182*$D$7),2) -> 26.81 | H182: NA | I182: =ROUND((+$D182*$D$7),2) -> 29.19 | J182: NA | K182: =ROUND((+$E182*$D$7),2) -> 23.84 | L182: NA | N182: =ROUND((+$C182*$D$8),2) -> 43.76 | O182: NA | P182: =ROUND((+$D182*$D$8),2) -> 47.65 | Q182: NA | R182: =ROUND((+$E182*$D$8),2) -> 38.92 | S182: NA | U182: =ROUND((+$C182*$D$9),2) -> 36.47 | V182: NA | W182: =ROUND((+$D182*$D$9),2) -> 39.71 | X182: NA | Y182: =ROUND((+$E182*$D$9),2) -> 32.43 | Z182: NA
B183: 2 | C183: ='IPCOStorage(Energy)Levelized'!I3 -> 37.61078744 | D183: 40.85038744 | E183: 33.57038744 | G183: 27.64 | H183: NA | I183: 30.03 | J183: NA | K183: 24.67 | L183: NA | N183: 45.13 | O183: NA | P183: 49.02 | Q183: NA | R183: 40.28 | S183: NA | U183: =ROUND((+$C183*$D$9),2) -> 37.61 | V183: NA | W183: =ROUND((+$D183*$D$9),2) -> 40.85 | X183: NA | Y183: =ROUND((+$E183*$D$9),2) -> 33.57 | Z183: NA
B184: 3 | C184: ='IPCOStorage(Energy)Levelized'!I4 -> 39.2007726 | D184: 42.4403726 | E184: 35.1603726 | G184: 28.81 | H184: NA | I184: 31.19 | J184: NA | K184: 25.84 | L184: NA | N184: 47.04 | O184: NA | P184: 50.93 | Q184: NA | R184: 42.19 | S184: NA | U184: 39.2 | V184: NA | W184: 42.44 | X184: NA | Y184: 35.16 | Z184: NA
B185: 4 | C185: ='IPCOStorage(Energy)Levelized'!I5 -> 40.17911724 | D185: 43.41871724 | E185: 36.13871724 | G185: 29.53 | H185: NA | I185: 31.91 | J185: NA | K185: 26.56 | L185: NA | N185: 48.21 | O185: NA | P185: 52.1 | Q185: NA | R185: 43.37 | S185: NA | U185: 40.18 | V185: NA | W185: 43.42 | X185: NA | Y185: 36.14 | Z185: NA
B186: 5 | C186: ='IPCOStorage(Energy)Levelized'!I6 -> 41.03995947 | D186: 44.27955947 | E186: 36.99955947 | G186: 30.16 | H186: NA | I186: 32.55 | J186: NA | K186: 27.19 | L186: NA | N186: 49.25 | O186: NA | P186: 53.14 | Q186: NA | R186: 44.4 | S186: NA | U186: 41.04 | V186: NA | W186: 44.28 | X186: NA | Y186: 37 | Z186: NA
B187: 6 | C187: ='IPCOStorage(Energy)Levelized'!I7 -> 41.72631791 | D187: 44.96591791 | E187: 37.68591791 | G187: 30.67 | H187: NA | I187: 33.05 | J187: NA | K187: 27.7 | L187: NA | N187: 50.07 | O187: NA | P187: 53.96 | Q187: NA | R187: 45.22 | S187: NA | U187: 41.73 | V187: NA | W187: 44.97 | X187: NA | Y187: 37.69 | Z187: NA
B188: 7 | C188: ='IPCOStorage(Energy)Levelized'!I8 -> 42.39685272 | D188: 45.63645272 | E188: 38.35645272 | G188: 31.16 | H188: NA | I188: 33.54 | J188: NA | K188: 28.19 | L188: NA | N188: 50.88 | O188: NA | P188: 54.76 | Q188: NA | R188: 46.03 | S188: NA | U188: 42.4 | V188: NA | W188: 45.64 | X188: NA | Y188: 38.36 | Z188: NA
B189: 8 | C189: ='IPCOStorage(Energy)Levelized'!I9 -> 43.19861436 | D189: 46.43821436 | E189: 39.15821436 | G189: 31.75 | H189: NA | I189: 34.13 | J189: NA | K189: 28.78 | L189: NA | N189: 51.84 | O189: NA | P189: 55.73 | Q189: NA | R189: 46.99 | S189: NA | U189: 43.2 | V189: NA | W189: 46.44 | X189: NA | Y189: 39.16 | Z189: NA
B190: 9 | C190: ='IPCOStorage(Energy)Levelized'!I10 -> 43.9812525 | D190: 47.2208525 | E190: 39.9408525 | G190: 32.33 | H190: NA | I190: 34.71 | J190: NA | K190: 29.36 | L190: NA | N190: 52.78 | O190: NA | P190: 56.67 | Q190: NA | R190: 47.93 | S190: NA | U190: 43.98 | V190: NA | W190: 47.22 | X190: NA | Y190: 39.94 | Z190: NA
B191: 10 | C191: ='IPCOStorage(Energy)Levelized'!I11 -> 44.75467608 | D191: 47.99427608 | E191: 40.71427608 | G191: 32.89 | H191: NA | I191: 35.28 | J191: NA | K191: 29.92 | L191: NA | N191: 53.71 | O191: NA | P191: 57.59 | Q191: NA | R191: 48.86 | S191: NA | U191: 44.75 | V191: NA | W191: 47.99 | X191: NA | Y191: 40.71 | Z191: NA
B192: 11 | C192: ='IPCOStorage(Energy)Levelized'!I12 -> 45.46340501 | D192: 48.70300501 | E192: 41.42300501 | G192: 33.42 | H192: NA | I192: 35.8 | J192: NA | K192: 30.45 | L192: NA | N192: 54.56 | O192: NA | P192: 58.44 | Q192: NA | R192: 49.71 | S192: NA | U192: 45.46 | V192: NA | W192: 48.7 | X192: NA | Y192: 41.42 | Z192: NA
B193: 12 | C193: ='IPCOStorage(Energy)Levelized'!I13 -> 46.14923554 | D193: 49.38883554 | E193: 42.10883554 | G193: 33.92 | H193: NA | I193: 36.3 | J193: NA | K193: 30.95 | L193: NA | N193: 55.38 | O193: NA | P193: 59.27 | Q193: NA | R193: 50.53 | S193: NA | U193: 46.15 | V193: NA | W193: 49.39 | X193: NA | Y193: 42.11 | Z193: NA
B194: 13 | C194: ='IPCOStorage(Energy)Levelized'!I14 -> 46.85708381 | D194: 50.09668381 | E194: 42.81668381 | G194: 34.44 | H194: NA | I194: 36.82 | J194: NA | K194: 31.47 | L194: NA | N194: 56.23 | O194: NA | P194: 60.12 | Q194: NA | R194: 51.38 | S194: NA | U194: 46.86 | V194: NA | W194: 50.1 | X194: NA | Y194: 42.82 | Z194: NA
B195: 14 | C195: ='IPCOStorage(Energy)Levelized'!I15 -> 47.58155301 | D195: 50.82115301 | E195: 43.54115301 | G195: 34.97 | H195: NA | I195: 37.35 | J195: NA | K195: 32 | L195: NA | N195: 57.1 | O195: NA | P195: 60.99 | Q195: NA | R195: 52.25 | S195: NA | U195: 47.58 | V195: NA | W195: 50.82 | X195: NA | Y195: 43.54 | Z195: NA
B196: 15 | C196: ='IPCOStorage(Energy)Levelized'!I16 -> 48.31856343 | D196: 51.55816343 | E196: 44.27816343 | G196: 35.51 | H196: NA | I196: 37.9 | J196: NA | K196: 32.54 | L196: NA | N196: 57.98 | O196: NA | P196: 61.87 | Q196: NA | R196: 53.13 | S196: NA | U196: 48.32 | V196: NA | W196: 51.56 | X196: NA | Y196: 44.28 | Z196: NA
B197: 16 | C197: ='IPCOStorage(Energy)Levelized'!I17 -> 49.04708642 | D197: 52.28668642 | E197: 45.00668642 | G197: 36.05 | H197: NA | I197: 38.43 | J197: NA | K197: 33.08 | L197: NA | N197: 58.86 | O197: NA | P197: 62.74 | Q197: NA | R197: 54.01 | S197: NA | U197: 49.05 | V197: NA | W197: 52.29 | X197: NA | Y197: 45.01 | Z197: NA
B198: 17 | C198: ='IPCOStorage(Energy)Levelized'!I18 -> 49.76726606 | D198: 53.00686606 | E198: 45.72686606 | G198: 36.58 | H198: NA | I198: 38.96 | J198: NA | K198: 33.61 | L198: NA | N198: 59.72 | O198: NA | P198: 63.61 | Q198: NA | R198: 54.87 | S198: NA | U198: 49.77 | V198: NA | W198: 53.01 | X198: NA | Y198: 45.73 | Z198: NA
B199: 18 | C199: ='IPCOStorage(Energy)Levelized'!I19 -> 50.47914711 | D199: 53.71874711 | E199: 46.43874711 | G199: 37.1 | H199: NA | I199: 39.48 | J199: NA | K199: 34.13 | L199: NA | N199: 60.57 | O199: NA | P199: 64.46 | Q199: NA | R199: 55.73 | S199: NA | U199: 50.48 | V199: NA | W199: 53.72 | X199: NA | Y199: 46.44 | Z199: NA
B200: 19 | C200: ='IPCOStorage(Energy)Levelized'!I20 -> 51.18270547 | D200: 54.42230547 | E200: 47.14230547 | G200: 37.62 | H200: NA | I200: 40 | J200: NA | K200: 34.65 | L200: NA | N200: 61.42 | O200: NA | P200: 65.31 | Q200: NA | R200: 56.57 | S200: NA | U200: 51.18 | V200: NA | W200: 54.42 | X200: NA | Y200: 47.14 | Z200: NA
B201: 20 | C201: ='IPCOStorage(Energy)Levelized'!I21 -> 51.87786956 | D201: 55.11746956 | E201: 47.83746956 | G201: 38.13 | H201: NA | I201: 40.51 | J201: NA | K201: 35.16 | L201: NA | N201: 62.25 | O201: NA | P201: 66.14 | Q201: NA | R201: 57.4 | S201: NA | U201: 51.88 | V201: NA | W201: 55.12 | X201: NA | Y201: 47.84 | Z201: NA

Sheet IPCOStorage(Energy)Levelized
A1: Contract Length | B1: Year | C1: Non-Levelized Avoided Cost of Energy | D1: ='AVOID NEW'!$D$54 -> 2026 | E1: =D1+1 -> 2027 | F1: =E1+1 -> 2028 | G1: =F1+1 -> 2029 | H1: =G1+1 -> 2030 | I1: =H1+1 -> 2031
A2: 1 | B2: ='AVOID NEW'!M9 -> 2026 | C2: ='AVOID NEW'!AD9 -> 28.83292851 | D2: =-PMT('AVOID NEW'!$D$37,$A2,NPV('AVOID NEW'!$D$37,$C$2:$C2)) -> 28.83292851 | E2: =-PMT('AVOID NEW'!$D$37,$A2,NPV('AVOID NEW'!$D$37,$C$3:$C3)) -> 34.72754938 | F2: =-PMT('AVOID NEW'!$D$37,$A2,NPV('AVOID NEW'!$D$37,$C$4:$C4)) -> 37.03316178 | G2: =-PMT('AVOID NEW'!$D$37,$A2,NPV('AVOID NEW'!$D$37,$C$5:$C5)) -> 38.83182389 | H2: =-PMT('AVOID NEW'!$D$37,$A2,NPV('AVOID NEW'!$D$37,$C$6:$C6)) -> 36.41540347 | I2: =-PMT('AVOID NEW'!$D$37,$A2,NPV('AVOID NEW'!$D$37,$C$7:$C7)) -> 36.47013115
A3: 2 | B3: ='AVOID NEW'!M10 -> 2027 | C3: ='AVOID NEW'!AD10 -> 34.72754938 | D3: =-PMT('AVOID NEW'!$D$37,$A3,NPV('AVOID NEW'!$D$37,$C$2:$C3)) -> 31.67494253 | E3: =-PMT('AVOID NEW'!$D$37,$A3,NPV('AVOID NEW'!$D$37,$C$3:$C4)) -> 35.83917011 | F3: =-PMT('AVOID NEW'!$D$37,$A3,NPV('AVOID NEW'!$D$37,$C$4:$C5)) -> 37.90036309 | G3: =-PMT('AVOID NEW'!$D$37,$A3,NPV('AVOID NEW'!$D$37,$C$5:$C6)) -> 37.66677853 | H3: =-PMT('AVOID NEW'!$D$37,$A3,NPV('AVOID NEW'!$D$37,$C$6:$C7)) -> 36.4417897 | I3: =-PMT('AVOID NEW'!$D$37,$A3,NPV('AVOID NEW'!$D$37,$C$7:$C8)) -> 37.61078744
A4: 3 | B4: ='AVOID NEW'!M11 -> 2028 | C4: ='AVOID NEW'!AD11 -> 37.03316178 | D4: =-PMT('AVOID NEW'!$D$37,$A4,NPV('AVOID NEW'!$D$37,$C$2:$C4)) -> 33.33496956 | E4: =-PMT('AVOID NEW'!$D$37,$A4,NPV('AVOID NEW'!$D$37,$C$3:$C5)) -> 36.76632257 | F4: =-PMT('AVOID NEW'!$D$37,$A4,NPV('AVOID NEW'!$D$37,$C$4:$C6)) -> 37.44030854 | G4: =-PMT('AVOID NEW'!$D$37,$A4,NPV('AVOID NEW'!$D$37,$C$5:$C7)) -> 37.29604584 | H4: =-PMT('AVOID NEW'!$D$37,$A4,NPV('AVOID NEW'!$D$37,$C$6:$C8)) -> 37.18352823 | I4: =-PMT('AVOID NEW'!$D$37,$A4,NPV('AVOID NEW'!$D$37,$C$7:$C9)) -> 39.2007726
A5: 4 | B5: ='AVOID NEW'!M12 -> 2029 | C5: ='AVOID NEW'!AD12 -> 38.83182389 | D5: =-PMT('AVOID NEW'!$D$37,$A5,NPV('AVOID NEW'!$D$37,$C$2:$C5)) -> 34.56552525 | E5: =-PMT('AVOID NEW'!$D$37,$A5,NPV('AVOID NEW'!$D$37,$C$3:$C6)) -> 36.68776391 | F5: =-PMT('AVOID NEW'!$D$37,$A5,NPV('AVOID NEW'!$D$37,$C$4:$C7)) -> 37.22311936 | G5: =-PMT('AVOID NEW'!$D$37,$A5,NPV('AVOID NEW'!$D$37,$C$5:$C8)) -> 37.64078078 | H5: =-PMT('AVOID NEW'!$D$37,$A5,NPV('AVOID NEW'!$D$37,$C$6:$C9)) -> 38.42808529 | I5: =-PMT('AVOID NEW'!$D$37,$A5,NPV('AVOID NEW'!$D$37,$C$7:$C10)) -> 40.17911724
A6: 5 | B6: ='AVOID NEW'!M13 -> 2030 | C6: ='AVOID NEW'!AD13 -> 36.41540347 | D6: =-PMT('AVOID NEW'!$D$37,$A6,NPV('AVOID NEW'!$D$37,$C$2:$C6)) -> 34.88458138 | E6: =-PMT('AVOID NEW'!$D$37,$A6,NPV('AVOID NEW'!$D$37,$C$3:$C7)) -> 36.65022789 | F6: =-PMT('AVOID NEW'!$D$37,$A6,NPV('AVOID NEW'!$D$37,$C$4:$C8)) -> 37.50129371 | G6: =-PMT('AVOID NEW'!$D$37,$A6,NPV('AVOID NEW'!$D$37,$C$5:$C9)) -> 38.52076888 | H6: =-PMT('AVOID NEW'!$D$37,$A6,NPV('AVOID NEW'!$D$37,$C$6:$C10)) -> 39.3151064 | I6: =-PMT('AVOID NEW'!$D$37,$A6,NPV('AVOID NEW'!$D$37,$C$7:$C11)) -> 41.03995947
A7: 6 | B7: ='AVOID NEW'!M14 -> 2031 | C7: ='AVOID NEW'!AD14 -> 36.47013115 | D7: =-PMT('AVOID NEW'!$D$37,$A7,NPV('AVOID NEW'!$D$37,$C$2:$C7)) -> 35.1039557 | E7: =-PMT('AVOID NEW'!$D$37,$A7,NPV('AVOID NEW'!$D$37,$C$3:$C8)) -> 36.9526434 | F7: =-PMT('AVOID NEW'!$D$37,$A7,NPV('AVOID NEW'!$D$37,$C$4:$C9)) -> 38.22651822 | G7: =-PMT('AVOID NEW'!$D$37,$A7,NPV('AVOID NEW'!$D$37,$C$5:$C10)) -> 39.21951248 | H7: =-PMT('AVOID NEW'!$D$37,$A7,NPV('AVOID NEW'!$D$37,$C$6:$C11)) -> 40.12521616 | I7: =-PMT('AVOID NEW'!$D$37,$A7,NPV('AVOID NEW'!$D$37,$C$7:$C12)) -> 41.72631791
A8: 7 | B8: ='AVOID NEW'!M15 -> 2032 | C8: ='AVOID NEW'!AD15 -> 38.8359662 | D8: =-PMT('AVOID NEW'!$D$37,$A8,NPV('AVOID NEW'!$D$37,$C$2:$C8)) -> 35.52983048 | E8: =-PMT('AVOID NEW'!$D$37,$A8,NPV('AVOID NEW'!$D$37,$C$3:$C9)) -> 37.61339595 | F8: =-PMT('AVOID NEW'!$D$37,$A8,NPV('AVOID NEW'!$D$37,$C$4:$C10)) -> 38.83639952 | G8: =-PMT('AVOID NEW'!$D$37,$A8,NPV('AVOID NEW'!$D$37,$C$5:$C11)) -> 39.89857578 | H8: =-PMT('AVOID NEW'!$D$37,$A8,NPV('AVOID NEW'!$D$37,$C$6:$C12)) -> 40.79568945 | I8: =-PMT('AVOID NEW'!$D$37,$A8,NPV('AVOID NEW'!$D$37,$C$7:$C13)) -> 42.39685272
A9: 8 | B9: ='AVOID NEW'!M16 -> 2033 | C9: ='AVOID NEW'!AD16 -> 42.74292623 | D9: =-PMT('AVOID NEW'!$D$37,$A9,NPV('AVOID NEW'!$D$37,$C$2:$C9)) -> 36.22256389 | E9: =-PMT('AVOID NEW'!$D$37,$A9,NPV('AVOID NEW'!$D$37,$C$3:$C10)) -> 38.18555484 | F9: =-PMT('AVOID NEW'!$D$37,$A9,NPV('AVOID NEW'!$D$37,$C$4:$C11)) -> 39.44469224 | G9: =-PMT('AVOID NEW'!$D$37,$A9,NPV('AVOID NEW'!$D$37,$C$5:$C12)) -> 40.4846118 | H9: =-PMT('AVOID NEW'!$D$37,$A9,NPV('AVOID NEW'!$D$37,$C$6:$C13)) -> 41.44938706 | I9: =-PMT('AVOID NEW'!$D$37,$A9,NPV('AVOID NEW'!$D$37,$C$7:$C14)) -> 43.19861436
A10: 9 | B10: ='AVOID NEW'!M17 -> 2034 | C10: ='AVOID NEW'!AD17 -> 43.57100796 | D10: =-PMT('AVOID NEW'!$D$37,$A10,NPV('AVOID NEW'!$D$37,$C$2:$C10)) -> 36.82568245 | E10: =-PMT('AVOID NEW'!$D$37,$A10,NPV('AVOID NEW'!$D$37,$C$3:$C11)) -> 38.7588194 | F10: =-PMT('AVOID NEW'!$D$37,$A10,NPV('AVOID NEW'!$D$37,$C$4:$C12)) -> 39.98277078 | G10: =-PMT('AVOID NEW'!$D$37,$A10,NPV('AVOID NEW'!$D$37,$C$5:$C13)) -> 41.06879323 | H10: =-PMT('AVOID NEW'!$D$37,$A10,NPV('AVOID NEW'!$D$37,$C$6:$C14)) -> 42.21233511 | I10: =-PMT('AVOID NEW'!$D$37,$A10,NPV('AVOID NEW'!$D$37,$C$7:$C15)) -> 43.9812525
A11: 10 | B11: ='AVOID NEW'!M18 -> 2035 | C11: ='AVOID NEW'!AD18 -> 45.1702555 | D11: =-PMT('AVOID NEW'!$D$37,$A11,NPV('AVOID NEW'!$D$37,$C$2:$C11)) -> 37.41804576 | E11: =-PMT('AVOID NEW'!$D$37,$A11,NPV('AVOID NEW'!$D$37,$C$3:$C12)) -> 39.27290378 | F11: =-PMT('AVOID NEW'!$D$37,$A11,NPV('AVOID NEW'!$D$37,$C$4:$C13)) -> 40.52366651 | G11: =-PMT('AVOID NEW'!$D$37,$A11,NPV('AVOID NEW'!$D$37,$C$5:$C14)) -> 41.755701 | H11: =-PMT('AVOID NEW'!$D$37,$A11,NPV('AVOID NEW'!$D$37,$C$6:$C15)) -> 42.95926958 | I11: =-PMT('AVOID NEW'!$D$37,$A11,NPV('AVOID NEW'!$D$37,$C$7:$C16)) -> 44.75467608
A12: 11 | B12: ='AVOID NEW'!M19 -> 2036 | C12: ='AVOID NEW'!AD19 -> 46.00068356 | D12: =-PMT('AVOID NEW'!$D$37,$A12,NPV('AVOID NEW'!$D$37,$C$2:$C12)) -> 37.95011244 | E12: =-PMT('AVOID NEW'!$D$37,$A12,NPV('AVOID NEW'!$D$37,$C$3:$C13)) -> 39.78927267 | F12: =-PMT('AVOID NEW'!$D$37,$A12,NPV('AVOID NEW'!$D$37,$C$4:$C14)) -> 41.15733426 | G12: =-PMT('AVOID NEW'!$D$37,$A12,NPV('AVOID NEW'!$D$37,$C$5:$C15)) -> 42.43630384 | H12: =-PMT('AVOID NEW'!$D$37,$A12,NPV('AVOID NEW'!$D$37,$C$6:$C16)) -> 43.69805312 | I12: =-PMT('AVOID NEW'!$D$37,$A12,NPV('AVOID NEW'!$D$37,$C$7:$C17)) -> 45.46340501
A13: 12 | B13: ='AVOID NEW'!M20 -> 2037 | C13: ='AVOID NEW'!AD20 -> 47.60232436 | D13: =-PMT('AVOID NEW'!$D$37,$A13,NPV('AVOID NEW'!$D$37,$C$2:$C13)) -> 38.47680618 | E13: =-PMT('AVOID NEW'!$D$37,$A13,NPV('AVOID NEW'!$D$37,$C$3:$C14)) -> 40.38710679 | F13: =-PMT('AVOID NEW'!$D$37,$A13,NPV('AVOID NEW'!$D$37,$C$4:$C15)) -> 41.78905848 | G13: =-PMT('AVOID NEW'!$D$37,$A13,NPV('AVOID NEW'!$D$37,$C$5:$C16)) -> 43.11512484 | H13: =-PMT('AVOID NEW'!$D$37,$A13,NPV('AVOID NEW'!$D$37,$C$6:$C17)) -> 44.37953993 | I13: =-PMT('AVOID NEW'!$D$37,$A13,NPV('AVOID NEW'!$D$37,$C$7:$C18)) -> 46.14923554
A14: 13 | B14: ='AVOID NEW'!M21 -> 2038 | C14: ='AVOID NEW'!AD21 -> 50.74520635 | D14: =-PMT('AVOID NEW'!$D$37,$A14,NPV('AVOID NEW'!$D$37,$C$2:$C14)) -> 39.06994098 | E14: =-PMT('AVOID NEW'!$D$37,$A14,NPV('AVOID NEW'!$D$37,$C$3:$C15)) -> 40.98405286 | F14: =-PMT('AVOID NEW'!$D$37,$A14,NPV('AVOID NEW'!$D$37,$C$4:$C16)) -> 42.42178658 | G14: =-PMT('AVOID NEW'!$D$37,$A14,NPV('AVOID NEW'!$D$37,$C$5:$C17)) -> 43.74710534 | H14: =-PMT('AVOID NEW'!$D$37,$A14,NPV('AVOID NEW'!$D$37,$C$6:$C18)) -> 45.03958754 | I14: =-PMT('AVOID NEW'!$D$37,$A14,NPV('AVOID NEW'!$D$37,$C$7:$C19)) -> 46.85708381
A15: 14 | B15: ='AVOID NEW'!M22 -> 2039 | C15: ='AVOID NEW'!AD22 -> 52.73433923 | D15: =-PMT('AVOID NEW'!$D$37,$A15,NPV('AVOID NEW'!$D$37,$C$2:$C15)) -> 39.65850047 | E15: =-PMT('AVOID NEW'!$D$37,$A15,NPV('AVOID NEW'!$D$37,$C$3:$C16)) -> 41.58243096 | F15: =-PMT('AVOID NEW'!$D$37,$A15,NPV('AVOID NEW'!$D$37,$C$4:$C17)) -> 43.01468885 | G15: =-PMT('AVOID NEW'!$D$37,$A15,NPV('AVOID NEW'!$D$37,$C$5:$C18)) -> 44.36238963 | H15: =-PMT('AVOID NEW'!$D$37,$A15,NPV('AVOID NEW'!$D$37,$C$6:$C19)) -> 45.71801273 | I15: =-PMT('AVOID NEW'!$D$37,$A15,NPV('AVOID NEW'!$D$37,$C$7:$C20)) -> 47.58155301
A16: 15 | B16: ='AVOID NEW'!M23 -> 2040 | C16: ='AVOID NEW'!AD23 -> 54.87640657 | D16: =-PMT('AVOID NEW'!$D$37,$A16,NPV('AVOID NEW'!$D$37,$C$2:$C16)) -> 40.24522546 | E16: =-PMT('AVOID NEW'!$D$37,$A16,NPV('AVOID NEW'!$D$37,$C$3:$C17)) -> 42.14550916 | F16: =-PMT('AVOID NEW'!$D$37,$A16,NPV('AVOID NEW'!$D$37,$C$4:$C18)) -> 43.59367855 | G16: =-PMT('AVOID NEW'!$D$37,$A16,NPV('AVOID NEW'!$D$37,$C$5:$C19)) -> 44.99576889 | H16: =-PMT('AVOID NEW'!$D$37,$A16,NPV('AVOID NEW'!$D$37,$C$6:$C20)) -> 46.41041424 | I16: =-PMT('AVOID NEW'!$D$37,$A16,NPV('AVOID NEW'!$D$37,$C$7:$C21)) -> 48.31856343
A17: 16 | B17: ='AVOID NEW'!M24 -> 2041 | C17: ='AVOID NEW'!AD24 -> 56.18700954 | D17: =-PMT('AVOID NEW'!$D$37,$A17,NPV('AVOID NEW'!$D$37,$C$2:$C17)) -> 40.79762864 | E17: =-PMT('AVOID NEW'!$D$37,$A17,NPV('AVOID NEW'!$D$37,$C$3:$C18)) -> 42.69599514 | F17: =-PMT('AVOID NEW'!$D$37,$A17,NPV('AVOID NEW'!$D$37,$C$4:$C19)) -> 44.18956585 | G17: =-PMT('AVOID NEW'!$D$37,$A17,NPV('AVOID NEW'!$D$37,$C$5:$C20)) -> 45.64309237 | H17: =-PMT('AVOID NEW'!$D$37,$A17,NPV('AVOID NEW'!$D$37,$C$6:$C21)) -> 47.11338482 | I17: =-PMT('AVOID NEW'!$D$37,$A17,NPV('AVOID NEW'!$D$37,$C$7:$C22)) -> 49.04708642
A18: 17 | B18: ='AVOID NEW'!M25 -> 2042 | C18: ='AVOID NEW'!AD25 -> 58.03196465 | D18: =-PMT('AVOID NEW'!$D$37,$A18,NPV('AVOID NEW'!$D$37,$C$2:$C18)) -> 41.33624524 | E18: =-PMT('AVOID NEW'!$D$37,$A18,NPV('AVOID NEW'!$D$37,$C$3:$C19)) -> 43.2614901 | F18: =-PMT('AVOID NEW'!$D$37,$A18,NPV('AVOID NEW'!$D$37,$C$4:$C20)) -> 44.79859291 | G18: =-PMT('AVOID NEW'!$D$37,$A18,NPV('AVOID NEW'!$D$37,$C$5:$C21)) -> 46.30109329 | H18: =-PMT('AVOID NEW'!$D$37,$A18,NPV('AVOID NEW'!$D$37,$C$6:$C22)) -> 47.80811599 | I18: =-PMT('AVOID NEW'!$D$37,$A18,NPV('AVOID NEW'!$D$37,$C$7:$C23)) -> 49.76726606
A19: 18 | B19: ='AVOID NEW'!M26 -> 2043 | C19: ='AVOID NEW'!AD26 -> 60.79036909 | D19: =-PMT('AVOID NEW'!$D$37,$A19,NPV('AVOID NEW'!$D$37,$C$2:$C19)) -> 41.88628754 | E19: =-PMT('AVOID NEW'!$D$37,$A19,NPV('AVOID NEW'!$D$37,$C$3:$C20)) -> 43.83871034 | F19: =-PMT('AVOID NEW'!$D$37,$A19,NPV('AVOID NEW'!$D$37,$C$4:$C21)) -> 45.41775623 | G19: =-PMT('AVOID NEW'!$D$37,$A19,NPV('AVOID NEW'!$D$37,$C$5:$C22)) -> 46.95257542 | H19: =-PMT('AVOID NEW'!$D$37,$A19,NPV('AVOID NEW'!$D$37,$C$6:$C23)) -> 48.49468491 | I19: =-PMT('AVOID NEW'!$D$37,$A19,NPV('AVOID NEW'!$D$37,$C$7:$C24)) -> 50.47914711
A20: 19 | B20: ='AVOID NEW'!M27 -> 2044 | C20: ='AVOID NEW'!AD27 -> 63.6768544 | D20: =-PMT('AVOID NEW'!$D$37,$A20,NPV('AVOID NEW'!$D$37,$C$2:$C20)) -> 42.44517468 | E20: =-PMT('AVOID NEW'!$D$37,$A20,NPV('AVOID NEW'!$D$37,$C$3:$C21)) -> 44.42499327 | F20: =-PMT('AVOID NEW'!$D$37,$A20,NPV('AVOID NEW'!$D$37,$C$4:$C22)) -> 46.03139339 | G20: =-PMT('AVOID NEW'!$D$37,$A20,NPV('AVOID NEW'!$D$37,$C$5:$C23)) -> 47.59732804 | H20: =-PMT('AVOID NEW'!$D$37,$A20,NPV('AVOID NEW'!$D$37,$C$6:$C24)) -> 49.17309532 | I20: =-PMT('AVOID NEW'!$D$37,$A20,NPV('AVOID NEW'!$D$37,$C$7:$C25)) -> 51.18270547
A21: 20 | B21: ='AVOID NEW'!M28 -> 2045 | C21: ='AVOID NEW'!AD28 -> 66.69741753 | D21: =-PMT('AVOID NEW'!$D$37,$A21,NPV('AVOID NEW'!$D$37,$C$2:$C21)) -> 43.01078109 | E21: =-PMT('AVOID NEW'!$D$37,$A21,NPV('AVOID NEW'!$D$37,$C$3:$C22)) -> 45.0061261 | F21: =-PMT('AVOID NEW'!$D$37,$A21,NPV('AVOID NEW'!$D$37,$C$4:$C23)) -> 46.63915009 | G21: =-PMT('AVOID NEW'!$D$37,$A21,NPV('AVOID NEW'!$D$37,$C$5:$C24)) -> 48.2351341 | H21: =-PMT('AVOID NEW'!$D$37,$A21,NPV('AVOID NEW'!$D$37,$C$6:$C25)) -> 49.8432999 | I21: =-PMT('AVOID NEW'!$D$37,$A21,NPV('AVOID NEW'!$D$37,$C$7:$C26)) -> 51.87786956
A22: 21 | B22: ='AVOID NEW'!M29 -> 2046 | C22: ='AVOID NEW'!AD29 -> 69.34298284 | D22: =-PMT('AVOID NEW'!$D$37,$A22,NPV('AVOID NEW'!$D$37,$C$2:$C22)) -> 43.57037896 | E22: =-PMT('AVOID NEW'!$D$37,$A22,NPV('AVOID NEW'!$D$37,$C$3:$C23)) -> 45.58171871 | F22: =-PMT('AVOID NEW'!$D$37,$A22,NPV('AVOID NEW'!$D$37,$C$4:$C24)) -> 47.24069873 | G22: =-PMT('AVOID NEW'!$D$37,$A22,NPV('AVOID NEW'!$D$37,$C$5:$C25)) -> 48.8657755 | H22: =-PMT('AVOID NEW'!$D$37,$A22,NPV('AVOID NEW'!$D$37,$C$6:$C26)) -> 50.50521635 | I22: =-PMT('AVOID NEW'!$D$37,$A22,NPV('AVOID NEW'!$D$37,$C$7:$C27)) -> 50.86352811
A23: 22 | B23: ='AVOID NEW'!M30 -> 2047 | C23: ='AVOID NEW'!AD30 -> 72.09096958 | D23: =-PMT('AVOID NEW'!$D$37,$A23,NPV('AVOID NEW'!$D$37,$C$2:$C23)) -> 44.12372136 | E23: =-PMT('AVOID NEW'!$D$37,$A23,NPV('AVOID NEW'!$D$37,$C$3:$C24)) -> 46.15141775 | F23: =-PMT('AVOID NEW'!$D$37,$A23,NPV('AVOID NEW'!$D$37,$C$4:$C25)) -> 47.83573577 | G23: =-PMT('AVOID NEW'!$D$37,$A23,NPV('AVOID NEW'!$D$37,$C$5:$C26)) -> 49.48903697 | H23: =-PMT('AVOID NEW'!$D$37,$A23,NPV('AVOID NEW'!$D$37,$C$6:$C27)) -> 49.60580578 | I23: -
A24: 23 | B24: ='AVOID NEW'!M31 -> 2048 | C24: ='AVOID NEW'!AD31 -> 74.94536945 | D24: =-PMT('AVOID NEW'!$D$37,$A24,NPV('AVOID NEW'!$D$37,$C$2:$C24)) -> 44.67057609 | E24: =-PMT('AVOID NEW'!$D$37,$A24,NPV('AVOID NEW'!$D$37,$C$3:$C25)) -> 46.71490194 | F24: =-PMT('AVOID NEW'!$D$37,$A24,NPV('AVOID NEW'!$D$37,$C$4:$C26)) -> 48.42397993 | G24: =-PMT('AVOID NEW'!$D$37,$A24,NPV('AVOID NEW'!$D$37,$C$5:$C27)) -> 48.68456138 | H24: -
A25: 24 | B25: ='AVOID NEW'!M32 -> 2049 | C25: ='AVOID NEW'!AD32 -> 77.91033027 | D25: =-PMT('AVOID NEW'!$D$37,$A25,NPV('AVOID NEW'!$D$37,$C$2:$C25)) -> 45.21072556 | E25: =-PMT('AVOID NEW'!$D$37,$A25,NPV('AVOID NEW'!$D$37,$C$3:$C26)) -> 47.27187849 | F25: =-PMT('AVOID NEW'!$D$37,$A25,NPV('AVOID NEW'!$D$37,$C$4:$C27)) -> 47.70448163 | G25: -
A26: 25 | B26: ='AVOID NEW'!M33 -> 2050 | C26: ='AVOID NEW'!AD33 -> 80.99016211 | D26: =-PMT('AVOID NEW'!$D$37,$A26,NPV('AVOID NEW'!$D$37,$C$2:$C26)) -> 45.7439668 | E26: =-PMT('AVOID NEW'!$D$37,$A26,NPV('AVOID NEW'!$D$37,$C$3:$C27)) -> 46.62917059 | F26: -
A27: 26 | B27: ='AVOID NEW'!M34 -> 2051 | C27: ='AVOID NEW'!AD34 -> 4.147445159 | D27: =-PMT('AVOID NEW'!$D$37,$A27,NPV('AVOID NEW'!$D$37,$C$2:$C27)) -> 45.17469718 | E27: -

Sheet Input - IPCO IRP
A1: Source notes: | B1: Energy position is from Load and Resource Balance Data - Monthly Average Energy Load and Resource Balance, page 31 of Appendix C of 2013 IRP and p. 59 of IRP. Only deficiencies were recorded; no energy deficiencies on an annual basis throughout the planning period. | H1: Energy position is from Load and Resource Balance Data - Monthly Average Energy Load and Resource Balance sent by Idaho Power. The data does not include the 141 MW solar projects that were terminated. | J1: 2017 IRP Appendix C Technical Report, Peak-Hour Load and Resource Balance, Page 40 | L1: Attachment No. 1 of Amended Application in Case No. IPC-E-21-09 filed on February 4, 2022. | N1: Attachment 1 - IPC Supplemental Compliance Filing in Case No. IPC-E-23-27
B2: Peak position is from Table 2 in IPC-E-13-21 filing. Only summer peak is necessary -- summer need will always outweigh winter.
C3: Source: Table 2 | E3: Source: Table 3 | H3: Source: Idaho Power | J3: Source: Idaho Power | L3: Source: Idaho Power | N3: Source: Idaho Power
B4: Idaho Power | C4: IPC-E-13-21 w/o DR | E4: IPC-E-13-21 w DR | F4: Staff-recommended | G4: Net Position | H4: IPC-E-15-20 wo 141MW solar | J4: IPC-E-17-12 | L4: IPC-E-21-09 | N4: IPC-E-23-27 | P4: IPC-E-25-25
A5: Summary | B5: Energy (aMW) | C5: Summer Capacity (MW) | D5: Winter Capacity (MW) | E5: Summer Capacity (MW) | F5: Demand response (MW) | G5: Summer Capacity (MW) | H5: Summer Capacity (MW) | I5: Winter Capacity (MW) | J5: Summer Capacity (MW) | K5: Winter Capacity (MW) | L5: Summer Capacity (MW) | M5: Winter Capacity (NW) | N5: Summer Position (MW) | O5: Winter Position (MW) | P5: Summer Position (MW) | Q5: Winter Position (MW)
A6: 2013 | B6: 0 | C6: -87 | D6: 0 | E6: 0 | F6: 170 | G6: =IF(C6+F6>F60,0,C6+F6) -> 0 | H6: 0 | I6: 0 | J6: 0 | K6: 0
A7: =A6+1 -> 2014 | B7: 0 | C7: -30 | D7: 0 | E7: 0 | F7: 170 | G7: =IF(C7+F7>F61,0,C7+F7) -> 0 | H7: 0 | I7: 0 | J7: 0 | K7: 0
A8: =A7+1 -> 2015 | B8: 0 | C8: -94 | D8: 0 | E8: 0 | F8: 170 | G8: 0 | H8: 0 | I8: 0 | J8: 0 | K8: 0
A9: =A8+1 -> 2016 | B9: 0 | C9: -215 | D9: 0 | E9: 0 | F9: 170 | G9: -45 | H9: 0 | I9: 0 | J9: 0 | K9: 0
A10: 2017 | B10: 0 | C10: -275 | D10: 0 | E10: 0 | F10: 170 | G10: -105 | H10: 0 | I10: 0 | J10: 0 | K10: 0
A11: 2018 | B11: 0 | C11: -320 | D11: 0 | E11: 0 | F11: 170 | G11: -150 | H11: 0 | I11: 0 | J11: 0 | K11: 0
A12: 2019 | B12: 0 | C12: -365 | D12: 0 | E12: 0 | F12: 170 | G12: -195 | H12: 0 | I12: 0 | J12: 0 | K12: 0
A13: 2020 | B13: 0 | C13: -414 | D13: 0 | E13: 0 | F13: 170 | G13: -244 | H13: 0 | I13: 0 | J13: 0 | K13: 0
A14: 2021 | B14: 0 | C14: -476 | D14: 0 | E14: -36 | F14: 170 | G14: -306 | H14: 0 | I14: 0 | J14: 0 | K14: 0
A15: 2022 | B15: 0 | C15: -582 | D15: 0 | E15: -142 | F15: 170 | G15: -412 | H15: 0 | I15: 0 | J15: 0 | K15: 0
A16: 2023 | B16: 0 | C16: -635 | D16: 0 | E16: -195 | F16: 170 | G16: -465 | H16: 0 | I16: 0 | J16: 0 | K16: 0 | L16: -101
A17: 2024 | B17: 0 | C17: -683 | D17: 0 | E17: -243 | F17: 170 | G17: -513 | H17: -47 | I17: 0 | J17: 0 | K17: 0 | L17: -186
A18: 2025 | B18: 0 | C18: -733 | D18: 0 | E18: -293 | F18: 170 | G18: -563 | H18: -88 | I18: 0 | J18: 0 | K18: 0 | L18: -311
A19: 2026 | B19: 0 | C19: -781 | D19: 0 | E19: -341 | F19: 170 | G19: -611 | H19: -398 | I19: 0 | J19: -34.02938925 | K19: 0 | L19: -560 | N19: -52.5 | O19: 81.66666667
A20: 2027 | B20: 0 | C20: -828 | D20: 0 | E20: -388 | F20: 170 | G20: -658 | H20: -474 | I20: 0 | J20: -93.95568925 | K20: 0 | L20: -665 | N20: -186.5 | O20: -22.5 | P20: -125
A21: 2028 | B21: 0 | C21: -872 | D21: 0 | E21: -432 | F21: 170 | G21: -702 | H21: -512 | I21: 0 | J21: -158.8872893 | K21: 0 | L21: -773 | N21: -349.3333333 | O21: -265.5 | P21: -191
A22: 2029 | B22: 0 | C22: -918 | D22: 0 | E22: -478 | F22: 170 | G22: -748 | H22: -562 | I22: 0 | J22: -397.4678893 | K22: 0 | L22: -823 | N22: -465.6666667 | O22: -475.3333333 | P22: -390
A23: 2030 | B23: 0 | C23: -966 | D23: 0 | E23: -526 | F23: 170 | G23: -796 | H23: -653 | I23: 0 | J23: -457.7554893 | K23: 0 | L23: -873 | N23: -850.8333333 | O23: -832 | P23: -767 | Q23: -201
A24: 2031 | B24: 0 | C24: -1012 | D24: 0 | E24: -572 | F24: 170 | G24: -842 | H24: -689 | I24: 0 | J24: -521.4474893 | K24: 0 | L24: -935 | N24: -941.6666667 | O24: -887.6666667 | P24: -746 | Q24: -359
A25: 2032 | B25: 0 | C25: -1059 | D25: 0 | E25: -619 | F25: 170 | G25: -889 | H25: -763 | I25: 0 | J25: -574.4954893 | K25: 0 | L25: -983 | N25: -984.5 | O25: -907.3333333 | P25: -884 | Q25: -432
A26: 2033 | B26: 0 | C26: =C25 -> -1059 | D26: 0 | E26: -619 | F26: 170 | G26: -889 | H26: -828 | I26: 0 | J26: -815.0514893 | K26: 0 | L26: -1051 | N26: -1068 | O26: -971.1666667 | P26: -969 | Q26: -502
A27: 2034 | B27: 0 | C27: =C26 -> -1059 | D27: 0 | E27: -619 | F27: 170 | G27: -889 | H27: -860 | I27: 0 | J27: -872.2774893 | K27: 0 | L27: -1102 | N27: -1107.166667 | O27: -988.6666667 | P27: -955 | Q27: -527
A28: 2035 | B28: 0 | C28: -1059 | D28: 0 | E28: -619 | F28: 170 | G28: -889 | H28: -860 | I28: 0 | J28: -927.6724893 | K28: 0 | L28: -1155 | N28: -1141.166667 | O28: -998 | P28: -856 | Q28: -546
A29: 2036 | B29: 0 | C29: -1059 | D29: 0 | E29: -619 | F29: 170 | G29: -889 | H29: -860 | I29: 0 | J29: -986.2884893 | K29: 0 | L29: -1210 | N29: -1179.333333 | O29: -1010.666667 | P29: -895 | Q29: -520
A30: 2037 | B30: 0 | C30: -1059 | D30: 0 | E30: -619 | F30: 170 | G30: -889 | H30: -860 | I30: 0 | J30: -986.2884893 | K30: 0 | L30: -1282 | N30: -1255.166667 | O30: -1068.333333 | P30: -1011 | Q30: -558
A31: 2038 | B31: 0 | C31: -1059 | D31: 0 | E31: -619 | F31: 170 | G31: -889 | H31: -860 | I31: 0 | J31: -986.2884893 | K31: 0 | L31: -1349 | N31: -1575.666667 | O31: -1359.5 | P31: -1050 | Q31: -593
A32: 2039 | B32: 0 | C32: -1059 | D32: 0 | E32: -619 | F32: 170 | G32: -889 | H32: -860 | I32: 0 | J32: -986.2884893 | K32: 0 | L32: -1406 | N32: -1610.833333 | O32: -1370.666667 | P32: -1081 | Q32: -605
A33: 2040 | B33: 0 | C33: -1059 | D33: 0 | E33: -619 | F33: 170 | G33: -889 | H33: -860 | I33: 0 | J33: -986.2884893 | K33: 0 | L33: -1466 | N33: -1647.5 | O33: -1383.166667 | P33: -1117 | Q33: -616
A34: 2041 | B34: 0 | C34: -1059 | D34: 0 | E34: -619 | F34: 170 | G34: -889 | H34: -860 | I34: 0 | J34: -986.2884893 | K34: 0 | L34: -1466 | N34: -1688.5 | O34: -1401.833333 | P34: -1154 | Q34: -634
A35: 2042 | B35: 0 | C35: -1059 | D35: 0 | E35: -619 | F35: 170 | G35: -889 | H35: -860 | I35: 0 | J35: -986.2884893 | K35: 0 | L35: -1466 | N35: -1733.166667 | O35: -1419 | P35: -1186 | Q35: -645
A36: 2043 | B36: 0 | C36: -1059 | D36: 0 | E36: -619 | F36: 170 | G36: -889 | H36: -860 | I36: 0 | J36: -986.2884893 | K36: 0 | L36: -1466 | N36: -1855.5 | O36: -1449.833333 | P36: -1256 | Q36: -669
A37: 2044 | B37: 0 | C37: -1059 | D37: 0 | E37: -619 | F37: 170 | G37: -889 | H37: -860 | I37: 0 | J37: -986.2884893 | K37: 0 | L37: -1466 | N37: -1855.5 | O37: -1449.833333 | P37: -1285 | Q37: -679
A38: 2045 | B38: 0 | C38: -1059 | D38: 0 | E38: -619 | F38: 170 | G38: -889 | H38: -860 | I38: 0 | J38: -986.2884893 | K38: 0 | L38: -1466 | N38: -1855.5 | O38: -1449.833333 | P38: -1379 | Q38: -710
A39: 2046 | B39: 0 | C39: -1059 | D39: 0 | E39: -619 | F39: 170 | G39: -889 | H39: -860 | I39: 0 | J39: -986.2884893 | K39: 0 | L39: -1466 | N39: -1855.5 | O39: -1449.833333 | P39: -1379 | Q39: -710
A40: 2047 | B40: 0 | C40: -1059 | D40: 0 | E40: -619 | F40: 170 | G40: -889 | H40: -860 | I40: 0 | J40: -986.2884893 | K40: 0 | L40: -1466 | N40: -1855.5 | O40: -1449.833333 | P40: -1379 | Q40: -710
A41: 2048 | L41: -1466 | N41: -1855.5 | O41: -1449.833333 | P41: -1379 | Q41: -710
A42: 2049 | L42: -1466 | N42: -1855.5 | O42: -1449.833333 | P42: -1379 | Q42: -710
A43: 2050 | L43: -1466 | N43: -1855.5 | O43: -1449.833333 | P43: -1379 | Q43: -710
A44: 2051 | L44: -1466 | N44: -1855.5 | O44: -1449.833333 | P44: -1379 | Q44: -710
A45: 2052 | N45: -1855.5 | O45: -1449.833333 | P45: -1379 | Q45: -710
A46: 2053 | N46: -1855.5 | O46: -1449.833333 | P46: -1379 | Q46: -710
A47: 2054 | N47: -1855.5 | O47: -1449.833333 | P47: -1379 | Q47: -710
A48: 2055 | N48: -1855.5 | O48: -1449.833333 | P48: -1379 | Q48: -710
A49: 2056 | N49: -1855.5 | O49: -1449.833333
A50: 2057 | N50: -1855.5 | O50: -1449.833333
A51: 2058
A52: 2059
A53: 2060
A54: 2061
A55: 2062
A56: 2063
A57: 2064
A58: 2065

Sheet IPCoCapCarChg
A1: LEVELIZED CARRYING CHARGE CALCULATION
D4: Earnings | F4: Book | G4: Tax | H4: Tax | J4: Equity | K4: Deferred | L4: Current | M4: Total | N4: Prop. | O4: Misc. | P4: Carrying
A5: INPUT AND RESULTS | C5: Year | D5: Base | E5: Return | F5: Depr | G5: Base | H5: Depr | I5: Interest | J5: Return | K5: Taxes | L5: Taxes | M5: Taxes | N5: Taxes | O5: Items | P5: Cost
C6: 0 | D6: 100 | E6: =D6*($B$19) -> 7.4099859
A7: FINANCING: | C7: 1 | D7: =D6-F7-K7 -> 96.57916667 | E7: =(D6+D7)/2*($B$19) -> 7.283244266 | F7: =IF(C7>$B$29,0,100/$B$29) -> 3.333333333 | G7: 100 | H7: =(G7*0.075)*0.5 -> 3.75 | I7: =(D7+D6)/2*($B$9*$B$15) -> 2.634225606 | J7: =(D6+D7)/2*(B$17*B$11+B$10*B$16) -> 4.64901866 | K7: =(H7-F7)*$B$26 -> 0.0875 | L7: =(F7+K7+E7-H7-I7)*($B$25/(1-$B$25)) -> 1.497347028 | M7: =K7+L7 -> 1.584847028 | N7: =$D$6*$B$33 -> 1 | O7: =((E7+F7+N7)-(I7+F7+N7)*B$25)/(1-B$25)/(1-B$34)*B$34 -> 0 | P7: =M7+F7+E7+N7+O7 -> 13.20142463
A8: Capital Structure | C8: 2 | D8: 92.42989583 | E8: 7.00277244 | F8: 3.333333333 | G8: =(G7-H7) -> 96.25 | H8: =IF(B$50>C7-0.5,(G8*$B$24/$B$22),IF(H7>G8,G8,(G8/($B$22-C7+0.5)))) -> 7.21875 | I8: 2.532783716 | J8: 4.469988725 | K8: 0.8159375 | L8: 0.4854446003 | M8: 1.3013821 | N8: =$D$6*$B$33 -> 1 | O8: 0 | P8: 12.63748787
A9: Debt | B9: 0.5073 | C9: 3 | D9: 88.39432031 | E9: 6.69952446 | F9: 3.333333333 | G9: 89.03125 | H9: 6.67734375 | I9: 2.423104078 | J9: 4.276420382 | K9: 0.7022421875 | L9: 0.5666031029 | M9: 1.26884529 | N9: 1 | O9: 0 | P9: 12.30170308
A10: Preferred | B10: 0 | C10: 4 | D10: 84.46391296 | E10: 6.404385356 | F10: 3.333333333 | G10: 82.35390625 | H10: 6.176542969 | I10: 2.316357283 | J10: 4.088028074 | K10: 0.5970740234 | L10: 0.6384367352 | M10: 1.235510759 | N10: 1 | O10: 0 | P10: 11.97322945
A11: Common | B11: 0.4927 | C11: 5 | D11: 80.63078615 | E11: 6.116746963 | F11: 3.333333333 | G11: 76.17736328 | H11: 5.713302246 | I11: 2.212323367 | J11: 3.904423596 | K11: 0.4997934717 | L11: 0.7016448627 | M11: 1.201438334 | N11: 1 | O11: 0 | P11: 11.65151863
A12: Total | B12: =SUM(B9:B11) -> 1 | C12: 6 | D12: 76.88764386 | E12: 5.836046727 | F12: 3.333333333 | G12: 70.46406104 | H12: 5.284804578 | I12: 2.110798864 | J12: 3.725247862 | K12: 0.4098089613 | L12: 0.7568743982 | M12: 1.16668336 | N12: 1 | O12: 0 | P12: 11.33606342
C13: 7 | D13: 73.22773723 | E13: 5.561764286 | F13: 3.333333333 | G13: 65.17925646 | H13: 4.888444234 | I13: 2.01159557 | J13: 3.550168717 | K13: 0.3265732892 | L13: 0.804723736 | M13: 1.131297025 | N13: 1 | O13: 0 | P13: 11.02639464
A14: Component Cost | C14: 8 | D14: 69.64482361 | E14: 5.293418307 | F14: 3.333333333 | G14: 60.29081222 | H14: 4.521810917 | I14: 1.914539392 | J14: 3.378878915 | K14: 0.2495802925 | L14: 0.8457463911 | M14: 1.095326684 | N14: 1 | O14: 0 | P14: 10.72207832
A15: Debt | B15: 0.05283 | C15: 9 | D15: 66.07457105 | E15: 5.028394004 | F15: 3.333333333 | G15: 55.76900131 | H15: 4.461520105 | I15: 1.818684608 | J15: 3.209709396 | K15: 0.2369192219 | L15: 0.8036182754 | M15: 1.040537497 | N15: 1 | O15: 0 | P15: 10.40226483
A16: Preferred | C16: 10 | D16: 62.5043185 | E16: 4.763838793 | F16: 3.333333333 | G16: 51.3074812 | H16: 4.461520105 | I16: 1.722999487 | J16: 3.040839306 | K16: 0.2369192219 | L16: 0.7450845277 | M16: 0.9820037496 | N16: 1 | O16: 0 | P16: 10.07917588
A17: Common | B17: 0.096 | C17: 11 | D17: 58.93406594 | E17: 4.499283582 | F17: 3.333333333 | G17: 46.8459611 | H17: 4.461520105 | I17: 1.627314365 | J17: 2.871969217 | K17: 0.2369192219 | L17: 0.6865507799 | M17: 0.9234700019 | N17: 1 | O17: 0 | P17: 9.756086917
A18: Total | B18: =(B9*B15+B10*B16+B11*B17) -> 0.074099859 | C18: 12 | D18: 55.36381339 | E18: 4.234728371 | F18: 3.333333333 | G18: 42.38444099 | H18: 4.461520105 | I18: 1.531629244 | J18: 2.703099127 | K18: 0.2369192219 | L18: 0.6280170322 | M18: 0.8649362541 | N18: 1 | O18: 0 | P18: 9.432997959
A19: Discount Rate (Utility Weighted Cost of Capital) | B19: =B18 -> 0.074099859 | C19: 13 | D19: 51.79356083 | E19: 3.97017316 | F19: 3.333333333 | G19: 37.92292089 | H19: 4.461520105 | I19: 1.435944123 | J19: 2.534229037 | K19: 0.2369192219 | L19: 0.5694832844 | M19: 0.8064025064 | N19: 1 | O19: 0 | P19: 9.109909
C20: 14 | D20: 48.22330828 | E20: 3.705617949 | F20: 3.333333333 | G20: 33.46140078 | H20: 4.461520105 | I20: 1.340259002 | J20: 2.365358948 | K20: 0.2369192219 | L20: 0.5109495367 | M20: 0.7478687586 | N20: 1 | O20: 0 | P20: 8.786820041
A21: TAXES | C21: 15 | D21: 44.65305572 | E21: 3.441062738 | F21: 3.333333333 | G21: 28.99988068 | H21: 4.461520105 | I21: 1.24457388 | J21: 2.196488858 | K21: 0.2369192219 | L21: 0.4524157889 | M21: 0.6893350109 | N21: 1 | O21: 0 | P21: 8.463731083
A22: Tax Life | B22: 20 | C22: 16 | D22: 41.08280317 | E22: 3.176507527 | F22: 3.333333333 | G22: 24.53836057 | H22: 4.461520105 | I22: 1.148888759 | J22: 2.027618768 | K22: 0.2369192219 | L22: 0.3938820412 | M22: 0.6308012631 | N22: 1 | O22: 0 | P22: 8.140642124
A23: Month (Real Prop) | B23: 6 | C23: 17 | D23: 37.51255061 | E23: 2.911952316 | F23: 3.333333333 | G23: 20.07684047 | H23: 4.461520105 | I23: 1.053203638 | J23: 1.858748679 | K23: 0.2369192219 | L23: 0.3353482934 | M23: 0.5722675154 | N23: 1 | O23: 0 | P23: 7.817553165
A24: DRDB Rate | B24: 1.5 | C24: 18 | D24: 33.94229805 | E24: 2.647397105 | F24: 3.333333333 | G24: 15.61532037 | H24: 4.461520105 | I24: 0.9575185165 | J24: 1.689878589 | K24: 0.2369192219 | L24: 0.2768145457 | M24: 0.5137337676 | N24: 1 | O24: 0 | P24: 7.494464206
A25: Composite Rate | B25: 0.2574 | C25: 19 | D25: 30.3720455 | E25: 2.382841895 | F25: 3.333333333 | G25: 11.15380026 | H25: 4.461520105 | I25: 0.8618333952 | J25: 1.521008499 | K25: 0.2369192219 | L25: 0.2182807979 | M25: 0.4552000199 | N25: 1 | O25: 0 | P25: 7.171375248
A26: Deferred Rate | B26: 0.21 | C26: 20 | D26: 26.80179294 | E26: 2.118286684 | F26: 3.333333333 | G26: 6.692280157 | H26: 4.461520105 | I26: 0.7661482739 | J26: 1.35213841 | K26: 0.2369192219 | L26: 0.1597470502 | M26: 0.3966662721 | N26: 1 | O26: 0 | P26: 6.848286289
C27: 21 | D27: 23.7 | E27: 1.871087868 | F27: 3.333333333 | G27: 2.230760052 | H27: 2.230760052 | I27: 0.6767406658 | J27: 1.194347202 | K27: -0.231540389 | L27: 0.715902015 | M27: 0.4843616259 | N27: 1 | O27: 0 | P27: 6.688782827
A28: FACILITY | C28: 22 | D28: 21.06666667 | E28: 1.658601844 | F28: 3.333333333 | G28: 0 | H28: 0 | I28: 0.599888084 | J28: 1.05871376 | K28: -0.7 | L28: 1.279737304 | M28: 0.5797373038 | N28: 1 | O28: 0 | P28: 6.571672481
A29: Book Life | B29: 30 | C29: 23 | D29: 18.43333333 | E29: 1.463472215 | F29: 3.333333333 | G29: 0 | H29: 0 | I29: 0.5293130153 | J29: 0.9341592 | K29: -0.7 | L29: 1.236564204 | M29: 0.5365642043 | N29: 1 | O29: 0 | P29: 6.333369753
A30: Investment | B30: 1 | C30: 24 | D30: 15.8 | E30: 1.268342587 | F30: 3.333333333 | G30: 0 | H30: 0 | I30: 0.4587379466 | J30: 0.80960464 | K30: -0.7 | L30: 1.193391105 | M30: 0.4933911047 | N30: 1 | O30: 0 | P30: 6.095067025
C31: 25 | D31: 13.16666667 | E31: 1.073212958 | F31: 3.333333333 | G31: 0 | H31: 0 | I31: 0.3881628779 | J31: 0.68505008 | K31: -0.7 | L31: 1.150218005 | M31: 0.4502180051 | N31: 1 | O31: 0 | P31: 5.856764296
A32: OTHER | C32: 26 | D32: 10.53333333 | E32: 0.8780833292 | F32: 3.333333333 | G32: 0 | H32: 0 | I32: 0.3175878092 | J32: 0.56049552 | K32: -0.7 | L32: 1.107044906 | M32: 0.4070449055 | N32: 1 | O32: 0 | P32: 5.618461568
A33: Property Tax Rate | B33: 0.01 | C33: 27 | D33: 7.9 | E33: 0.6829537005 | F33: 3.333333333 | G33: 0 | H33: 0 | I33: 0.2470127405 | J33: 0.43594096 | K33: -0.7 | L33: 1.063871806 | M33: 0.363871806 | N33: 1 | O33: 0 | P33: 5.38015884
